Workbook

Sheet Instructions
A1: Instructions for the UW Margin Model
A3: The purpose of the model is to help the actuary decide what the Underwriting Margin should be used in the premium rate development by enabling the actuary to test the sensitivity of assumptions.
A5: I. Set assumptions for:
A6: * General Parameters
A7: * Cost of Capital Parameters
A8: * Underwriting Margin Curve Activation
A9: * Risk-Sharing Parameters
A10: * Managed Care Discounts for RBC Calculation
A11: * Income Matrix - Interest Income / Interest Expense
A12: * User-Defined Values
A14: II. Press Calculate Button
A16: III. Lock / Unlock Button
A17: Pressing the Lock/Unlock button will initiate a macro that will activate the protection or cancel the protection of the locked cells in the worksheets. when "Locked", only unlocked cells will be available for modifications, i.e., parameter selections and user inputs. This feature is being provided as a convenience utility to prevent the user from unintentionally altering formulas, cell references or pre-existing cell contents. At this time there is no password to lock or unlock, but the SOA may at its sole discretion include a password in the future
A19: Note: All input fields in the User Parameters tab are initially shaded in light orange/salmon color, aka "Orange, Accent 6, Lighter 80%" in Excel-speak. Selecting "User-Defined" in a field where that option is available will change the shading to a light green for that parameter and the corresponding parameter under "User-Defined Parameter Inputs" section of the User Parameters tab
A20: For ease of use and reference, the following instructions are laid out and displayed in the same form as the structure in the User Parameters tab
A21: User Parameters
A23: General Parameters | C23: MLR Provisions
A24: 1. Calculation Target: Select the type of target, i.e., Net Income, Risk Margin or Probability of Ruin, and the target level for the UW Margin Model to solve. For the net income and risk margin options, enter a value as a percentage of premium. For the ruin option, enter the probability of ruin | C24: 38. Include Minimum MLR, Maximum MLR Provisions on Rates: Select "Yes" to turn on this option and provide those values in #38.a. and #38.b.
A25: 2. Average Monthly Enrollment: Enter the estimated average monthly enrollment in the benefit plan for the rate period under consideration | C25: 38.a. Minimum MLR: Enter minimum applicable MLR parameter, e.g., 85%. If both the Risk Sharing Parameters and the MLR are entered, the Risk Sharing parameters will be applied first and the Minimum MLR will be applied next
A26: 3. Months in Rating Period: Enter the number of months in the rate period for the rate period under consideration | C26: 38.b. Maximum MLR: Enter maximum applicable MLR parameter
A27: 4. Member Months: This field is automatically calculated with the preceding 2 parameters and represents the member months for the rate period
A28: 5. UW Margin Curve - Standard Deviation: Select the desired UW Margin Curve to be used from the available options | C28: Risk Share (RS) Parameters
A29: a. If selecting "User-Defined Curve", input the Standard Deviation of your curve in the related field under the User-Defined Parameter Inputs section | C29: 39. Baseline for Risk Share: Select "No Risk Share", "MLR" or "Medical Baseline" to indicate the type of risk-sharing arrangement between the state and the MCO
A30: b. Note: The model also provide the user with the option to calculate the risk margin, probability of ruin and the likelihood of loss for all the curves, the results of which are summarized in a table in the Results Dashboard. However, the detailed analysis provided in the Results Dashboard applies only to the primary curve selected in #5 | C30: 40. MLR Target: Visible only when "MLR" is selected for Baseline for Risk Share in #39. Enter the Target MLR specified in the Risk Share provisions of the contract
A31: 6. Claims Expense PMPM: Enter the estimated Claims Expense PMPM for the rate period under consideration | C31: 41. Intervals: Enter the intervals of the corridors for the risk sharing arrangement
A32: a. The model will provide a warning to verify your input when you enter a value that is either below $100 PMPM or above $1,000 PMPM. You may override the warning after verification of your input | C32: 42. MCO Responsibility: Enter the MCO responsibility % for gains and losses at each of the intervals
A33: 7. Administrative Expenses PMPM: Enter estimated Administrative Expense PMPM for the rate period under consideration. Note that this amount should include the QI Allowance noted separately below
A34: 8. QI Allowance PMPM: Enter the amount of Quality Improvement (QI) to be included in rates as PMPM. This is used to calculate the MLR. The Administrative Expense PMPM provided above should also include this QI PMPM
A35: 9. Withhold %: Enter the withhold amount, stated as a percent of premium
A36: a. The model will provide a warning to verify your input when you enter a value that is greater than 25%. You may override this warning
A37: 10. Withhold Earned %: Enter the percent (% ) of the withhold that is reasonably expected to be earned by the MCO
A38: a. Suggested default value is 100%
A39: 11. State Premium Tax %: Enter the state premium tax, if any, as a percent of premium for the rate period under consideration
A41: Cost of Capital (COC) Parameters
A42: Parameters for Risk Based Capital (RBC) Calculation | C42: 17. Managed Care Discounts for RBC Calculation
A43: Per the NAIC, "The RBC requirement is a statutory minimum level of capital... the company must hold [capital] in proportion to its risk. RBC is intended to be a regulatory standard and not necessarily the full amount of capital that an insurer would need to hold to meet its objectives." The Cost of Capital component of the UW Margin is a way to recognize the opportunity cost of the capital requirements maintained by the insurer. | C43: This section develops the Managed Care discount factor used in the NAIC's RBC calculation formula when "NAIC Filings + User Parameters" is selected in #15. Enter the estimated percent (%) of claims that fall under the referenced payment arrangement.
A44: 12. Minimum RBC Target Threshold: Enter the Minimum Risk Based Capital (RBC) target for the Cost of Capital calculation | C44: 17.a. Category 0 - Arrangements not Included in Other Categories: Worksheet-calculated field, based on the inputs for 17.b. through 17.e.
A45: a. Note: | C45: 17.b. Category 1 - Payments made according to contractual arrangements: Enter the percent of claims paid according to contractual arrangements
A46: i. Authorized Control Level (ACL) = 100% RBC | C46: 17.c. Category 2a/b - Payments subject to withhold/bonus: Enter the percent of claims paid that are subject to withholds or bonuses
A47: ii. Many states require a minimum of 200% RBC, check with the applicable state regulation | C47: 17.d. Category 3a/b - Capitated payments to providers/intermediaries: Enter the percent of claims covered by capitation payments
A48: 13. Maximum RBC Target Threshold: Enter the Maximum RBC target for the Cost of Capital calculation. The Maximum RBC Target must be higher than the Minimum RBC Target for the model to develop the probability of ruin. If there is no specific maximum RBC target required, consider using the average of 450% noted in this report, with a discount of 0%. If a specific target RBC is desired, enter 100% for the discount in #14 to set the minimum and the maximum RBC targets to the same value | C48: 17.e. Category 4 - Expenses paid as salary to providers: Enter the percent of claims covered through provider salaries
A49: 14. Discount to apply to RBC between Thresholds: Enter the desired discount to apply to the Cost of Capital calculation for the RBC level between the minimum and maximum target RBCs. To target the model's calculation towards a specific RBC level, set the discount to 100%, which will effectively set the target at the Minimum RBC Target Threshold | C49: 17.f. Composite Managed Care Discount Factor: This is calculated automatically as a weighted average based on the values in 17.a. through 17.e.
A50: 15. Calculation of Authorized Control Level (ACL) as % of Premium: Select the method with which the ACL is to be determined. "NAIC Filings + User Parameters" will incorporate State/MCO-specific information provided by the user, including Claims, admin and the information in 17.a. through 17.e., along with NAIC data on risk classes, i.e., H0 through H41 to determine the ACL RBC as a percent of Premium. "NAIC Filings (Medicaid-Dominant)" uses the average aggregate data for health insurers with 50% or more of premiums composed of Medicaid Title XIX for CY 2019 and 2020. "NAIC Filings (All)" uses the average aggregate data for all health insurers for CY 2016 through CY 2020 1. For the "User-Defined" options, enter the ACL as a % of premium to be used in the COC calculations in the related field under User-Defined Parameter Inputs section
A51: 16. Selection of NAIC Health Insurer Filings for RBC Risk Factors Weights: Select whether to use Medicaid-dominant (as defined above) health insurers or all health insurers as the source for RBC risk factor weights. Medicaid-dominant health insurers tend to exhibit lower H0 Risk - Affiliate (with RBC) Asset Risk than all health insurers, and higher H2-Underwriting Risk than all health insurers. The user/actuary may consider the participating MCO(s) lines of business when selecting this option
A52: 17. Managed Care Discount Factor (applied to Underwriting Risk): Worksheet-calculated field for the Managed Care Discount factor for H2 - Underwriting Risk, as calculated in "Managed Care Discount for RBC Calculation" section adjusts for the level of risk borne by the MCO(s), in consideration of MCOs' financial and contractual arrangements with providers and intermediaries. This option is only available when the user selects "NAIC Filings + User Parameters" in #15 above
A54: Parameters for Weighted Average Cost of Capital (WACC) Calculation
A55: Per Investopedia, "The weighted average cost of capital (WACC) represents a firm's average cost of capital from all sources, including common stock, preferred stock, bonds, and other forms of debt. The weighted average cost of capital is a common way to determine required rate of return because it expresses, in a single number, the return that both bondholders and shareholders demand in order to provide the company with capital."
A56: 18. State Corporate Tax Rate: Select the state corporate tax rate from the drop-down list, or select "User-Defined" to enter the state corporate tax rate in the User-Defined Parameter Inputs section. Note that the pre-populated rates available in the drop-down list are an estimate and may not be reflective of your case-use needs
A57: 19. Federal Corporate Tax Rate: Enter the corporate tax rate
A58: 20. Historical Period for Benchmark Rates of Returns & Betas: Select 10-year, 5-year or 3-year periods for the Beta2 of the benchmark references to be used in the cost of equity calculation. Suggested default is "10-Year" time period
A59: 21. Risk-Free Rate of Return: Select the risk-free rate from the drop-down list or select "User-Defined" to enter the risk-free rate in the User-Defined Parameter Inputs section. Suggested default is "10-Yr Treasury"
A60: 22. Equity Risk Premium: Select the method by which the Equity Risk Premium will be determined. The "CAPM Calculated" [Capital Asset Pricing Model] option will use the S&P 500 returns for the time period selected in #20, less the Risk-Free rate selected in #21, the result of which will be multiplied by the Beta selected in #23. The "Implied Eq.[uity] Risk Prem.[ium] (Damodaran)" option will use the equity risk premium developed by Aswath Damodaran, professor of finance at the Stern School of Business at New York University3 . A User-Defined option is also available, the value for which can be provided in the User-Defined Parameter Inputs section
A61: 23. Beta of Benchmark Expected Rate of Return: Select the benchmark from which the Beta2 value will be used to calculate the Equity Risk Premium and the Cost of Equity for "CAPM Calculated" option in #22. Choices include S&P 500, select health insurers (top 6 in market capitalization), utilities, and an option for a user-defined Beta, the value for which can be entered in the User-Defined Parameter Inputs section
A62: 24. Calculate Cost of Equity on an After-Tax or Pre-Tax Basis: Select After-Tax to calculate the Cost of Equity using the face value of the selected benchmark market risk premium using CAPM, the Implied Risk Premium (Damodaran) or the User-Defined Equity Risk Premium. Select Pre-Tax to further gross-up the calculated Cost of Equity for the Federal corporate tax rate provided in #19. Suggested default is "After-Tax"
A63: 25. Cost of Equity: This is a calculated field based on the inputs for #19 through #23 | C63: User-Defined Parameter Inputs
A64: 26. Recognize Debt in Calculation of COC: Select Yes/No on whether to recognize debt in the COC calculation. Select "No" If cost of debt is recognized in administrative expenses, i.e., interest payments. Suggested default value is "Yes" | C64: In this section, provide the values for the "User-Defined" selections in the General Parameters, Cost of Capital and Income Matrix sections. Note that cells in this section that are highlighted in light green indicated that "User-Defined" was selected in the corresponding parameter.
A65: 27. Interest Rate for Debt: Select the proxy for interest rate on debt from the drop-down list, or select "User-Defined" to provide a specific value to use for interest rate for debt in the User-Defined Parameter Inputs section. Suggested default is "Low-Cost (Proxy: Aaa Yield)" | C65: 5. General Parameter - User-Defined Curve (Standard Deviation %): Enter the standard deviation of the underwriting margin curve to be used in the development of the Underwriting Margin, as an alternative to the options offered in the drop-down list
A66: 28. Percent (%) Debt for MCO Debt/Equity Ratio: Input the percent of Surplus (Reserve) financed by Debt for inclusion in the WACC calculation | C66: 15. COC Parameter - Authorized Control Level (ACL) as a % of Premium: Enter the specific ACL ratio as a percent of Premium to be used as an alternative to the options offered in the drop-down list
A67: 29. Weighted Average Cost of Capital % (WACC%): This is a calculated field based on the values in #25 through #28 | C67: 18. COC Parameter - State Corporate Tax Rate: Enter a State corporate tax rate to be used in the COC calculation, as an alternative to the options offered in the drop-down list
A68: 30. Discount to Cost of Capital (Investment Earnings on Reserves): Select the form of discount, if any, to be applied to the Cost of Capital, to recognize potential investment earnings an MCO receives on its existing capital reserves. The options include a user-defined value, which can be provided in the User-Defined Parameter Inputs section | C68: 20. COC Parameter - Risk-Free Rate of Return: Enter the risk-free rate to be used in the COC calculation, as an alternative to the options offered in the drop-down list
A69: Parameters for Cash Flow | C69: 22. COC Parameter - Beta of Benchmark Rate of Return: Enter the Beta factor to be used in the Cost of Equity calculation, as an alternative to the options offered in the drop-down list
A70: This section recognizes the time value of money as it relates to lag in recoupment of withholds by the MCO, delay in premium payments to the MCO, and the claims payment lag from the MCO to the providers | C70: 23. COC Parameter - Equity Risk Premium: Enter the equity risk premium % to be used in the Cost of Equity calculation, as an alternative to the options offered in the drop-down list
A71: 31. Withhold Lag - number of Months after Rating Period before Withhold Paid: Input average number of month(s), as fraction or whole number, after the end of the rating period, before withhold is paid to MCO. Allowed values are 0 to 24 | C71: 27. COC Parameter - Interest Rate for Debt (%): Enter the interest rate for debt to be used in the calculation of the WACC, as an alternative to the options offered in the drop-down list
A72: 32. Payment Lag - Number of Months before Monthly Premium Paid: Input average number of month(s), as fraction or whole number, before premium is paid to MCO | C72: 30. COC Parameter - Discount to Cost of Capital: Enter the discount rate to be applied to the COC to account for earning on surplus/reserves, as an alternative to the options offered in the drop-down list
A73: 33. Factor to Apply to MCO Revenue Lag: Select the factor with which the MCO is compensated for the revenue lag related to withholds and premiums, which are In effect the financing cost provided to the State by the MCO for the delay in payments. Suggested default is "Cost of Debt", with a user-defined option available for the user to provide a value in the User Defined Parameter Inputs section | C73: 33. COC Parameter - Factor to Apply to MCO Revenue Lag: Enter a compensation rate to be used in the COC calculation, as an alternative to the options offered in the drop-down list
A74: 34. Claims Lag - Average Claims Payment Lag (in Months): Input average number of month(s), as fraction or whole number, before claims are paid by MCO. Allowed values are 0 to 24. This will be an offset to the MCO revenue Lag applied above. Enter 0 to exclude this provision from the Cost of Capital calculation | C74: 36. Income Matrix - Interest Income On Gains: Enter the interest rate to be used to calculate interest income on gains in the income matrix, as an alternative to the options offered in the drop-down list
A75: 35. Percent (%) of Claims Subject to Claims Payment Lag: Enter percent (%) of the medical component (claims) that is subject to the claims payment lag entered in #34. Suggested default is the % of Claims that are neither capitated (Categories 3 a/b in #17.d.), nor paid as salaries (Category 4 in #17.e.) as indicated in the "17. Managed Care Discount for RBC Calculation" section | C75: 37. Income Matrix - Interest Expense On Losses: Enter the interest rate to be used to calculate interest expense on losses in the income matrix, as an alternative to the options offered in the drop-down list
A77: Income Matrix - Interest Income / Interest Expense
A78: 36. Interest Income on Gains: Select the rate of return for the interest income calculation on the probability of gain scenarios in the bin calculation inside the Income Matrix. A user-defined option is available for the user to provide a specific value in the User Defined Parameter Inputs section
A79: 37. Interest Expense on Losses: Select the rate of return on for the interest expense calculation on the probability of loss scenarios in the bin calculation inside the Income Matrix. A user-defined option is available for the user to provide a specific value in the User Defined Parameter Inputs section
A82: 1 Source: NAIC. "Aggregated Health Risk-Based Capital Data" (2016-2020) Internet: https://content.naic.org/sites/default/files/inline-files/2020%20Health%20RBC%20Statistics_as%20of%202020-06-30.pdf
A83: 2 The beta (β) of an investment security (i.e., a stock) is a measurement of its volatility of returns relative to the entire market. It is used as a measure of risk and is an integral part of the Capital Asset Pricing Model (CAPM). A company with a higher beta has greater risk and also greater expected returns. From Corporate Finance Institute online (Internet: https://corporatefinanceinstitute.com/resources/knowledge/valuation/what-is-beta-guide/)
A84: 3 Refer to the report "Medicaid Managed Care Underwriting Margin Model" for additional discussion on the subject. From Damodaran online (Internet: http://people.stern.nyu.edu/adamodar/New_Home_Page/home.htm)

Sheet Interpretation
A1: Results Dashboard
A3: Selected Target Table
A5: This table shows which of the three types of targets (Net Income, Risk Margin, or Probability of Ruin) was selected on the User Parameter tab. The model determines the risk margin necessary to achieve the target outcome. The table compares the target percentage to the result generated by the model and provides the variance.
A6: - In most cases the variance will be zero. This will not typically be true when a Probability of Ruin target is selected. The result will be close to the target but the actuary may be able to minimize the variance by trying small changes to the risk margin.
A8: Note the Risk Margin target type is provided for convenience. A user would select this type to test a known margin amount as opposed to trying to achieve a Net Income target or a Probability of Ruin target.
A10: Probability of Ruin by RBC Level Table
A12: This table show the probability of ruin, the likelihood of spending all of the RBC Reserve on losses, for various RBC levels. The RBC amount is shown as a dollar amount, PMPM and a percent of premium. The value of excess losses is the expected value of net income losses in excess of the RBC level. This value provides the actuary with a best estimate of the amount to maintain solvency. The last column shows, assuming a loss in excess of the RBC level, the average loss amount ($M) weighted by the relative probability of occurrence.
A14: Additional probability of ruin information is also presented in the form of:
A15: - The probability that the RBC equity will fall below the User-Defined Minimum RBC level, as measured from the Implied Target RBC level.
A16: - The probability that the RBC equity will fall below the 200% of ACL RBC level, as measured from the Implied Target RBC level.
A18: Gain and Loss Distribution Table and Graph
A20: This table shows the likelihood of a gain or a loss for various percentage intervals. It also totals how often a gain or a loss will occur for all intervals, and what the average gain is given that a gain occurs, and what the average loss is given that a loss occurs. The graph below the table depicts the same information.
A22: Underwriting Margin Table
A24: This table provides the user with the basic components of the Underwriting Margin, the Risk Margin and the Cost of Capital as determined by the model.
A26: Underwriting Margin Accounting Table
A28: This table is an accounting of the components of the Underwriting Margin or how the Underwriting Margin is deployed to meet the flow of gains and costs including the Withhold Not Achieved, Net Transfer Payments for Minimum and Maximum MLR provisions, Risk Sharing Adjustments, and the Net Cost of Capital Infusions. Note that these entries may be positive or negative values depending upon the choice of user parameters. The Net Income is the remainder, or balancing item, after the gains and costs are netted against the Underwriting Margin.
A30: Distribution of Net Income and Underwriting Margin Graph
A32: The graph shows the Underwriting Margin, Net Income and Probability of Occurrence for each loss ratio interval. The probabilities are set using a normal curve which is defined by the mean and the standard deviation. The mean is the loss ratio based on the user assumptions. The standard deviation for the normal curve is set by the user’s selection of available curves on the parameter page. The Underwriting Margin is the Cost of Capital and the Risk Margin for each loss ratio interval. The Net income is also shown for each loss ratio interval.
A34: Premium Development and Cost of Capital Summary Table
A36: This table shows the components used to build the premium. The premium includes the user-provided assumptions for claims, administrative expenses and premium taxes and the model-generated numbers for cost of capital and risk margin. The results are show as $M (millions), PMPM and percent of premium.
A37: This table also shows the Minimum Loss Ratio as per CMS definition.
A39: Income Statement Table
A41: This table shows the revenues, expenses and net income before taxes associated with the user’s capitation product. The Withhold Not Achieved and Net Transfer Payments are considered adjustment to revenue while the Risk Sharing Adjustments and Cost of Capital Infusions are considered adjustment to expenses.
A43: Analysis of Underwriting Margin Curves
A45: This table shows the standard deviation of the curve option, the risk margin, the probability of ruin based on the target RBC, and likelihood of loss for all of the normal curve options. The target type and target amount are documented in the top line of this table. The curve that is highlighted in pink is the curve of the user-selected goal seek target in #1 on the User Parameters tab. Other curve results are shown only when the user selects "Yes" to the prompt asking whether the calculation should proceed on the other available curves. The High/Low column identifies which of the curves produces the highest risk margin and which of the curves produces the lowest risk margin.
A46: The standard deviations for the underwriting margin curves were determined as follows:
A47: Composite 2013 to 2019 Curve - based on Medicaid MCO NAIC data for CY2013 through CY2019 adjusted to maximize the fit to the data as measured by the R-squared statistic.
A48: Composite 2013 to 2015 Curve - based on Medicaid MCO NAIC data for CY2013 through CY2015 adjusted to maximize the fit to the data as measured by the R-squared statistic.
A49: Composite 2016 to 2019 Curve - based on Medicaid MCO NAIC data for CY2016 through CY2019 adjusted to maximize the fit to the data as measured by the R-squared statistic.
A50: MCO Size Curve - calculated using the formula (standard deviation) = 1.8046 x (member months)-.0286 This formula was derived by fitting a curve to the fit-adjusted deciles based on size calculated using the Medicaid MCO NAIC data for CY2013 to CY2019. The size deciles were determined using each MCO member month count.
A51: For-Profit Curve - based on Medicaid for-profit MCO NAIC data for CY2013 through CY2019 adjusted to maximize the fit to the data as measured by the R-squared statistic.
A52: Not-For-Profit Curve - based on Medicaid not-for-profit MCO NAIC data for CY2013 through CY2019 adjusted to maximize the fit to the data as measured by the R-squared statistic.
A53: Expansion Curve - based on Medicaid MCO NAIC data for MCOs operating in Medicaid Expansion states during CY2013 through CY2019 adjusted to maximize the fit to the data as measured by the R-squared statistic.
A54: Non-Expansion Curve - based on Medicaid MCO NAIC data for MCOs operating in Medicaid Non-Expansion states during CY2013 through CY2019 adjusted to maximize the fit to the data as measured by the R-squared statistic.
A55: User-Defined Curve - based on user provided value from the User Parameters tab.
A57: Premium Development Chart
A59: This pie chart delineates the components of the premium as a percentage of the total base premium.

Sheet User Parameters
A1: SOA Underwriting Margin Model - USER PARAMETERS | B1: Calculation Is Required | G1: Worksheet UnLocked
A3: General Parameters | E3: MLR Provisions
A4: 1. Calculation Target | B4: Risk Margin | C4: 0.02 | D4: i | E4: 38. Include Minimum MLR, Maximum MLR Provisions on Rates: | J4: No | K4: i
A5: 2. Average Monthly Enrollment | C5: 100000 | D5: i | E5: 38.a. Minimum MLR | J5: 0
A6: 3. Months in Rating Period | C6: 12 | D6: i | E6: 38.b. Maximum MLR | J6: 2
A7: 4. Member Months | C7: =C5*C6 -> 1200000 | D7: i
A8: 5. UW Margin Curve - Standard Deviation | B8: MCO Size Curve | C8: =VLOOKUP(UP_Curve_Name,'Results Dashboard'!A50:C58,3,FALSE) -> 0.03294087391 | D8: i
A9: 6. Claims Expense PMPM | C9: 400 | D9: i | E9: Risk Sharing (RS) Parameters
A10: 7. Administrative Expenses PMPM | C10: 40 | D10: i | E10: 39. Baseline for Risk Share: | J10: No Risk Share | K10: i
A11: 8. QI Allowance PMPM | C11: 0 | D11: i | E11: 40. MLR Target, if applicable: | J11: 0.85
A12: 9. Withhold % | C12: 0 | D12: i | E12: Gain or Loss | F12: Low Loss Ratio | G12: 41. Intervals | H12: High Loss Ratio | I12: 42. MCO Responsibility | J12: State Responsibility
A13: 10. Withhold Earned % | C13: 1 | D13: i | E13: Gain | F13: 0 | G13: =H13-F13 -> 0.77 | H13: =F14 -> 0.77 | I13: 0.1 | J13: =1-I13 -> 0.9
A14: 11. State Premium Tax % | C14: 0 | D14: i | E14: Gain | F14: =+H14-G14 -> 0.77 | G14: 0.05 | H14: =F15 -> 0.82 | I14: 0.6 | J14: 0.4
E15: Gain | F15: =+H15-G15 -> 0.82 | G15: 0.03 | H15: =IF(UP_RSBasis="Medical Baseline",100%,J11) -> 0.85 | I15: 1 | J15: 0
A16: Cost of Capital (COC) Parameters | E16: Loss | F16: =H15 -> 0.85 | G16: 0.03 | H16: =G16+F16 -> 0.88 | I16: 1 | J16: 0
A17: Parameters for Risk Based Capital (RBC) Calculation | E17: Loss | F17: =H16 -> 0.88 | G17: 0.05 | H17: =F17+G17 -> 0.93 | I17: 0.4 | J17: 0.6
A18: 12. Minimum RBC Target Threshold | C18: 2 | D18: i | E18: Loss | F18: =H17 -> 0.93 | G18: =H18-F18 -> 1.07 | H18: 2 | I18: 0.1 | J18: 0.9
A19: 13. Maximum RBC Target Threshold | C19: 4.5 | D19: i
A20: 14. Discount to apply to RBC between Thresholds | C20: 0 | D20: i
A21: 15. Calculation of Authorized Control Level as % of Premium | B21: NAIC Filings (All) | C21: =VLOOKUP(UP_COC_Selection_H0,'Drop Downs'!A85:B88,2,FALSE) -> 0.03502967431 | D21: i
A22: 16. Selection of NAIC Health Insurer Filings for RBC Risk Factors Weights | C22: Medicaid-Dominant | D22: i
A23: 17. Managed Care Discount Factor (applied to Underwriting Risk) | C23: =J30 -> 0.2355 | D23: i | E23: 17. Managed Care Discount for RBC Calculation
A24: Parameters for Weighted Average Cost of Capital (WACC) Calculation | E24: Categories | I24: % of Claims | J24: Discount | K24: i
A25: 18. State Corporate Tax Rate | B25: Pennsylvania | C25: =VLOOKUP(B25,'Tax Rates'!A8:B59,2,FALSE) -> 0.0999 | D25: i | E25: 17.a. Category 0 - Arrangements not Included in Other Categories | I25: =1-SUM(I26:I29) -> 0.03 | J25: 0
A26: 19. Federal Corporate Tax Rate | C26: 0.21 | D26: i | E26: 17.b. Category 1 - Payments made according to contractual arrangements | I26: 0.75 | J26: 0.15
A27: 20. Historical Period for Benchmark Rates of Returns & Betas | C27: 5-Year | D27: i | E27: 17.c. Category 2a/b - Payments subject to withhold/bonus | I27: 0.02 | J27: 0.15
A28: 21. Risk-Free Rate of Return | B28: 20-Yr Treasury | C28: =VLOOKUP(B28,'Drop Downs'!A14:B17,2,FALSE) -> 0.02278852459 | D28: i | E28: 17.d. Category 3a/b - Capitated payments to providers/intermediaries | I28: 0.2 | J28: 0.6
A29: 22. Equity Risk Premium | B29: Implied Eq. Risk Prem. (Damodaran) | C29: =VLOOKUP(B29,'Drop Downs'!A28:B30,2,FALSE) -> 0.05331388889 | D29: i | E29: 17.e. Category 4 - Expenses paid as salary to providers | I29: 0 | J29: 0.75
A30: ---> Expected Market Rate of Return (Informational Only) | C30: ='Equity Premium'!B13 -> 0.1260603673 | D30: i | E30: 17.f. Composite Managed Care Discount Factor | J30: =SUMPRODUCT(J25:J29,I25:I29) -> 0.2355 | K30: i
A31: 23. Beta of Benchmark Expected Rate of Return | B31: Select Insurers | C31: =VLOOKUP(B31,'Drop Downs'!A21:C24,3,FALSE) -> 0.9681794849 | D31: i
A32: 24. Calculate Cost of Equity on an After-Tax or Pre-Tax Basis | C32: After-Tax | D32: i
A33: 25. Cost of Equity | C33: =CostOfEquity -> 0.07610241348 | D33: i | E33: User-Defined Parameter Inputs | K33: i
A34: 26. Recognize Debt in Calculation of WACC | C34: No | D34: i | E34: 5. General Parameter: User-Defined Curve (Standard Deviation %) …................................................................ | J34: 0.03
A35: 27. Interest Rate for Debt | B35: Moderate (Proxy: Baa Yield) | C35: =VLOOKUP(B35,'Drop Downs'!A8:B10,2,FALSE) -> 0.0411295082 | D35: i | E35: 15. COC Parameter: Authorized Control Level (ACL) as % of Premium …....................................................... | J35: 0
A36: 28. Percent (%) Debt for MCO Debt / Equity Ratio | C36: 0 | D36: i | E36: 18. COC Parameter: State Corporate Tax Rate …................................................................................................ | J36: 0
A37: 29. Weighted Average Cost of Capital % (WACC %) | C37: =(WACC) -> 0.07610241348 | D37: i | E37: 21. COC Parameter: Risk-Free Rate of Return …................................................................................................. | J37: 0
A38: 30. Discount to Cost of Capital (Investment Earnings on Reserves) | B38: No Discount | C38: =VLOOKUP(B38,'Drop Downs'!A41:B44,2,FALSE) -> 0 | D38: i | E38: 22. COC Parameter: Beta of Benchmark Expected Rate of Return...................................................................... | J38: 1
A39: Parameters for Cash Flow | E39: 23. COC Parameter: Equity Risk Premium …........................................................................................................ | J39: 0
A40: 31. Withhold Lag - Number of Months after Rating Period before Withhold Paid | C40: 6 | D40: i | E40: 27. COC Parameter: Interest Rate for Debt (%) …............................................................................................... | J40: 0
A41: 32. Payment Lag - Number of Months before Monthly Premium Paid | C41: 2 | D41: i | E41: 30. COC Parameter: Discount to Cost of Capital (Investment Earnings on Reserves) …........................................... | J41: 0
A42: 33. Factor to Apply to MCO Revenue Lag | B42: None | C42: =VLOOKUP(B42,'Drop Downs'!A33:B37,2,FALSE) -> 0 | D42: i | E42: 33. COC Parameter: Factor to Apply to MCO Revenue Lag ….............................................................................. | J42: 0
A43: 34. Claims Lag - Average Claims Payment Lag (in Months) | C43: 0 | D43: i | E43: 36. Income Matrix - Interest Income / Interest Expense: Interest Income on Gains …......................................... | J43: 0
A44: 35. Percent (%) of Claims Subject to Claims Payment Lag | C44: 0 | D44: i | E44: 37. Income Matrix - Interest Income / Interest Expense: Interest Expense on Losses …...................................... | J44: 0
A46: Income Matrix - Interest Income / Interest Expense
A47: Bin Observation of Gain / Loss | B47: Rate Selection | C47: Rate
A48: 36. Interest Income on Gains: | B48: None | C48: =IFERROR(VLOOKUP(B48,'Drop Downs'!$A$67:$B$72,2,FALSE),0) -> 0 | D48: i
A49: 37. Interest Expense on Losses: | B49: None | C49: =IFERROR(VLOOKUP(B49,'Drop Downs'!$A$76:$B$81,2,FALSE),0) -> 0 | D49: i

Sheet Results Dashboard
A1: SOA Underwriting Margin Model - RESULTS DASHBOARD | E1: Calculation Is Required
A4: ="Results Based On " & 'User Parameters'!B8 -> Results Based On MCO Size Curve | D4: i
E5: Probability of Ruin by RBC Level | N5: i | O5: Gain and Loss Distribution | T5: i
A6: ="Selected Target: "&UP_Target_Type -> Selected Target: Risk Margin | D6: i | E6: RBC Thresholds | G6: RBC % | H6: RBC $M | I6: RBC PMPM | J6: RBC as a % of Premium | K6: Probability of exceeding the RBC Threshold | L6: Value of Excess Losses as % of Premium | M6: Given a loss, the average loss ($M) in excess of the RBC Level | O6: Interval | Q6: Starting Point | R6: Gain Likelihood | S6: Loss Likelihood
A7: Results | C7: =IF(UP_Target_Type="Probability of Ruin","Probability"," % of Premium") -> % of Premium | E7: Authorized Control Level (ACL) | G7: 1 | H7: =I7*'User Parameters'!$C$7 -> 19107009.85 | I7: =ACL -> 15.92250821 | J7: =I7/$J$33 -> 0.03502967431 | K7: =SUMIF('Net Income Matrix'!$AA$8:$AA$168,"<= " & -J7,'Net Income Matrix'!$AD$8:$AD$168) -> 0.02423454479 | L7: =-'Net Income Matrix'!AE5 -> 0.0003154995829 | M7: =IF(K7=0,0,L7*UP_Enrollment*12*'Results Dashboard'!$J$33/K7) -> 7101016.975 | O7: 0 - 2% | Q7: 0 | R7: =SUMIFS('Net Income Matrix'!$AD$8:$AD$168,'Net Income Matrix'!$AA$8:$AA$168,">=" & Q7)-SUMIFS('Net Income Matrix'!$AD$8:$AD$168,'Net Income Matrix'!$AA$8:$AA$168,">" &Q8) -> 0.1995053853 | S7: =SUMIFS('Net Income Matrix'!$AD$8:$AD$168,'Net Income Matrix'!$AA$8:$AA$168,"<=" & -Q7)-SUMIFS('Net Income Matrix'!$AD$8:$AD$168,'Net Income Matrix'!$AA$8:$AA$168,"<" & -Q8) -> 0.1166973129
A8: Target | C8: ='User Parameters'!C4 -> 0.02 | E8: 200% of ACL | G8: 2 | H8: =I8*'User Parameters'!$C$7 -> 38214019.7 | I8: =G8*I7 -> 31.84501642 | J8: =I8/$J$33 -> 0.07005934863 | K8: =SUMIF('Net Income Matrix'!$AA$8:$AA$168,"<= " & -J8,'Net Income Matrix'!$AD$8:$AD$168) -> 0.00119972225 | L8: =-'Net Income Matrix'!AF5 -> 1.187383035e-05 | M8: =IF(K8=0,0,L8*UP_Enrollment*12*'Results Dashboard'!$J$33/K8) -> 5398421.046 | O8: 2 - 4% | Q8: 0.02 | R8: =SUMIFS('Net Income Matrix'!$AD$8:$AD$168,'Net Income Matrix'!$AA$8:$AA$168,">=" & Q8)-SUMIFS('Net Income Matrix'!$AD$8:$AD$168,'Net Income Matrix'!$AA$8:$AA$168,">" &Q9) -> 0.1795964263 | S8: =SUMIFS('Net Income Matrix'!$AD$8:$AD$168,'Net Income Matrix'!$AA$8:$AA$168,"<=" & -Q8)-SUMIFS('Net Income Matrix'!$AD$8:$AD$168,'Net Income Matrix'!$AA$8:$AA$168,"<" & -Q9) -> 0.0477309582
A9: Calculated | C9: =IF(UP_Target_Type="Risk Margin",'Results Dashboard'!E35,IF(UP_Target_Type="Net Income Before Taxes",'Results Dashboard'!K44,'Results Dashboard'!K11)) -> 0.01999938965 | E9: Minimum RBC Selected | G9: =UP_COC_RBCMinimum -> 2 | H9: =I9*'User Parameters'!$C$7 -> 38214019.7 | I9: =G9*I7 -> 31.84501642 | J9: =I9/$J$33 -> 0.07005934863 | K9: =SUMIF('Net Income Matrix'!$AA$8:$AA$168,"<= " & -J9,'Net Income Matrix'!$AD$8:$AD$168) -> 0.00119972225 | L9: =-'Net Income Matrix'!AG5 -> 1.187383035e-05 | M9: =IF(K9=0,0,L9*UP_Enrollment*12*'Results Dashboard'!$J$33/K9) -> 5398421.046 | O9: 4 - 6% | Q9: 0.04 | R9: =SUMIFS('Net Income Matrix'!$AD$8:$AD$168,'Net Income Matrix'!$AA$8:$AA$168,">=" & Q9)-SUMIFS('Net Income Matrix'!$AD$8:$AD$168,'Net Income Matrix'!$AA$8:$AA$168,">" &Q10) -> 0.215731867 | S9: =SUMIFS('Net Income Matrix'!$AD$8:$AD$168,'Net Income Matrix'!$AA$8:$AA$168,"<=" & -Q9)-SUMIFS('Net Income Matrix'!$AD$8:$AD$168,'Net Income Matrix'!$AA$8:$AA$168,"<" & -Q10) -> 0.01364653926
A10: Variance | C10: =C8-C9 -> 6.103515625e-07 | E10: Maximum RBC Selected | G10: =UP_COC_RBCMaximum -> 4.5 | H10: =I10*'User Parameters'!$C$7 -> 85981544.32 | I10: =G10*I7 -> 71.65128694 | J10: =I10/$J$33 -> 0.1576335344 | K10: =SUMIF('Net Income Matrix'!$AA$8:$AA$168,"<= " & -J10,'Net Income Matrix'!$AD$8:$AD$168) -> 9.764482998e-09 | L10: =-'Net Income Matrix'!AI5 -> 3.685214451e-11 | M10: =IF(K10=0,0,L10*UP_Enrollment*12*'Results Dashboard'!$J$33/K10) -> 2058591.333 | O10: 6 - 8% | Q10: 0.06 | R10: =SUMIFS('Net Income Matrix'!$AD$8:$AD$168,'Net Income Matrix'!$AA$8:$AA$168,">=" & Q10)-SUMIFS('Net Income Matrix'!$AD$8:$AD$168,'Net Income Matrix'!$AA$8:$AA$168,">" &Q11) -> 0.1379892546 | S10: =SUMIFS('Net Income Matrix'!$AD$8:$AD$168,'Net Income Matrix'!$AA$8:$AA$168,"<=" & -Q10)-SUMIFS('Net Income Matrix'!$AD$8:$AD$168,'Net Income Matrix'!$AA$8:$AA$168,"<" & -Q11) -> 0.002726028636
E11: ="Implied Target RBC (incl. "&(UP_COC_RBCThresholdDiscount*100&"% Disc.)") -> Implied Target RBC (incl. 0% Disc.) | G11: =(UP_COC_RBCMaximum-UP_COC_RBCMinimum)* (1-UP_COC_RBCThresholdDiscount)+UP_COC_RBCMinimum -> 4.5 | H11: =I11*'User Parameters'!$C$7 -> 85981544.32 | I11: =G11*I7 -> 71.65128694 | J11: =I11/$J$33 -> 0.1576335344 | K11: =SUMIF('Net Income Matrix'!$AA$8:$AA$168,"<= " & -J11,'Net Income Matrix'!$AD$8:$AD$168) -> 9.764482998e-09 | L11: =-'Net Income Matrix'!AH5 -> 3.685214451e-11 | M11: =IF(K11=0,0,L11*UP_Enrollment*12*'Results Dashboard'!$J$33/K11) -> 2058591.333 | O11: 8 - 10% | Q11: 0.08 | R11: =SUMIFS('Net Income Matrix'!$AD$8:$AD$168,'Net Income Matrix'!$AA$8:$AA$168,">=" & Q11)-SUMIFS('Net Income Matrix'!$AD$8:$AD$168,'Net Income Matrix'!$AA$8:$AA$168,">" &Q12) -> 0.06172175881 | S11: =SUMIFS('Net Income Matrix'!$AD$8:$AD$168,'Net Income Matrix'!$AA$8:$AA$168,"<=" & -Q11)-SUMIFS('Net Income Matrix'!$AD$8:$AD$168,'Net Income Matrix'!$AA$8:$AA$168,"<" & -Q12) -> 0.000380267473
E12: ="- Given the Implied Target RBC level of "&ROUND((G11*100),0)&"% of ACL, the probability that the RBC equity will be reduced below the selected Minimum RBC of "&UP_COC_RBCMinimum*100&"% of ACL is "&ROUND((SUMIF('Net Income Matrix'!$AA$8:$AA$168,"<= " & -(J11-J9),'Net Income Matrix'!$AD$8:$AD$168)*100),3)&"%" -> - Given the Implied Target RBC level of 450% of ACL, the probability that the RBC equity will be reduced below the selected Minimum RBC of 200% of ACL is 0.024% | O12: 10 - 12% | Q12: 0.1 | R12: =SUMIFS('Net Income Matrix'!$AD$8:$AD$168,'Net Income Matrix'!$AA$8:$AA$168,">=" & Q12)-SUMIFS('Net Income Matrix'!$AD$8:$AD$168,'Net Income Matrix'!$AA$8:$AA$168,">" &Q13) -> 0.01929997436 | S12: =SUMIFS('Net Income Matrix'!$AD$8:$AD$168,'Net Income Matrix'!$AA$8:$AA$168,"<=" & -Q12)-SUMIFS('Net Income Matrix'!$AD$8:$AD$168,'Net Income Matrix'!$AA$8:$AA$168,"<" & -Q13) -> 3.702017161e-05
A13: Underwriting Margin | D13: i | E13: ="- Given the Implied Target RBC level of "&ROUND((G11*100),0)&"% of ACL, the probability that the RBC equity will be reduced below the 200% of ACL level is "&ROUND((SUMIF('Net Income Matrix'!$AA$8:$AA$168,"<= " & -(J11-J8),'Net Income Matrix'!$AD$8:$AD$168)*100),3)&"%" -> - Given the Implied Target RBC level of 450% of ACL, the probability that the RBC equity will be reduced below the 200% of ACL level is 0.024% | O13: 12 - 14% | Q13: 0.12 | R13: =SUMIFS('Net Income Matrix'!$AD$8:$AD$168,'Net Income Matrix'!$AA$8:$AA$168,">=" & Q13)-SUMIFS('Net Income Matrix'!$AD$8:$AD$168,'Net Income Matrix'!$AA$8:$AA$168,">" &Q14) -> 0.004217100776 | S13: =SUMIFS('Net Income Matrix'!$AD$8:$AD$168,'Net Income Matrix'!$AA$8:$AA$168,"<=" & -Q13)-SUMIFS('Net Income Matrix'!$AD$8:$AD$168,'Net Income Matrix'!$AA$8:$AA$168,"<" & -Q14) -> 2.513639538e-06
A14: Components | B14: PMPM | C14: % of Premium | O14: 14% or More | Q14: 0.14 | R14: =SUMIFS('Net Income Matrix'!$AD$8:$AD$168,'Net Income Matrix'!$AA$8:$AA$168,">=" & Q14) -> 0.0007174696511 | S14: =SUMIFS('Net Income Matrix'!$AD$8:$AD$168,'Net Income Matrix'!$AA$8:$AA$168,"<=" & -Q14) -> 1.229735523e-07
A15: Risk Margin | B15: =C15*'Results Dashboard'!D42 -> 9.090591108 | C15: =Macro_Risk_Margin -> 0.01999938965 | N15: i | O15: Total Likelihood | R15: =SUM(R7:R14) -> 0.8187792368 | S15: =SUM(S7:S14) -> 0.1812207632
A16: Cost of Capital | B16: =C16*'Results Dashboard'!D42 -> 5.452835865 | C16: ='Macro Populated Cells'!F11 -> 0.01199629241 | F16: Total Loss of RBC/Equity | G16: -0.14 | H16: 0 | O16: Expected Gain/Loss, Given a Gain or a Loss | R16: =IF(R15=0,0,SUMPRODUCT('Net Income Matrix'!$AD$8:$AD$168,'Net Income Matrix'!$AA$8:$AA$168,--('Net Income Matrix'!$AA$8:$AA$168>=0))/R15) -> 0.04317100324 | S16: =IF(S15=0,0,SUMPRODUCT('Net Income Matrix'!$AD$8:$AD$168,'Net Income Matrix'!$AA$8:$AA$168,--('Net Income Matrix'!$AA$8:$AA$168<0))/S15) -> -0.01849588845
A17: UW Margin | B17: =B15+B16 -> 14.54342697 | C17: =Dash_Risk_Margin+C16 -> 0.03199568206 | O17: Net Income Before Taxes | S17: =R16*R15+S15*S16 -> 0.03199568206
T19: i
A20: Underwriting Margin Accounting | E20: i
A21: Components | C21: PMPM | D21: % of Premium
A22: UW Margin | C22: =B17 -> 14.54342697 | D22: =C17 -> 0.03199568206
A23: Withhold Not Achieved | C23: =D23*'Results Dashboard'!$D$42 -> 0 | D23: =-'Net Income Matrix'!Z5 -> 0
A24: Net Transfer Payments (Min/Max MLR) | C24: =D24*'Results Dashboard'!$D$42 -> 0 | D24: =-'Net Income Matrix'!W5 -> 0
A25: Risk Sharing Adjustments | C25: =D25*'Results Dashboard'!$D$42 -> 0 | D25: =-'Net Income Matrix'!S5/'Net Income Matrix'!B5 -> 0
A26: Net Cost of Capital Infusions | C26: =D26*'Results Dashboard'!$D$42 -> 0 | D26: ='Net Income Matrix'!Y5 -> 0
A27: Net Income Before Taxes | C27: =D27*'Results Dashboard'!$D$42 -> 14.54342697 | D27: =D22+SUM(D23:D26) -> 0.03199568206
A30: Premium Development and Cost of Capital Detail | F30: i | G30: Income Statement | M30: i
A31: Premium Component | C31: $M | D31: PMPM | E31: % of Premium | G31: Statement Entries | I31: $M | J31: PMPM | K31: % of Premium
A32: Claims Expense | C32: =D32*'User Parameters'!$C$7 -> 480000000 | D32: ='User Parameters'!C9 -> 400 | E32: =D32/D42 -> 0.8800039254 | G32: Revenue
A33: Admin Expense | C33: =D33*'User Parameters'!$C$7 -> 48000000 | D33: ='User Parameters'!C10 -> 40 | E33: =D33/D42 -> 0.08800039254 | G33: Premium (Incl. UW Margin) | I33: =J33*'User Parameters'!$C$7 -> 545452112.4 | J33: ='Results Dashboard'!D42 -> 454.543427 | K33: =J33/'Results Dashboard'!$D$42 -> 1
A34: Premium Tax | C34: =D34*'User Parameters'!$C$7 -> 0 | D34: =E34*D42 -> 0 | E34: ='User Parameters'!C14 -> 0 | G34: Withhold Unachieved | I34: =J34*'User Parameters'!$C$7 -> 0 | J34: =K34*$J$33 -> 0 | K34: =D23 -> 0
A35: Risk Margin | C35: =D35*'User Parameters'!$C$7 -> 10908709.33 | D35: =E35*D42 -> 9.090591108 | E35: ='Macro Populated Cells'!F12 -> 0.01999938965 | G35: Net Transfer Payments | I35: =J35*'User Parameters'!$C$7 -> 0 | J35: =K35*$J$33 -> 0 | K35: =D24 -> 0
A36: Cost of Capital | G36: Total Revenue | I36: =J36*'User Parameters'!$C$7 -> 545452112.4 | J36: =SUM(J33:J35) -> 454.543427 | K36: =SUM(K33:K35) -> 1
A37: Cost of RBC Target | C37: =D37*'User Parameters'!$C$7 -> 6543403.038 | D37: =E37*$D$42 -> 5.452835865 | E37: ='COC Calculation'!C86 -> 0.01199629241 | G37: Expenses
A38: Withholds Payment Delay | C38: =D38*'User Parameters'!$C$7 -> 0 | D38: =E38*$D$42 -> 0 | E38: ='COC Calculation'!C99 -> 0 | G38: Claims | I38: =J38*'User Parameters'!$C$7 -> 480000000 | J38: ='User Parameters'!C9 -> 400 | K38: =J38/'Results Dashboard'!$D$42 -> 0.8800039254 | T38: i
A39: Premium Payment Delay | C39: =D39*'User Parameters'!$C$7 -> 0 | D39: =E39*$D$42 -> 0 | E39: ='COC Calculation'!C105 -> 0 | G39: Administration | I39: =J39*'User Parameters'!$C$7 -> 48000000 | J39: ='User Parameters'!C10 -> 40 | K39: =J39/'Results Dashboard'!$D$42 -> 0.08800039254
A40: Claims Lag | C40: =D40*'User Parameters'!$C$7 -> 0 | D40: =E40*$D$42 -> 0 | E40: =COC_Cost_Claim_Delay -> 0 | G40: Premium Tax | I40: =J40*'User Parameters'!$C$7 -> 0 | J40: ='Results Dashboard'!D42*'User Parameters'!C14 -> 0 | K40: =J40/'Results Dashboard'!$D$42 -> 0
A41: Subtotal Cost of Capital | C41: =D41*'User Parameters'!$C$7 -> 6543403.038 | D41: =SUM(D37:D40) -> 5.452835865 | E41: =C41/'Results Dashboard'!$I$33 -> 0.01199629241 | G41: Risk Sharing Adjustments | I41: =J41*'User Parameters'!$C$7 -> 0 | J41: =K41*$J$33 -> 0 | K41: =-D25 -> 0
A42: Base Premium | C42: =D42*'User Parameters'!$C$7 -> 545452112.4 | D42: =SUM(D32:D33)/(1-'Macro Populated Cells'!F13-'User Parameters'!C14) -> 454.543427 | E42: =D42/D42 -> 1 | G42: Net Cost of Capital Infusions | I42: =J42*'User Parameters'!$C$7 -> 0 | J42: =K42*$J$33 -> 0 | K42: =-D26 -> 0
A43: Minimum Loss Ratio - CMS Definition | E43: ='Net Income Matrix'!I5 -> 0.8800039254 | G43: Total Expenses | I43: =J43*'User Parameters'!$C$7 -> 528000000 | J43: =SUM(J38:J42) -> 440 | K43: =J43/'Results Dashboard'!$D$42 -> 0.9680043179
G44: Net Income Before Taxes | I44: =J44*'User Parameters'!$C$7 -> 17452112.37 | J44: =J36-J43 -> 14.54342697 | K44: =J44/'Results Dashboard'!$D$42 -> 0.03199568206
A47: ="Analysis of Underwriting Margin Curves "&" "&A6&" = "&Dash_Target*100&"% of Premium" -> Analysis of Underwriting Margin Curves Selected Target: Risk Margin = 2% of Premium | J47: i
A48: Curves | D48: Risk Margin | F48: Probability of Ruin | H48: Likelihood of Loss
C49: Stand Dev. | D49: % of Prem. | E49: High/ Low | F49: % | G49: High/ Low | H49: % | I49: High/ Low
A50: Composite 2013 to 2019 Curve | C50: 0.03714488925 | D50: 0.01999938965 | E50: =IF(D50=MIN($D$50:$D$58),"Low",IF(D50=MAX($D$50:$D$58),"High","")) -> Low | F50: 3.171063471e-07 | G50: =IF(F50=MIN($F$50:$F$58),"Low",IF(F50=MAX($F$50:$F$58),"High","")) ->  | H50: 0.2096465883 | I50: =IF(H50=MIN($H$50:$H$58),"Low",IF(H50=MAX($H$50:$H$58),"High","")) -> 
A51: Composite 2013 to 2015 Curve | C51: 0.03892009621 | D51: 0.01999938965 | E51: =IF(D51=MIN($D$50:$D$58),"Low",IF(D51=MAX($D$50:$D$58),"High","")) -> Low | F51: 1.000474527e-06 | G51: =IF(F51=MIN($F$50:$F$58),"Low",IF(F51=MAX($F$50:$F$58),"High","")) ->  | H51: 0.2204097747 | I51: =IF(H51=MIN($H$50:$H$58),"Low",IF(H51=MAX($H$50:$H$58),"High","")) -> 
A52: Composite 2016 to 2019 Curve | C52: 0.03529050325 | D52: 0.01999938965 | E52: =IF(D52=MIN($D$50:$D$58),"Low",IF(D52=MAX($D$50:$D$58),"High","")) -> Low | F52: 7.933511298e-08 | H52: 0.1976383439
A53: MCO Size Curve | C53: =1.8046*UP_MemberMonths^-0.286 -> 0.03294087391 | D53: 0.01999938965 | E53: Low | F53: 9.764482998e-09 | H53: 0.1812207632
A54: For-Profit Curve | C54: 0.03980708969 | D54: 0.01999938965 | E54: Low | F54: 1.680616061e-06 | G54: High | H54: 0.225534332 | I54: High
A55: Not-For-Profit Curve | C55: 0.03364467689 | D55: 0.01999938965 | E55: Low | F55: 1.913647156e-08 | H55: 0.186284513
A56: Expansion Curve | C56: 0.03616331001 | D56: 0.01999938965 | E56: Low | F56: 1.563045405e-07 | H56: 0.2033909494
A57: Non-Expansion Curve | C57: 0.0389433814 | D57: 0.01999938965 | E57: Low | F57: 1.014640195e-06 | H57: 0.22054641
A58: User-Defined Curve | C58: ='User Parameters'!J34 -> 0.03 | D58: 0.01999938965 | E58: Low | F58: 3.487232651e-10 | G58: Low | H58: 0.1586552539 | I58: Low

Sheet Graphs
B5: Probability of Ruin by RBC Level
B6: RBC Thresholds | C6: RBC % | D6: RBC % of Prem | E6: Probability > RBC
B7: ='Results Dashboard'!E7 -> Authorized Control Level (ACL) | C7: ='Results Dashboard'!G7 -> 1 | D7: ='Results Dashboard'!J7 -> 0.03502967431 | E7: ='Results Dashboard'!K7 -> 0.02423454479
B8: ='Results Dashboard'!E8 -> 200% of ACL | C8: ='Results Dashboard'!G8 -> 2 | D8: ='Results Dashboard'!J8 -> 0.07005934863 | E8: ='Results Dashboard'!K8 -> 0.00119972225
B9: ='Results Dashboard'!E9 -> Minimum RBC Selected | C9: ='Results Dashboard'!G9 -> 2 | D9: ='Results Dashboard'!J9 -> 0.07005934863 | E9: ='Results Dashboard'!K9 -> 0.00119972225
B10: ='Results Dashboard'!E11 -> Implied Target RBC (incl. 0% Disc.) | C10: ='Results Dashboard'!G11 -> 4.5 | D10: ='Results Dashboard'!J11 -> 0.1576335344 | E10: ='Results Dashboard'!K11 -> 9.764482998e-09
B11: ='Results Dashboard'!E10 -> Maximum RBC Selected | C11: ='Results Dashboard'!G10 -> 4.5 | D11: ='Results Dashboard'!J10 -> 0.1576335344 | E11: ='Results Dashboard'!K10 -> 9.764482998e-09
B20: Income Statement | H20: =B23 -> Premium | I20: =D23 -> 545452112.4
B21: Statement Entries | D21: $M | E21: % of Premium | H21: =B24 -> Withhold Unachieved | I21: =D24 -> 0
B22: Revenue | H22: =B25 -> Net Transfer Payments | I22: =D25 -> 0
B23: Premium | D23: ='Results Dashboard'!I33 -> 545452112.4 | E23: =D23/$D$23 -> 1
B24: Withhold Unachieved | D24: ='Results Dashboard'!I34 -> 0 | E24: =D24/$D$23 -> 0
B25: Net Transfer Payments | D25: ='Results Dashboard'!I35 -> 0 | E25: =D25/$D$23 -> 0 | H25: =B28 -> Claims | I25: =D28*-1 -> -480000000
B26: Total Revenue | D26: =SUM(D23:D25) -> 545452112.4 | E26: =D26/$D$23 -> 1 | H26: =B29 -> Administration | I26: =D29*-1 -> -48000000
B27: Expenses | H27: =B30 -> Premium Tax | I27: =D30*-1 -> 0
B28: Claims | D28: ='Results Dashboard'!I38 -> 480000000 | E28: =D28/$D$23 -> 0.8800039254 | H28: =B31 -> Risk Sharing Adjustments | I28: =D31*-1 -> 0
B29: Administration | D29: ='Results Dashboard'!I39 -> 48000000 | E29: 0.08800039254 | H29: =B32 -> Cost of Capital Infusions | I29: =D32*-1 -> 0
B30: Premium Tax | D30: ='Results Dashboard'!I40 -> 0 | E30: 0
B31: Risk Sharing Adjustments | D31: ='Results Dashboard'!I41 -> 0 | E31: 0 | H31: =B34 -> Net Income Before Taxes | I31: =D34 -> 17452112.37
B32: Cost of Capital Infusions | D32: ='Results Dashboard'!I42 -> 0 | E32: 0
B33: Total Expenses | D33: ='Results Dashboard'!I43 -> 528000000 | E33: 0.9680043179
B34: Net Income Before Taxes | D34: ='Results Dashboard'!I44 -> 17452112.37 | E34: 0.03199568206
B53: Premium Development
B54: Premium Component | D54: PMPM | E54: % of Premium
B55: Claims Expense | D55: ='Results Dashboard'!D32 -> 400 | E55: =D55/$D$60 -> 0.8800039254
B56: Admin Expense | D56: ='Results Dashboard'!D33 -> 40 | E56: =D56/$D$60 -> 0.08800039254
B57: Premium Tax | D57: ='Results Dashboard'!D34 -> 0 | E57: =D57/$D$60 -> 0
B58: Risk Margin | D58: ='Results Dashboard'!D35 -> 9.090591108 | E58: =D58/$D$60 -> 0.01999938965
B59: Cost of Capital | D59: ='Results Dashboard'!D41 -> 5.452835865 | E59: =D59/$D$60 -> 0.01199629241
B60: Base Premium | D60: =SUM(D55:D59) -> 454.543427 | E60: =SUM(E55:E59) -> 1
B61: Underwriting Margin (before taxes) | D61: =D60-D55-D56-D57 -> 14.54342697 | E61: =D61/$D$60 -> 0.03199568206
B62: Required Capital (200% ACL RBC) | D62: ='Results Dashboard'!I8 -> 31.84501642 | E62: =D62/$D$60 -> 0.07005934863

Sheet COC Calculation
A1: Cost of Capital Calculation
A2: Shared Inputs:
A3: Member Months | C3: =UP_Enrollment*UP_MonthsInRatingPeriod -> 1200000 | E3: =_xlfn.FORMULATEXT(C3) -> =UP_Enrollment*UP_MonthsInRatingPeriod | F3: user parameter - Average Monthly Enrollment × Months in Rating Period
A4: Base Medical PMPM | C4: =UP_Medical_PMPM -> 400 | E4: =UP_Medical_PMPM | F4: user parameter - Medical Component PMPM
A5: Base Administrative PMPM | C5: =UP_Administrative_PMPM -> 40 | E5: =UP_Administrative_PMPM | F5: user parameter - Administrative Component PMPM (excl. UW margin or taxes)
A6: Base Premium PMPM (before taxes) | C6: =Results_Premium -> 454.543427 | E6: =Results_Premium | F6: calculated - Base PMPM
A7: Gross Claims | C7: =C3*C4 -> 480000000 | E7: =_xlfn.FORMULATEXT(C7) -> =C3*C4
A8: Gross Premium | C8: =C3*C6 -> 545452112.4 | E8: =_xlfn.FORMULATEXT(C8) -> =C3*C6
A9: Step 1. Determine Authorized Control Level
A10: ACL Determination Methodology | C10: =UP_COC_Selection_H0 -> NAIC Filings (All) | F10: user input
A11: Selection Criteria for Weights Risk Factors | C11: =UP_COC_Selection_H4 -> Medicaid-Dominant | F11: user input
A12: Step 1.a. - If ACL Determination Methodology = "NAIC Filings + User Parameters"
A13: Step 1.a.1. Calculate H2 - Underwriting Risk
A14: Calculate Underwriting Risk Factor:
A15: Claims under $25,000,000 | C15: 0.1493 | F15: Source: NAIC Capital Adequacy Task Force - Adopted 6/30/2021
A16: Claims over $25,000,000 | C16: 0.0893 | F16: Source: NAIC Capital Adequacy Task Force - Adopted 6/30/2021
A17: Composite UW RBC Factor | C17: =(MIN(25000000,C$8)*C15+MAX(0,C$8-25000000)*C16)/C$8 -> 0.09205001227 | E17: =_xlfn.FORMULATEXT(C17) -> =(MIN(25000000,C$8)*C15+MAX(0,C$8-25000000)*C16)/C$8 | F17: Line 10.3 from RBC Model
A18: Managed Care Discount Factor | C18: =1-UP_COC_ManagedCareDiscount -> 0.7645 | E18: =_xlfn.FORMULATEXT(C18) -> =1-UP_COC_ManagedCareDiscount | F18: user input - calculated "Managed Care Discount Factor"
A19: Base Underwriting RBC Factor after Managed Care Discount | C19: =C17*C18 -> 0.07037223438 | E19: =_xlfn.FORMULATEXT(C19) -> =C17*C18
A20: H2 - Underwriting Risk | C20: =C4*C19 -> 28.14889375 | E20: =_xlfn.FORMULATEXT(C20) -> =C4*C19
A21: Step 1.a.2. Calculate H4 - Business Risk
A22: Calculate Business Risk Factor:
A23: Premiums under $25,000,000 | C23: 0.07
A24: Premiums over $25,000,000 | C24: 0.04
A25: Composite Business Risk Factor | C25: =(MIN(25000000,C$8)*C23+MAX(0,C$8-25000000)*C24)/C$8 -> 0.04137500613 | E25: =_xlfn.FORMULATEXT(C25) -> =(MIN(25000000,C$8)*C23+MAX(0,C$8-25000000)*C24)/C$8
A26: "Calculated" H4 - Business Risk | C26: =C5*C25 -> 1.655000245 | E26: =_xlfn.FORMULATEXT(C26) -> =C5*C25 | F26: calculated using user-provided administrative PMPM
A27: "Imputed" H4 - Business Risk | C27: =_H2*'RBC Weights'!B10 -> 2.086440193 | E27: =_xlfn.FORMULATEXT(C27) -> =_H2*'RBC Weights'!B10 | F27: average weight of H4 relative to H2
A28: Average H4 - Business Risk | C28: =AVERAGE(C26:C27) -> 1.870720219
A29: Step 1.a.3. Calculate Authorized Control Level
A30: Authorized Control Level for Risk Based Capital Before Basic Operational Risk =
A31: H0 - Asset Risk - Affiliates with RBC | C31: =_H2*'RBC Weights'!B6 -> 0.7132074579 | E31: =_xlfn.FORMULATEXT(C31) -> =_H2*'RBC Weights'!B6 | F31: average weight of H0 relative to H2
A32: H1 - Asset Risk - Other | C32: =_H2*'RBC Weights'!B7 -> 2.390740343 | E32: =_H2*'RBC Weights'!B7 | F32: average weight of H1 relative to H2
A33: H2 - Underwriting Risk | C33: =_H2 -> 28.14889375 | E33: =_H2
A34: H3 - Credit Risk | C34: =_H2*'RBC Weights'!B9 -> 1.520591438 | E34: =_H2*'RBC Weights'!B9 | F34: average weight of H3 relative to H2
A35: H4 - Business Risk | C35: =_H4_Average -> 1.870720219 | E35: =_H4_Average | F35: average H4
A36: RBC after Covariance Before Basic Operational Risk | C36: =(_H0+SUM(_H1^2+_H2^2+_H3^2+_H4^2)^(1/2)) -> 29.06612003 | E36: =(_H0+SUM(_H1^2+_H2^2+_H3^2+_H4^2)^(1/2))
A37: Basic Operational Risk | C37: 0.03
A38: Calculated Authorized Control Level RBC | C38: =(1/2)*(1+RBC_Operational_Risk)*RBC_After_Covariance -> 14.96905181 | E38: =_xlfn.FORMULATEXT(C38) -> =(1/2)*(1+RBC_Operational_Risk)*RBC_After_Covariance
A39: Calculated ACL as % of Premium | C39: =C38/COC_Premium -> 0.03293206089 | E39: =C38/COC_Premium
A40: Step 1.b. - Alternate ACL (If ACL Determination Methodology <> "NAIC Filings + User Parameters")
A41: Alternate ACL as % of Premium | C41: =IF(C10<>"NAIC Filings + User Parameters",'User Parameters'!C21,0) -> 0.03502967431 | E41: =_xlfn.FORMULATEXT(C41) -> =IF(C10<>"NAIC Filings + User Parameters",'User Parameters'!C21,0)
A42: Alternate Authorized Control Level RBC | C42: =COC_Premium*C41 -> 15.92250821 | E42: =COC_Premium*C41
A43: Step 1.c. Selected ACL
A44: Selected Authorized Control Level RBC | C44: =IF(C10="NAIC Filings + User Parameters",COC_Calc_ACL,COC_Calc_Alt_ACL) -> 15.92250821 | E44: =_xlfn.FORMULATEXT(C44) -> =IF(C10="NAIC Filings + User Parameters",COC_Calc_ACL,COC_Calc_Alt_ACL)
A45: Selected ACL as % of Premium | C45: =ACL/COC_Premium -> 0.03502967431 | E45: =_xlfn.FORMULATEXT(C45) -> =ACL/COC_Premium
A46: Step 2. Calculate Weighted Average Cost of Capital
A47: Federal Corporate Tax Rate | C47: =UP_COC_FederalTaxRate -> 0.21 | E47: =_xlfn.FORMULATEXT(C47) -> =UP_COC_FederalTaxRate | F47: top marginal tax rate (federal)
A48: State Corporate Tax Rate | C48: =UP_COC_StateTaxRate -> 0.0999 | E48: =_xlfn.FORMULATEXT(C48) -> =UP_COC_StateTaxRate | F48: top marginal tax rate for user-selected state
A49: Step 2.a. Calculate Cost of Debt
A50: Recognize Debt in Cost of Capital Calculation | C50: =UP_COC_Selection_RecognizeDebt -> No | F50: user input
A51: Average Interest Rate for Debt: Source | C51: =UP_COC_Selection_InterestRate -> Moderate (Proxy: Baa Yield) | F51: user input
A52: Average Interest Rate for Debt % | C52: =UP_COC_InterestRate -> 0.0411295082 | E52: =_xlfn.FORMULATEXT(C52) -> =UP_COC_InterestRate | F52: from user-selected interest rate
A53: Cost of Debt | C53: =interestRate*(1-federalTax-stateTax) -> 0.02838347361 | E53: =_xlfn.FORMULATEXT(C53) -> =interestRate*(1-federalTax-stateTax)
A54: Step 2.b. Calculate Cost of Equity:
A55: Tax Treatment of Cost of Equity | C55: =UP_COC_TaxTreatment -> After-Tax
A56: Risk Free Rate | C56: =UP_COC_Selection_RiskFreeRate -> 20-Yr Treasury | F56: user input
A57: Benchmark Expected Rate of Return | C57: =VLOOKUP(UP_COC_Selection_ExpectedRate,'Drop Downs'!A21:B24,2,FALSE) -> 0.1596236201
A58: Risk Free Rate of Return | C58: =UP_COC_RiskFreeRate -> 0.02278852459 | F58: from user-selected metric for risk-free rate of return
A59: Calculation of Market Risk Premium | C59: =UP_COC_EquityMethodology -> Implied Eq. Risk Prem. (Damodaran)
A60: Market Rate of Return | C60: ='Drop Downs'!B21 -> 0.1260603673 | F60: from user-selected metric for expected return
A61: Beta of Benchmark Expected Rate of Return | C61: =UP_COC_Beta -> 0.9681794849 | F61: from user-selected metric for Beta
A62: Equity Risk Premium | C62: =IF(C59="CAPM Calculated",B*((E_Rm)-(Rf)),'User Parameters'!C29) -> 0.05331388889 | E62: =CONCATENATE("Ke")&_xlfn.FORMULATEXT(C62) -> Ke=IF(C59="CAPM Calculated",B*((E_Rm)-(Rf)),'User Parameters'!C29)
A63: Cost of Equity After-Tax | C63: =C62+Rf -> 0.07610241348 | E63: =CONCATENATE("Ke")&_xlfn.FORMULATEXT(C63) -> Ke=C62+Rf
A64: After-Tax Yield | C64: =(1-(federalTax+stateTax*(1-federalTax))) -> 0.711079 | E64: =_xlfn.FORMULATEXT(C64) -> =(1-(federalTax+stateTax*(1-federalTax)))
A65: Cost of Equity Pre-Tax | C65: =Ke/afterTaxYield -> 0.1070238518 | E65: =_xlfn.FORMULATEXT(C65) -> =Ke/afterTaxYield
A66: Selected Cost of Equity | C66: =IF(C55="After-Tax",Ke,Ke_PreTax) -> 0.07610241348
A67: Step 2.c. Weighted Average Cost of Capital
A68: % Debt | C68: =UP_COC_PercentDebt -> 0 | F68: user input - % of Debt
A69: % Equity | C69: =1-C68 -> 1 | E69: =_xlfn.FORMULATEXT(C69) -> =1-C68
A70: =CONCATENATE("Weighted Average Cost of Capital"&IF(C50="No"," Adjusted for Exclusion of Debt","")) -> Weighted Average Cost of Capital Adjusted for Exclusion of Debt | C70: =IF(C50="yes",C68*C53,0)+C69*C66 -> 0.07610241348 | E70: =_xlfn.FORMULATEXT(C70) -> =IF(C50="yes",C68*C53,0)+C69*C66
A71: Step 3. Apply WACC to Target RBC
A72: Authorized Control Level (ACL) RBC | C72: =ACL -> 15.92250821 | E72: =_xlfn.FORMULATEXT(C72) -> =ACL
A73: Minimum RBC % | C73: =UP_COC_RBCMinimum -> 2 | F73: user input - Minimum RBC
A74: Minimum Target RBC | C74: =ACL*C73 -> 31.84501642 | E74: =ACL*C73
A75: Maximum RBC % | C75: =UP_COC_RBCMaximum -> 4.5 | F75: user input - Maximum RBC
A76: Additional RBC | C76: =ACL*(C75-C73) -> 39.80627052 | E76: =ACL*(C75-C73)
A77: Discount to COC on RBC between Min & Max RBC Thresholds | C77: =UP_COC_RBCThresholdDiscount -> 0 | E77: =UP_COC_RBCThresholdDiscount | F77: user input - factor for discounting the cost of capital on RBC between Min and Max Target RBC thresholds
A78: Effective RBC to Finance | C78: =RBC_LowerThreshold+RBC_UpperThreshold*(1-RBC_ThresholdDiscount) -> 71.65128694 | E78: =RBC_LowerThreshold+RBC_UpperThreshold*(1-RBC_ThresholdDiscount)
A79: Cost of Capital PMPM | C79: =C78*WACC -> 5.452835865 | E79: =C78*WACC
A80: Cost of Capital as % | C80: =C79/COC_Premium -> 0.01199629241 | E80: =C79/COC_Premium
A81: Step 4. Apply a Discount to Cost of Capital for Investment Income | C81: TBD | H81: Calculation of Interest accrued on Withhold
A82: Discounting Methodology | C82: =UP_COC_Selection_COCDiscountRate -> No Discount | E82: =_xlfn.FORMULATEXT(C82) -> =UP_COC_Selection_COCDiscountRate | H82: Month No. | I82: 1 | J82: =IF(I82<UP_MonthsInRatingPeriod,I82+1,"") -> 2 | K82: =IF(J82<UP_MonthsInRatingPeriod,J82+1,"") -> 3 | L82: =IF(K82<UP_MonthsInRatingPeriod,K82+1,"") -> 4 | M82: =IF(L82<UP_MonthsInRatingPeriod,L82+1,"") -> 5 | N82: =IF(M82<UP_MonthsInRatingPeriod,M82+1,"") -> 6 | O82: =IF(N82<UP_MonthsInRatingPeriod,N82+1,"") -> 7 | P82: =IF(O82<UP_MonthsInRatingPeriod,O82+1,"") -> 8 | Q82: =IF(P82<UP_MonthsInRatingPeriod,P82+1,"") -> 9 | R82: =IF(Q82<UP_MonthsInRatingPeriod,Q82+1,"") -> 10 | S82: =IF(R82<UP_MonthsInRatingPeriod,R82+1,"") -> 11 | T82: =IF(S82<UP_MonthsInRatingPeriod,S82+1,"") -> 12 | U82: =IF(T82<UP_MonthsInRatingPeriod,T82+1,"") ->  | V82: =IF(U82<UP_MonthsInRatingPeriod,U82+1,"") ->  | W82: =IF(V82<UP_MonthsInRatingPeriod,V82+1,"") ->  | X82: =IF(W82<UP_MonthsInRatingPeriod,W82+1,"") ->  | Y82: =IF(X82<UP_MonthsInRatingPeriod,X82+1,"") ->  | Z82: =IF(Y82<UP_MonthsInRatingPeriod,Y82+1,"") ->  | AA82: =IF(Z82<UP_MonthsInRatingPeriod,Z82+1,"") ->  | AB82: =IF(AA82<UP_MonthsInRatingPeriod,AA82+1,"") ->  | AC82: =IF(AB82<UP_MonthsInRatingPeriod,AB82+1,"") ->  | AD82: =IF(AC82<UP_MonthsInRatingPeriod,AC82+1,"") ->  | AE82: =IF(AD82<UP_MonthsInRatingPeriod,AD82+1,"") ->  | AF82: =IF(AE82<UP_MonthsInRatingPeriod,AE82+1,"") ->  | AG82: =IF(AF82<UP_MonthsInRatingPeriod,AF82+1,"") ->  | AH82: =IF(AG82<UP_MonthsInRatingPeriod,AG82+1,"") ->  | AI82: =IF(AH82<UP_MonthsInRatingPeriod,AH82+1,"") ->  | AJ82: =IF(AI82<UP_MonthsInRatingPeriod,AI82+1,"") ->  | AK82: =IF(AJ82<UP_MonthsInRatingPeriod,AJ82+1,"") ->  | AL82: =IF(AK82<UP_MonthsInRatingPeriod,AK82+1,"") ->  | AM82: =IF(AL82<UP_MonthsInRatingPeriod,AL82+1,"") ->  | AN82: =IF(AM82<UP_MonthsInRatingPeriod,AM82+1,"") ->  | AO82: =IF(AN82<UP_MonthsInRatingPeriod,AN82+1,"") ->  | AP82: =IF(AO82<UP_MonthsInRatingPeriod,AO82+1,"") ->  | AQ82: =IF(AP82<UP_MonthsInRatingPeriod,AP82+1,"") ->  | AR82: =IF(AQ82<UP_MonthsInRatingPeriod,AQ82+1,"") -> 
A83: Discount % | C83: =VLOOKUP(C82,'Drop Downs'!A41:B44,2,FALSE) -> 0 | H83: Months of Interest Earned | I83: =UP_MonthsInRatingPeriod -> 12 | J83: =IF(ISNUMBER(J82),I83-1,"") -> 11 | K83: =IF(ISNUMBER(K82),J83-1,"") -> 10 | L83: =IF(ISNUMBER(L82),K83-1,"") -> 9 | M83: =IF(ISNUMBER(M82),L83-1,"") -> 8 | N83: =IF(ISNUMBER(N82),M83-1,"") -> 7 | O83: =IF(ISNUMBER(O82),N83-1,"") -> 6 | P83: =IF(ISNUMBER(P82),O83-1,"") -> 5 | Q83: =IF(ISNUMBER(Q82),P83-1,"") -> 4 | R83: =IF(ISNUMBER(R82),Q83-1,"") -> 3 | S83: =IF(ISNUMBER(S82),R83-1,"") -> 2 | T83: =IF(ISNUMBER(T82),S83-1,"") -> 1 | U83: =IF(ISNUMBER(U82),T83-1,"") ->  | V83: =IF(ISNUMBER(V82),U83-1,"") ->  | W83: =IF(ISNUMBER(W82),V83-1,"") ->  | X83: =IF(ISNUMBER(X82),W83-1,"") ->  | Y83: =IF(ISNUMBER(Y82),X83-1,"") ->  | Z83: =IF(ISNUMBER(Z82),Y83-1,"") ->  | AA83: =IF(ISNUMBER(AA82),Z83-1,"") ->  | AB83: =IF(ISNUMBER(AB82),AA83-1,"") ->  | AC83: =IF(ISNUMBER(AC82),AB83-1,"") ->  | AD83: =IF(ISNUMBER(AD82),AC83-1,"") ->  | AE83: =IF(ISNUMBER(AE82),AD83-1,"") ->  | AF83: =IF(ISNUMBER(AF82),AE83-1,"") ->  | AG83: =IF(ISNUMBER(AG82),AF83-1,"") ->  | AH83: =IF(ISNUMBER(AH82),AG83-1,"") ->  | AI83: =IF(ISNUMBER(AI82),AH83-1,"") ->  | AJ83: =IF(ISNUMBER(AJ82),AI83-1,"") ->  | AK83: =IF(ISNUMBER(AK82),AJ83-1,"") ->  | AL83: =IF(ISNUMBER(AL82),AK83-1,"") ->  | AM83: =IF(ISNUMBER(AM82),AL83-1,"") ->  | AN83: =IF(ISNUMBER(AN82),AM83-1,"") ->  | AO83: =IF(ISNUMBER(AO82),AN83-1,"") ->  | AP83: =IF(ISNUMBER(AP82),AO83-1,"") ->  | AQ83: =IF(ISNUMBER(AQ82),AP83-1,"") ->  | AR83: =IF(ISNUMBER(AR82),AQ83-1,"") -> 
A84: Discount PMPM | C84: =-1*(C78*C83)+0*-SUM(I86:AR86)/UP_MonthsInRatingPeriod -> 0 | E84: =_xlfn.FORMULATEXT(C84) -> =-1*(C78*C83)+0*-SUM(I86:AR86)/UP_MonthsInRatingPeriod | H84: Interest Rate | I84: =$C83 -> 0 | J84: =$C83 -> 0 | K84: 0 | L84: 0 | M84: 0 | N84: 0 | O84: 0 | P84: 0 | Q84: 0 | R84: 0 | S84: 0 | T84: 0
A85: Cost of Capital after Discount PMPM | C85: =C79+C84 -> 5.452835865 | E85: =_xlfn.FORMULATEXT(C85) -> =C79+C84 | H85: RBC Funded | I85: =RBC_LowerThreshold+RBC_UpperThreshold*RBC_ThresholdDiscount -> 31.84501642 | J85: =IF(ISNUMBER(J82),$I85,"") -> 31.84501642 | K85: =IF(ISNUMBER(K82),$I85,"") -> 31.84501642 | L85: =IF(ISNUMBER(L82),$I85,"") -> 31.84501642 | M85: =IF(ISNUMBER(M82),$I85,"") -> 31.84501642 | N85: 31.84501642 | O85: 31.84501642 | P85: 31.84501642 | Q85: 31.84501642 | R85: 31.84501642 | S85: 31.84501642 | T85: 31.84501642
A86: Cost of Capital after Discount as % | C86: =C85/COC_Premium -> 0.01199629241 | E86: =_xlfn.FORMULATEXT(C86) -> =C85/COC_Premium | H86: Interest Payment | I86: =I85*(1+I84)^(I83/12)-I85 -> 0 | J86: =IF(ISNUMBER(J82),J85*(1+J84)^(J83/12)-J85,"") -> 0 | K86: 0 | L86: 0 | M86: 0 | N86: 0 | O86: 0 | P86: 0 | Q86: 0 | R86: 0 | S86: 0 | T86: 0
A87: Step 5. Calculate Costs Associated with Cash Flow
A88: Step 5.a. Cost Associated with Withholds
A89: Revised Adjusted PMPM | C89: =(COC_Premium+C85) -> 459.9962628 | E89: =_xlfn.FORMULATEXT(C89) -> =(COC_Premium+C85)
A90: Months in Rating Period | C90: =UP_MonthsInRatingPeriod -> 12
A91: Months following Rating Period before Payment | C91: =UP_COC_WithholdLag -> 6 | F91: user input - expected delay in resolving withhold with State (in months following rating period)
A92: Withhold % | C92: =UP_WithholdPercent -> 0 | F92: user input - Withhold %
A93: Assumed Withhold Achieved | C93: =UP_WithholdEarned -> 1 | F93: user input - % Withhold Achieved | H93: Calculation of Interest accrued on Withhold
A94: Withhold PMPM | C94: =(C92*C93)*C89 -> 0 | E94: =_xlfn.FORMULATEXT(C94) -> =(C92*C93)*C89 | H94: Month No. | I94: 1 | J94: =IF(I94<UP_MonthsInRatingPeriod,I94+1,"") -> 2 | K94: 3 | L94: 4 | M94: 5 | N94: 6 | O94: 7 | P94: 8 | Q94: 9 | R94: 10 | S94: 11 | T94: 12
A95: Factor to Apply to Cost of Withhold | C95: =UP_COC_Selection_RevenueLagRate -> None | F95: user input | H95: Months of Interest Owed | I95: =UP_MonthsInRatingPeriod+$C$91 -> 18 | J95: =IF(ISNUMBER(J94),I95-1,"") -> 17 | K95: =IF(ISNUMBER(K94),J95-1,"") -> 16 | L95: 15 | M95: 14 | N95: 13 | O95: 12 | P95: 11 | Q95: 10 | R95: 9 | S95: 8 | T95: 7
A96: =C95 -> None | C96: =UP_COC_RevenueLagRate -> 0 | F96: user input | H96: Interest Rate | I96: =$C$96 -> 0 | J96: =IF(ISNUMBER(J94),$C$96,"") -> 0 | K96: =IF(ISNUMBER(K94),$C$96,"") -> 0 | L96: 0 | M96: 0 | N96: 0 | O96: 0 | P96: 0 | Q96: 0 | R96: 0 | S96: 0 | T96: 0
A97: Cumulative Interest Accrued to MCO | C97: =-FV((1+C96)^(1/12)-1,C90+C91,C94,,0)-(C94*(C90+C91)) -> 0 | E97: =_xlfn.FORMULATEXT(C97) -> =-FV((1+C96)^(1/12)-1,C90+C91,C94,,0)-(C94*(C90+C91)) | F97: Interest owed to MCO for withholds held, including compounding of interest | H97: Withhold PMPM | I97: =$C$94 -> 0 | J97: =IF(ISNUMBER(J94),$C$94,"") -> 0 | K97: =IF(ISNUMBER(K94),$C$94,"") -> 0 | L97: 0 | M97: 0 | N97: 0 | O97: 0 | P97: 0 | Q97: 0 | R97: 0 | S97: 0 | T97: 0
A98: Monthly Interest Owed on Withhold PMPM | C98: =C97/12 -> 0 | E98: =_xlfn.FORMULATEXT(C98) -> =C97/12 | H98: Interest Payment | I98: =I97*(1+I96)^(I95/12)-I97 -> 0 | J98: =IF(ISNUMBER(J94),J97*(1+J96)^(J95/12)-J97,"") -> 0 | K98: =IF(ISNUMBER(K94),K97*(1+K96)^(K95/12)-K97,"") -> 0 | L98: =IF(ISNUMBER(L94),L97*(1+L96)^(L95/12)-L97,"") -> 0 | M98: =IF(ISNUMBER(M94),M97*(1+M96)^(M95/12)-M97,"") -> 0 | N98: =IF(ISNUMBER(N94),N97*(1+N96)^(N95/12)-N97,"") -> 0 | O98: =IF(ISNUMBER(O94),O97*(1+O96)^(O95/12)-O97,"") -> 0 | P98: =IF(ISNUMBER(P94),P97*(1+P96)^(P95/12)-P97,"") -> 0 | Q98: =IF(ISNUMBER(Q94),Q97*(1+Q96)^(Q95/12)-Q97,"") -> 0 | R98: =IF(ISNUMBER(R94),R97*(1+R96)^(R95/12)-R97,"") -> 0 | S98: =IF(ISNUMBER(S94),S97*(1+S96)^(S95/12)-S97,"") -> 0 | T98: =IF(ISNUMBER(T94),T97*(1+T96)^(T95/12)-T97,"") -> 0 | U98: =IF(ISNUMBER(U94),U97*(1+U96)^(U95/12)-U97,"") ->  | V98: =IF(ISNUMBER(V94),V97*(1+V96)^(V95/12)-V97,"") ->  | W98: =IF(ISNUMBER(W94),W97*(1+W96)^(W95/12)-W97,"") ->  | X98: =IF(ISNUMBER(X94),X97*(1+X96)^(X95/12)-X97,"") ->  | Y98: =IF(ISNUMBER(Y94),Y97*(1+Y96)^(Y95/12)-Y97,"") ->  | Z98: =IF(ISNUMBER(Z94),Z97*(1+Z96)^(Z95/12)-Z97,"") ->  | AA98: =IF(ISNUMBER(AA94),AA97*(1+AA96)^(AA95/12)-AA97,"") ->  | AB98: =IF(ISNUMBER(AB94),AB97*(1+AB96)^(AB95/12)-AB97,"") ->  | AC98: =IF(ISNUMBER(AC94),AC97*(1+AC96)^(AC95/12)-AC97,"") ->  | AD98: =IF(ISNUMBER(AD94),AD97*(1+AD96)^(AD95/12)-AD97,"") ->  | AE98: =IF(ISNUMBER(AE94),AE97*(1+AE96)^(AE95/12)-AE97,"") ->  | AF98: =IF(ISNUMBER(AF94),AF97*(1+AF96)^(AF95/12)-AF97,"") ->  | AG98: =IF(ISNUMBER(AG94),AG97*(1+AG96)^(AG95/12)-AG97,"") ->  | AH98: =IF(ISNUMBER(AH94),AH97*(1+AH96)^(AH95/12)-AH97,"") ->  | AI98: =IF(ISNUMBER(AI94),AI97*(1+AI96)^(AI95/12)-AI97,"") ->  | AJ98: =IF(ISNUMBER(AJ94),AJ97*(1+AJ96)^(AJ95/12)-AJ97,"") ->  | AK98: =IF(ISNUMBER(AK94),AK97*(1+AK96)^(AK95/12)-AK97,"") ->  | AL98: =IF(ISNUMBER(AL94),AL97*(1+AL96)^(AL95/12)-AL97,"") ->  | AM98: =IF(ISNUMBER(AM94),AM97*(1+AM96)^(AM95/12)-AM97,"") ->  | AN98: =IF(ISNUMBER(AN94),AN97*(1+AN96)^(AN95/12)-AN97,"") ->  | AO98: =IF(ISNUMBER(AO94),AO97*(1+AO96)^(AO95/12)-AO97,"") ->  | AP98: =IF(ISNUMBER(AP94),AP97*(1+AP96)^(AP95/12)-AP97,"") ->  | AQ98: =IF(ISNUMBER(AQ94),AQ97*(1+AQ96)^(AQ95/12)-AQ97,"") ->  | AR98: =IF(ISNUMBER(AR94),AR97*(1+AR96)^(AR95/12)-AR97,"") -> 
A99: Cost of Interest on Withhold as % of Premium | C99: =C98/COC_Premium -> 0 | E99: =C98/COC_Premium
A100: Step 5.b. Cost Associated with a Delay in Premiums | T100: =SUM(I98:T98) -> 0
A101: Revised Adjusted PMPM with Cost of Capital | C101: =C89+C98 -> 459.9962628 | E101: =_xlfn.FORMULATEXT(C101) -> =C89+C98
A102: Months of Average Delay | C102: =UP_COC_PremiumLag -> 2 | F102: user input - expected delay in receipt of premiums from State (in Months)
A103: =C95 -> None | C103: =C96 -> 0 | E103: =_xlfn.FORMULATEXT(C103) -> =C96
A104: Accumulative Interest Owed on Premium Delay PMPM | C104: =(C101*C102)*(1+C103)^(C102/12)-(C102*C101) -> 0 | E104: =_xlfn.FORMULATEXT(C104) -> =(C101*C102)*(1+C103)^(C102/12)-(C102*C101)
A105: Cost of Payment Delay as % | C105: =C104/COC_Premium -> 0 | E105: =_xlfn.FORMULATEXT(C105) -> =C104/COC_Premium
A106: Step 5.c. Offsets Associated with a Delay in Provider Payments
A107: Medical Premium | C107: =C4 -> 400
A108: Average Lag in Months | C108: =UP_COC_ClaimLag -> 0
A109: % of Claims Subject to Lag | C109: =UP_COC_ClaimLagPercent -> 0
A110: Risk Free Rate of Return (Rf) | C110: =Rf -> 0.02278852459 | E110: =_xlfn.FORMULATEXT(C110) -> =Rf
A111: Interest Earned on Claims' Payment Delay | C111: =-((C107*C109)*(1+C110)^(C108/12)-(C107*C109)) -> 0 | E111: =_xlfn.FORMULATEXT(C111) -> =-((C107*C109)*(1+C110)^(C108/12)-(C107*C109))
A112: Earnings from Reimbursement Delay as % | C112: =C111/COC_Premium -> 0
A113: Step 6. Total Cost of Capital
A114: Net Cost of Capital PMPM | C114: =C85+C98+C104+C111 -> 5.452835865 | E114: =_xlfn.FORMULATEXT(C114) -> =C85+C98+C104+C111
A115: Net Cost of Capital as % | C115: =C114/COC_Premium -> 0.01199629241 | E115: =_xlfn.FORMULATEXT(C115) -> =C114/COC_Premium

Sheet Net Income Matrix
A1: Net Income Matrix | K1: Risk Corridors: | L1: I | M1: II | N1: III | O1: IV | P1: V | Q1: VI | AC1: ='User Parameters'!B8 -> MCO Size Curve
K2: Lower Threshold | L2: =IF(UP_RSBasis="No Risk Share",0,'User Parameters'!F13) -> 0 | M2: =L3 -> 0 | N2: =M3 -> 0 | O2: =N3 -> 0 | P2: =O3 -> 0 | Q2: =P3 -> 0 | AB2: Mean of Underwriting Margin | AD2: =H88 -> 0.03199568206
K3: Upper Threshold | L3: =IF(UP_RSBasis="No Risk Share",0,'User Parameters'!H13) -> 0 | M3: =IF(UP_RSBasis="No Risk Share",0,'User Parameters'!H14) -> 0 | N3: =IF(UP_RSBasis="No Risk Share",0,'User Parameters'!H15) -> 0 | O3: =IF(UP_RSBasis="No Risk Share",0,'User Parameters'!H16) -> 0 | P3: =IF(UP_RSBasis="No Risk Share",0,'User Parameters'!H17) -> 0 | Q3: =IF(UP_RSBasis="No Risk Share",0,'User Parameters'!H18) -> 0 | AB3: Standard Deviation | AD3: ='User Parameters'!C8 -> 0.03294087391
K4: State Share | L4: =IF(UP_RSBasis="No Risk Share",0,1-'User Parameters'!I13) -> 0 | M4: =IF(UP_RSBasis="No Risk Share",0,1-'User Parameters'!I14) -> 0 | N4: =IF(UP_RSBasis="No Risk Share",0,1-'User Parameters'!I15) -> 0 | O4: =IF(UP_RSBasis="No Risk Share",0,1-'User Parameters'!I16) -> 0 | P4: =IF(UP_RSBasis="No Risk Share",0,1-'User Parameters'!I17) -> 0 | Q4: =IF(UP_RSBasis="No Risk Share",0,1-'User Parameters'!I18) -> 0 | AK4: excluding lag in CoC infusions
A5: Ave/Total | B5: =SUMPRODUCT(B$8:B$168,$AD$8:$AD$168) -> 454.543427 | C5: 400 | D5: 0.8800039254 | E5: 40 | F5: 0 | G5: 14.54342697 | H5: 0.03199568206 | I5: 0.8800039254 | J5: 0 | K5: 0 | L5: =SUMPRODUCT(L$8:L$168,$AD$8:$AD$168) -> 0 | M5: 0 | N5: 0 | O5: 0 | P5: 0 | Q5: 0 | R5: =SUMPRODUCT(R$8:R$168,$AD$8:$AD$168) -> 0 | S5: 0 | T5: 0.8800039254 | U5: 0.8800039254 | V5: 0 | W5: 0 | X5: 0.03199568206 | Y5: 0 | Z5: 0 | AA5: =SUMPRODUCT(AA$8:AA$168,$AD$8:$AD$168) -> 0.03199568206 | AC5: =SUM(AC$8:AC$168) -> 1 | AD5: =SUM(AD$8:AD$168) -> 1 | AE5: =SUMPRODUCT(AE$8:AE$168,$AD$8:$AD$168) -> -0.0003154995829 | AF5: =SUMPRODUCT(AF$8:AF$168,$AD$8:$AD$168) -> -1.187383035e-05 | AG5: =SUMPRODUCT(AG$8:AG$168,$AD$8:$AD$168) -> -1.187383035e-05 | AH5: =SUMPRODUCT(AH$8:AH$168,$AD$8:$AD$168) -> -3.685214451e-11 | AI5: =SUMPRODUCT(AI$8:AI$168,$AD$8:$AD$168) -> -3.685214451e-11 | AK5: =SUMPRODUCT(AK$8:AK$168,$AD$8:$AD$168) -> 0 | AL5: 0 | AM5: =SUMPRODUCT(AM$8:AM$168,$AD$8:$AD$168) -> 0.03199568206
A6: Bin | B6: Claims Calculation | E6: Underwriting Margin Calculation | I6: MLR | J6: Risk Share Target | K6: Risk Corridor Calculations | T6: MLR Limit Calculation | X6: Net Income Calculation | AB6: Normal Curve | AE6: Probability of Ruin Results
A7: Loss Ratio | B7: Prem PMPM | C7: Claims PMPM | D7: Initial MLR | E7: Admin | F7: Premium Tax | G7: Underwriting Margin | H7: Underwriting Margin Ratio | I7: Alternative: For purposes or Risk Share use MLR (as used for MLR Limit) not Loss Ratio | J7: =IF(UP_RSBasis="MLR","Risk Share Target %",IF(UP_RSBasis="Medical Baseline","Claims PMPM","N/A")) -> N/A | K7: =IF(UP_RSBasis="MLR","MLR Gain/(Loss)",IF(UP_RSBasis="Medical Baseline","Medical Gain/(Loss)","")) ->  | L7: Corridor I | M7: Corridor II | N7: Corridor III | O7: Corridor IV | P7: Corridor V | Q7: Corridor VI | R7: =IF(UP_RSBasis="MLR","MLR Adjustment","") ->  | S7: Claims Adjustment | T7: Adjusted MLR | U7: Capped MLR | V7: Net Transfer Payment | W7: Net Transfer Payment as a % of Prem | X7: Gain/Loss as a % of Prem | Y7: Cost of Capital Infusion on Gains/Losses Before Transfer Payments (as a % of Prem) | Z7: Withhold Unachieved as a % of Prem | AA7: Net Income as a % of Prem | AB7: Density Function | AC7: Probability | AD7: Adjusted Probability | AE7: Authorized Control Level (ACL) | AF7: 200% of ACL | AG7: Minimum Threshold | AH7: ="Target (Discount = "&UP_COC_RBCThresholdDiscount*100&"%)" -> Target (Discount = 0%) | AI7: Maximum Threshold
A8: =A9-0.005 -> 0.4800039254 | B8: =$B$88 -> 454.543427 | C8: =B8*A8 -> 218.1826292 | D8: =(C8)/(B8) -> 0.4800039254 | E8: ='User Parameters'!$C$10 -> 40 | F8: =B8*'User Parameters'!$C$14 -> 0 | G8: =B8-E8-C8-F8 -> 196.3607978 | H8: =G8/B8 -> 0.4319956821 | I8: =($C8+UP_QIPMPM)/($B8-$F8) -> 0.4800039254 | J8: =IF(UP_RSBasis="MLR",UP_RSTarget_MLR,IF(UP_RSBasis="Medical Baseline",UP_RSTarget_Medlcal,0)) -> 0 | K8: =IF(UP_RSBasis="MLR",J8-I8,IF(UP_RSBasis="Medical Baseline",J8-$C8,0)) -> 0 | L8: =IF($K8>0,MIN(J8*L$3-J8*L$2,$K8-M8-N8),0) -> 0 | M8: =IF($K8>0,MIN(J8*M$3-J8*M$2,$K8-N8),0) -> 0 | N8: =IF($K8>0,MIN(J8*N$3-J8*N$2,$K8),0) -> 0 | O8: =IF($K8<0,MAX(J8*O$2-J8*O$3,$K8),0) -> 0 | P8: =IF($K8<0,MAX(J8*P$2-J8*P$3,$K8-O8),0) -> 0 | Q8: =IF($K8<0,MAX(J8*Q$2-J8*Q$3,$K8-P8-O8),0) -> 0 | R8: =IF(UP_RSBasis="MLR",SUMPRODUCT(L$4:Q$4,L8:Q8),"") ->  | S8: =IF(UP_RSBasis="MLR",R8*(B8-F8),SUMPRODUCT($L$4:$Q$4,$L8:$Q8)) -> 0 | T8: =(S8+C8+'User Parameters'!$C$11)/(B8-F8) -> 0.4800039254 | U8: =IF(T8<'User Parameters'!$J$5,'User Parameters'!$J$5,IF(T8>'User Parameters'!$J$6,'User Parameters'!$J$6,T8)) -> 0.4800039254 | V8: =(U8-T8)*(B8-F8) -> 0 | W8: =V8/B8 -> 0 | X8: =(B8-C8-F8-E8-S8-V8)/'Results Dashboard'!$D$42 -> 0.4319956821 | Y8: =IF((X8+W8)>0,(X8+W8)*0.5*((1+'User Parameters'!C$48)^((12+UP_COC_WithholdLag)/12)-1),(X8+W8)*0.5*((1+'User Parameters'!$C$49)^((12+UP_COC_WithholdLag)/12)-1)) -> 0 | Z8: =-'User Parameters'!$C$12*('User Parameters'!$C$13-1) -> 0 | AA8: =Y8+X8-Z8 -> 0.4319956821 | AB8: =_xlfn.NORM.DIST(H8,$AD$2,$AD$3,TRUE) -> 1 | AC8: =AB8-AB9 -> 0 | AD8: =AC8+(1-AC5)/2 -> 2.775557562e-16 | AE8: =IF($AA8<-'Results Dashboard'!$J$7,$AA8+'Results Dashboard'!$J$7,0) -> 0 | AF8: =IF($AA8<-'Results Dashboard'!$J$8,$AA8+'Results Dashboard'!$J$8,0) -> 0 | AG8: =IF($AA8<-'Results Dashboard'!$J$9,$AA8+'Results Dashboard'!$J$9,0) -> 0 | AH8: =IF($AA8<-'Results Dashboard'!$J$11,$AA8+'Results Dashboard'!$J$11,0) -> 0 | AI8: =IF($AA8<-'Results Dashboard'!$J$10,$AA8+'Results Dashboard'!$J$10,0) -> 0 | AK8: =IF((X8+W8)>0,(X8+W8)*0.5*'User Parameters'!C$48,(X8+W8)*0.5*'User Parameters'!$C$49) -> 0 | AL8: =-'User Parameters'!$C$12*('User Parameters'!$C$13-1) -> 0 | AM8: =-AK8+X8-AL8 -> 0.4319956821
A9: 0.4850039254 | B9: 454.543427 | C9: =B9*A9 -> 220.4553463 | D9: =(C9)/(B9) -> 0.4850039254 | E9: ='User Parameters'!$C$10 -> 40 | F9: =B9*'User Parameters'!$C$14 -> 0 | G9: =B9-E9-C9-F9 -> 194.0880806 | H9: =G9/B9 -> 0.4269956821 | I9: =($C9+UP_QIPMPM)/($B9-$F9) -> 0.4850039254 | J9: =IF(UP_RSBasis="MLR",UP_RSTarget_MLR,IF(UP_RSBasis="Medical Baseline",UP_RSTarget_Medlcal,0)) -> 0 | K9: 0 | L9: =IF($K9>0,MIN(J9*L$3-J9*L$2,$K9-M9-N9),0) -> 0 | M9: =IF($K9>0,MIN(J9*M$3-J9*M$2,$K9-N9),0) -> 0 | N9: =IF($K9>0,MIN(J9*N$3-J9*N$2,$K9),0) -> 0 | O9: =IF($K9<0,MAX(J9*O$2-J9*O$3,$K9),0) -> 0 | P9: =IF($K9<0,MAX(J9*P$2-J9*P$3,$K9-O9),0) -> 0 | Q9: =IF($K9<0,MAX(J9*Q$2-J9*Q$3,$K9-P9-O9),0) -> 0 | S9: 0 | T9: =(S9+C9+'User Parameters'!$C$11)/(B9-F9) -> 0.4850039254 | U9: =IF(T9<'User Parameters'!$J$5,'User Parameters'!$J$5,IF(T9>'User Parameters'!$J$6,'User Parameters'!$J$6,T9)) -> 0.4850039254 | V9: 0 | W9: 0 | X9: =(B9-C9-F9-E9-S9-V9)/'Results Dashboard'!$D$42 -> 0.4269956821 | Y9: =IF((X9+W9)>0,(X9+W9)*0.5*((1+'User Parameters'!C$48)^((12+UP_COC_WithholdLag)/12)-1),(X9+W9)*0.5*((1+'User Parameters'!$C$49)^((12+UP_COC_WithholdLag)/12)-1)) -> 0 | Z9: =-'User Parameters'!$C$12*('User Parameters'!$C$13-1) -> 0 | AA9: =Y9+X9-Z9 -> 0.4269956821 | AB9: 1 | AC9: =AB9-AB10 -> 0 | AD9: =AC9 -> 0 | AE9: =IF($AA9<-'Results Dashboard'!$J$7,$AA9+'Results Dashboard'!$J$7,0) -> 0 | AF9: =IF($AA9<-'Results Dashboard'!$J$8,$AA9+'Results Dashboard'!$J$8,0) -> 0 | AG9: =IF($AA9<-'Results Dashboard'!$J$9,$AA9+'Results Dashboard'!$J$9,0) -> 0 | AH9: =IF($AA9<-'Results Dashboard'!$J$11,$AA9+'Results Dashboard'!$J$11,0) -> 0 | AI9: =IF($AA9<-'Results Dashboard'!$J$10,$AA9+'Results Dashboard'!$J$10,0) -> 0 | AK9: =IF((X9+W9)>0,(X9+W9)*0.5*'User Parameters'!C$48,(X9+W9)*0.5*'User Parameters'!$C$49) -> 0 | AL9: =-'User Parameters'!$C$12*('User Parameters'!$C$13-1) -> 0 | AM9: =-AK9+X9-AL9 -> 0.4269956821
A10: 0.4900039254 | B10: 454.543427 | C10: 222.7280635 | D10: 0.4900039254 | E10: ='User Parameters'!$C$10 -> 40 | F10: =B10*'User Parameters'!$C$14 -> 0 | G10: 191.8153635 | H10: 0.4219956821 | I10: 0.4900039254 | J10: =IF(UP_RSBasis="MLR",UP_RSTarget_MLR,IF(UP_RSBasis="Medical Baseline",UP_RSTarget_Medlcal,0)) -> 0 | K10: 0 | L10: 0 | M10: 0 | N10: 0 | O10: 0 | P10: 0 | Q10: 0 | S10: 0 | T10: =(S10+C10+'User Parameters'!$C$11)/(B10-F10) -> 0.4900039254 | U10: =IF(T10<'User Parameters'!$J$5,'User Parameters'!$J$5,IF(T10>'User Parameters'!$J$6,'User Parameters'!$J$6,T10)) -> 0.4900039254 | V10: 0 | W10: 0 | X10: =(B10-C10-F10-E10-S10-V10)/'Results Dashboard'!$D$42 -> 0.4219956821 | Y10: =IF((X10+W10)>0,(X10+W10)*0.5*((1+'User Parameters'!C$48)^((12+UP_COC_WithholdLag)/12)-1),(X10+W10)*0.5*((1+'User Parameters'!$C$49)^((12+UP_COC_WithholdLag)/12)-1)) -> 0 | Z10: =-'User Parameters'!$C$12*('User Parameters'!$C$13-1) -> 0 | AA10: 0.4219956821 | AB10: 1 | AC10: 0 | AD10: =AC10 -> 0 | AE10: =IF($AA10<-'Results Dashboard'!$J$7,$AA10+'Results Dashboard'!$J$7,0) -> 0 | AF10: =IF($AA10<-'Results Dashboard'!$J$8,$AA10+'Results Dashboard'!$J$8,0) -> 0 | AG10: =IF($AA10<-'Results Dashboard'!$J$9,$AA10+'Results Dashboard'!$J$9,0) -> 0 | AH10: =IF($AA10<-'Results Dashboard'!$J$11,$AA10+'Results Dashboard'!$J$11,0) -> 0 | AI10: =IF($AA10<-'Results Dashboard'!$J$10,$AA10+'Results Dashboard'!$J$10,0) -> 0 | AK10: =IF((X10+W10)>0,(X10+W10)*0.5*'User Parameters'!C$48,(X10+W10)*0.5*'User Parameters'!$C$49) -> 0 | AL10: =-'User Parameters'!$C$12*('User Parameters'!$C$13-1) -> 0 | AM10: 0.4219956821
A11: 0.4950039254 | B11: 454.543427 | C11: 225.0007806 | D11: 0.4950039254 | E11: ='User Parameters'!$C$10 -> 40 | F11: =B11*'User Parameters'!$C$14 -> 0 | G11: 189.5426464 | H11: 0.4169956821 | I11: 0.4950039254 | J11: =IF(UP_RSBasis="MLR",UP_RSTarget_MLR,IF(UP_RSBasis="Medical Baseline",UP_RSTarget_Medlcal,0)) -> 0 | K11: 0 | L11: 0 | M11: 0 | N11: 0 | O11: 0 | P11: 0 | Q11: 0 | S11: 0 | T11: =(S11+C11+'User Parameters'!$C$11)/(B11-F11) -> 0.4950039254 | U11: =IF(T11<'User Parameters'!$J$5,'User Parameters'!$J$5,IF(T11>'User Parameters'!$J$6,'User Parameters'!$J$6,T11)) -> 0.4950039254 | V11: 0 | W11: 0 | X11: =(B11-C11-F11-E11-S11-V11)/'Results Dashboard'!$D$42 -> 0.4169956821 | Y11: =IF((X11+W11)>0,(X11+W11)*0.5*((1+'User Parameters'!C$48)^((12+UP_COC_WithholdLag)/12)-1),(X11+W11)*0.5*((1+'User Parameters'!$C$49)^((12+UP_COC_WithholdLag)/12)-1)) -> 0 | Z11: =-'User Parameters'!$C$12*('User Parameters'!$C$13-1) -> 0 | AA11: 0.4169956821 | AB11: 1 | AC11: 0 | AD11: 0 | AE11: =IF($AA11<-'Results Dashboard'!$J$7,$AA11+'Results Dashboard'!$J$7,0) -> 0 | AF11: =IF($AA11<-'Results Dashboard'!$J$8,$AA11+'Results Dashboard'!$J$8,0) -> 0 | AG11: =IF($AA11<-'Results Dashboard'!$J$9,$AA11+'Results Dashboard'!$J$9,0) -> 0 | AH11: =IF($AA11<-'Results Dashboard'!$J$11,$AA11+'Results Dashboard'!$J$11,0) -> 0 | AI11: =IF($AA11<-'Results Dashboard'!$J$10,$AA11+'Results Dashboard'!$J$10,0) -> 0 | AK11: =IF((X11+W11)>0,(X11+W11)*0.5*'User Parameters'!C$48,(X11+W11)*0.5*'User Parameters'!$C$49) -> 0 | AL11: =-'User Parameters'!$C$12*('User Parameters'!$C$13-1) -> 0 | AM11: 0.4169956821
A12: 0.5000039254 | B12: 454.543427 | C12: 227.2734978 | D12: 0.5000039254 | E12: ='User Parameters'!$C$10 -> 40 | F12: =B12*'User Parameters'!$C$14 -> 0 | G12: 187.2699292 | H12: 0.4119956821 | I12: 0.5000039254 | J12: =IF(UP_RSBasis="MLR",UP_RSTarget_MLR,IF(UP_RSBasis="Medical Baseline",UP_RSTarget_Medlcal,0)) -> 0 | K12: 0 | L12: 0 | M12: 0 | N12: 0 | O12: 0 | P12: =IF($K12<0,MAX(J12*P$2-J12*P$3,$K12-O12),0) -> 0 | Q12: 0 | S12: 0 | T12: =(S12+C12+'User Parameters'!$C$11)/(B12-F12) -> 0.5000039254 | U12: =IF(T12<'User Parameters'!$J$5,'User Parameters'!$J$5,IF(T12>'User Parameters'!$J$6,'User Parameters'!$J$6,T12)) -> 0.5000039254 | V12: 0 | W12: 0 | X12: =(B12-C12-F12-E12-S12-V12)/'Results Dashboard'!$D$42 -> 0.4119956821 | Y12: =IF((X12+W12)>0,(X12+W12)*0.5*((1+'User Parameters'!C$48)^((12+UP_COC_WithholdLag)/12)-1),(X12+W12)*0.5*((1+'User Parameters'!$C$49)^((12+UP_COC_WithholdLag)/12)-1)) -> 0 | Z12: =-'User Parameters'!$C$12*('User Parameters'!$C$13-1) -> 0 | AA12: 0.4119956821 | AB12: 1 | AC12: 0 | AD12: 0 | AE12: =IF($AA12<-'Results Dashboard'!$J$7,$AA12+'Results Dashboard'!$J$7,0) -> 0 | AF12: =IF($AA12<-'Results Dashboard'!$J$8,$AA12+'Results Dashboard'!$J$8,0) -> 0 | AG12: =IF($AA12<-'Results Dashboard'!$J$9,$AA12+'Results Dashboard'!$J$9,0) -> 0 | AH12: =IF($AA12<-'Results Dashboard'!$J$11,$AA12+'Results Dashboard'!$J$11,0) -> 0 | AI12: =IF($AA12<-'Results Dashboard'!$J$10,$AA12+'Results Dashboard'!$J$10,0) -> 0 | AK12: =IF((X12+W12)>0,(X12+W12)*0.5*'User Parameters'!C$48,(X12+W12)*0.5*'User Parameters'!$C$49) -> 0 | AL12: =-'User Parameters'!$C$12*('User Parameters'!$C$13-1) -> 0 | AM12: 0.4119956821
A13: 0.5050039254 | B13: 454.543427 | C13: 229.5462149 | D13: 0.5050039254 | E13: ='User Parameters'!$C$10 -> 40 | F13: =B13*'User Parameters'!$C$14 -> 0 | G13: 184.9972121 | H13: 0.4069956821 | I13: 0.5050039254 | J13: =IF(UP_RSBasis="MLR",UP_RSTarget_MLR,IF(UP_RSBasis="Medical Baseline",UP_RSTarget_Medlcal,0)) -> 0 | K13: 0 | L13: 0 | M13: 0 | N13: 0 | O13: 0 | P13: 0 | Q13: 0 | S13: 0 | T13: =(S13+C13+'User Parameters'!$C$11)/(B13-F13) -> 0.5050039254 | U13: =IF(T13<'User Parameters'!$J$5,'User Parameters'!$J$5,IF(T13>'User Parameters'!$J$6,'User Parameters'!$J$6,T13)) -> 0.5050039254 | V13: 0 | W13: 0 | X13: =(B13-C13-F13-E13-S13-V13)/'Results Dashboard'!$D$42 -> 0.4069956821 | Y13: =IF((X13+W13)>0,(X13+W13)*0.5*((1+'User Parameters'!C$48)^((12+UP_COC_WithholdLag)/12)-1),(X13+W13)*0.5*((1+'User Parameters'!$C$49)^((12+UP_COC_WithholdLag)/12)-1)) -> 0 | Z13: =-'User Parameters'!$C$12*('User Parameters'!$C$13-1) -> 0 | AA13: 0.4069956821 | AB13: 1 | AC13: 0 | AD13: 0 | AE13: =IF($AA13<-'Results Dashboard'!$J$7,$AA13+'Results Dashboard'!$J$7,0) -> 0 | AF13: =IF($AA13<-'Results Dashboard'!$J$8,$AA13+'Results Dashboard'!$J$8,0) -> 0 | AG13: =IF($AA13<-'Results Dashboard'!$J$9,$AA13+'Results Dashboard'!$J$9,0) -> 0 | AH13: =IF($AA13<-'Results Dashboard'!$J$11,$AA13+'Results Dashboard'!$J$11,0) -> 0 | AI13: =IF($AA13<-'Results Dashboard'!$J$10,$AA13+'Results Dashboard'!$J$10,0) -> 0 | AK13: =IF((X13+W13)>0,(X13+W13)*0.5*'User Parameters'!C$48,(X13+W13)*0.5*'User Parameters'!$C$49) -> 0 | AL13: =-'User Parameters'!$C$12*('User Parameters'!$C$13-1) -> 0 | AM13: 0.4069956821
A14: 0.5100039254 | B14: 454.543427 | C14: 231.818932 | D14: 0.5100039254 | E14: ='User Parameters'!$C$10 -> 40 | F14: =B14*'User Parameters'!$C$14 -> 0 | G14: 182.724495 | H14: 0.4019956821 | I14: 0.5100039254 | J14: =IF(UP_RSBasis="MLR",UP_RSTarget_MLR,IF(UP_RSBasis="Medical Baseline",UP_RSTarget_Medlcal,0)) -> 0 | K14: 0 | L14: 0 | M14: 0 | N14: 0 | O14: 0 | P14: 0 | Q14: 0 | S14: 0 | T14: =(S14+C14+'User Parameters'!$C$11)/(B14-F14) -> 0.5100039254 | U14: =IF(T14<'User Parameters'!$J$5,'User Parameters'!$J$5,IF(T14>'User Parameters'!$J$6,'User Parameters'!$J$6,T14)) -> 0.5100039254 | V14: 0 | W14: 0 | X14: =(B14-C14-F14-E14-S14-V14)/'Results Dashboard'!$D$42 -> 0.4019956821 | Y14: =IF((X14+W14)>0,(X14+W14)*0.5*((1+'User Parameters'!C$48)^((12+UP_COC_WithholdLag)/12)-1),(X14+W14)*0.5*((1+'User Parameters'!$C$49)^((12+UP_COC_WithholdLag)/12)-1)) -> 0 | Z14: =-'User Parameters'!$C$12*('User Parameters'!$C$13-1) -> 0 | AA14: 0.4019956821 | AB14: 1 | AC14: 0 | AD14: 0 | AE14: =IF($AA14<-'Results Dashboard'!$J$7,$AA14+'Results Dashboard'!$J$7,0) -> 0 | AF14: =IF($AA14<-'Results Dashboard'!$J$8,$AA14+'Results Dashboard'!$J$8,0) -> 0 | AG14: =IF($AA14<-'Results Dashboard'!$J$9,$AA14+'Results Dashboard'!$J$9,0) -> 0 | AH14: =IF($AA14<-'Results Dashboard'!$J$11,$AA14+'Results Dashboard'!$J$11,0) -> 0 | AI14: =IF($AA14<-'Results Dashboard'!$J$10,$AA14+'Results Dashboard'!$J$10,0) -> 0 | AK14: =IF((X14+W14)>0,(X14+W14)*0.5*'User Parameters'!C$48,(X14+W14)*0.5*'User Parameters'!$C$49) -> 0 | AL14: =-'User Parameters'!$C$12*('User Parameters'!$C$13-1) -> 0 | AM14: 0.4019956821
A15: 0.5150039254 | B15: 454.543427 | C15: 234.0916492 | D15: 0.5150039254 | E15: ='User Parameters'!$C$10 -> 40 | F15: =B15*'User Parameters'!$C$14 -> 0 | G15: 180.4517778 | H15: 0.3969956821 | I15: 0.5150039254 | J15: =IF(UP_RSBasis="MLR",UP_RSTarget_MLR,IF(UP_RSBasis="Medical Baseline",UP_RSTarget_Medlcal,0)) -> 0 | K15: 0 | L15: 0 | M15: 0 | N15: 0 | O15: 0 | P15: 0 | Q15: 0 | S15: 0 | T15: =(S15+C15+'User Parameters'!$C$11)/(B15-F15) -> 0.5150039254 | U15: =IF(T15<'User Parameters'!$J$5,'User Parameters'!$J$5,IF(T15>'User Parameters'!$J$6,'User Parameters'!$J$6,T15)) -> 0.5150039254 | V15: 0 | W15: 0 | X15: =(B15-C15-F15-E15-S15-V15)/'Results Dashboard'!$D$42 -> 0.3969956821 | Y15: =IF((X15+W15)>0,(X15+W15)*0.5*((1+'User Parameters'!C$48)^((12+UP_COC_WithholdLag)/12)-1),(X15+W15)*0.5*((1+'User Parameters'!$C$49)^((12+UP_COC_WithholdLag)/12)-1)) -> 0 | Z15: =-'User Parameters'!$C$12*('User Parameters'!$C$13-1) -> 0 | AA15: 0.3969956821 | AB15: 1 | AC15: 0 | AD15: 0 | AE15: =IF($AA15<-'Results Dashboard'!$J$7,$AA15+'Results Dashboard'!$J$7,0) -> 0 | AF15: =IF($AA15<-'Results Dashboard'!$J$8,$AA15+'Results Dashboard'!$J$8,0) -> 0 | AG15: =IF($AA15<-'Results Dashboard'!$J$9,$AA15+'Results Dashboard'!$J$9,0) -> 0 | AH15: =IF($AA15<-'Results Dashboard'!$J$11,$AA15+'Results Dashboard'!$J$11,0) -> 0 | AI15: =IF($AA15<-'Results Dashboard'!$J$10,$AA15+'Results Dashboard'!$J$10,0) -> 0 | AK15: =IF((X15+W15)>0,(X15+W15)*0.5*'User Parameters'!C$48,(X15+W15)*0.5*'User Parameters'!$C$49) -> 0 | AL15: =-'User Parameters'!$C$12*('User Parameters'!$C$13-1) -> 0 | AM15: 0.3969956821
A16: 0.5200039254 | B16: 454.543427 | C16: 236.3643663 | D16: 0.5200039254 | E16: ='User Parameters'!$C$10 -> 40 | F16: =B16*'User Parameters'!$C$14 -> 0 | G16: 178.1790607 | H16: 0.3919956821 | I16: 0.5200039254 | J16: =IF(UP_RSBasis="MLR",UP_RSTarget_MLR,IF(UP_RSBasis="Medical Baseline",UP_RSTarget_Medlcal,0)) -> 0 | K16: 0 | L16: 0 | M16: 0 | N16: 0 | O16: 0 | P16: 0 | Q16: 0 | S16: 0 | T16: =(S16+C16+'User Parameters'!$C$11)/(B16-F16) -> 0.5200039254 | U16: =IF(T16<'User Parameters'!$J$5,'User Parameters'!$J$5,IF(T16>'User Parameters'!$J$6,'User Parameters'!$J$6,T16)) -> 0.5200039254 | V16: 0 | W16: 0 | X16: =(B16-C16-F16-E16-S16-V16)/'Results Dashboard'!$D$42 -> 0.3919956821 | Y16: =IF((X16+W16)>0,(X16+W16)*0.5*((1+'User Parameters'!C$48)^((12+UP_COC_WithholdLag)/12)-1),(X16+W16)*0.5*((1+'User Parameters'!$C$49)^((12+UP_COC_WithholdLag)/12)-1)) -> 0 | Z16: =-'User Parameters'!$C$12*('User Parameters'!$C$13-1) -> 0 | AA16: 0.3919956821 | AB16: 1 | AC16: 0 | AD16: 0 | AE16: =IF($AA16<-'Results Dashboard'!$J$7,$AA16+'Results Dashboard'!$J$7,0) -> 0 | AF16: =IF($AA16<-'Results Dashboard'!$J$8,$AA16+'Results Dashboard'!$J$8,0) -> 0 | AG16: =IF($AA16<-'Results Dashboard'!$J$9,$AA16+'Results Dashboard'!$J$9,0) -> 0 | AH16: =IF($AA16<-'Results Dashboard'!$J$11,$AA16+'Results Dashboard'!$J$11,0) -> 0 | AI16: =IF($AA16<-'Results Dashboard'!$J$10,$AA16+'Results Dashboard'!$J$10,0) -> 0 | AK16: =IF((X16+W16)>0,(X16+W16)*0.5*'User Parameters'!C$48,(X16+W16)*0.5*'User Parameters'!$C$49) -> 0 | AL16: =-'User Parameters'!$C$12*('User Parameters'!$C$13-1) -> 0 | AM16: 0.3919956821
A17: 0.5250039254 | B17: 454.543427 | C17: 238.6370834 | D17: 0.5250039254 | E17: ='User Parameters'!$C$10 -> 40 | F17: =B17*'User Parameters'!$C$14 -> 0 | G17: 175.9063435 | H17: 0.3869956821 | I17: 0.5250039254 | J17: =IF(UP_RSBasis="MLR",UP_RSTarget_MLR,IF(UP_RSBasis="Medical Baseline",UP_RSTarget_Medlcal,0)) -> 0 | K17: 0 | L17: 0 | M17: 0 | N17: 0 | O17: 0 | P17: 0 | Q17: 0 | S17: 0 | T17: =(S17+C17+'User Parameters'!$C$11)/(B17-F17) -> 0.5250039254 | U17: =IF(T17<'User Parameters'!$J$5,'User Parameters'!$J$5,IF(T17>'User Parameters'!$J$6,'User Parameters'!$J$6,T17)) -> 0.5250039254 | V17: 0 | W17: 0 | X17: =(B17-C17-F17-E17-S17-V17)/'Results Dashboard'!$D$42 -> 0.3869956821 | Y17: =IF((X17+W17)>0,(X17+W17)*0.5*((1+'User Parameters'!C$48)^((12+UP_COC_WithholdLag)/12)-1),(X17+W17)*0.5*((1+'User Parameters'!$C$49)^((12+UP_COC_WithholdLag)/12)-1)) -> 0 | Z17: =-'User Parameters'!$C$12*('User Parameters'!$C$13-1) -> 0 | AA17: 0.3869956821 | AB17: 1 | AC17: 0 | AD17: 0 | AE17: =IF($AA17<-'Results Dashboard'!$J$7,$AA17+'Results Dashboard'!$J$7,0) -> 0 | AF17: =IF($AA17<-'Results Dashboard'!$J$8,$AA17+'Results Dashboard'!$J$8,0) -> 0 | AG17: =IF($AA17<-'Results Dashboard'!$J$9,$AA17+'Results Dashboard'!$J$9,0) -> 0 | AH17: =IF($AA17<-'Results Dashboard'!$J$11,$AA17+'Results Dashboard'!$J$11,0) -> 0 | AI17: =IF($AA17<-'Results Dashboard'!$J$10,$AA17+'Results Dashboard'!$J$10,0) -> 0 | AK17: =IF((X17+W17)>0,(X17+W17)*0.5*'User Parameters'!C$48,(X17+W17)*0.5*'User Parameters'!$C$49) -> 0 | AL17: =-'User Parameters'!$C$12*('User Parameters'!$C$13-1) -> 0 | AM17: 0.3869956821
A18: 0.5300039254 | B18: 454.543427 | C18: 240.9098006 | D18: 0.5300039254 | E18: ='User Parameters'!$C$10 -> 40 | F18: =B18*'User Parameters'!$C$14 -> 0 | G18: 173.6336264 | H18: 0.3819956821 | I18: 0.5300039254 | J18: =IF(UP_RSBasis="MLR",UP_RSTarget_MLR,IF(UP_RSBasis="Medical Baseline",UP_RSTarget_Medlcal,0)) -> 0 | K18: 0 | L18: 0 | M18: 0 | N18: 0 | O18: 0 | P18: 0 | Q18: 0 | S18: 0 | T18: =(S18+C18+'User Parameters'!$C$11)/(B18-F18) -> 0.5300039254 | U18: =IF(T18<'User Parameters'!$J$5,'User Parameters'!$J$5,IF(T18>'User Parameters'!$J$6,'User Parameters'!$J$6,T18)) -> 0.5300039254 | V18: 0 | W18: 0 | X18: =(B18-C18-F18-E18-S18-V18)/'Results Dashboard'!$D$42 -> 0.3819956821 | Y18: =IF((X18+W18)>0,(X18+W18)*0.5*((1+'User Parameters'!C$48)^((12+UP_COC_WithholdLag)/12)-1),(X18+W18)*0.5*((1+'User Parameters'!$C$49)^((12+UP_COC_WithholdLag)/12)-1)) -> 0 | Z18: =-'User Parameters'!$C$12*('User Parameters'!$C$13-1) -> 0 | AA18: 0.3819956821 | AB18: 1 | AC18: 0 | AD18: 0 | AE18: =IF($AA18<-'Results Dashboard'!$J$7,$AA18+'Results Dashboard'!$J$7,0) -> 0 | AF18: =IF($AA18<-'Results Dashboard'!$J$8,$AA18+'Results Dashboard'!$J$8,0) -> 0 | AG18: =IF($AA18<-'Results Dashboard'!$J$9,$AA18+'Results Dashboard'!$J$9,0) -> 0 | AH18: =IF($AA18<-'Results Dashboard'!$J$11,$AA18+'Results Dashboard'!$J$11,0) -> 0 | AI18: =IF($AA18<-'Results Dashboard'!$J$10,$AA18+'Results Dashboard'!$J$10,0) -> 0 | AK18: =IF((X18+W18)>0,(X18+W18)*0.5*'User Parameters'!C$48,(X18+W18)*0.5*'User Parameters'!$C$49) -> 0 | AL18: =-'User Parameters'!$C$12*('User Parameters'!$C$13-1) -> 0 | AM18: 0.3819956821
A19: 0.5350039254 | B19: 454.543427 | C19: 243.1825177 | D19: 0.5350039254 | E19: ='User Parameters'!$C$10 -> 40 | F19: =B19*'User Parameters'!$C$14 -> 0 | G19: 171.3609093 | H19: 0.3769956821 | I19: 0.5350039254 | J19: =IF(UP_RSBasis="MLR",UP_RSTarget_MLR,IF(UP_RSBasis="Medical Baseline",UP_RSTarget_Medlcal,0)) -> 0 | K19: 0 | L19: 0 | M19: 0 | N19: 0 | O19: 0 | P19: 0 | Q19: 0 | S19: 0 | T19: =(S19+C19+'User Parameters'!$C$11)/(B19-F19) -> 0.5350039254 | U19: =IF(T19<'User Parameters'!$J$5,'User Parameters'!$J$5,IF(T19>'User Parameters'!$J$6,'User Parameters'!$J$6,T19)) -> 0.5350039254 | V19: 0 | W19: 0 | X19: =(B19-C19-F19-E19-S19-V19)/'Results Dashboard'!$D$42 -> 0.3769956821 | Y19: =IF((X19+W19)>0,(X19+W19)*0.5*((1+'User Parameters'!C$48)^((12+UP_COC_WithholdLag)/12)-1),(X19+W19)*0.5*((1+'User Parameters'!$C$49)^((12+UP_COC_WithholdLag)/12)-1)) -> 0 | Z19: =-'User Parameters'!$C$12*('User Parameters'!$C$13-1) -> 0 | AA19: 0.3769956821 | AB19: 1 | AC19: 0 | AD19: 0 | AE19: =IF($AA19<-'Results Dashboard'!$J$7,$AA19+'Results Dashboard'!$J$7,0) -> 0 | AF19: =IF($AA19<-'Results Dashboard'!$J$8,$AA19+'Results Dashboard'!$J$8,0) -> 0 | AG19: =IF($AA19<-'Results Dashboard'!$J$9,$AA19+'Results Dashboard'!$J$9,0) -> 0 | AH19: =IF($AA19<-'Results Dashboard'!$J$11,$AA19+'Results Dashboard'!$J$11,0) -> 0 | AI19: =IF($AA19<-'Results Dashboard'!$J$10,$AA19+'Results Dashboard'!$J$10,0) -> 0 | AK19: =IF((X19+W19)>0,(X19+W19)*0.5*'User Parameters'!C$48,(X19+W19)*0.5*'User Parameters'!$C$49) -> 0 | AL19: =-'User Parameters'!$C$12*('User Parameters'!$C$13-1) -> 0 | AM19: 0.3769956821
A20: 0.5400039254 | B20: 454.543427 | C20: 245.4552348 | D20: 0.5400039254 | E20: ='User Parameters'!$C$10 -> 40 | F20: =B20*'User Parameters'!$C$14 -> 0 | G20: 169.0881921 | H20: 0.3719956821 | I20: 0.5400039254 | J20: =IF(UP_RSBasis="MLR",UP_RSTarget_MLR,IF(UP_RSBasis="Medical Baseline",UP_RSTarget_Medlcal,0)) -> 0 | K20: 0 | L20: 0 | M20: 0 | N20: 0 | O20: 0 | P20: 0 | Q20: 0 | S20: 0 | T20: =(S20+C20+'User Parameters'!$C$11)/(B20-F20) -> 0.5400039254 | U20: =IF(T20<'User Parameters'!$J$5,'User Parameters'!$J$5,IF(T20>'User Parameters'!$J$6,'User Parameters'!$J$6,T20)) -> 0.5400039254 | V20: 0 | W20: 0 | X20: =(B20-C20-F20-E20-S20-V20)/'Results Dashboard'!$D$42 -> 0.3719956821 | Y20: =IF((X20+W20)>0,(X20+W20)*0.5*((1+'User Parameters'!C$48)^((12+UP_COC_WithholdLag)/12)-1),(X20+W20)*0.5*((1+'User Parameters'!$C$49)^((12+UP_COC_WithholdLag)/12)-1)) -> 0 | Z20: =-'User Parameters'!$C$12*('User Parameters'!$C$13-1) -> 0 | AA20: 0.3719956821 | AB20: 1 | AC20: 0 | AD20: 0 | AE20: =IF($AA20<-'Results Dashboard'!$J$7,$AA20+'Results Dashboard'!$J$7,0) -> 0 | AF20: =IF($AA20<-'Results Dashboard'!$J$8,$AA20+'Results Dashboard'!$J$8,0) -> 0 | AG20: =IF($AA20<-'Results Dashboard'!$J$9,$AA20+'Results Dashboard'!$J$9,0) -> 0 | AH20: =IF($AA20<-'Results Dashboard'!$J$11,$AA20+'Results Dashboard'!$J$11,0) -> 0 | AI20: =IF($AA20<-'Results Dashboard'!$J$10,$AA20+'Results Dashboard'!$J$10,0) -> 0 | AK20: =IF((X20+W20)>0,(X20+W20)*0.5*'User Parameters'!C$48,(X20+W20)*0.5*'User Parameters'!$C$49) -> 0 | AL20: =-'User Parameters'!$C$12*('User Parameters'!$C$13-1) -> 0 | AM20: 0.3719956821
A21: 0.5450039254 | B21: 454.543427 | C21: 247.727952 | D21: 0.5450039254 | E21: ='User Parameters'!$C$10 -> 40 | F21: =B21*'User Parameters'!$C$14 -> 0 | G21: 166.815475 | H21: 0.3669956821 | I21: 0.5450039254 | J21: =IF(UP_RSBasis="MLR",UP_RSTarget_MLR,IF(UP_RSBasis="Medical Baseline",UP_RSTarget_Medlcal,0)) -> 0 | K21: 0 | L21: 0 | M21: 0 | N21: 0 | O21: 0 | P21: 0 | Q21: 0 | S21: 0 | T21: =(S21+C21+'User Parameters'!$C$11)/(B21-F21) -> 0.5450039254 | U21: =IF(T21<'User Parameters'!$J$5,'User Parameters'!$J$5,IF(T21>'User Parameters'!$J$6,'User Parameters'!$J$6,T21)) -> 0.5450039254 | V21: 0 | W21: 0 | X21: =(B21-C21-F21-E21-S21-V21)/'Results Dashboard'!$D$42 -> 0.3669956821 | Y21: =IF((X21+W21)>0,(X21+W21)*0.5*((1+'User Parameters'!C$48)^((12+UP_COC_WithholdLag)/12)-1),(X21+W21)*0.5*((1+'User Parameters'!$C$49)^((12+UP_COC_WithholdLag)/12)-1)) -> 0 | Z21: =-'User Parameters'!$C$12*('User Parameters'!$C$13-1) -> 0 | AA21: 0.3669956821 | AB21: 1 | AC21: 0 | AD21: 0 | AE21: =IF($AA21<-'Results Dashboard'!$J$7,$AA21+'Results Dashboard'!$J$7,0) -> 0 | AF21: =IF($AA21<-'Results Dashboard'!$J$8,$AA21+'Results Dashboard'!$J$8,0) -> 0 | AG21: =IF($AA21<-'Results Dashboard'!$J$9,$AA21+'Results Dashboard'!$J$9,0) -> 0 | AH21: =IF($AA21<-'Results Dashboard'!$J$11,$AA21+'Results Dashboard'!$J$11,0) -> 0 | AI21: =IF($AA21<-'Results Dashboard'!$J$10,$AA21+'Results Dashboard'!$J$10,0) -> 0 | AK21: =IF((X21+W21)>0,(X21+W21)*0.5*'User Parameters'!C$48,(X21+W21)*0.5*'User Parameters'!$C$49) -> 0 | AL21: =-'User Parameters'!$C$12*('User Parameters'!$C$13-1) -> 0 | AM21: 0.3669956821
A22: 0.5500039254 | B22: 454.543427 | C22: 250.0006691 | D22: 0.5500039254 | E22: ='User Parameters'!$C$10 -> 40 | F22: =B22*'User Parameters'!$C$14 -> 0 | G22: 164.5427579 | H22: 0.3619956821 | I22: 0.5500039254 | J22: =IF(UP_RSBasis="MLR",UP_RSTarget_MLR,IF(UP_RSBasis="Medical Baseline",UP_RSTarget_Medlcal,0)) -> 0 | K22: 0 | L22: 0 | M22: 0 | N22: 0 | O22: 0 | P22: 0 | Q22: 0 | S22: 0 | T22: =(S22+C22+'User Parameters'!$C$11)/(B22-F22) -> 0.5500039254 | U22: =IF(T22<'User Parameters'!$J$5,'User Parameters'!$J$5,IF(T22>'User Parameters'!$J$6,'User Parameters'!$J$6,T22)) -> 0.5500039254 | V22: 0 | W22: 0 | X22: =(B22-C22-F22-E22-S22-V22)/'Results Dashboard'!$D$42 -> 0.3619956821 | Y22: =IF((X22+W22)>0,(X22+W22)*0.5*((1+'User Parameters'!C$48)^((12+UP_COC_WithholdLag)/12)-1),(X22+W22)*0.5*((1+'User Parameters'!$C$49)^((12+UP_COC_WithholdLag)/12)-1)) -> 0 | Z22: =-'User Parameters'!$C$12*('User Parameters'!$C$13-1) -> 0 | AA22: 0.3619956821 | AB22: 1 | AC22: 0 | AD22: 0 | AE22: =IF($AA22<-'Results Dashboard'!$J$7,$AA22+'Results Dashboard'!$J$7,0) -> 0 | AF22: =IF($AA22<-'Results Dashboard'!$J$8,$AA22+'Results Dashboard'!$J$8,0) -> 0 | AG22: =IF($AA22<-'Results Dashboard'!$J$9,$AA22+'Results Dashboard'!$J$9,0) -> 0 | AH22: =IF($AA22<-'Results Dashboard'!$J$11,$AA22+'Results Dashboard'!$J$11,0) -> 0 | AI22: =IF($AA22<-'Results Dashboard'!$J$10,$AA22+'Results Dashboard'!$J$10,0) -> 0 | AK22: =IF((X22+W22)>0,(X22+W22)*0.5*'User Parameters'!C$48,(X22+W22)*0.5*'User Parameters'!$C$49) -> 0 | AL22: =-'User Parameters'!$C$12*('User Parameters'!$C$13-1) -> 0 | AM22: 0.3619956821
A23: 0.5550039254 | B23: 454.543427 | C23: 252.2733862 | D23: 0.5550039254 | E23: ='User Parameters'!$C$10 -> 40 | F23: =B23*'User Parameters'!$C$14 -> 0 | G23: 162.2700407 | H23: 0.3569956821 | I23: 0.5550039254 | J23: =IF(UP_RSBasis="MLR",UP_RSTarget_MLR,IF(UP_RSBasis="Medical Baseline",UP_RSTarget_Medlcal,0)) -> 0 | K23: 0 | L23: 0 | M23: 0 | N23: 0 | O23: 0 | P23: 0 | Q23: 0 | S23: 0 | T23: =(S23+C23+'User Parameters'!$C$11)/(B23-F23) -> 0.5550039254 | U23: =IF(T23<'User Parameters'!$J$5,'User Parameters'!$J$5,IF(T23>'User Parameters'!$J$6,'User Parameters'!$J$6,T23)) -> 0.5550039254 | V23: 0 | W23: 0 | X23: =(B23-C23-F23-E23-S23-V23)/'Results Dashboard'!$D$42 -> 0.3569956821 | Y23: =IF((X23+W23)>0,(X23+W23)*0.5*((1+'User Parameters'!C$48)^((12+UP_COC_WithholdLag)/12)-1),(X23+W23)*0.5*((1+'User Parameters'!$C$49)^((12+UP_COC_WithholdLag)/12)-1)) -> 0 | Z23: =-'User Parameters'!$C$12*('User Parameters'!$C$13-1) -> 0 | AA23: 0.3569956821 | AB23: 1 | AC23: 0 | AD23: 0 | AE23: =IF($AA23<-'Results Dashboard'!$J$7,$AA23+'Results Dashboard'!$J$7,0) -> 0 | AF23: =IF($AA23<-'Results Dashboard'!$J$8,$AA23+'Results Dashboard'!$J$8,0) -> 0 | AG23: =IF($AA23<-'Results Dashboard'!$J$9,$AA23+'Results Dashboard'!$J$9,0) -> 0 | AH23: =IF($AA23<-'Results Dashboard'!$J$11,$AA23+'Results Dashboard'!$J$11,0) -> 0 | AI23: =IF($AA23<-'Results Dashboard'!$J$10,$AA23+'Results Dashboard'!$J$10,0) -> 0 | AK23: =IF((X23+W23)>0,(X23+W23)*0.5*'User Parameters'!C$48,(X23+W23)*0.5*'User Parameters'!$C$49) -> 0 | AL23: =-'User Parameters'!$C$12*('User Parameters'!$C$13-1) -> 0 | AM23: 0.3569956821
A24: 0.5600039254 | B24: 454.543427 | C24: 254.5461034 | D24: 0.5600039254 | E24: ='User Parameters'!$C$10 -> 40 | F24: =B24*'User Parameters'!$C$14 -> 0 | G24: 159.9973236 | H24: 0.3519956821 | I24: 0.5600039254 | J24: =IF(UP_RSBasis="MLR",UP_RSTarget_MLR,IF(UP_RSBasis="Medical Baseline",UP_RSTarget_Medlcal,0)) -> 0 | K24: 0 | L24: 0 | M24: 0 | N24: 0 | O24: 0 | P24: 0 | Q24: 0 | S24: 0 | T24: =(S24+C24+'User Parameters'!$C$11)/(B24-F24) -> 0.5600039254 | U24: =IF(T24<'User Parameters'!$J$5,'User Parameters'!$J$5,IF(T24>'User Parameters'!$J$6,'User Parameters'!$J$6,T24)) -> 0.5600039254 | V24: 0 | W24: 0 | X24: =(B24-C24-F24-E24-S24-V24)/'Results Dashboard'!$D$42 -> 0.3519956821 | Y24: =IF((X24+W24)>0,(X24+W24)*0.5*((1+'User Parameters'!C$48)^((12+UP_COC_WithholdLag)/12)-1),(X24+W24)*0.5*((1+'User Parameters'!$C$49)^((12+UP_COC_WithholdLag)/12)-1)) -> 0 | Z24: =-'User Parameters'!$C$12*('User Parameters'!$C$13-1) -> 0 | AA24: 0.3519956821 | AB24: 1 | AC24: 0 | AD24: 0 | AE24: =IF($AA24<-'Results Dashboard'!$J$7,$AA24+'Results Dashboard'!$J$7,0) -> 0 | AF24: =IF($AA24<-'Results Dashboard'!$J$8,$AA24+'Results Dashboard'!$J$8,0) -> 0 | AG24: =IF($AA24<-'Results Dashboard'!$J$9,$AA24+'Results Dashboard'!$J$9,0) -> 0 | AH24: =IF($AA24<-'Results Dashboard'!$J$11,$AA24+'Results Dashboard'!$J$11,0) -> 0 | AI24: =IF($AA24<-'Results Dashboard'!$J$10,$AA24+'Results Dashboard'!$J$10,0) -> 0 | AK24: =IF((X24+W24)>0,(X24+W24)*0.5*'User Parameters'!C$48,(X24+W24)*0.5*'User Parameters'!$C$49) -> 0 | AL24: =-'User Parameters'!$C$12*('User Parameters'!$C$13-1) -> 0 | AM24: 0.3519956821
A25: 0.5650039254 | B25: 454.543427 | C25: 256.8188205 | D25: 0.5650039254 | E25: ='User Parameters'!$C$10 -> 40 | F25: =B25*'User Parameters'!$C$14 -> 0 | G25: 157.7246065 | H25: 0.3469956821 | I25: 0.5650039254 | J25: =IF(UP_RSBasis="MLR",UP_RSTarget_MLR,IF(UP_RSBasis="Medical Baseline",UP_RSTarget_Medlcal,0)) -> 0 | K25: 0 | L25: 0 | M25: 0 | N25: 0 | O25: 0 | P25: 0 | Q25: 0 | S25: 0 | T25: =(S25+C25+'User Parameters'!$C$11)/(B25-F25) -> 0.5650039254 | U25: =IF(T25<'User Parameters'!$J$5,'User Parameters'!$J$5,IF(T25>'User Parameters'!$J$6,'User Parameters'!$J$6,T25)) -> 0.5650039254 | V25: 0 | W25: 0 | X25: =(B25-C25-F25-E25-S25-V25)/'Results Dashboard'!$D$42 -> 0.3469956821 | Y25: =IF((X25+W25)>0,(X25+W25)*0.5*((1+'User Parameters'!C$48)^((12+UP_COC_WithholdLag)/12)-1),(X25+W25)*0.5*((1+'User Parameters'!$C$49)^((12+UP_COC_WithholdLag)/12)-1)) -> 0 | Z25: =-'User Parameters'!$C$12*('User Parameters'!$C$13-1) -> 0 | AA25: 0.3469956821 | AB25: 1 | AC25: 0 | AD25: 0 | AE25: =IF($AA25<-'Results Dashboard'!$J$7,$AA25+'Results Dashboard'!$J$7,0) -> 0 | AF25: =IF($AA25<-'Results Dashboard'!$J$8,$AA25+'Results Dashboard'!$J$8,0) -> 0 | AG25: =IF($AA25<-'Results Dashboard'!$J$9,$AA25+'Results Dashboard'!$J$9,0) -> 0 | AH25: =IF($AA25<-'Results Dashboard'!$J$11,$AA25+'Results Dashboard'!$J$11,0) -> 0 | AI25: =IF($AA25<-'Results Dashboard'!$J$10,$AA25+'Results Dashboard'!$J$10,0) -> 0 | AK25: =IF((X25+W25)>0,(X25+W25)*0.5*'User Parameters'!C$48,(X25+W25)*0.5*'User Parameters'!$C$49) -> 0 | AL25: =-'User Parameters'!$C$12*('User Parameters'!$C$13-1) -> 0 | AM25: 0.3469956821
A26: 0.5700039254 | B26: 454.543427 | C26: 259.0915376 | D26: 0.5700039254 | E26: ='User Parameters'!$C$10 -> 40 | F26: =B26*'User Parameters'!$C$14 -> 0 | G26: 155.4518893 | H26: 0.3419956821 | I26: 0.5700039254 | J26: =IF(UP_RSBasis="MLR",UP_RSTarget_MLR,IF(UP_RSBasis="Medical Baseline",UP_RSTarget_Medlcal,0)) -> 0 | K26: 0 | L26: 0 | M26: 0 | N26: 0 | O26: 0 | P26: 0 | Q26: 0 | S26: 0 | T26: =(S26+C26+'User Parameters'!$C$11)/(B26-F26) -> 0.5700039254 | U26: =IF(T26<'User Parameters'!$J$5,'User Parameters'!$J$5,IF(T26>'User Parameters'!$J$6,'User Parameters'!$J$6,T26)) -> 0.5700039254 | V26: 0 | W26: 0 | X26: =(B26-C26-F26-E26-S26-V26)/'Results Dashboard'!$D$42 -> 0.3419956821 | Y26: =IF((X26+W26)>0,(X26+W26)*0.5*((1+'User Parameters'!C$48)^((12+UP_COC_WithholdLag)/12)-1),(X26+W26)*0.5*((1+'User Parameters'!$C$49)^((12+UP_COC_WithholdLag)/12)-1)) -> 0 | Z26: =-'User Parameters'!$C$12*('User Parameters'!$C$13-1) -> 0 | AA26: 0.3419956821 | AB26: 1 | AC26: 0 | AD26: 0 | AE26: =IF($AA26<-'Results Dashboard'!$J$7,$AA26+'Results Dashboard'!$J$7,0) -> 0 | AF26: =IF($AA26<-'Results Dashboard'!$J$8,$AA26+'Results Dashboard'!$J$8,0) -> 0 | AG26: =IF($AA26<-'Results Dashboard'!$J$9,$AA26+'Results Dashboard'!$J$9,0) -> 0 | AH26: =IF($AA26<-'Results Dashboard'!$J$11,$AA26+'Results Dashboard'!$J$11,0) -> 0 | AI26: =IF($AA26<-'Results Dashboard'!$J$10,$AA26+'Results Dashboard'!$J$10,0) -> 0 | AK26: =IF((X26+W26)>0,(X26+W26)*0.5*'User Parameters'!C$48,(X26+W26)*0.5*'User Parameters'!$C$49) -> 0 | AL26: =-'User Parameters'!$C$12*('User Parameters'!$C$13-1) -> 0 | AM26: 0.3419956821
A27: 0.5750039254 | B27: 454.543427 | C27: 261.3642548 | D27: 0.5750039254 | E27: ='User Parameters'!$C$10 -> 40 | F27: =B27*'User Parameters'!$C$14 -> 0 | G27: 153.1791722 | H27: 0.3369956821 | I27: 0.5750039254 | J27: =IF(UP_RSBasis="MLR",UP_RSTarget_MLR,IF(UP_RSBasis="Medical Baseline",UP_RSTarget_Medlcal,0)) -> 0 | K27: 0 | L27: 0 | M27: 0 | N27: 0 | O27: 0 | P27: 0 | Q27: 0 | S27: 0 | T27: =(S27+C27+'User Parameters'!$C$11)/(B27-F27) -> 0.5750039254 | U27: =IF(T27<'User Parameters'!$J$5,'User Parameters'!$J$5,IF(T27>'User Parameters'!$J$6,'User Parameters'!$J$6,T27)) -> 0.5750039254 | V27: 0 | W27: 0 | X27: =(B27-C27-F27-E27-S27-V27)/'Results Dashboard'!$D$42 -> 0.3369956821 | Y27: =IF((X27+W27)>0,(X27+W27)*0.5*((1+'User Parameters'!C$48)^((12+UP_COC_WithholdLag)/12)-1),(X27+W27)*0.5*((1+'User Parameters'!$C$49)^((12+UP_COC_WithholdLag)/12)-1)) -> 0 | Z27: =-'User Parameters'!$C$12*('User Parameters'!$C$13-1) -> 0 | AA27: 0.3369956821 | AB27: 1 | AC27: 0 | AD27: 0 | AE27: =IF($AA27<-'Results Dashboard'!$J$7,$AA27+'Results Dashboard'!$J$7,0) -> 0 | AF27: =IF($AA27<-'Results Dashboard'!$J$8,$AA27+'Results Dashboard'!$J$8,0) -> 0 | AG27: =IF($AA27<-'Results Dashboard'!$J$9,$AA27+'Results Dashboard'!$J$9,0) -> 0 | AH27: =IF($AA27<-'Results Dashboard'!$J$11,$AA27+'Results Dashboard'!$J$11,0) -> 0 | AI27: =IF($AA27<-'Results Dashboard'!$J$10,$AA27+'Results Dashboard'!$J$10,0) -> 0 | AK27: =IF((X27+W27)>0,(X27+W27)*0.5*'User Parameters'!C$48,(X27+W27)*0.5*'User Parameters'!$C$49) -> 0 | AL27: =-'User Parameters'!$C$12*('User Parameters'!$C$13-1) -> 0 | AM27: 0.3369956821
A28: 0.5800039254 | B28: 454.543427 | C28: 263.6369719 | D28: 0.5800039254 | E28: ='User Parameters'!$C$10 -> 40 | F28: =B28*'User Parameters'!$C$14 -> 0 | G28: 150.9064551 | H28: 0.3319956821 | I28: 0.5800039254 | J28: =IF(UP_RSBasis="MLR",UP_RSTarget_MLR,IF(UP_RSBasis="Medical Baseline",UP_RSTarget_Medlcal,0)) -> 0 | K28: 0 | L28: 0 | M28: 0 | N28: 0 | O28: 0 | P28: 0 | Q28: 0 | S28: 0 | T28: =(S28+C28+'User Parameters'!$C$11)/(B28-F28) -> 0.5800039254 | U28: =IF(T28<'User Parameters'!$J$5,'User Parameters'!$J$5,IF(T28>'User Parameters'!$J$6,'User Parameters'!$J$6,T28)) -> 0.5800039254 | V28: 0 | W28: 0 | X28: =(B28-C28-F28-E28-S28-V28)/'Results Dashboard'!$D$42 -> 0.3319956821 | Y28: =IF((X28+W28)>0,(X28+W28)*0.5*((1+'User Parameters'!C$48)^((12+UP_COC_WithholdLag)/12)-1),(X28+W28)*0.5*((1+'User Parameters'!$C$49)^((12+UP_COC_WithholdLag)/12)-1)) -> 0 | Z28: =-'User Parameters'!$C$12*('User Parameters'!$C$13-1) -> 0 | AA28: 0.3319956821 | AB28: 1 | AC28: 0 | AD28: 0 | AE28: =IF($AA28<-'Results Dashboard'!$J$7,$AA28+'Results Dashboard'!$J$7,0) -> 0 | AF28: =IF($AA28<-'Results Dashboard'!$J$8,$AA28+'Results Dashboard'!$J$8,0) -> 0 | AG28: =IF($AA28<-'Results Dashboard'!$J$9,$AA28+'Results Dashboard'!$J$9,0) -> 0 | AH28: =IF($AA28<-'Results Dashboard'!$J$11,$AA28+'Results Dashboard'!$J$11,0) -> 0 | AI28: =IF($AA28<-'Results Dashboard'!$J$10,$AA28+'Results Dashboard'!$J$10,0) -> 0 | AK28: =IF((X28+W28)>0,(X28+W28)*0.5*'User Parameters'!C$48,(X28+W28)*0.5*'User Parameters'!$C$49) -> 0 | AL28: =-'User Parameters'!$C$12*('User Parameters'!$C$13-1) -> 0 | AM28: 0.3319956821
A29: 0.5850039254 | B29: 454.543427 | C29: 265.909689 | D29: 0.5850039254 | E29: ='User Parameters'!$C$10 -> 40 | F29: =B29*'User Parameters'!$C$14 -> 0 | G29: 148.6337379 | H29: 0.3269956821 | I29: 0.5850039254 | J29: =IF(UP_RSBasis="MLR",UP_RSTarget_MLR,IF(UP_RSBasis="Medical Baseline",UP_RSTarget_Medlcal,0)) -> 0 | K29: 0 | L29: 0 | M29: 0 | N29: 0 | O29: 0 | P29: 0 | Q29: 0 | S29: 0 | T29: =(S29+C29+'User Parameters'!$C$11)/(B29-F29) -> 0.5850039254 | U29: =IF(T29<'User Parameters'!$J$5,'User Parameters'!$J$5,IF(T29>'User Parameters'!$J$6,'User Parameters'!$J$6,T29)) -> 0.5850039254 | V29: 0 | W29: 0 | X29: =(B29-C29-F29-E29-S29-V29)/'Results Dashboard'!$D$42 -> 0.3269956821 | Y29: =IF((X29+W29)>0,(X29+W29)*0.5*((1+'User Parameters'!C$48)^((12+UP_COC_WithholdLag)/12)-1),(X29+W29)*0.5*((1+'User Parameters'!$C$49)^((12+UP_COC_WithholdLag)/12)-1)) -> 0 | Z29: =-'User Parameters'!$C$12*('User Parameters'!$C$13-1) -> 0 | AA29: 0.3269956821 | AB29: 1 | AC29: 0 | AD29: 0 | AE29: =IF($AA29<-'Results Dashboard'!$J$7,$AA29+'Results Dashboard'!$J$7,0) -> 0 | AF29: =IF($AA29<-'Results Dashboard'!$J$8,$AA29+'Results Dashboard'!$J$8,0) -> 0 | AG29: =IF($AA29<-'Results Dashboard'!$J$9,$AA29+'Results Dashboard'!$J$9,0) -> 0 | AH29: =IF($AA29<-'Results Dashboard'!$J$11,$AA29+'Results Dashboard'!$J$11,0) -> 0 | AI29: =IF($AA29<-'Results Dashboard'!$J$10,$AA29+'Results Dashboard'!$J$10,0) -> 0 | AK29: =IF((X29+W29)>0,(X29+W29)*0.5*'User Parameters'!C$48,(X29+W29)*0.5*'User Parameters'!$C$49) -> 0 | AL29: =-'User Parameters'!$C$12*('User Parameters'!$C$13-1) -> 0 | AM29: 0.3269956821
A30: 0.5900039254 | B30: 454.543427 | C30: 268.1824062 | D30: 0.5900039254 | E30: ='User Parameters'!$C$10 -> 40 | F30: =B30*'User Parameters'!$C$14 -> 0 | G30: 146.3610208 | H30: 0.3219956821 | I30: 0.5900039254 | J30: =IF(UP_RSBasis="MLR",UP_RSTarget_MLR,IF(UP_RSBasis="Medical Baseline",UP_RSTarget_Medlcal,0)) -> 0 | K30: 0 | L30: 0 | M30: 0 | N30: 0 | O30: 0 | P30: 0 | Q30: 0 | S30: 0 | T30: =(S30+C30+'User Parameters'!$C$11)/(B30-F30) -> 0.5900039254 | U30: =IF(T30<'User Parameters'!$J$5,'User Parameters'!$J$5,IF(T30>'User Parameters'!$J$6,'User Parameters'!$J$6,T30)) -> 0.5900039254 | V30: 0 | W30: 0 | X30: =(B30-C30-F30-E30-S30-V30)/'Results Dashboard'!$D$42 -> 0.3219956821 | Y30: =IF((X30+W30)>0,(X30+W30)*0.5*((1+'User Parameters'!C$48)^((12+UP_COC_WithholdLag)/12)-1),(X30+W30)*0.5*((1+'User Parameters'!$C$49)^((12+UP_COC_WithholdLag)/12)-1)) -> 0 | Z30: =-'User Parameters'!$C$12*('User Parameters'!$C$13-1) -> 0 | AA30: 0.3219956821 | AB30: 1 | AC30: 0 | AD30: 0 | AE30: =IF($AA30<-'Results Dashboard'!$J$7,$AA30+'Results Dashboard'!$J$7,0) -> 0 | AF30: =IF($AA30<-'Results Dashboard'!$J$8,$AA30+'Results Dashboard'!$J$8,0) -> 0 | AG30: =IF($AA30<-'Results Dashboard'!$J$9,$AA30+'Results Dashboard'!$J$9,0) -> 0 | AH30: =IF($AA30<-'Results Dashboard'!$J$11,$AA30+'Results Dashboard'!$J$11,0) -> 0 | AI30: =IF($AA30<-'Results Dashboard'!$J$10,$AA30+'Results Dashboard'!$J$10,0) -> 0 | AK30: =IF((X30+W30)>0,(X30+W30)*0.5*'User Parameters'!C$48,(X30+W30)*0.5*'User Parameters'!$C$49) -> 0 | AL30: =-'User Parameters'!$C$12*('User Parameters'!$C$13-1) -> 0 | AM30: 0.3219956821
A31: 0.5950039254 | B31: 454.543427 | C31: 270.4551233 | D31: 0.5950039254 | E31: ='User Parameters'!$C$10 -> 40 | F31: =B31*'User Parameters'!$C$14 -> 0 | G31: 144.0883037 | H31: 0.3169956821 | I31: 0.5950039254 | J31: =IF(UP_RSBasis="MLR",UP_RSTarget_MLR,IF(UP_RSBasis="Medical Baseline",UP_RSTarget_Medlcal,0)) -> 0 | K31: 0 | L31: 0 | M31: 0 | N31: 0 | O31: 0 | P31: 0 | Q31: 0 | S31: 0 | T31: =(S31+C31+'User Parameters'!$C$11)/(B31-F31) -> 0.5950039254 | U31: =IF(T31<'User Parameters'!$J$5,'User Parameters'!$J$5,IF(T31>'User Parameters'!$J$6,'User Parameters'!$J$6,T31)) -> 0.5950039254 | V31: 0 | W31: 0 | X31: =(B31-C31-F31-E31-S31-V31)/'Results Dashboard'!$D$42 -> 0.3169956821 | Y31: =IF((X31+W31)>0,(X31+W31)*0.5*((1+'User Parameters'!C$48)^((12+UP_COC_WithholdLag)/12)-1),(X31+W31)*0.5*((1+'User Parameters'!$C$49)^((12+UP_COC_WithholdLag)/12)-1)) -> 0 | Z31: =-'User Parameters'!$C$12*('User Parameters'!$C$13-1) -> 0 | AA31: 0.3169956821 | AB31: 1 | AC31: 0 | AD31: 0 | AE31: =IF($AA31<-'Results Dashboard'!$J$7,$AA31+'Results Dashboard'!$J$7,0) -> 0 | AF31: =IF($AA31<-'Results Dashboard'!$J$8,$AA31+'Results Dashboard'!$J$8,0) -> 0 | AG31: =IF($AA31<-'Results Dashboard'!$J$9,$AA31+'Results Dashboard'!$J$9,0) -> 0 | AH31: =IF($AA31<-'Results Dashboard'!$J$11,$AA31+'Results Dashboard'!$J$11,0) -> 0 | AI31: =IF($AA31<-'Results Dashboard'!$J$10,$AA31+'Results Dashboard'!$J$10,0) -> 0 | AK31: =IF((X31+W31)>0,(X31+W31)*0.5*'User Parameters'!C$48,(X31+W31)*0.5*'User Parameters'!$C$49) -> 0 | AL31: =-'User Parameters'!$C$12*('User Parameters'!$C$13-1) -> 0 | AM31: 0.3169956821
A32: 0.6000039254 | B32: 454.543427 | C32: 272.7278404 | D32: 0.6000039254 | E32: ='User Parameters'!$C$10 -> 40 | F32: =B32*'User Parameters'!$C$14 -> 0 | G32: 141.8155865 | H32: 0.3119956821 | I32: 0.6000039254 | J32: =IF(UP_RSBasis="MLR",UP_RSTarget_MLR,IF(UP_RSBasis="Medical Baseline",UP_RSTarget_Medlcal,0)) -> 0 | K32: 0 | L32: 0 | M32: 0 | N32: 0 | O32: 0 | P32: 0 | Q32: 0 | S32: 0 | T32: =(S32+C32+'User Parameters'!$C$11)/(B32-F32) -> 0.6000039254 | U32: =IF(T32<'User Parameters'!$J$5,'User Parameters'!$J$5,IF(T32>'User Parameters'!$J$6,'User Parameters'!$J$6,T32)) -> 0.6000039254 | V32: 0 | W32: 0 | X32: =(B32-C32-F32-E32-S32-V32)/'Results Dashboard'!$D$42 -> 0.3119956821 | Y32: =IF((X32+W32)>0,(X32+W32)*0.5*((1+'User Parameters'!C$48)^((12+UP_COC_WithholdLag)/12)-1),(X32+W32)*0.5*((1+'User Parameters'!$C$49)^((12+UP_COC_WithholdLag)/12)-1)) -> 0 | Z32: =-'User Parameters'!$C$12*('User Parameters'!$C$13-1) -> 0 | AA32: 0.3119956821 | AB32: 1 | AC32: 0 | AD32: 0 | AE32: =IF($AA32<-'Results Dashboard'!$J$7,$AA32+'Results Dashboard'!$J$7,0) -> 0 | AF32: =IF($AA32<-'Results Dashboard'!$J$8,$AA32+'Results Dashboard'!$J$8,0) -> 0 | AG32: =IF($AA32<-'Results Dashboard'!$J$9,$AA32+'Results Dashboard'!$J$9,0) -> 0 | AH32: =IF($AA32<-'Results Dashboard'!$J$11,$AA32+'Results Dashboard'!$J$11,0) -> 0 | AI32: =IF($AA32<-'Results Dashboard'!$J$10,$AA32+'Results Dashboard'!$J$10,0) -> 0 | AK32: =IF((X32+W32)>0,(X32+W32)*0.5*'User Parameters'!C$48,(X32+W32)*0.5*'User Parameters'!$C$49) -> 0 | AL32: =-'User Parameters'!$C$12*('User Parameters'!$C$13-1) -> 0 | AM32: 0.3119956821
A33: 0.6050039254 | B33: 454.543427 | C33: 275.0005576 | D33: 0.6050039254 | E33: ='User Parameters'!$C$10 -> 40 | F33: =B33*'User Parameters'!$C$14 -> 0 | G33: 139.5428694 | H33: 0.3069956821 | I33: 0.6050039254 | J33: =IF(UP_RSBasis="MLR",UP_RSTarget_MLR,IF(UP_RSBasis="Medical Baseline",UP_RSTarget_Medlcal,0)) -> 0 | K33: 0 | L33: 0 | M33: 0 | N33: 0 | O33: 0 | P33: 0 | Q33: 0 | S33: 0 | T33: =(S33+C33+'User Parameters'!$C$11)/(B33-F33) -> 0.6050039254 | U33: =IF(T33<'User Parameters'!$J$5,'User Parameters'!$J$5,IF(T33>'User Parameters'!$J$6,'User Parameters'!$J$6,T33)) -> 0.6050039254 | V33: 0 | W33: 0 | X33: =(B33-C33-F33-E33-S33-V33)/'Results Dashboard'!$D$42 -> 0.3069956821 | Y33: =IF((X33+W33)>0,(X33+W33)*0.5*((1+'User Parameters'!C$48)^((12+UP_COC_WithholdLag)/12)-1),(X33+W33)*0.5*((1+'User Parameters'!$C$49)^((12+UP_COC_WithholdLag)/12)-1)) -> 0 | Z33: =-'User Parameters'!$C$12*('User Parameters'!$C$13-1) -> 0 | AA33: 0.3069956821 | AB33: 1 | AC33: 0 | AD33: 0 | AE33: =IF($AA33<-'Results Dashboard'!$J$7,$AA33+'Results Dashboard'!$J$7,0) -> 0 | AF33: =IF($AA33<-'Results Dashboard'!$J$8,$AA33+'Results Dashboard'!$J$8,0) -> 0 | AG33: =IF($AA33<-'Results Dashboard'!$J$9,$AA33+'Results Dashboard'!$J$9,0) -> 0 | AH33: =IF($AA33<-'Results Dashboard'!$J$11,$AA33+'Results Dashboard'!$J$11,0) -> 0 | AI33: =IF($AA33<-'Results Dashboard'!$J$10,$AA33+'Results Dashboard'!$J$10,0) -> 0 | AK33: =IF((X33+W33)>0,(X33+W33)*0.5*'User Parameters'!C$48,(X33+W33)*0.5*'User Parameters'!$C$49) -> 0 | AL33: =-'User Parameters'!$C$12*('User Parameters'!$C$13-1) -> 0 | AM33: 0.3069956821
A34: 0.6100039254 | B34: 454.543427 | C34: 277.2732747 | D34: 0.6100039254 | E34: ='User Parameters'!$C$10 -> 40 | F34: =B34*'User Parameters'!$C$14 -> 0 | G34: 137.2701523 | H34: 0.3019956821 | I34: 0.6100039254 | J34: =IF(UP_RSBasis="MLR",UP_RSTarget_MLR,IF(UP_RSBasis="Medical Baseline",UP_RSTarget_Medlcal,0)) -> 0 | K34: 0 | L34: 0 | M34: 0 | N34: 0 | O34: 0 | P34: 0 | Q34: 0 | S34: 0 | T34: =(S34+C34+'User Parameters'!$C$11)/(B34-F34) -> 0.6100039254 | U34: =IF(T34<'User Parameters'!$J$5,'User Parameters'!$J$5,IF(T34>'User Parameters'!$J$6,'User Parameters'!$J$6,T34)) -> 0.6100039254 | V34: 0 | W34: 0 | X34: =(B34-C34-F34-E34-S34-V34)/'Results Dashboard'!$D$42 -> 0.3019956821 | Y34: =IF((X34+W34)>0,(X34+W34)*0.5*((1+'User Parameters'!C$48)^((12+UP_COC_WithholdLag)/12)-1),(X34+W34)*0.5*((1+'User Parameters'!$C$49)^((12+UP_COC_WithholdLag)/12)-1)) -> 0 | Z34: =-'User Parameters'!$C$12*('User Parameters'!$C$13-1) -> 0 | AA34: 0.3019956821 | AB34: 1 | AC34: 0 | AD34: 0 | AE34: =IF($AA34<-'Results Dashboard'!$J$7,$AA34+'Results Dashboard'!$J$7,0) -> 0 | AF34: =IF($AA34<-'Results Dashboard'!$J$8,$AA34+'Results Dashboard'!$J$8,0) -> 0 | AG34: =IF($AA34<-'Results Dashboard'!$J$9,$AA34+'Results Dashboard'!$J$9,0) -> 0 | AH34: =IF($AA34<-'Results Dashboard'!$J$11,$AA34+'Results Dashboard'!$J$11,0) -> 0 | AI34: =IF($AA34<-'Results Dashboard'!$J$10,$AA34+'Results Dashboard'!$J$10,0) -> 0 | AK34: =IF((X34+W34)>0,(X34+W34)*0.5*'User Parameters'!C$48,(X34+W34)*0.5*'User Parameters'!$C$49) -> 0 | AL34: =-'User Parameters'!$C$12*('User Parameters'!$C$13-1) -> 0 | AM34: 0.3019956821
A35: 0.6150039254 | B35: 454.543427 | C35: 279.5459919 | D35: 0.6150039254 | E35: ='User Parameters'!$C$10 -> 40 | F35: =B35*'User Parameters'!$C$14 -> 0 | G35: 134.9974351 | H35: 0.2969956821 | I35: 0.6150039254 | J35: =IF(UP_RSBasis="MLR",UP_RSTarget_MLR,IF(UP_RSBasis="Medical Baseline",UP_RSTarget_Medlcal,0)) -> 0 | K35: 0 | L35: 0 | M35: 0 | N35: 0 | O35: 0 | P35: 0 | Q35: 0 | S35: 0 | T35: =(S35+C35+'User Parameters'!$C$11)/(B35-F35) -> 0.6150039254 | U35: =IF(T35<'User Parameters'!$J$5,'User Parameters'!$J$5,IF(T35>'User Parameters'!$J$6,'User Parameters'!$J$6,T35)) -> 0.6150039254 | V35: 0 | W35: 0 | X35: =(B35-C35-F35-E35-S35-V35)/'Results Dashboard'!$D$42 -> 0.2969956821 | Y35: =IF((X35+W35)>0,(X35+W35)*0.5*((1+'User Parameters'!C$48)^((12+UP_COC_WithholdLag)/12)-1),(X35+W35)*0.5*((1+'User Parameters'!$C$49)^((12+UP_COC_WithholdLag)/12)-1)) -> 0 | Z35: =-'User Parameters'!$C$12*('User Parameters'!$C$13-1) -> 0 | AA35: 0.2969956821 | AB35: 1 | AC35: 9.992007222e-16 | AD35: 9.992007222e-16 | AE35: =IF($AA35<-'Results Dashboard'!$J$7,$AA35+'Results Dashboard'!$J$7,0) -> 0 | AF35: =IF($AA35<-'Results Dashboard'!$J$8,$AA35+'Results Dashboard'!$J$8,0) -> 0 | AG35: =IF($AA35<-'Results Dashboard'!$J$9,$AA35+'Results Dashboard'!$J$9,0) -> 0 | AH35: =IF($AA35<-'Results Dashboard'!$J$11,$AA35+'Results Dashboard'!$J$11,0) -> 0 | AI35: =IF($AA35<-'Results Dashboard'!$J$10,$AA35+'Results Dashboard'!$J$10,0) -> 0 | AK35: =IF((X35+W35)>0,(X35+W35)*0.5*'User Parameters'!C$48,(X35+W35)*0.5*'User Parameters'!$C$49) -> 0 | AL35: =-'User Parameters'!$C$12*('User Parameters'!$C$13-1) -> 0 | AM35: 0.2969956821
A36: 0.6200039254 | B36: 454.543427 | C36: 281.818709 | D36: 0.6200039254 | E36: ='User Parameters'!$C$10 -> 40 | F36: =B36*'User Parameters'!$C$14 -> 0 | G36: 132.724718 | H36: 0.2919956821 | I36: 0.6200039254 | J36: =IF(UP_RSBasis="MLR",UP_RSTarget_MLR,IF(UP_RSBasis="Medical Baseline",UP_RSTarget_Medlcal,0)) -> 0 | K36: 0 | L36: 0 | M36: 0 | N36: 0 | O36: 0 | P36: 0 | Q36: 0 | S36: 0 | T36: =(S36+C36+'User Parameters'!$C$11)/(B36-F36) -> 0.6200039254 | U36: =IF(T36<'User Parameters'!$J$5,'User Parameters'!$J$5,IF(T36>'User Parameters'!$J$6,'User Parameters'!$J$6,T36)) -> 0.6200039254 | V36: 0 | W36: 0 | X36: =(B36-C36-F36-E36-S36-V36)/'Results Dashboard'!$D$42 -> 0.2919956821 | Y36: =IF((X36+W36)>0,(X36+W36)*0.5*((1+'User Parameters'!C$48)^((12+UP_COC_WithholdLag)/12)-1),(X36+W36)*0.5*((1+'User Parameters'!$C$49)^((12+UP_COC_WithholdLag)/12)-1)) -> 0 | Z36: =-'User Parameters'!$C$12*('User Parameters'!$C$13-1) -> 0 | AA36: 0.2919956821 | AB36: 1 | AC36: 3.441691376e-15 | AD36: 3.441691376e-15 | AE36: =IF($AA36<-'Results Dashboard'!$J$7,$AA36+'Results Dashboard'!$J$7,0) -> 0 | AF36: =IF($AA36<-'Results Dashboard'!$J$8,$AA36+'Results Dashboard'!$J$8,0) -> 0 | AG36: =IF($AA36<-'Results Dashboard'!$J$9,$AA36+'Results Dashboard'!$J$9,0) -> 0 | AH36: =IF($AA36<-'Results Dashboard'!$J$11,$AA36+'Results Dashboard'!$J$11,0) -> 0 | AI36: =IF($AA36<-'Results Dashboard'!$J$10,$AA36+'Results Dashboard'!$J$10,0) -> 0 | AK36: =IF((X36+W36)>0,(X36+W36)*0.5*'User Parameters'!C$48,(X36+W36)*0.5*'User Parameters'!$C$49) -> 0 | AL36: =-'User Parameters'!$C$12*('User Parameters'!$C$13-1) -> 0 | AM36: 0.2919956821
A37: 0.6250039254 | B37: 454.543427 | C37: 284.0914261 | D37: 0.6250039254 | E37: ='User Parameters'!$C$10 -> 40 | F37: =B37*'User Parameters'!$C$14 -> 0 | G37: 130.4520009 | H37: 0.2869956821 | I37: 0.6250039254 | J37: =IF(UP_RSBasis="MLR",UP_RSTarget_MLR,IF(UP_RSBasis="Medical Baseline",UP_RSTarget_Medlcal,0)) -> 0 | K37: 0 | L37: 0 | M37: 0 | N37: 0 | O37: 0 | P37: 0 | Q37: 0 | S37: 0 | T37: =(S37+C37+'User Parameters'!$C$11)/(B37-F37) -> 0.6250039254 | U37: =IF(T37<'User Parameters'!$J$5,'User Parameters'!$J$5,IF(T37>'User Parameters'!$J$6,'User Parameters'!$J$6,T37)) -> 0.6250039254 | V37: 0 | W37: 0 | X37: =(B37-C37-F37-E37-S37-V37)/'Results Dashboard'!$D$42 -> 0.2869956821 | Y37: =IF((X37+W37)>0,(X37+W37)*0.5*((1+'User Parameters'!C$48)^((12+UP_COC_WithholdLag)/12)-1),(X37+W37)*0.5*((1+'User Parameters'!$C$49)^((12+UP_COC_WithholdLag)/12)-1)) -> 0 | Z37: =-'User Parameters'!$C$12*('User Parameters'!$C$13-1) -> 0 | AA37: 0.2869956821 | AB37: 1 | AC37: 1.121325255e-14 | AD37: 1.121325255e-14 | AE37: =IF($AA37<-'Results Dashboard'!$J$7,$AA37+'Results Dashboard'!$J$7,0) -> 0 | AF37: =IF($AA37<-'Results Dashboard'!$J$8,$AA37+'Results Dashboard'!$J$8,0) -> 0 | AG37: =IF($AA37<-'Results Dashboard'!$J$9,$AA37+'Results Dashboard'!$J$9,0) -> 0 | AH37: =IF($AA37<-'Results Dashboard'!$J$11,$AA37+'Results Dashboard'!$J$11,0) -> 0 | AI37: =IF($AA37<-'Results Dashboard'!$J$10,$AA37+'Results Dashboard'!$J$10,0) -> 0 | AK37: =IF((X37+W37)>0,(X37+W37)*0.5*'User Parameters'!C$48,(X37+W37)*0.5*'User Parameters'!$C$49) -> 0 | AL37: =-'User Parameters'!$C$12*('User Parameters'!$C$13-1) -> 0 | AM37: 0.2869956821
A38: 0.6300039254 | B38: 454.543427 | C38: 286.3641433 | D38: 0.6300039254 | E38: ='User Parameters'!$C$10 -> 40 | F38: =B38*'User Parameters'!$C$14 -> 0 | G38: 128.1792837 | H38: 0.2819956821 | I38: 0.6300039254 | J38: =IF(UP_RSBasis="MLR",UP_RSTarget_MLR,IF(UP_RSBasis="Medical Baseline",UP_RSTarget_Medlcal,0)) -> 0 | K38: 0 | L38: 0 | M38: 0 | N38: 0 | O38: 0 | P38: 0 | Q38: 0 | S38: 0 | T38: =(S38+C38+'User Parameters'!$C$11)/(B38-F38) -> 0.6300039254 | U38: =IF(T38<'User Parameters'!$J$5,'User Parameters'!$J$5,IF(T38>'User Parameters'!$J$6,'User Parameters'!$J$6,T38)) -> 0.6300039254 | V38: 0 | W38: 0 | X38: =(B38-C38-F38-E38-S38-V38)/'Results Dashboard'!$D$42 -> 0.2819956821 | Y38: =IF((X38+W38)>0,(X38+W38)*0.5*((1+'User Parameters'!C$48)^((12+UP_COC_WithholdLag)/12)-1),(X38+W38)*0.5*((1+'User Parameters'!$C$49)^((12+UP_COC_WithholdLag)/12)-1)) -> 0 | Z38: =-'User Parameters'!$C$12*('User Parameters'!$C$13-1) -> 0 | AA38: 0.2819956821 | AB38: 1 | AC38: 3.519406988e-14 | AD38: 3.519406988e-14 | AE38: =IF($AA38<-'Results Dashboard'!$J$7,$AA38+'Results Dashboard'!$J$7,0) -> 0 | AF38: =IF($AA38<-'Results Dashboard'!$J$8,$AA38+'Results Dashboard'!$J$8,0) -> 0 | AG38: =IF($AA38<-'Results Dashboard'!$J$9,$AA38+'Results Dashboard'!$J$9,0) -> 0 | AH38: =IF($AA38<-'Results Dashboard'!$J$11,$AA38+'Results Dashboard'!$J$11,0) -> 0 | AI38: =IF($AA38<-'Results Dashboard'!$J$10,$AA38+'Results Dashboard'!$J$10,0) -> 0 | AK38: =IF((X38+W38)>0,(X38+W38)*0.5*'User Parameters'!C$48,(X38+W38)*0.5*'User Parameters'!$C$49) -> 0 | AL38: =-'User Parameters'!$C$12*('User Parameters'!$C$13-1) -> 0 | AM38: 0.2819956821
A39: 0.6350039254 | B39: 454.543427 | C39: 288.6368604 | D39: 0.6350039254 | E39: ='User Parameters'!$C$10 -> 40 | F39: =B39*'User Parameters'!$C$14 -> 0 | G39: 125.9065666 | H39: 0.2769956821 | I39: 0.6350039254 | J39: =IF(UP_RSBasis="MLR",UP_RSTarget_MLR,IF(UP_RSBasis="Medical Baseline",UP_RSTarget_Medlcal,0)) -> 0 | K39: 0 | L39: 0 | M39: 0 | N39: 0 | O39: 0 | P39: 0 | Q39: 0 | S39: 0 | T39: =(S39+C39+'User Parameters'!$C$11)/(B39-F39) -> 0.6350039254 | U39: =IF(T39<'User Parameters'!$J$5,'User Parameters'!$J$5,IF(T39>'User Parameters'!$J$6,'User Parameters'!$J$6,T39)) -> 0.6350039254 | V39: 0 | W39: 0 | X39: =(B39-C39-F39-E39-S39-V39)/'Results Dashboard'!$D$42 -> 0.2769956821 | Y39: =IF((X39+W39)>0,(X39+W39)*0.5*((1+'User Parameters'!C$48)^((12+UP_COC_WithholdLag)/12)-1),(X39+W39)*0.5*((1+'User Parameters'!$C$49)^((12+UP_COC_WithholdLag)/12)-1)) -> 0 | Z39: =-'User Parameters'!$C$12*('User Parameters'!$C$13-1) -> 0 | AA39: 0.2769956821 | AB39: 1 | AC39: 1.085798118e-13 | AD39: 1.085798118e-13 | AE39: =IF($AA39<-'Results Dashboard'!$J$7,$AA39+'Results Dashboard'!$J$7,0) -> 0 | AF39: =IF($AA39<-'Results Dashboard'!$J$8,$AA39+'Results Dashboard'!$J$8,0) -> 0 | AG39: =IF($AA39<-'Results Dashboard'!$J$9,$AA39+'Results Dashboard'!$J$9,0) -> 0 | AH39: =IF($AA39<-'Results Dashboard'!$J$11,$AA39+'Results Dashboard'!$J$11,0) -> 0 | AI39: =IF($AA39<-'Results Dashboard'!$J$10,$AA39+'Results Dashboard'!$J$10,0) -> 0 | AK39: =IF((X39+W39)>0,(X39+W39)*0.5*'User Parameters'!C$48,(X39+W39)*0.5*'User Parameters'!$C$49) -> 0 | AL39: =-'User Parameters'!$C$12*('User Parameters'!$C$13-1) -> 0 | AM39: 0.2769956821
A40: 0.6400039254 | B40: 454.543427 | C40: 290.9095775 | D40: 0.6400039254 | E40: ='User Parameters'!$C$10 -> 40 | F40: =B40*'User Parameters'!$C$14 -> 0 | G40: 123.6338494 | H40: 0.2719956821 | I40: 0.6400039254 | J40: =IF(UP_RSBasis="MLR",UP_RSTarget_MLR,IF(UP_RSBasis="Medical Baseline",UP_RSTarget_Medlcal,0)) -> 0 | K40: =IF(UP_RSBasis="MLR",J40-I40,IF(UP_RSBasis="Medical Baseline",J40-$C40,0)) -> 0 | L40: 0 | M40: 0 | N40: 0 | O40: 0 | P40: 0 | Q40: 0 | R40: =IF(UP_RSBasis="MLR",SUMPRODUCT(L$4:Q$4,L40:Q40),"") ->  | S40: =IF(UP_RSBasis="MLR",R40*(B40-F40),SUMPRODUCT($L$4:$Q$4,$L40:$Q40)) -> 0 | T40: =(S40+C40+'User Parameters'!$C$11)/(B40-F40) -> 0.6400039254 | U40: =IF(T40<'User Parameters'!$J$5,'User Parameters'!$J$5,IF(T40>'User Parameters'!$J$6,'User Parameters'!$J$6,T40)) -> 0.6400039254 | V40: =(U40-T40)*(B40-F40) -> 0 | W40: =V40/B40 -> 0 | X40: =(B40-C40-F40-E40-S40-V40)/'Results Dashboard'!$D$42 -> 0.2719956821 | Y40: =IF((X40+W40)>0,(X40+W40)*0.5*((1+'User Parameters'!C$48)^((12+UP_COC_WithholdLag)/12)-1),(X40+W40)*0.5*((1+'User Parameters'!$C$49)^((12+UP_COC_WithholdLag)/12)-1)) -> 0 | Z40: =-'User Parameters'!$C$12*('User Parameters'!$C$13-1) -> 0 | AA40: 0.2719956821 | AB40: =_xlfn.NORM.DIST(H40,$AD$2,$AD$3,TRUE) -> 1 | AC40: 3.276268146e-13 | AD40: 3.276268146e-13 | AE40: =IF($AA40<-'Results Dashboard'!$J$7,$AA40+'Results Dashboard'!$J$7,0) -> 0 | AF40: =IF($AA40<-'Results Dashboard'!$J$8,$AA40+'Results Dashboard'!$J$8,0) -> 0 | AG40: =IF($AA40<-'Results Dashboard'!$J$9,$AA40+'Results Dashboard'!$J$9,0) -> 0 | AH40: =IF($AA40<-'Results Dashboard'!$J$11,$AA40+'Results Dashboard'!$J$11,0) -> 0 | AI40: =IF($AA40<-'Results Dashboard'!$J$10,$AA40+'Results Dashboard'!$J$10,0) -> 0 | AK40: =IF((X40+W40)>0,(X40+W40)*0.5*'User Parameters'!C$48,(X40+W40)*0.5*'User Parameters'!$C$49) -> 0 | AL40: =-'User Parameters'!$C$12*('User Parameters'!$C$13-1) -> 0 | AM40: 0.2719956821
A41: 0.6450039254 | B41: 454.543427 | C41: 293.1822947 | D41: 0.6450039254 | E41: ='User Parameters'!$C$10 -> 40 | F41: =B41*'User Parameters'!$C$14 -> 0 | G41: 121.3611323 | H41: 0.2669956821 | I41: 0.6450039254 | J41: =IF(UP_RSBasis="MLR",UP_RSTarget_MLR,IF(UP_RSBasis="Medical Baseline",UP_RSTarget_Medlcal,0)) -> 0 | K41: 0 | L41: 0 | M41: 0 | N41: 0 | O41: 0 | P41: 0 | Q41: 0 | S41: 0 | T41: =(S41+C41+'User Parameters'!$C$11)/(B41-F41) -> 0.6450039254 | U41: =IF(T41<'User Parameters'!$J$5,'User Parameters'!$J$5,IF(T41>'User Parameters'!$J$6,'User Parameters'!$J$6,T41)) -> 0.6450039254 | V41: 0 | W41: 0 | X41: =(B41-C41-F41-E41-S41-V41)/'Results Dashboard'!$D$42 -> 0.2669956821 | Y41: =IF((X41+W41)>0,(X41+W41)*0.5*((1+'User Parameters'!C$48)^((12+UP_COC_WithholdLag)/12)-1),(X41+W41)*0.5*((1+'User Parameters'!$C$49)^((12+UP_COC_WithholdLag)/12)-1)) -> 0 | Z41: =-'User Parameters'!$C$12*('User Parameters'!$C$13-1) -> 0 | AA41: 0.2669956821 | AB41: 1 | AC41: 9.653389199e-13 | AD41: 9.653389199e-13 | AE41: =IF($AA41<-'Results Dashboard'!$J$7,$AA41+'Results Dashboard'!$J$7,0) -> 0 | AF41: =IF($AA41<-'Results Dashboard'!$J$8,$AA41+'Results Dashboard'!$J$8,0) -> 0 | AG41: =IF($AA41<-'Results Dashboard'!$J$9,$AA41+'Results Dashboard'!$J$9,0) -> 0 | AH41: =IF($AA41<-'Results Dashboard'!$J$11,$AA41+'Results Dashboard'!$J$11,0) -> 0 | AI41: =IF($AA41<-'Results Dashboard'!$J$10,$AA41+'Results Dashboard'!$J$10,0) -> 0 | AK41: =IF((X41+W41)>0,(X41+W41)*0.5*'User Parameters'!C$48,(X41+W41)*0.5*'User Parameters'!$C$49) -> 0 | AL41: =-'User Parameters'!$C$12*('User Parameters'!$C$13-1) -> 0 | AM41: 0.2669956821
A42: 0.6500039254 | B42: 454.543427 | C42: 295.4550118 | D42: 0.6500039254 | E42: ='User Parameters'!$C$10 -> 40 | F42: =B42*'User Parameters'!$C$14 -> 0 | G42: 119.0884152 | H42: 0.2619956821 | I42: 0.6500039254 | J42: =IF(UP_RSBasis="MLR",UP_RSTarget_MLR,IF(UP_RSBasis="Medical Baseline",UP_RSTarget_Medlcal,0)) -> 0 | K42: 0 | L42: 0 | M42: 0 | N42: 0 | O42: 0 | P42: 0 | Q42: 0 | S42: 0 | T42: =(S42+C42+'User Parameters'!$C$11)/(B42-F42) -> 0.6500039254 | U42: =IF(T42<'User Parameters'!$J$5,'User Parameters'!$J$5,IF(T42>'User Parameters'!$J$6,'User Parameters'!$J$6,T42)) -> 0.6500039254 | V42: 0 | W42: 0 | X42: =(B42-C42-F42-E42-S42-V42)/'Results Dashboard'!$D$42 -> 0.2619956821 | Y42: =IF((X42+W42)>0,(X42+W42)*0.5*((1+'User Parameters'!C$48)^((12+UP_COC_WithholdLag)/12)-1),(X42+W42)*0.5*((1+'User Parameters'!$C$49)^((12+UP_COC_WithholdLag)/12)-1)) -> 0 | Z42: =-'User Parameters'!$C$12*('User Parameters'!$C$13-1) -> 0 | AA42: 0.2619956821 | AB42: 1 | AC42: 2.780442543e-12 | AD42: 2.780442543e-12 | AE42: =IF($AA42<-'Results Dashboard'!$J$7,$AA42+'Results Dashboard'!$J$7,0) -> 0 | AF42: =IF($AA42<-'Results Dashboard'!$J$8,$AA42+'Results Dashboard'!$J$8,0) -> 0 | AG42: =IF($AA42<-'Results Dashboard'!$J$9,$AA42+'Results Dashboard'!$J$9,0) -> 0 | AH42: =IF($AA42<-'Results Dashboard'!$J$11,$AA42+'Results Dashboard'!$J$11,0) -> 0 | AI42: =IF($AA42<-'Results Dashboard'!$J$10,$AA42+'Results Dashboard'!$J$10,0) -> 0 | AK42: =IF((X42+W42)>0,(X42+W42)*0.5*'User Parameters'!C$48,(X42+W42)*0.5*'User Parameters'!$C$49) -> 0 | AL42: =-'User Parameters'!$C$12*('User Parameters'!$C$13-1) -> 0 | AM42: 0.2619956821
A43: 0.6550039254 | B43: 454.543427 | C43: 297.7277289 | D43: 0.6550039254 | E43: ='User Parameters'!$C$10 -> 40 | F43: =B43*'User Parameters'!$C$14 -> 0 | G43: 116.815698 | H43: 0.2569956821 | I43: 0.6550039254 | J43: =IF(UP_RSBasis="MLR",UP_RSTarget_MLR,IF(UP_RSBasis="Medical Baseline",UP_RSTarget_Medlcal,0)) -> 0 | K43: 0 | L43: 0 | M43: 0 | N43: 0 | O43: 0 | P43: 0 | Q43: 0 | S43: 0 | T43: =(S43+C43+'User Parameters'!$C$11)/(B43-F43) -> 0.6550039254 | U43: =IF(T43<'User Parameters'!$J$5,'User Parameters'!$J$5,IF(T43>'User Parameters'!$J$6,'User Parameters'!$J$6,T43)) -> 0.6550039254 | V43: 0 | W43: 0 | X43: =(B43-C43-F43-E43-S43-V43)/'Results Dashboard'!$D$42 -> 0.2569956821 | Y43: =IF((X43+W43)>0,(X43+W43)*0.5*((1+'User Parameters'!C$48)^((12+UP_COC_WithholdLag)/12)-1),(X43+W43)*0.5*((1+'User Parameters'!$C$49)^((12+UP_COC_WithholdLag)/12)-1)) -> 0 | Z43: =-'User Parameters'!$C$12*('User Parameters'!$C$13-1) -> 0 | AA43: 0.2569956821 | AB43: 1 | AC43: 7.825851078e-12 | AD43: 7.825851078e-12 | AE43: =IF($AA43<-'Results Dashboard'!$J$7,$AA43+'Results Dashboard'!$J$7,0) -> 0 | AF43: =IF($AA43<-'Results Dashboard'!$J$8,$AA43+'Results Dashboard'!$J$8,0) -> 0 | AG43: =IF($AA43<-'Results Dashboard'!$J$9,$AA43+'Results Dashboard'!$J$9,0) -> 0 | AH43: =IF($AA43<-'Results Dashboard'!$J$11,$AA43+'Results Dashboard'!$J$11,0) -> 0 | AI43: =IF($AA43<-'Results Dashboard'!$J$10,$AA43+'Results Dashboard'!$J$10,0) -> 0 | AK43: =IF((X43+W43)>0,(X43+W43)*0.5*'User Parameters'!C$48,(X43+W43)*0.5*'User Parameters'!$C$49) -> 0 | AL43: =-'User Parameters'!$C$12*('User Parameters'!$C$13-1) -> 0 | AM43: 0.2569956821
A44: 0.6600039254 | B44: 454.543427 | C44: 300.0004461 | D44: 0.6600039254 | E44: ='User Parameters'!$C$10 -> 40 | F44: =B44*'User Parameters'!$C$14 -> 0 | G44: 114.5429809 | H44: 0.2519956821 | I44: 0.6600039254 | J44: =IF(UP_RSBasis="MLR",UP_RSTarget_MLR,IF(UP_RSBasis="Medical Baseline",UP_RSTarget_Medlcal,0)) -> 0 | K44: 0 | L44: 0 | M44: 0 | N44: 0 | O44: 0 | P44: 0 | Q44: 0 | S44: 0 | T44: =(S44+C44+'User Parameters'!$C$11)/(B44-F44) -> 0.6600039254 | U44: =IF(T44<'User Parameters'!$J$5,'User Parameters'!$J$5,IF(T44>'User Parameters'!$J$6,'User Parameters'!$J$6,T44)) -> 0.6600039254 | V44: 0 | W44: 0 | X44: =(B44-C44-F44-E44-S44-V44)/'Results Dashboard'!$D$42 -> 0.2519956821 | Y44: =IF((X44+W44)>0,(X44+W44)*0.5*((1+'User Parameters'!C$48)^((12+UP_COC_WithholdLag)/12)-1),(X44+W44)*0.5*((1+'User Parameters'!$C$49)^((12+UP_COC_WithholdLag)/12)-1)) -> 0 | Z44: =-'User Parameters'!$C$12*('User Parameters'!$C$13-1) -> 0 | AA44: 0.2519956821 | AB44: 1 | AC44: 2.152544809e-11 | AD44: 2.152544809e-11 | AE44: =IF($AA44<-'Results Dashboard'!$J$7,$AA44+'Results Dashboard'!$J$7,0) -> 0 | AF44: =IF($AA44<-'Results Dashboard'!$J$8,$AA44+'Results Dashboard'!$J$8,0) -> 0 | AG44: =IF($AA44<-'Results Dashboard'!$J$9,$AA44+'Results Dashboard'!$J$9,0) -> 0 | AH44: =IF($AA44<-'Results Dashboard'!$J$11,$AA44+'Results Dashboard'!$J$11,0) -> 0 | AI44: =IF($AA44<-'Results Dashboard'!$J$10,$AA44+'Results Dashboard'!$J$10,0) -> 0 | AK44: =IF((X44+W44)>0,(X44+W44)*0.5*'User Parameters'!C$48,(X44+W44)*0.5*'User Parameters'!$C$49) -> 0 | AL44: =-'User Parameters'!$C$12*('User Parameters'!$C$13-1) -> 0 | AM44: 0.2519956821
A45: 0.6650039254 | B45: 454.543427 | C45: 302.2731632 | D45: 0.6650039254 | E45: ='User Parameters'!$C$10 -> 40 | F45: =B45*'User Parameters'!$C$14 -> 0 | G45: 112.2702638 | H45: 0.2469956821 | I45: 0.6650039254 | J45: =IF(UP_RSBasis="MLR",UP_RSTarget_MLR,IF(UP_RSBasis="Medical Baseline",UP_RSTarget_Medlcal,0)) -> 0 | K45: 0 | L45: 0 | M45: 0 | N45: 0 | O45: 0 | P45: 0 | Q45: 0 | S45: 0 | T45: =(S45+C45+'User Parameters'!$C$11)/(B45-F45) -> 0.6650039254 | U45: =IF(T45<'User Parameters'!$J$5,'User Parameters'!$J$5,IF(T45>'User Parameters'!$J$6,'User Parameters'!$J$6,T45)) -> 0.6650039254 | V45: 0 | W45: 0 | X45: =(B45-C45-F45-E45-S45-V45)/'Results Dashboard'!$D$42 -> 0.2469956821 | Y45: =IF((X45+W45)>0,(X45+W45)*0.5*((1+'User Parameters'!C$48)^((12+UP_COC_WithholdLag)/12)-1),(X45+W45)*0.5*((1+'User Parameters'!$C$49)^((12+UP_COC_WithholdLag)/12)-1)) -> 0 | Z45: =-'User Parameters'!$C$12*('User Parameters'!$C$13-1) -> 0 | AA45: 0.2469956821 | AB45: 1 | AC45: 5.786193746e-11 | AD45: 5.786193746e-11 | AE45: =IF($AA45<-'Results Dashboard'!$J$7,$AA45+'Results Dashboard'!$J$7,0) -> 0 | AF45: =IF($AA45<-'Results Dashboard'!$J$8,$AA45+'Results Dashboard'!$J$8,0) -> 0 | AG45: =IF($AA45<-'Results Dashboard'!$J$9,$AA45+'Results Dashboard'!$J$9,0) -> 0 | AH45: =IF($AA45<-'Results Dashboard'!$J$11,$AA45+'Results Dashboard'!$J$11,0) -> 0 | AI45: =IF($AA45<-'Results Dashboard'!$J$10,$AA45+'Results Dashboard'!$J$10,0) -> 0 | AK45: =IF((X45+W45)>0,(X45+W45)*0.5*'User Parameters'!C$48,(X45+W45)*0.5*'User Parameters'!$C$49) -> 0 | AL45: =-'User Parameters'!$C$12*('User Parameters'!$C$13-1) -> 0 | AM45: 0.2469956821
A46: 0.6700039254 | B46: 454.543427 | C46: 304.5458803 | D46: 0.6700039254 | E46: ='User Parameters'!$C$10 -> 40 | F46: =B46*'User Parameters'!$C$14 -> 0 | G46: 109.9975466 | H46: 0.2419956821 | I46: 0.6700039254 | J46: =IF(UP_RSBasis="MLR",UP_RSTarget_MLR,IF(UP_RSBasis="Medical Baseline",UP_RSTarget_Medlcal,0)) -> 0 | K46: 0 | L46: 0 | M46: 0 | N46: 0 | O46: 0 | P46: 0 | Q46: 0 | S46: 0 | T46: =(S46+C46+'User Parameters'!$C$11)/(B46-F46) -> 0.6700039254 | U46: =IF(T46<'User Parameters'!$J$5,'User Parameters'!$J$5,IF(T46>'User Parameters'!$J$6,'User Parameters'!$J$6,T46)) -> 0.6700039254 | V46: 0 | W46: 0 | X46: =(B46-C46-F46-E46-S46-V46)/'Results Dashboard'!$D$42 -> 0.2419956821 | Y46: =IF((X46+W46)>0,(X46+W46)*0.5*((1+'User Parameters'!C$48)^((12+UP_COC_WithholdLag)/12)-1),(X46+W46)*0.5*((1+'User Parameters'!$C$49)^((12+UP_COC_WithholdLag)/12)-1)) -> 0 | Z46: =-'User Parameters'!$C$12*('User Parameters'!$C$13-1) -> 0 | AA46: 0.2419956821 | AB46: 0.9999999999 | AC46: 1.520004123e-10 | AD46: 1.520004123e-10 | AE46: =IF($AA46<-'Results Dashboard'!$J$7,$AA46+'Results Dashboard'!$J$7,0) -> 0 | AF46: =IF($AA46<-'Results Dashboard'!$J$8,$AA46+'Results Dashboard'!$J$8,0) -> 0 | AG46: =IF($AA46<-'Results Dashboard'!$J$9,$AA46+'Results Dashboard'!$J$9,0) -> 0 | AH46: =IF($AA46<-'Results Dashboard'!$J$11,$AA46+'Results Dashboard'!$J$11,0) -> 0 | AI46: =IF($AA46<-'Results Dashboard'!$J$10,$AA46+'Results Dashboard'!$J$10,0) -> 0 | AK46: =IF((X46+W46)>0,(X46+W46)*0.5*'User Parameters'!C$48,(X46+W46)*0.5*'User Parameters'!$C$49) -> 0 | AL46: =-'User Parameters'!$C$12*('User Parameters'!$C$13-1) -> 0 | AM46: 0.2419956821
A47: 0.6750039254 | B47: 454.543427 | C47: 306.8185975 | D47: 0.6750039254 | E47: ='User Parameters'!$C$10 -> 40 | F47: =B47*'User Parameters'!$C$14 -> 0 | G47: 107.7248295 | H47: 0.2369956821 | I47: 0.6750039254 | J47: =IF(UP_RSBasis="MLR",UP_RSTarget_MLR,IF(UP_RSBasis="Medical Baseline",UP_RSTarget_Medlcal,0)) -> 0 | K47: 0 | L47: 0 | M47: 0 | N47: 0 | O47: 0 | P47: 0 | Q47: 0 | S47: 0 | T47: =(S47+C47+'User Parameters'!$C$11)/(B47-F47) -> 0.6750039254 | U47: =IF(T47<'User Parameters'!$J$5,'User Parameters'!$J$5,IF(T47>'User Parameters'!$J$6,'User Parameters'!$J$6,T47)) -> 0.6750039254 | V47: 0 | W47: 0 | X47: =(B47-C47-F47-E47-S47-V47)/'Results Dashboard'!$D$42 -> 0.2369956821 | Y47: =IF((X47+W47)>0,(X47+W47)*0.5*((1+'User Parameters'!C$48)^((12+UP_COC_WithholdLag)/12)-1),(X47+W47)*0.5*((1+'User Parameters'!$C$49)^((12+UP_COC_WithholdLag)/12)-1)) -> 0 | Z47: =-'User Parameters'!$C$12*('User Parameters'!$C$13-1) -> 0 | AA47: 0.2369956821 | AB47: 0.9999999998 | AC47: 3.902197454e-10 | AD47: 3.902197454e-10 | AE47: =IF($AA47<-'Results Dashboard'!$J$7,$AA47+'Results Dashboard'!$J$7,0) -> 0 | AF47: =IF($AA47<-'Results Dashboard'!$J$8,$AA47+'Results Dashboard'!$J$8,0) -> 0 | AG47: =IF($AA47<-'Results Dashboard'!$J$9,$AA47+'Results Dashboard'!$J$9,0) -> 0 | AH47: =IF($AA47<-'Results Dashboard'!$J$11,$AA47+'Results Dashboard'!$J$11,0) -> 0 | AI47: =IF($AA47<-'Results Dashboard'!$J$10,$AA47+'Results Dashboard'!$J$10,0) -> 0 | AK47: =IF((X47+W47)>0,(X47+W47)*0.5*'User Parameters'!C$48,(X47+W47)*0.5*'User Parameters'!$C$49) -> 0 | AL47: =-'User Parameters'!$C$12*('User Parameters'!$C$13-1) -> 0 | AM47: 0.2369956821
A48: 0.6800039254 | B48: 454.543427 | C48: 309.0913146 | D48: 0.6800039254 | E48: ='User Parameters'!$C$10 -> 40 | F48: =B48*'User Parameters'!$C$14 -> 0 | G48: 105.4521124 | H48: 0.2319956821 | I48: 0.6800039254 | J48: =IF(UP_RSBasis="MLR",UP_RSTarget_MLR,IF(UP_RSBasis="Medical Baseline",UP_RSTarget_Medlcal,0)) -> 0 | K48: 0 | L48: 0 | M48: 0 | N48: 0 | O48: 0 | P48: 0 | Q48: 0 | S48: 0 | T48: =(S48+C48+'User Parameters'!$C$11)/(B48-F48) -> 0.6800039254 | U48: =IF(T48<'User Parameters'!$J$5,'User Parameters'!$J$5,IF(T48>'User Parameters'!$J$6,'User Parameters'!$J$6,T48)) -> 0.6800039254 | V48: 0 | W48: 0 | X48: =(B48-C48-F48-E48-S48-V48)/'Results Dashboard'!$D$42 -> 0.2319956821 | Y48: =IF((X48+W48)>0,(X48+W48)*0.5*((1+'User Parameters'!C$48)^((12+UP_COC_WithholdLag)/12)-1),(X48+W48)*0.5*((1+'User Parameters'!$C$49)^((12+UP_COC_WithholdLag)/12)-1)) -> 0 | Z48: =-'User Parameters'!$C$12*('User Parameters'!$C$13-1) -> 0 | AA48: 0.2319956821 | AB48: 0.9999999994 | AC48: 9.790075417e-10 | AD48: 9.790075417e-10 | AE48: =IF($AA48<-'Results Dashboard'!$J$7,$AA48+'Results Dashboard'!$J$7,0) -> 0 | AF48: =IF($AA48<-'Results Dashboard'!$J$8,$AA48+'Results Dashboard'!$J$8,0) -> 0 | AG48: =IF($AA48<-'Results Dashboard'!$J$9,$AA48+'Results Dashboard'!$J$9,0) -> 0 | AH48: =IF($AA48<-'Results Dashboard'!$J$11,$AA48+'Results Dashboard'!$J$11,0) -> 0 | AI48: =IF($AA48<-'Results Dashboard'!$J$10,$AA48+'Results Dashboard'!$J$10,0) -> 0 | AK48: =IF((X48+W48)>0,(X48+W48)*0.5*'User Parameters'!C$48,(X48+W48)*0.5*'User Parameters'!$C$49) -> 0 | AL48: =-'User Parameters'!$C$12*('User Parameters'!$C$13-1) -> 0 | AM48: 0.2319956821
A49: 0.6850039254 | B49: 454.543427 | C49: 311.3640317 | D49: 0.6850039254 | E49: ='User Parameters'!$C$10 -> 40 | F49: =B49*'User Parameters'!$C$14 -> 0 | G49: 103.1793952 | H49: 0.2269956821 | I49: 0.6850039254 | J49: =IF(UP_RSBasis="MLR",UP_RSTarget_MLR,IF(UP_RSBasis="Medical Baseline",UP_RSTarget_Medlcal,0)) -> 0 | K49: 0 | L49: 0 | M49: 0 | N49: 0 | O49: 0 | P49: 0 | Q49: 0 | S49: 0 | T49: =(S49+C49+'User Parameters'!$C$11)/(B49-F49) -> 0.6850039254 | U49: =IF(T49<'User Parameters'!$J$5,'User Parameters'!$J$5,IF(T49>'User Parameters'!$J$6,'User Parameters'!$J$6,T49)) -> 0.6850039254 | V49: 0 | W49: 0 | X49: =(B49-C49-F49-E49-S49-V49)/'Results Dashboard'!$D$42 -> 0.2269956821 | Y49: =IF((X49+W49)>0,(X49+W49)*0.5*((1+'User Parameters'!C$48)^((12+UP_COC_WithholdLag)/12)-1),(X49+W49)*0.5*((1+'User Parameters'!$C$49)^((12+UP_COC_WithholdLag)/12)-1)) -> 0 | Z49: =-'User Parameters'!$C$12*('User Parameters'!$C$13-1) -> 0 | AA49: 0.2269956821 | AB49: 0.9999999984 | AC49: 2.400355248e-09 | AD49: 2.400355248e-09 | AE49: =IF($AA49<-'Results Dashboard'!$J$7,$AA49+'Results Dashboard'!$J$7,0) -> 0 | AF49: =IF($AA49<-'Results Dashboard'!$J$8,$AA49+'Results Dashboard'!$J$8,0) -> 0 | AG49: =IF($AA49<-'Results Dashboard'!$J$9,$AA49+'Results Dashboard'!$J$9,0) -> 0 | AH49: =IF($AA49<-'Results Dashboard'!$J$11,$AA49+'Results Dashboard'!$J$11,0) -> 0 | AI49: =IF($AA49<-'Results Dashboard'!$J$10,$AA49+'Results Dashboard'!$J$10,0) -> 0 | AK49: =IF((X49+W49)>0,(X49+W49)*0.5*'User Parameters'!C$48,(X49+W49)*0.5*'User Parameters'!$C$49) -> 0 | AL49: =-'User Parameters'!$C$12*('User Parameters'!$C$13-1) -> 0 | AM49: 0.2269956821
A50: 0.6900039254 | B50: 454.543427 | C50: 313.6367489 | D50: 0.6900039254 | E50: ='User Parameters'!$C$10 -> 40 | F50: =B50*'User Parameters'!$C$14 -> 0 | G50: 100.9066781 | H50: 0.2219956821 | I50: 0.6900039254 | J50: =IF(UP_RSBasis="MLR",UP_RSTarget_MLR,IF(UP_RSBasis="Medical Baseline",UP_RSTarget_Medlcal,0)) -> 0 | K50: 0 | L50: 0 | M50: 0 | N50: 0 | O50: 0 | P50: 0 | Q50: 0 | S50: 0 | T50: =(S50+C50+'User Parameters'!$C$11)/(B50-F50) -> 0.6900039254 | U50: =IF(T50<'User Parameters'!$J$5,'User Parameters'!$J$5,IF(T50>'User Parameters'!$J$6,'User Parameters'!$J$6,T50)) -> 0.6900039254 | V50: 0 | W50: 0 | X50: =(B50-C50-F50-E50-S50-V50)/'Results Dashboard'!$D$42 -> 0.2219956821 | Y50: =IF((X50+W50)>0,(X50+W50)*0.5*((1+'User Parameters'!C$48)^((12+UP_COC_WithholdLag)/12)-1),(X50+W50)*0.5*((1+'User Parameters'!$C$49)^((12+UP_COC_WithholdLag)/12)-1)) -> 0 | Z50: =-'User Parameters'!$C$12*('User Parameters'!$C$13-1) -> 0 | AA50: 0.2219956821 | AB50: 0.999999996 | AC50: 5.751453203e-09 | AD50: 5.751453203e-09 | AE50: =IF($AA50<-'Results Dashboard'!$J$7,$AA50+'Results Dashboard'!$J$7,0) -> 0 | AF50: =IF($AA50<-'Results Dashboard'!$J$8,$AA50+'Results Dashboard'!$J$8,0) -> 0 | AG50: =IF($AA50<-'Results Dashboard'!$J$9,$AA50+'Results Dashboard'!$J$9,0) -> 0 | AH50: =IF($AA50<-'Results Dashboard'!$J$11,$AA50+'Results Dashboard'!$J$11,0) -> 0 | AI50: =IF($AA50<-'Results Dashboard'!$J$10,$AA50+'Results Dashboard'!$J$10,0) -> 0 | AK50: =IF((X50+W50)>0,(X50+W50)*0.5*'User Parameters'!C$48,(X50+W50)*0.5*'User Parameters'!$C$49) -> 0 | AL50: =-'User Parameters'!$C$12*('User Parameters'!$C$13-1) -> 0 | AM50: 0.2219956821
A51: 0.6950039254 | B51: 454.543427 | C51: 315.909466 | D51: 0.6950039254 | E51: ='User Parameters'!$C$10 -> 40 | F51: =B51*'User Parameters'!$C$14 -> 0 | G51: 98.63396096 | H51: 0.2169956821 | I51: 0.6950039254 | J51: =IF(UP_RSBasis="MLR",UP_RSTarget_MLR,IF(UP_RSBasis="Medical Baseline",UP_RSTarget_Medlcal,0)) -> 0 | K51: 0 | L51: 0 | M51: 0 | N51: 0 | O51: 0 | P51: 0 | Q51: 0 | S51: 0 | T51: =(S51+C51+'User Parameters'!$C$11)/(B51-F51) -> 0.6950039254 | U51: =IF(T51<'User Parameters'!$J$5,'User Parameters'!$J$5,IF(T51>'User Parameters'!$J$6,'User Parameters'!$J$6,T51)) -> 0.6950039254 | V51: 0 | W51: 0 | X51: =(B51-C51-F51-E51-S51-V51)/'Results Dashboard'!$D$42 -> 0.2169956821 | Y51: =IF((X51+W51)>0,(X51+W51)*0.5*((1+'User Parameters'!C$48)^((12+UP_COC_WithholdLag)/12)-1),(X51+W51)*0.5*((1+'User Parameters'!$C$49)^((12+UP_COC_WithholdLag)/12)-1)) -> 0 | Z51: =-'User Parameters'!$C$12*('User Parameters'!$C$13-1) -> 0 | AA51: 0.2169956821 | AB51: 0.9999999902 | AC51: 1.346766576e-08 | AD51: 1.346766576e-08 | AE51: =IF($AA51<-'Results Dashboard'!$J$7,$AA51+'Results Dashboard'!$J$7,0) -> 0 | AF51: =IF($AA51<-'Results Dashboard'!$J$8,$AA51+'Results Dashboard'!$J$8,0) -> 0 | AG51: =IF($AA51<-'Results Dashboard'!$J$9,$AA51+'Results Dashboard'!$J$9,0) -> 0 | AH51: =IF($AA51<-'Results Dashboard'!$J$11,$AA51+'Results Dashboard'!$J$11,0) -> 0 | AI51: =IF($AA51<-'Results Dashboard'!$J$10,$AA51+'Results Dashboard'!$J$10,0) -> 0 | AK51: =IF((X51+W51)>0,(X51+W51)*0.5*'User Parameters'!C$48,(X51+W51)*0.5*'User Parameters'!$C$49) -> 0 | AL51: =-'User Parameters'!$C$12*('User Parameters'!$C$13-1) -> 0 | AM51: 0.2169956821
A52: 0.7000039254 | B52: 454.543427 | C52: 318.1821831 | D52: 0.7000039254 | E52: ='User Parameters'!$C$10 -> 40 | F52: =B52*'User Parameters'!$C$14 -> 0 | G52: 96.36124383 | H52: 0.2119956821 | I52: 0.7000039254 | J52: =IF(UP_RSBasis="MLR",UP_RSTarget_MLR,IF(UP_RSBasis="Medical Baseline",UP_RSTarget_Medlcal,0)) -> 0 | K52: 0 | L52: 0 | M52: 0 | N52: 0 | O52: 0 | P52: 0 | Q52: 0 | S52: 0 | T52: =(S52+C52+'User Parameters'!$C$11)/(B52-F52) -> 0.7000039254 | U52: =IF(T52<'User Parameters'!$J$5,'User Parameters'!$J$5,IF(T52>'User Parameters'!$J$6,'User Parameters'!$J$6,T52)) -> 0.7000039254 | V52: 0 | W52: 0 | X52: =(B52-C52-F52-E52-S52-V52)/'Results Dashboard'!$D$42 -> 0.2119956821 | Y52: =IF((X52+W52)>0,(X52+W52)*0.5*((1+'User Parameters'!C$48)^((12+UP_COC_WithholdLag)/12)-1),(X52+W52)*0.5*((1+'User Parameters'!$C$49)^((12+UP_COC_WithholdLag)/12)-1)) -> 0 | Z52: =-'User Parameters'!$C$12*('User Parameters'!$C$13-1) -> 0 | AA52: 0.2119956821 | AB52: 0.9999999768 | AC52: 3.081908528e-08 | AD52: 3.081908528e-08 | AE52: =IF($AA52<-'Results Dashboard'!$J$7,$AA52+'Results Dashboard'!$J$7,0) -> 0 | AF52: =IF($AA52<-'Results Dashboard'!$J$8,$AA52+'Results Dashboard'!$J$8,0) -> 0 | AG52: =IF($AA52<-'Results Dashboard'!$J$9,$AA52+'Results Dashboard'!$J$9,0) -> 0 | AH52: =IF($AA52<-'Results Dashboard'!$J$11,$AA52+'Results Dashboard'!$J$11,0) -> 0 | AI52: =IF($AA52<-'Results Dashboard'!$J$10,$AA52+'Results Dashboard'!$J$10,0) -> 0 | AK52: =IF((X52+W52)>0,(X52+W52)*0.5*'User Parameters'!C$48,(X52+W52)*0.5*'User Parameters'!$C$49) -> 0 | AL52: =-'User Parameters'!$C$12*('User Parameters'!$C$13-1) -> 0 | AM52: 0.2119956821
A53: 0.7050039254 | B53: 454.543427 | C53: 320.4549003 | D53: 0.7050039254 | E53: ='User Parameters'!$C$10 -> 40 | F53: =B53*'User Parameters'!$C$14 -> 0 | G53: 94.08852669 | H53: 0.2069956821 | I53: 0.7050039254 | J53: =IF(UP_RSBasis="MLR",UP_RSTarget_MLR,IF(UP_RSBasis="Medical Baseline",UP_RSTarget_Medlcal,0)) -> 0 | K53: 0 | L53: 0 | M53: 0 | N53: 0 | O53: 0 | P53: 0 | Q53: 0 | S53: 0 | T53: =(S53+C53+'User Parameters'!$C$11)/(B53-F53) -> 0.7050039254 | U53: =IF(T53<'User Parameters'!$J$5,'User Parameters'!$J$5,IF(T53>'User Parameters'!$J$6,'User Parameters'!$J$6,T53)) -> 0.7050039254 | V53: 0 | W53: 0 | X53: =(B53-C53-F53-E53-S53-V53)/'Results Dashboard'!$D$42 -> 0.2069956821 | Y53: =IF((X53+W53)>0,(X53+W53)*0.5*((1+'User Parameters'!C$48)^((12+UP_COC_WithholdLag)/12)-1),(X53+W53)*0.5*((1+'User Parameters'!$C$49)^((12+UP_COC_WithholdLag)/12)-1)) -> 0 | Z53: =-'User Parameters'!$C$12*('User Parameters'!$C$13-1) -> 0 | AA53: 0.2069956821 | AB53: 0.9999999459 | AC53: 6.89223183e-08 | AD53: 6.89223183e-08 | AE53: =IF($AA53<-'Results Dashboard'!$J$7,$AA53+'Results Dashboard'!$J$7,0) -> 0 | AF53: =IF($AA53<-'Results Dashboard'!$J$8,$AA53+'Results Dashboard'!$J$8,0) -> 0 | AG53: =IF($AA53<-'Results Dashboard'!$J$9,$AA53+'Results Dashboard'!$J$9,0) -> 0 | AH53: =IF($AA53<-'Results Dashboard'!$J$11,$AA53+'Results Dashboard'!$J$11,0) -> 0 | AI53: =IF($AA53<-'Results Dashboard'!$J$10,$AA53+'Results Dashboard'!$J$10,0) -> 0 | AK53: =IF((X53+W53)>0,(X53+W53)*0.5*'User Parameters'!C$48,(X53+W53)*0.5*'User Parameters'!$C$49) -> 0 | AL53: =-'User Parameters'!$C$12*('User Parameters'!$C$13-1) -> 0 | AM53: 0.2069956821
A54: 0.7100039254 | B54: 454.543427 | C54: 322.7276174 | D54: 0.7100039254 | E54: ='User Parameters'!$C$10 -> 40 | F54: =B54*'User Parameters'!$C$14 -> 0 | G54: 91.81580956 | H54: 0.2019956821 | I54: 0.7100039254 | J54: =IF(UP_RSBasis="MLR",UP_RSTarget_MLR,IF(UP_RSBasis="Medical Baseline",UP_RSTarget_Medlcal,0)) -> 0 | K54: 0 | L54: 0 | M54: 0 | N54: 0 | O54: 0 | P54: 0 | Q54: 0 | S54: 0 | T54: =(S54+C54+'User Parameters'!$C$11)/(B54-F54) -> 0.7100039254 | U54: =IF(T54<'User Parameters'!$J$5,'User Parameters'!$J$5,IF(T54>'User Parameters'!$J$6,'User Parameters'!$J$6,T54)) -> 0.7100039254 | V54: 0 | W54: 0 | X54: =(B54-C54-F54-E54-S54-V54)/'Results Dashboard'!$D$42 -> 0.2019956821 | Y54: =IF((X54+W54)>0,(X54+W54)*0.5*((1+'User Parameters'!C$48)^((12+UP_COC_WithholdLag)/12)-1),(X54+W54)*0.5*((1+'User Parameters'!$C$49)^((12+UP_COC_WithholdLag)/12)-1)) -> 0 | Z54: =-'User Parameters'!$C$12*('User Parameters'!$C$13-1) -> 0 | AA54: 0.2019956821 | AB54: 0.999999877 | AC54: 1.506304467e-07 | AD54: 1.506304467e-07 | AE54: =IF($AA54<-'Results Dashboard'!$J$7,$AA54+'Results Dashboard'!$J$7,0) -> 0 | AF54: =IF($AA54<-'Results Dashboard'!$J$8,$AA54+'Results Dashboard'!$J$8,0) -> 0 | AG54: =IF($AA54<-'Results Dashboard'!$J$9,$AA54+'Results Dashboard'!$J$9,0) -> 0 | AH54: =IF($AA54<-'Results Dashboard'!$J$11,$AA54+'Results Dashboard'!$J$11,0) -> 0 | AI54: =IF($AA54<-'Results Dashboard'!$J$10,$AA54+'Results Dashboard'!$J$10,0) -> 0 | AK54: =IF((X54+W54)>0,(X54+W54)*0.5*'User Parameters'!C$48,(X54+W54)*0.5*'User Parameters'!$C$49) -> 0 | AL54: =-'User Parameters'!$C$12*('User Parameters'!$C$13-1) -> 0 | AM54: 0.2019956821
A55: 0.7150039254 | B55: 454.543427 | C55: 325.0003345 | D55: 0.7150039254 | E55: ='User Parameters'!$C$10 -> 40 | F55: =B55*'User Parameters'!$C$14 -> 0 | G55: 89.54309242 | H55: 0.1969956821 | I55: 0.7150039254 | J55: =IF(UP_RSBasis="MLR",UP_RSTarget_MLR,IF(UP_RSBasis="Medical Baseline",UP_RSTarget_Medlcal,0)) -> 0 | K55: 0 | L55: 0 | M55: 0 | N55: 0 | O55: 0 | P55: 0 | Q55: 0 | S55: 0 | T55: =(S55+C55+'User Parameters'!$C$11)/(B55-F55) -> 0.7150039254 | U55: =IF(T55<'User Parameters'!$J$5,'User Parameters'!$J$5,IF(T55>'User Parameters'!$J$6,'User Parameters'!$J$6,T55)) -> 0.7150039254 | V55: 0 | W55: 0 | X55: =(B55-C55-F55-E55-S55-V55)/'Results Dashboard'!$D$42 -> 0.1969956821 | Y55: =IF((X55+W55)>0,(X55+W55)*0.5*((1+'User Parameters'!C$48)^((12+UP_COC_WithholdLag)/12)-1),(X55+W55)*0.5*((1+'User Parameters'!$C$49)^((12+UP_COC_WithholdLag)/12)-1)) -> 0 | Z55: =-'User Parameters'!$C$12*('User Parameters'!$C$13-1) -> 0 | AA55: 0.1969956821 | AB55: 0.9999997264 | AC55: 3.217202789e-07 | AD55: 3.217202789e-07 | AE55: =IF($AA55<-'Results Dashboard'!$J$7,$AA55+'Results Dashboard'!$J$7,0) -> 0 | AF55: =IF($AA55<-'Results Dashboard'!$J$8,$AA55+'Results Dashboard'!$J$8,0) -> 0 | AG55: =IF($AA55<-'Results Dashboard'!$J$9,$AA55+'Results Dashboard'!$J$9,0) -> 0 | AH55: =IF($AA55<-'Results Dashboard'!$J$11,$AA55+'Results Dashboard'!$J$11,0) -> 0 | AI55: =IF($AA55<-'Results Dashboard'!$J$10,$AA55+'Results Dashboard'!$J$10,0) -> 0 | AK55: =IF((X55+W55)>0,(X55+W55)*0.5*'User Parameters'!C$48,(X55+W55)*0.5*'User Parameters'!$C$49) -> 0 | AL55: =-'User Parameters'!$C$12*('User Parameters'!$C$13-1) -> 0 | AM55: 0.1969956821
A56: 0.7200039254 | B56: 454.543427 | C56: 327.2730517 | D56: 0.7200039254 | E56: ='User Parameters'!$C$10 -> 40 | F56: =B56*'User Parameters'!$C$14 -> 0 | G56: 87.27037529 | H56: 0.1919956821 | I56: 0.7200039254 | J56: =IF(UP_RSBasis="MLR",UP_RSTarget_MLR,IF(UP_RSBasis="Medical Baseline",UP_RSTarget_Medlcal,0)) -> 0 | K56: 0 | L56: 0 | M56: 0 | N56: 0 | O56: 0 | P56: 0 | Q56: 0 | S56: 0 | T56: =(S56+C56+'User Parameters'!$C$11)/(B56-F56) -> 0.7200039254 | U56: =IF(T56<'User Parameters'!$J$5,'User Parameters'!$J$5,IF(T56>'User Parameters'!$J$6,'User Parameters'!$J$6,T56)) -> 0.7200039254 | V56: 0 | W56: 0 | X56: =(B56-C56-F56-E56-S56-V56)/'Results Dashboard'!$D$42 -> 0.1919956821 | Y56: =IF((X56+W56)>0,(X56+W56)*0.5*((1+'User Parameters'!C$48)^((12+UP_COC_WithholdLag)/12)-1),(X56+W56)*0.5*((1+'User Parameters'!$C$49)^((12+UP_COC_WithholdLag)/12)-1)) -> 0 | Z56: =-'User Parameters'!$C$12*('User Parameters'!$C$13-1) -> 0 | AA56: 0.1919956821 | AB56: 0.9999994047 | AC56: 6.71516869e-07 | AD56: 6.71516869e-07 | AE56: =IF($AA56<-'Results Dashboard'!$J$7,$AA56+'Results Dashboard'!$J$7,0) -> 0 | AF56: =IF($AA56<-'Results Dashboard'!$J$8,$AA56+'Results Dashboard'!$J$8,0) -> 0 | AG56: =IF($AA56<-'Results Dashboard'!$J$9,$AA56+'Results Dashboard'!$J$9,0) -> 0 | AH56: =IF($AA56<-'Results Dashboard'!$J$11,$AA56+'Results Dashboard'!$J$11,0) -> 0 | AI56: =IF($AA56<-'Results Dashboard'!$J$10,$AA56+'Results Dashboard'!$J$10,0) -> 0 | AK56: =IF((X56+W56)>0,(X56+W56)*0.5*'User Parameters'!C$48,(X56+W56)*0.5*'User Parameters'!$C$49) -> 0 | AL56: =-'User Parameters'!$C$12*('User Parameters'!$C$13-1) -> 0 | AM56: 0.1919956821
A57: 0.7250039254 | B57: 454.543427 | C57: 329.5457688 | D57: 0.7250039254 | E57: ='User Parameters'!$C$10 -> 40 | F57: =B57*'User Parameters'!$C$14 -> 0 | G57: 84.99765815 | H57: 0.1869956821 | I57: 0.7250039254 | J57: =IF(UP_RSBasis="MLR",UP_RSTarget_MLR,IF(UP_RSBasis="Medical Baseline",UP_RSTarget_Medlcal,0)) -> 0 | K57: 0 | L57: 0 | M57: 0 | N57: 0 | O57: 0 | P57: 0 | Q57: 0 | S57: 0 | T57: =(S57+C57+'User Parameters'!$C$11)/(B57-F57) -> 0.7250039254 | U57: =IF(T57<'User Parameters'!$J$5,'User Parameters'!$J$5,IF(T57>'User Parameters'!$J$6,'User Parameters'!$J$6,T57)) -> 0.7250039254 | V57: 0 | W57: 0 | X57: =(B57-C57-F57-E57-S57-V57)/'Results Dashboard'!$D$42 -> 0.1869956821 | Y57: =IF((X57+W57)>0,(X57+W57)*0.5*((1+'User Parameters'!C$48)^((12+UP_COC_WithholdLag)/12)-1),(X57+W57)*0.5*((1+'User Parameters'!$C$49)^((12+UP_COC_WithholdLag)/12)-1)) -> 0 | Z57: =-'User Parameters'!$C$12*('User Parameters'!$C$13-1) -> 0 | AA57: 0.1869956821 | AB57: 0.9999987332 | AC57: 1.369771943e-06 | AD57: 1.369771943e-06 | AE57: =IF($AA57<-'Results Dashboard'!$J$7,$AA57+'Results Dashboard'!$J$7,0) -> 0 | AF57: =IF($AA57<-'Results Dashboard'!$J$8,$AA57+'Results Dashboard'!$J$8,0) -> 0 | AG57: =IF($AA57<-'Results Dashboard'!$J$9,$AA57+'Results Dashboard'!$J$9,0) -> 0 | AH57: =IF($AA57<-'Results Dashboard'!$J$11,$AA57+'Results Dashboard'!$J$11,0) -> 0 | AI57: =IF($AA57<-'Results Dashboard'!$J$10,$AA57+'Results Dashboard'!$J$10,0) -> 0 | AK57: =IF((X57+W57)>0,(X57+W57)*0.5*'User Parameters'!C$48,(X57+W57)*0.5*'User Parameters'!$C$49) -> 0 | AL57: =-'User Parameters'!$C$12*('User Parameters'!$C$13-1) -> 0 | AM57: 0.1869956821
A58: 0.7300039254 | B58: 454.543427 | C58: 331.818486 | D58: 0.7300039254 | E58: ='User Parameters'!$C$10 -> 40 | F58: =B58*'User Parameters'!$C$14 -> 0 | G58: 82.72494102 | H58: 0.1819956821 | I58: 0.7300039254 | J58: =IF(UP_RSBasis="MLR",UP_RSTarget_MLR,IF(UP_RSBasis="Medical Baseline",UP_RSTarget_Medlcal,0)) -> 0 | K58: 0 | L58: 0 | M58: 0 | N58: 0 | O58: 0 | P58: 0 | Q58: 0 | S58: 0 | T58: =(S58+C58+'User Parameters'!$C$11)/(B58-F58) -> 0.7300039254 | U58: =IF(T58<'User Parameters'!$J$5,'User Parameters'!$J$5,IF(T58>'User Parameters'!$J$6,'User Parameters'!$J$6,T58)) -> 0.7300039254 | V58: 0 | W58: 0 | X58: =(B58-C58-F58-E58-S58-V58)/'Results Dashboard'!$D$42 -> 0.1819956821 | Y58: =IF((X58+W58)>0,(X58+W58)*0.5*((1+'User Parameters'!C$48)^((12+UP_COC_WithholdLag)/12)-1),(X58+W58)*0.5*((1+'User Parameters'!$C$49)^((12+UP_COC_WithholdLag)/12)-1)) -> 0 | Z58: =-'User Parameters'!$C$12*('User Parameters'!$C$13-1) -> 0 | AA58: 0.1819956821 | AB58: 0.9999973634 | AC58: 2.730564787e-06 | AD58: 2.730564787e-06 | AE58: =IF($AA58<-'Results Dashboard'!$J$7,$AA58+'Results Dashboard'!$J$7,0) -> 0 | AF58: =IF($AA58<-'Results Dashboard'!$J$8,$AA58+'Results Dashboard'!$J$8,0) -> 0 | AG58: =IF($AA58<-'Results Dashboard'!$J$9,$AA58+'Results Dashboard'!$J$9,0) -> 0 | AH58: =IF($AA58<-'Results Dashboard'!$J$11,$AA58+'Results Dashboard'!$J$11,0) -> 0 | AI58: =IF($AA58<-'Results Dashboard'!$J$10,$AA58+'Results Dashboard'!$J$10,0) -> 0 | AK58: =IF((X58+W58)>0,(X58+W58)*0.5*'User Parameters'!C$48,(X58+W58)*0.5*'User Parameters'!$C$49) -> 0 | AL58: =-'User Parameters'!$C$12*('User Parameters'!$C$13-1) -> 0 | AM58: 0.1819956821
A59: 0.7350039254 | B59: 454.543427 | C59: 334.0912031 | D59: 0.7350039254 | E59: ='User Parameters'!$C$10 -> 40 | F59: =B59*'User Parameters'!$C$14 -> 0 | G59: 80.45222388 | H59: 0.1769956821 | I59: 0.7350039254 | J59: =IF(UP_RSBasis="MLR",UP_RSTarget_MLR,IF(UP_RSBasis="Medical Baseline",UP_RSTarget_Medlcal,0)) -> 0 | K59: 0 | L59: 0 | M59: 0 | N59: 0 | O59: 0 | P59: 0 | Q59: 0 | S59: 0 | T59: =(S59+C59+'User Parameters'!$C$11)/(B59-F59) -> 0.7350039254 | U59: =IF(T59<'User Parameters'!$J$5,'User Parameters'!$J$5,IF(T59>'User Parameters'!$J$6,'User Parameters'!$J$6,T59)) -> 0.7350039254 | V59: 0 | W59: 0 | X59: =(B59-C59-F59-E59-S59-V59)/'Results Dashboard'!$D$42 -> 0.1769956821 | Y59: =IF((X59+W59)>0,(X59+W59)*0.5*((1+'User Parameters'!C$48)^((12+UP_COC_WithholdLag)/12)-1),(X59+W59)*0.5*((1+'User Parameters'!$C$49)^((12+UP_COC_WithholdLag)/12)-1)) -> 0 | Z59: =-'User Parameters'!$C$12*('User Parameters'!$C$13-1) -> 0 | AA59: 0.1769956821 | AB59: 0.9999946328 | AC59: 5.319485301e-06 | AD59: 5.319485301e-06 | AE59: =IF($AA59<-'Results Dashboard'!$J$7,$AA59+'Results Dashboard'!$J$7,0) -> 0 | AF59: =IF($AA59<-'Results Dashboard'!$J$8,$AA59+'Results Dashboard'!$J$8,0) -> 0 | AG59: =IF($AA59<-'Results Dashboard'!$J$9,$AA59+'Results Dashboard'!$J$9,0) -> 0 | AH59: =IF($AA59<-'Results Dashboard'!$J$11,$AA59+'Results Dashboard'!$J$11,0) -> 0 | AI59: =IF($AA59<-'Results Dashboard'!$J$10,$AA59+'Results Dashboard'!$J$10,0) -> 0 | AK59: =IF((X59+W59)>0,(X59+W59)*0.5*'User Parameters'!C$48,(X59+W59)*0.5*'User Parameters'!$C$49) -> 0 | AL59: =-'User Parameters'!$C$12*('User Parameters'!$C$13-1) -> 0 | AM59: 0.1769956821
A60: 0.7400039254 | B60: 454.543427 | C60: 336.3639202 | D60: 0.7400039254 | E60: ='User Parameters'!$C$10 -> 40 | F60: =B60*'User Parameters'!$C$14 -> 0 | G60: 78.17950675 | H60: 0.1719956821 | I60: 0.7400039254 | J60: =IF(UP_RSBasis="MLR",UP_RSTarget_MLR,IF(UP_RSBasis="Medical Baseline",UP_RSTarget_Medlcal,0)) -> 0 | K60: 0 | L60: 0 | M60: 0 | N60: 0 | O60: 0 | P60: 0 | Q60: 0 | S60: 0 | T60: =(S60+C60+'User Parameters'!$C$11)/(B60-F60) -> 0.7400039254 | U60: =IF(T60<'User Parameters'!$J$5,'User Parameters'!$J$5,IF(T60>'User Parameters'!$J$6,'User Parameters'!$J$6,T60)) -> 0.7400039254 | V60: 0 | W60: 0 | X60: =(B60-C60-F60-E60-S60-V60)/'Results Dashboard'!$D$42 -> 0.1719956821 | Y60: =IF((X60+W60)>0,(X60+W60)*0.5*((1+'User Parameters'!C$48)^((12+UP_COC_WithholdLag)/12)-1),(X60+W60)*0.5*((1+'User Parameters'!$C$49)^((12+UP_COC_WithholdLag)/12)-1)) -> 0 | Z60: =-'User Parameters'!$C$12*('User Parameters'!$C$13-1) -> 0 | AA60: 0.1719956821 | AB60: 0.9999893133 | AC60: 1.012743998e-05 | AD60: 1.012743998e-05 | AE60: =IF($AA60<-'Results Dashboard'!$J$7,$AA60+'Results Dashboard'!$J$7,0) -> 0 | AF60: =IF($AA60<-'Results Dashboard'!$J$8,$AA60+'Results Dashboard'!$J$8,0) -> 0 | AG60: =IF($AA60<-'Results Dashboard'!$J$9,$AA60+'Results Dashboard'!$J$9,0) -> 0 | AH60: =IF($AA60<-'Results Dashboard'!$J$11,$AA60+'Results Dashboard'!$J$11,0) -> 0 | AI60: =IF($AA60<-'Results Dashboard'!$J$10,$AA60+'Results Dashboard'!$J$10,0) -> 0 | AK60: =IF((X60+W60)>0,(X60+W60)*0.5*'User Parameters'!C$48,(X60+W60)*0.5*'User Parameters'!$C$49) -> 0 | AL60: =-'User Parameters'!$C$12*('User Parameters'!$C$13-1) -> 0 | AM60: 0.1719956821
A61: 0.7450039254 | B61: 454.543427 | C61: 338.6366374 | D61: 0.7450039254 | E61: ='User Parameters'!$C$10 -> 40 | F61: =B61*'User Parameters'!$C$14 -> 0 | G61: 75.90678961 | H61: 0.1669956821 | I61: 0.7450039254 | J61: =IF(UP_RSBasis="MLR",UP_RSTarget_MLR,IF(UP_RSBasis="Medical Baseline",UP_RSTarget_Medlcal,0)) -> 0 | K61: 0 | L61: 0 | M61: 0 | N61: 0 | O61: 0 | P61: 0 | Q61: 0 | S61: 0 | T61: =(S61+C61+'User Parameters'!$C$11)/(B61-F61) -> 0.7450039254 | U61: =IF(T61<'User Parameters'!$J$5,'User Parameters'!$J$5,IF(T61>'User Parameters'!$J$6,'User Parameters'!$J$6,T61)) -> 0.7450039254 | V61: 0 | W61: 0 | X61: =(B61-C61-F61-E61-S61-V61)/'Results Dashboard'!$D$42 -> 0.1669956821 | Y61: =IF((X61+W61)>0,(X61+W61)*0.5*((1+'User Parameters'!C$48)^((12+UP_COC_WithholdLag)/12)-1),(X61+W61)*0.5*((1+'User Parameters'!$C$49)^((12+UP_COC_WithholdLag)/12)-1)) -> 0 | Z61: =-'User Parameters'!$C$12*('User Parameters'!$C$13-1) -> 0 | AA61: 0.1669956821 | AB61: 0.9999791859 | AC61: 1.884268154e-05 | AD61: 1.884268154e-05 | AE61: =IF($AA61<-'Results Dashboard'!$J$7,$AA61+'Results Dashboard'!$J$7,0) -> 0 | AF61: =IF($AA61<-'Results Dashboard'!$J$8,$AA61+'Results Dashboard'!$J$8,0) -> 0 | AG61: =IF($AA61<-'Results Dashboard'!$J$9,$AA61+'Results Dashboard'!$J$9,0) -> 0 | AH61: =IF($AA61<-'Results Dashboard'!$J$11,$AA61+'Results Dashboard'!$J$11,0) -> 0 | AI61: =IF($AA61<-'Results Dashboard'!$J$10,$AA61+'Results Dashboard'!$J$10,0) -> 0 | AK61: =IF((X61+W61)>0,(X61+W61)*0.5*'User Parameters'!C$48,(X61+W61)*0.5*'User Parameters'!$C$49) -> 0 | AL61: =-'User Parameters'!$C$12*('User Parameters'!$C$13-1) -> 0 | AM61: 0.1669956821
A62: 0.7500039254 | B62: 454.543427 | C62: 340.9093545 | D62: 0.7500039254 | E62: ='User Parameters'!$C$10 -> 40 | F62: =B62*'User Parameters'!$C$14 -> 0 | G62: 73.63407248 | H62: 0.1619956821 | I62: 0.7500039254 | J62: =IF(UP_RSBasis="MLR",UP_RSTarget_MLR,IF(UP_RSBasis="Medical Baseline",UP_RSTarget_Medlcal,0)) -> 0 | K62: 0 | L62: 0 | M62: 0 | N62: 0 | O62: 0 | P62: 0 | Q62: 0 | S62: 0 | T62: =(S62+C62+'User Parameters'!$C$11)/(B62-F62) -> 0.7500039254 | U62: =IF(T62<'User Parameters'!$J$5,'User Parameters'!$J$5,IF(T62>'User Parameters'!$J$6,'User Parameters'!$J$6,T62)) -> 0.7500039254 | V62: 0 | W62: 0 | X62: =(B62-C62-F62-E62-S62-V62)/'Results Dashboard'!$D$42 -> 0.1619956821 | Y62: =IF((X62+W62)>0,(X62+W62)*0.5*((1+'User Parameters'!C$48)^((12+UP_COC_WithholdLag)/12)-1),(X62+W62)*0.5*((1+'User Parameters'!$C$49)^((12+UP_COC_WithholdLag)/12)-1)) -> 0 | Z62: =-'User Parameters'!$C$12*('User Parameters'!$C$13-1) -> 0 | AA62: 0.1619956821 | AB62: 0.9999603432 | AC62: 3.426089703e-05 | AD62: 3.426089703e-05 | AE62: =IF($AA62<-'Results Dashboard'!$J$7,$AA62+'Results Dashboard'!$J$7,0) -> 0 | AF62: =IF($AA62<-'Results Dashboard'!$J$8,$AA62+'Results Dashboard'!$J$8,0) -> 0 | AG62: =IF($AA62<-'Results Dashboard'!$J$9,$AA62+'Results Dashboard'!$J$9,0) -> 0 | AH62: =IF($AA62<-'Results Dashboard'!$J$11,$AA62+'Results Dashboard'!$J$11,0) -> 0 | AI62: =IF($AA62<-'Results Dashboard'!$J$10,$AA62+'Results Dashboard'!$J$10,0) -> 0 | AK62: =IF((X62+W62)>0,(X62+W62)*0.5*'User Parameters'!C$48,(X62+W62)*0.5*'User Parameters'!$C$49) -> 0 | AL62: =-'User Parameters'!$C$12*('User Parameters'!$C$13-1) -> 0 | AM62: 0.1619956821
A63: 0.7550039254 | B63: 454.543427 | C63: 343.1820716 | D63: 0.7550039254 | E63: ='User Parameters'!$C$10 -> 40 | F63: =B63*'User Parameters'!$C$14 -> 0 | G63: 71.36135534 | H63: 0.1569956821 | I63: 0.7550039254 | J63: =IF(UP_RSBasis="MLR",UP_RSTarget_MLR,IF(UP_RSBasis="Medical Baseline",UP_RSTarget_Medlcal,0)) -> 0 | K63: 0 | L63: 0 | M63: 0 | N63: 0 | O63: 0 | P63: 0 | Q63: 0 | S63: 0 | T63: =(S63+C63+'User Parameters'!$C$11)/(B63-F63) -> 0.7550039254 | U63: =IF(T63<'User Parameters'!$J$5,'User Parameters'!$J$5,IF(T63>'User Parameters'!$J$6,'User Parameters'!$J$6,T63)) -> 0.7550039254 | V63: 0 | W63: 0 | X63: =(B63-C63-F63-E63-S63-V63)/'Results Dashboard'!$D$42 -> 0.1569956821 | Y63: =IF((X63+W63)>0,(X63+W63)*0.5*((1+'User Parameters'!C$48)^((12+UP_COC_WithholdLag)/12)-1),(X63+W63)*0.5*((1+'User Parameters'!$C$49)^((12+UP_COC_WithholdLag)/12)-1)) -> 0 | Z63: =-'User Parameters'!$C$12*('User Parameters'!$C$13-1) -> 0 | AA63: 0.1569956821 | AB63: 0.9999260823 | AC63: 6.08790362e-05 | AD63: 6.08790362e-05 | AE63: =IF($AA63<-'Results Dashboard'!$J$7,$AA63+'Results Dashboard'!$J$7,0) -> 0 | AF63: =IF($AA63<-'Results Dashboard'!$J$8,$AA63+'Results Dashboard'!$J$8,0) -> 0 | AG63: =IF($AA63<-'Results Dashboard'!$J$9,$AA63+'Results Dashboard'!$J$9,0) -> 0 | AH63: =IF($AA63<-'Results Dashboard'!$J$11,$AA63+'Results Dashboard'!$J$11,0) -> 0 | AI63: =IF($AA63<-'Results Dashboard'!$J$10,$AA63+'Results Dashboard'!$J$10,0) -> 0 | AK63: =IF((X63+W63)>0,(X63+W63)*0.5*'User Parameters'!C$48,(X63+W63)*0.5*'User Parameters'!$C$49) -> 0 | AL63: =-'User Parameters'!$C$12*('User Parameters'!$C$13-1) -> 0 | AM63: 0.1569956821
A64: 0.7600039254 | B64: 454.543427 | C64: 345.4547888 | D64: 0.7600039254 | E64: ='User Parameters'!$C$10 -> 40 | F64: =B64*'User Parameters'!$C$14 -> 0 | G64: 69.08863821 | H64: 0.1519956821 | I64: 0.7600039254 | J64: =IF(UP_RSBasis="MLR",UP_RSTarget_MLR,IF(UP_RSBasis="Medical Baseline",UP_RSTarget_Medlcal,0)) -> 0 | K64: 0 | L64: 0 | M64: 0 | N64: 0 | O64: 0 | P64: 0 | Q64: 0 | S64: 0 | T64: =(S64+C64+'User Parameters'!$C$11)/(B64-F64) -> 0.7600039254 | U64: =IF(T64<'User Parameters'!$J$5,'User Parameters'!$J$5,IF(T64>'User Parameters'!$J$6,'User Parameters'!$J$6,T64)) -> 0.7600039254 | V64: 0 | W64: 0 | X64: =(B64-C64-F64-E64-S64-V64)/'Results Dashboard'!$D$42 -> 0.1519956821 | Y64: =IF((X64+W64)>0,(X64+W64)*0.5*((1+'User Parameters'!C$48)^((12+UP_COC_WithholdLag)/12)-1),(X64+W64)*0.5*((1+'User Parameters'!$C$49)^((12+UP_COC_WithholdLag)/12)-1)) -> 0 | Z64: =-'User Parameters'!$C$12*('User Parameters'!$C$13-1) -> 0 | AA64: 0.1519956821 | AB64: 0.9998652033 | AC64: 0.0001057182217 | AD64: 0.0001057182217 | AE64: =IF($AA64<-'Results Dashboard'!$J$7,$AA64+'Results Dashboard'!$J$7,0) -> 0 | AF64: =IF($AA64<-'Results Dashboard'!$J$8,$AA64+'Results Dashboard'!$J$8,0) -> 0 | AG64: =IF($AA64<-'Results Dashboard'!$J$9,$AA64+'Results Dashboard'!$J$9,0) -> 0 | AH64: =IF($AA64<-'Results Dashboard'!$J$11,$AA64+'Results Dashboard'!$J$11,0) -> 0 | AI64: =IF($AA64<-'Results Dashboard'!$J$10,$AA64+'Results Dashboard'!$J$10,0) -> 0 | AK64: =IF((X64+W64)>0,(X64+W64)*0.5*'User Parameters'!C$48,(X64+W64)*0.5*'User Parameters'!$C$49) -> 0 | AL64: =-'User Parameters'!$C$12*('User Parameters'!$C$13-1) -> 0 | AM64: 0.1519956821
A65: 0.7650039254 | B65: 454.543427 | C65: 347.7275059 | D65: 0.7650039254 | E65: ='User Parameters'!$C$10 -> 40 | F65: =B65*'User Parameters'!$C$14 -> 0 | G65: 66.81592107 | H65: 0.1469956821 | I65: 0.7650039254 | J65: =IF(UP_RSBasis="MLR",UP_RSTarget_MLR,IF(UP_RSBasis="Medical Baseline",UP_RSTarget_Medlcal,0)) -> 0 | K65: 0 | L65: 0 | M65: 0 | N65: 0 | O65: 0 | P65: 0 | Q65: 0 | S65: 0 | T65: =(S65+C65+'User Parameters'!$C$11)/(B65-F65) -> 0.7650039254 | U65: =IF(T65<'User Parameters'!$J$5,'User Parameters'!$J$5,IF(T65>'User Parameters'!$J$6,'User Parameters'!$J$6,T65)) -> 0.7650039254 | V65: 0 | W65: 0 | X65: =(B65-C65-F65-E65-S65-V65)/'Results Dashboard'!$D$42 -> 0.1469956821 | Y65: =IF((X65+W65)>0,(X65+W65)*0.5*((1+'User Parameters'!C$48)^((12+UP_COC_WithholdLag)/12)-1),(X65+W65)*0.5*((1+'User Parameters'!$C$49)^((12+UP_COC_WithholdLag)/12)-1)) -> 0 | Z65: =-'User Parameters'!$C$12*('User Parameters'!$C$13-1) -> 0 | AA65: 0.1469956821 | AB65: 0.9997594851 | AC65: 0.0001794093181 | AD65: 0.0001794093181 | AE65: =IF($AA65<-'Results Dashboard'!$J$7,$AA65+'Results Dashboard'!$J$7,0) -> 0 | AF65: =IF($AA65<-'Results Dashboard'!$J$8,$AA65+'Results Dashboard'!$J$8,0) -> 0 | AG65: =IF($AA65<-'Results Dashboard'!$J$9,$AA65+'Results Dashboard'!$J$9,0) -> 0 | AH65: =IF($AA65<-'Results Dashboard'!$J$11,$AA65+'Results Dashboard'!$J$11,0) -> 0 | AI65: =IF($AA65<-'Results Dashboard'!$J$10,$AA65+'Results Dashboard'!$J$10,0) -> 0 | AK65: =IF((X65+W65)>0,(X65+W65)*0.5*'User Parameters'!C$48,(X65+W65)*0.5*'User Parameters'!$C$49) -> 0 | AL65: =-'User Parameters'!$C$12*('User Parameters'!$C$13-1) -> 0 | AM65: 0.1469956821
A66: 0.7700039254 | B66: 454.543427 | C66: 350.000223 | D66: 0.7700039254 | E66: ='User Parameters'!$C$10 -> 40 | F66: =B66*'User Parameters'!$C$14 -> 0 | G66: 64.54320394 | H66: 0.1419956821 | I66: 0.7700039254 | J66: =IF(UP_RSBasis="MLR",UP_RSTarget_MLR,IF(UP_RSBasis="Medical Baseline",UP_RSTarget_Medlcal,0)) -> 0 | K66: 0 | L66: 0 | M66: 0 | N66: 0 | O66: 0 | P66: 0 | Q66: 0 | S66: 0 | T66: =(S66+C66+'User Parameters'!$C$11)/(B66-F66) -> 0.7700039254 | U66: =IF(T66<'User Parameters'!$J$5,'User Parameters'!$J$5,IF(T66>'User Parameters'!$J$6,'User Parameters'!$J$6,T66)) -> 0.7700039254 | V66: 0 | W66: 0 | X66: =(B66-C66-F66-E66-S66-V66)/'Results Dashboard'!$D$42 -> 0.1419956821 | Y66: =IF((X66+W66)>0,(X66+W66)*0.5*((1+'User Parameters'!C$48)^((12+UP_COC_WithholdLag)/12)-1),(X66+W66)*0.5*((1+'User Parameters'!$C$49)^((12+UP_COC_WithholdLag)/12)-1)) -> 0 | Z66: =-'User Parameters'!$C$12*('User Parameters'!$C$13-1) -> 0 | AA66: 0.1419956821 | AB66: 0.9995800757 | AC66: 0.0002975453934 | AD66: 0.0002975453934 | AE66: =IF($AA66<-'Results Dashboard'!$J$7,$AA66+'Results Dashboard'!$J$7,0) -> 0 | AF66: =IF($AA66<-'Results Dashboard'!$J$8,$AA66+'Results Dashboard'!$J$8,0) -> 0 | AG66: =IF($AA66<-'Results Dashboard'!$J$9,$AA66+'Results Dashboard'!$J$9,0) -> 0 | AH66: =IF($AA66<-'Results Dashboard'!$J$11,$AA66+'Results Dashboard'!$J$11,0) -> 0 | AI66: =IF($AA66<-'Results Dashboard'!$J$10,$AA66+'Results Dashboard'!$J$10,0) -> 0 | AK66: =IF((X66+W66)>0,(X66+W66)*0.5*'User Parameters'!C$48,(X66+W66)*0.5*'User Parameters'!$C$49) -> 0 | AL66: =-'User Parameters'!$C$12*('User Parameters'!$C$13-1) -> 0 | AM66: 0.1419956821
A67: 0.7750039254 | B67: 454.543427 | C67: 352.2729402 | D67: 0.7750039254 | E67: ='User Parameters'!$C$10 -> 40 | F67: =B67*'User Parameters'!$C$14 -> 0 | G67: 62.2704868 | H67: 0.1369956821 | I67: 0.7750039254 | J67: =IF(UP_RSBasis="MLR",UP_RSTarget_MLR,IF(UP_RSBasis="Medical Baseline",UP_RSTarget_Medlcal,0)) -> 0 | K67: 0 | L67: 0 | M67: 0 | N67: 0 | O67: 0 | P67: 0 | Q67: 0 | S67: 0 | T67: =(S67+C67+'User Parameters'!$C$11)/(B67-F67) -> 0.7750039254 | U67: =IF(T67<'User Parameters'!$J$5,'User Parameters'!$J$5,IF(T67>'User Parameters'!$J$6,'User Parameters'!$J$6,T67)) -> 0.7750039254 | V67: 0 | W67: 0 | X67: =(B67-C67-F67-E67-S67-V67)/'Results Dashboard'!$D$42 -> 0.1369956821 | Y67: =IF((X67+W67)>0,(X67+W67)*0.5*((1+'User Parameters'!C$48)^((12+UP_COC_WithholdLag)/12)-1),(X67+W67)*0.5*((1+'User Parameters'!$C$49)^((12+UP_COC_WithholdLag)/12)-1)) -> 0 | Z67: =-'User Parameters'!$C$12*('User Parameters'!$C$13-1) -> 0 | AA67: 0.1369956821 | AB67: 0.9992825303 | AC67: 0.000482252599 | AD67: 0.000482252599 | AE67: =IF($AA67<-'Results Dashboard'!$J$7,$AA67+'Results Dashboard'!$J$7,0) -> 0 | AF67: =IF($AA67<-'Results Dashboard'!$J$8,$AA67+'Results Dashboard'!$J$8,0) -> 0 | AG67: =IF($AA67<-'Results Dashboard'!$J$9,$AA67+'Results Dashboard'!$J$9,0) -> 0 | AH67: =IF($AA67<-'Results Dashboard'!$J$11,$AA67+'Results Dashboard'!$J$11,0) -> 0 | AI67: =IF($AA67<-'Results Dashboard'!$J$10,$AA67+'Results Dashboard'!$J$10,0) -> 0 | AK67: =IF((X67+W67)>0,(X67+W67)*0.5*'User Parameters'!C$48,(X67+W67)*0.5*'User Parameters'!$C$49) -> 0 | AL67: =-'User Parameters'!$C$12*('User Parameters'!$C$13-1) -> 0 | AM67: 0.1369956821
A68: 0.7800039254 | B68: 454.543427 | C68: 354.5456573 | D68: 0.7800039254 | E68: ='User Parameters'!$C$10 -> 40 | F68: =B68*'User Parameters'!$C$14 -> 0 | G68: 59.99776967 | H68: 0.1319956821 | I68: 0.7800039254 | J68: =IF(UP_RSBasis="MLR",UP_RSTarget_MLR,IF(UP_RSBasis="Medical Baseline",UP_RSTarget_Medlcal,0)) -> 0 | K68: 0 | L68: 0 | M68: 0 | N68: 0 | O68: 0 | P68: 0 | Q68: 0 | S68: 0 | T68: =(S68+C68+'User Parameters'!$C$11)/(B68-F68) -> 0.7800039254 | U68: =IF(T68<'User Parameters'!$J$5,'User Parameters'!$J$5,IF(T68>'User Parameters'!$J$6,'User Parameters'!$J$6,T68)) -> 0.7800039254 | V68: 0 | W68: 0 | X68: =(B68-C68-F68-E68-S68-V68)/'Results Dashboard'!$D$42 -> 0.1319956821 | Y68: =IF((X68+W68)>0,(X68+W68)*0.5*((1+'User Parameters'!C$48)^((12+UP_COC_WithholdLag)/12)-1),(X68+W68)*0.5*((1+'User Parameters'!$C$49)^((12+UP_COC_WithholdLag)/12)-1)) -> 0 | Z68: =-'User Parameters'!$C$12*('User Parameters'!$C$13-1) -> 0 | AA68: 0.1319956821 | AB68: 0.9988002777 | AC68: 0.0007638517088 | AD68: 0.0007638517088 | AE68: =IF($AA68<-'Results Dashboard'!$J$7,$AA68+'Results Dashboard'!$J$7,0) -> 0 | AF68: =IF($AA68<-'Results Dashboard'!$J$8,$AA68+'Results Dashboard'!$J$8,0) -> 0 | AG68: =IF($AA68<-'Results Dashboard'!$J$9,$AA68+'Results Dashboard'!$J$9,0) -> 0 | AH68: =IF($AA68<-'Results Dashboard'!$J$11,$AA68+'Results Dashboard'!$J$11,0) -> 0 | AI68: =IF($AA68<-'Results Dashboard'!$J$10,$AA68+'Results Dashboard'!$J$10,0) -> 0 | AK68: =IF((X68+W68)>0,(X68+W68)*0.5*'User Parameters'!C$48,(X68+W68)*0.5*'User Parameters'!$C$49) -> 0 | AL68: =-'User Parameters'!$C$12*('User Parameters'!$C$13-1) -> 0 | AM68: 0.1319956821
A69: 0.7850039254 | B69: 454.543427 | C69: 356.8183744 | D69: 0.7850039254 | E69: ='User Parameters'!$C$10 -> 40 | F69: =B69*'User Parameters'!$C$14 -> 0 | G69: 57.72505254 | H69: 0.1269956821 | I69: 0.7850039254 | J69: =IF(UP_RSBasis="MLR",UP_RSTarget_MLR,IF(UP_RSBasis="Medical Baseline",UP_RSTarget_Medlcal,0)) -> 0 | K69: 0 | L69: 0 | M69: 0 | N69: 0 | O69: 0 | P69: 0 | Q69: 0 | S69: 0 | T69: =(S69+C69+'User Parameters'!$C$11)/(B69-F69) -> 0.7850039254 | U69: =IF(T69<'User Parameters'!$J$5,'User Parameters'!$J$5,IF(T69>'User Parameters'!$J$6,'User Parameters'!$J$6,T69)) -> 0.7850039254 | V69: 0 | W69: 0 | X69: =(B69-C69-F69-E69-S69-V69)/'Results Dashboard'!$D$42 -> 0.1269956821 | Y69: =IF((X69+W69)>0,(X69+W69)*0.5*((1+'User Parameters'!C$48)^((12+UP_COC_WithholdLag)/12)-1),(X69+W69)*0.5*((1+'User Parameters'!$C$49)^((12+UP_COC_WithholdLag)/12)-1)) -> 0 | Z69: =-'User Parameters'!$C$12*('User Parameters'!$C$13-1) -> 0 | AA69: 0.1269956821 | AB69: 0.998036426 | AC69: 0.001182378935 | AD69: 0.001182378935 | AE69: =IF($AA69<-'Results Dashboard'!$J$7,$AA69+'Results Dashboard'!$J$7,0) -> 0 | AF69: =IF($AA69<-'Results Dashboard'!$J$8,$AA69+'Results Dashboard'!$J$8,0) -> 0 | AG69: =IF($AA69<-'Results Dashboard'!$J$9,$AA69+'Results Dashboard'!$J$9,0) -> 0 | AH69: =IF($AA69<-'Results Dashboard'!$J$11,$AA69+'Results Dashboard'!$J$11,0) -> 0 | AI69: =IF($AA69<-'Results Dashboard'!$J$10,$AA69+'Results Dashboard'!$J$10,0) -> 0 | AK69: =IF((X69+W69)>0,(X69+W69)*0.5*'User Parameters'!C$48,(X69+W69)*0.5*'User Parameters'!$C$49) -> 0 | AL69: =-'User Parameters'!$C$12*('User Parameters'!$C$13-1) -> 0 | AM69: 0.1269956821
A70: 0.7900039254 | B70: 454.543427 | C70: 359.0910916 | D70: 0.7900039254 | E70: ='User Parameters'!$C$10 -> 40 | F70: =B70*'User Parameters'!$C$14 -> 0 | G70: 55.4523354 | H70: 0.1219956821 | I70: 0.7900039254 | J70: =IF(UP_RSBasis="MLR",UP_RSTarget_MLR,IF(UP_RSBasis="Medical Baseline",UP_RSTarget_Medlcal,0)) -> 0 | K70: 0 | L70: 0 | M70: 0 | N70: 0 | O70: 0 | P70: 0 | Q70: 0 | S70: 0 | T70: =(S70+C70+'User Parameters'!$C$11)/(B70-F70) -> 0.7900039254 | U70: =IF(T70<'User Parameters'!$J$5,'User Parameters'!$J$5,IF(T70>'User Parameters'!$J$6,'User Parameters'!$J$6,T70)) -> 0.7900039254 | V70: 0 | W70: 0 | X70: =(B70-C70-F70-E70-S70-V70)/'Results Dashboard'!$D$42 -> 0.1219956821 | Y70: =IF((X70+W70)>0,(X70+W70)*0.5*((1+'User Parameters'!C$48)^((12+UP_COC_WithholdLag)/12)-1),(X70+W70)*0.5*((1+'User Parameters'!$C$49)^((12+UP_COC_WithholdLag)/12)-1)) -> 0 | Z70: =-'User Parameters'!$C$12*('User Parameters'!$C$13-1) -> 0 | AA70: 0.1219956821 | AB70: 0.9968540471 | AC70: 0.001788617534 | AD70: 0.001788617534 | AE70: =IF($AA70<-'Results Dashboard'!$J$7,$AA70+'Results Dashboard'!$J$7,0) -> 0 | AF70: =IF($AA70<-'Results Dashboard'!$J$8,$AA70+'Results Dashboard'!$J$8,0) -> 0 | AG70: =IF($AA70<-'Results Dashboard'!$J$9,$AA70+'Results Dashboard'!$J$9,0) -> 0 | AH70: =IF($AA70<-'Results Dashboard'!$J$11,$AA70+'Results Dashboard'!$J$11,0) -> 0 | AI70: =IF($AA70<-'Results Dashboard'!$J$10,$AA70+'Results Dashboard'!$J$10,0) -> 0 | AK70: =IF((X70+W70)>0,(X70+W70)*0.5*'User Parameters'!C$48,(X70+W70)*0.5*'User Parameters'!$C$49) -> 0 | AL70: =-'User Parameters'!$C$12*('User Parameters'!$C$13-1) -> 0 | AM70: 0.1219956821
A71: 0.7950039254 | B71: 454.543427 | C71: 361.3638087 | D71: 0.7950039254 | E71: ='User Parameters'!$C$10 -> 40 | F71: =B71*'User Parameters'!$C$14 -> 0 | G71: 53.17961827 | H71: 0.1169956821 | I71: 0.7950039254 | J71: =IF(UP_RSBasis="MLR",UP_RSTarget_MLR,IF(UP_RSBasis="Medical Baseline",UP_RSTarget_Medlcal,0)) -> 0 | K71: 0 | L71: 0 | M71: 0 | N71: 0 | O71: 0 | P71: 0 | Q71: 0 | S71: 0 | T71: =(S71+C71+'User Parameters'!$C$11)/(B71-F71) -> 0.7950039254 | U71: =IF(T71<'User Parameters'!$J$5,'User Parameters'!$J$5,IF(T71>'User Parameters'!$J$6,'User Parameters'!$J$6,T71)) -> 0.7950039254 | V71: 0 | W71: 0 | X71: =(B71-C71-F71-E71-S71-V71)/'Results Dashboard'!$D$42 -> 0.1169956821 | Y71: =IF((X71+W71)>0,(X71+W71)*0.5*((1+'User Parameters'!C$48)^((12+UP_COC_WithholdLag)/12)-1),(X71+W71)*0.5*((1+'User Parameters'!$C$49)^((12+UP_COC_WithholdLag)/12)-1)) -> 0 | Z71: =-'User Parameters'!$C$12*('User Parameters'!$C$13-1) -> 0 | AA71: 0.1169956821 | AB71: 0.9950654296 | AC71: 0.00264418278 | AD71: 0.00264418278 | AE71: =IF($AA71<-'Results Dashboard'!$J$7,$AA71+'Results Dashboard'!$J$7,0) -> 0 | AF71: =IF($AA71<-'Results Dashboard'!$J$8,$AA71+'Results Dashboard'!$J$8,0) -> 0 | AG71: =IF($AA71<-'Results Dashboard'!$J$9,$AA71+'Results Dashboard'!$J$9,0) -> 0 | AH71: =IF($AA71<-'Results Dashboard'!$J$11,$AA71+'Results Dashboard'!$J$11,0) -> 0 | AI71: =IF($AA71<-'Results Dashboard'!$J$10,$AA71+'Results Dashboard'!$J$10,0) -> 0 | AK71: =IF((X71+W71)>0,(X71+W71)*0.5*'User Parameters'!C$48,(X71+W71)*0.5*'User Parameters'!$C$49) -> 0 | AL71: =-'User Parameters'!$C$12*('User Parameters'!$C$13-1) -> 0 | AM71: 0.1169956821
A72: =A73-0.005 -> 0.8000039254 | B72: =$B$88 -> 454.543427 | C72: 363.6365258 | D72: 0.8000039254 | E72: ='User Parameters'!$C$10 -> 40 | F72: =B72*'User Parameters'!$C$14 -> 0 | G72: 50.90690113 | H72: 0.1119956821 | I72: 0.8000039254 | J72: =IF(UP_RSBasis="MLR",UP_RSTarget_MLR,IF(UP_RSBasis="Medical Baseline",UP_RSTarget_Medlcal,0)) -> 0 | K72: =IF(UP_RSBasis="MLR",J72-I72,IF(UP_RSBasis="Medical Baseline",J72-$C72,0)) -> 0 | L72: 0 | M72: 0 | N72: 0 | O72: 0 | P72: 0 | Q72: 0 | R72: =IF(UP_RSBasis="MLR",SUMPRODUCT(L$4:Q$4,L72:Q72),"") ->  | S72: =IF(UP_RSBasis="MLR",R72*(B72-F72),SUMPRODUCT($L$4:$Q$4,$L72:$Q72)) -> 0 | T72: =(S72+C72+'User Parameters'!$C$11)/(B72-F72) -> 0.8000039254 | U72: =IF(T72<'User Parameters'!$J$5,'User Parameters'!$J$5,IF(T72>'User Parameters'!$J$6,'User Parameters'!$J$6,T72)) -> 0.8000039254 | V72: =(U72-T72)*(B72-F72) -> 0 | W72: =V72/B72 -> 0 | X72: =(B72-C72-F72-E72-S72-V72)/'Results Dashboard'!$D$42 -> 0.1119956821 | Y72: =IF((X72+W72)>0,(X72+W72)*0.5*((1+'User Parameters'!C$48)^((12+UP_COC_WithholdLag)/12)-1),(X72+W72)*0.5*((1+'User Parameters'!$C$49)^((12+UP_COC_WithholdLag)/12)-1)) -> 0 | Z72: =-'User Parameters'!$C$12*('User Parameters'!$C$13-1) -> 0 | AA72: 0.1119956821 | AB72: =_xlfn.NORM.DIST(H72,$AD$2,$AD$3,TRUE) -> 0.9924212468 | AC72: 0.003820134616 | AD72: 0.003820134616 | AE72: =IF($AA72<-'Results Dashboard'!$J$7,$AA72+'Results Dashboard'!$J$7,0) -> 0 | AF72: =IF($AA72<-'Results Dashboard'!$J$8,$AA72+'Results Dashboard'!$J$8,0) -> 0 | AG72: =IF($AA72<-'Results Dashboard'!$J$9,$AA72+'Results Dashboard'!$J$9,0) -> 0 | AH72: =IF($AA72<-'Results Dashboard'!$J$11,$AA72+'Results Dashboard'!$J$11,0) -> 0 | AI72: =IF($AA72<-'Results Dashboard'!$J$10,$AA72+'Results Dashboard'!$J$10,0) -> 0 | AK72: =IF((X72+W72)>0,(X72+W72)*0.5*'User Parameters'!C$48,(X72+W72)*0.5*'User Parameters'!$C$49) -> 0 | AL72: =-'User Parameters'!$C$12*('User Parameters'!$C$13-1) -> 0 | AM72: 0.1119956821
A73: 0.8050039254 | B73: 454.543427 | C73: =B73*A73 -> 365.909243 | D73: =(C73)/(B73) -> 0.8050039254 | E73: ='User Parameters'!$C$10 -> 40 | F73: =B73*'User Parameters'!$C$14 -> 0 | G73: =B73-E73-C73-F73 -> 48.634184 | H73: =G73/B73 -> 0.1069956821 | I73: 0.8050039254 | J73: =IF(UP_RSBasis="MLR",UP_RSTarget_MLR,IF(UP_RSBasis="Medical Baseline",UP_RSTarget_Medlcal,0)) -> 0 | K73: 0 | L73: =IF($K73>0,MIN(J73*L$3-J73*L$2,$K73-M73-N73),0) -> 0 | M73: =IF($K73>0,MIN(J73*M$3-J73*M$2,$K73-N73),0) -> 0 | N73: =IF($K73>0,MIN(J73*N$3-J73*N$2,$K73),0) -> 0 | O73: =IF($K73<0,MAX(J73*O$2-J73*O$3,$K73),0) -> 0 | P73: =IF($K73<0,MAX(J73*P$2-J73*P$3,$K73-O73),0) -> 0 | Q73: =IF($K73<0,MAX(J73*Q$2-J73*Q$3,$K73-P73-O73),0) -> 0 | S73: 0 | T73: =(S73+C73+'User Parameters'!$C$11)/(B73-F73) -> 0.8050039254 | U73: =IF(T73<'User Parameters'!$J$5,'User Parameters'!$J$5,IF(T73>'User Parameters'!$J$6,'User Parameters'!$J$6,T73)) -> 0.8050039254 | V73: 0 | W73: 0 | X73: =(B73-C73-F73-E73-S73-V73)/'Results Dashboard'!$D$42 -> 0.1069956821 | Y73: =IF((X73+W73)>0,(X73+W73)*0.5*((1+'User Parameters'!C$48)^((12+UP_COC_WithholdLag)/12)-1),(X73+W73)*0.5*((1+'User Parameters'!$C$49)^((12+UP_COC_WithholdLag)/12)-1)) -> 0 | Z73: =-'User Parameters'!$C$12*('User Parameters'!$C$13-1) -> 0 | AA73: =Y73+X73-Z73 -> 0.1069956821 | AB73: 0.9886011122 | AC73: =AB73-AB74 -> 0.005393604328 | AD73: 0.005393604328 | AE73: =IF($AA73<-'Results Dashboard'!$J$7,$AA73+'Results Dashboard'!$J$7,0) -> 0 | AF73: =IF($AA73<-'Results Dashboard'!$J$8,$AA73+'Results Dashboard'!$J$8,0) -> 0 | AG73: =IF($AA73<-'Results Dashboard'!$J$9,$AA73+'Results Dashboard'!$J$9,0) -> 0 | AH73: =IF($AA73<-'Results Dashboard'!$J$11,$AA73+'Results Dashboard'!$J$11,0) -> 0 | AI73: =IF($AA73<-'Results Dashboard'!$J$10,$AA73+'Results Dashboard'!$J$10,0) -> 0 | AK73: =IF((X73+W73)>0,(X73+W73)*0.5*'User Parameters'!C$48,(X73+W73)*0.5*'User Parameters'!$C$49) -> 0 | AL73: =-'User Parameters'!$C$12*('User Parameters'!$C$13-1) -> 0 | AM73: =-AK73+X73-AL73 -> 0.1069956821
A74: 0.8100039254 | B74: 454.543427 | C74: 368.1819601 | D74: 0.8100039254 | E74: ='User Parameters'!$C$10 -> 40 | F74: =B74*'User Parameters'!$C$14 -> 0 | G74: 46.36146686 | H74: 0.1019956821 | I74: 0.8100039254 | J74: =IF(UP_RSBasis="MLR",UP_RSTarget_MLR,IF(UP_RSBasis="Medical Baseline",UP_RSTarget_Medlcal,0)) -> 0 | K74: 0 | L74: 0 | M74: 0 | N74: 0 | O74: 0 | P74: 0 | Q74: 0 | S74: 0 | T74: =(S74+C74+'User Parameters'!$C$11)/(B74-F74) -> 0.8100039254 | U74: =IF(T74<'User Parameters'!$J$5,'User Parameters'!$J$5,IF(T74>'User Parameters'!$J$6,'User Parameters'!$J$6,T74)) -> 0.8100039254 | V74: 0 | W74: 0 | X74: =(B74-C74-F74-E74-S74-V74)/'Results Dashboard'!$D$42 -> 0.1019956821 | Y74: =IF((X74+W74)>0,(X74+W74)*0.5*((1+'User Parameters'!C$48)^((12+UP_COC_WithholdLag)/12)-1),(X74+W74)*0.5*((1+'User Parameters'!$C$49)^((12+UP_COC_WithholdLag)/12)-1)) -> 0 | Z74: =-'User Parameters'!$C$12*('User Parameters'!$C$13-1) -> 0 | AA74: 0.1019956821 | AB74: 0.9832075078 | AC74: 0.007442052636 | AD74: =AC74 -> 0.007442052636 | AE74: =IF($AA74<-'Results Dashboard'!$J$7,$AA74+'Results Dashboard'!$J$7,0) -> 0 | AF74: =IF($AA74<-'Results Dashboard'!$J$8,$AA74+'Results Dashboard'!$J$8,0) -> 0 | AG74: =IF($AA74<-'Results Dashboard'!$J$9,$AA74+'Results Dashboard'!$J$9,0) -> 0 | AH74: =IF($AA74<-'Results Dashboard'!$J$11,$AA74+'Results Dashboard'!$J$11,0) -> 0 | AI74: =IF($AA74<-'Results Dashboard'!$J$10,$AA74+'Results Dashboard'!$J$10,0) -> 0 | AK74: =IF((X74+W74)>0,(X74+W74)*0.5*'User Parameters'!C$48,(X74+W74)*0.5*'User Parameters'!$C$49) -> 0 | AL74: =-'User Parameters'!$C$12*('User Parameters'!$C$13-1) -> 0 | AM74: 0.1019956821
A75: 0.8150039254 | B75: 454.543427 | C75: 370.4546772 | D75: 0.8150039254 | E75: ='User Parameters'!$C$10 -> 40 | F75: =B75*'User Parameters'!$C$14 -> 0 | G75: 44.08874973 | H75: 0.09699568206 | I75: 0.8150039254 | J75: =IF(UP_RSBasis="MLR",UP_RSTarget_MLR,IF(UP_RSBasis="Medical Baseline",UP_RSTarget_Medlcal,0)) -> 0 | K75: 0 | L75: 0 | M75: 0 | N75: 0 | O75: 0 | P75: 0 | Q75: 0 | S75: 0 | T75: =(S75+C75+'User Parameters'!$C$11)/(B75-F75) -> 0.8150039254 | U75: =IF(T75<'User Parameters'!$J$5,'User Parameters'!$J$5,IF(T75>'User Parameters'!$J$6,'User Parameters'!$J$6,T75)) -> 0.8150039254 | V75: 0 | W75: 0 | X75: =(B75-C75-F75-E75-S75-V75)/'Results Dashboard'!$D$42 -> 0.09699568206 | Y75: =IF((X75+W75)>0,(X75+W75)*0.5*((1+'User Parameters'!C$48)^((12+UP_COC_WithholdLag)/12)-1),(X75+W75)*0.5*((1+'User Parameters'!$C$49)^((12+UP_COC_WithholdLag)/12)-1)) -> 0 | Z75: =-'User Parameters'!$C$12*('User Parameters'!$C$13-1) -> 0 | AA75: 0.09699568206 | AB75: 0.9757654552 | AC75: 0.01003505234 | AD75: 0.01003505234 | AE75: =IF($AA75<-'Results Dashboard'!$J$7,$AA75+'Results Dashboard'!$J$7,0) -> 0 | AF75: =IF($AA75<-'Results Dashboard'!$J$8,$AA75+'Results Dashboard'!$J$8,0) -> 0 | AG75: =IF($AA75<-'Results Dashboard'!$J$9,$AA75+'Results Dashboard'!$J$9,0) -> 0 | AH75: =IF($AA75<-'Results Dashboard'!$J$11,$AA75+'Results Dashboard'!$J$11,0) -> 0 | AI75: =IF($AA75<-'Results Dashboard'!$J$10,$AA75+'Results Dashboard'!$J$10,0) -> 0 | AK75: =IF((X75+W75)>0,(X75+W75)*0.5*'User Parameters'!C$48,(X75+W75)*0.5*'User Parameters'!$C$49) -> 0 | AL75: =-'User Parameters'!$C$12*('User Parameters'!$C$13-1) -> 0 | AM75: 0.09699568206
A76: 0.8200039254 | B76: 454.543427 | C76: 372.7273944 | D76: 0.8200039254 | E76: ='User Parameters'!$C$10 -> 40 | F76: =B76*'User Parameters'!$C$14 -> 0 | G76: 41.81603259 | H76: 0.09199568206 | I76: 0.8200039254 | J76: =IF(UP_RSBasis="MLR",UP_RSTarget_MLR,IF(UP_RSBasis="Medical Baseline",UP_RSTarget_Medlcal,0)) -> 0 | K76: 0 | L76: 0 | M76: 0 | N76: 0 | O76: 0 | P76: 0 | Q76: 0 | S76: 0 | T76: =(S76+C76+'User Parameters'!$C$11)/(B76-F76) -> 0.8200039254 | U76: =IF(T76<'User Parameters'!$J$5,'User Parameters'!$J$5,IF(T76>'User Parameters'!$J$6,'User Parameters'!$J$6,T76)) -> 0.8200039254 | V76: 0 | W76: 0 | X76: =(B76-C76-F76-E76-S76-V76)/'Results Dashboard'!$D$42 -> 0.09199568206 | Y76: =IF((X76+W76)>0,(X76+W76)*0.5*((1+'User Parameters'!C$48)^((12+UP_COC_WithholdLag)/12)-1),(X76+W76)*0.5*((1+'User Parameters'!$C$49)^((12+UP_COC_WithholdLag)/12)-1)) -> 0 | Z76: =-'User Parameters'!$C$12*('User Parameters'!$C$13-1) -> 0 | AA76: 0.09199568206 | AB76: 0.9657304029 | AC76: 0.01322390776 | AD76: 0.01322390776 | AE76: =IF($AA76<-'Results Dashboard'!$J$7,$AA76+'Results Dashboard'!$J$7,0) -> 0 | AF76: =IF($AA76<-'Results Dashboard'!$J$8,$AA76+'Results Dashboard'!$J$8,0) -> 0 | AG76: =IF($AA76<-'Results Dashboard'!$J$9,$AA76+'Results Dashboard'!$J$9,0) -> 0 | AH76: =IF($AA76<-'Results Dashboard'!$J$11,$AA76+'Results Dashboard'!$J$11,0) -> 0 | AI76: =IF($AA76<-'Results Dashboard'!$J$10,$AA76+'Results Dashboard'!$J$10,0) -> 0 | AK76: =IF((X76+W76)>0,(X76+W76)*0.5*'User Parameters'!C$48,(X76+W76)*0.5*'User Parameters'!$C$49) -> 0 | AL76: =-'User Parameters'!$C$12*('User Parameters'!$C$13-1) -> 0 | AM76: 0.09199568206
A77: 0.8250039254 | B77: 454.543427 | C77: 375.0001115 | D77: 0.8250039254 | E77: ='User Parameters'!$C$10 -> 40 | F77: =B77*'User Parameters'!$C$14 -> 0 | G77: =B77-E77-C77-F77 -> 39.54331546 | H77: 0.08699568206 | I77: 0.8250039254 | J77: =IF(UP_RSBasis="MLR",UP_RSTarget_MLR,IF(UP_RSBasis="Medical Baseline",UP_RSTarget_Medlcal,0)) -> 0 | K77: 0 | L77: 0 | M77: 0 | N77: 0 | O77: 0 | P77: 0 | Q77: 0 | S77: 0 | T77: =(S77+C77+'User Parameters'!$C$11)/(B77-F77) -> 0.8250039254 | U77: =IF(T77<'User Parameters'!$J$5,'User Parameters'!$J$5,IF(T77>'User Parameters'!$J$6,'User Parameters'!$J$6,T77)) -> 0.8250039254 | V77: 0 | W77: 0 | X77: =(B77-C77-F77-E77-S77-V77)/'Results Dashboard'!$D$42 -> 0.08699568206 | Y77: =IF((X77+W77)>0,(X77+W77)*0.5*((1+'User Parameters'!C$48)^((12+UP_COC_WithholdLag)/12)-1),(X77+W77)*0.5*((1+'User Parameters'!$C$49)^((12+UP_COC_WithholdLag)/12)-1)) -> 0 | Z77: =-'User Parameters'!$C$12*('User Parameters'!$C$13-1) -> 0 | AA77: 0.08699568206 | AB77: 0.9525064951 | AC77: 0.01702994546 | AD77: 0.01702994546 | AE77: =IF($AA77<-'Results Dashboard'!$J$7,$AA77+'Results Dashboard'!$J$7,0) -> 0 | AF77: =IF($AA77<-'Results Dashboard'!$J$8,$AA77+'Results Dashboard'!$J$8,0) -> 0 | AG77: =IF($AA77<-'Results Dashboard'!$J$9,$AA77+'Results Dashboard'!$J$9,0) -> 0 | AH77: =IF($AA77<-'Results Dashboard'!$J$11,$AA77+'Results Dashboard'!$J$11,0) -> 0 | AI77: =IF($AA77<-'Results Dashboard'!$J$10,$AA77+'Results Dashboard'!$J$10,0) -> 0 | AK77: =IF((X77+W77)>0,(X77+W77)*0.5*'User Parameters'!C$48,(X77+W77)*0.5*'User Parameters'!$C$49) -> 0 | AL77: =-'User Parameters'!$C$12*('User Parameters'!$C$13-1) -> 0 | AM77: 0.08699568206
A78: 0.8300039254 | B78: 454.543427 | C78: 377.2728287 | D78: 0.8300039254 | E78: ='User Parameters'!$C$10 -> 40 | F78: =B78*'User Parameters'!$C$14 -> 0 | G78: 37.27059832 | H78: 0.08199568206 | I78: 0.8300039254 | J78: =IF(UP_RSBasis="MLR",UP_RSTarget_MLR,IF(UP_RSBasis="Medical Baseline",UP_RSTarget_Medlcal,0)) -> 0 | K78: 0 | L78: 0 | M78: 0 | N78: 0 | O78: 0 | P78: 0 | Q78: 0 | S78: 0 | T78: =(S78+C78+'User Parameters'!$C$11)/(B78-F78) -> 0.8300039254 | U78: =IF(T78<'User Parameters'!$J$5,'User Parameters'!$J$5,IF(T78>'User Parameters'!$J$6,'User Parameters'!$J$6,T78)) -> 0.8300039254 | V78: 0 | W78: 0 | X78: =(B78-C78-F78-E78-S78-V78)/'Results Dashboard'!$D$42 -> 0.08199568206 | Y78: =IF((X78+W78)>0,(X78+W78)*0.5*((1+'User Parameters'!C$48)^((12+UP_COC_WithholdLag)/12)-1),(X78+W78)*0.5*((1+'User Parameters'!$C$49)^((12+UP_COC_WithholdLag)/12)-1)) -> 0 | Z78: =-'User Parameters'!$C$12*('User Parameters'!$C$13-1) -> 0 | AA78: 0.08199568206 | AB78: 0.9354765496 | AC78: 0.02143285325 | AD78: 0.02143285325 | AE78: =IF($AA78<-'Results Dashboard'!$J$7,$AA78+'Results Dashboard'!$J$7,0) -> 0 | AF78: =IF($AA78<-'Results Dashboard'!$J$8,$AA78+'Results Dashboard'!$J$8,0) -> 0 | AG78: =IF($AA78<-'Results Dashboard'!$J$9,$AA78+'Results Dashboard'!$J$9,0) -> 0 | AH78: =IF($AA78<-'Results Dashboard'!$J$11,$AA78+'Results Dashboard'!$J$11,0) -> 0 | AI78: =IF($AA78<-'Results Dashboard'!$J$10,$AA78+'Results Dashboard'!$J$10,0) -> 0 | AK78: =IF((X78+W78)>0,(X78+W78)*0.5*'User Parameters'!C$48,(X78+W78)*0.5*'User Parameters'!$C$49) -> 0 | AL78: =-'User Parameters'!$C$12*('User Parameters'!$C$13-1) -> 0 | AM78: 0.08199568206
A79: 0.8350039254 | B79: 454.543427 | C79: 379.5455458 | D79: 0.8350039254 | E79: ='User Parameters'!$C$10 -> 40 | F79: =B79*'User Parameters'!$C$14 -> 0 | G79: 34.99788119 | H79: 0.07699568206 | I79: 0.8350039254 | J79: =IF(UP_RSBasis="MLR",UP_RSTarget_MLR,IF(UP_RSBasis="Medical Baseline",UP_RSTarget_Medlcal,0)) -> 0 | K79: 0 | L79: 0 | M79: 0 | N79: 0 | O79: 0 | P79: 0 | Q79: 0 | S79: 0 | T79: =(S79+C79+'User Parameters'!$C$11)/(B79-F79) -> 0.8350039254 | U79: =IF(T79<'User Parameters'!$J$5,'User Parameters'!$J$5,IF(T79>'User Parameters'!$J$6,'User Parameters'!$J$6,T79)) -> 0.8350039254 | V79: 0 | W79: 0 | X79: =(B79-C79-F79-E79-S79-V79)/'Results Dashboard'!$D$42 -> 0.07699568206 | Y79: =IF((X79+W79)>0,(X79+W79)*0.5*((1+'User Parameters'!C$48)^((12+UP_COC_WithholdLag)/12)-1),(X79+W79)*0.5*((1+'User Parameters'!$C$49)^((12+UP_COC_WithholdLag)/12)-1)) -> 0 | Z79: =-'User Parameters'!$C$12*('User Parameters'!$C$13-1) -> 0 | AA79: 0.07699568206 | AB79: 0.9140436964 | AC79: 0.02636088711 | AD79: 0.02636088711 | AE79: =IF($AA79<-'Results Dashboard'!$J$7,$AA79+'Results Dashboard'!$J$7,0) -> 0 | AF79: =IF($AA79<-'Results Dashboard'!$J$8,$AA79+'Results Dashboard'!$J$8,0) -> 0 | AG79: =IF($AA79<-'Results Dashboard'!$J$9,$AA79+'Results Dashboard'!$J$9,0) -> 0 | AH79: =IF($AA79<-'Results Dashboard'!$J$11,$AA79+'Results Dashboard'!$J$11,0) -> 0 | AI79: =IF($AA79<-'Results Dashboard'!$J$10,$AA79+'Results Dashboard'!$J$10,0) -> 0 | AK79: =IF((X79+W79)>0,(X79+W79)*0.5*'User Parameters'!C$48,(X79+W79)*0.5*'User Parameters'!$C$49) -> 0 | AL79: =-'User Parameters'!$C$12*('User Parameters'!$C$13-1) -> 0 | AM79: 0.07699568206
A80: 0.8400039254 | B80: 454.543427 | C80: 381.8182629 | D80: 0.8400039254 | E80: ='User Parameters'!$C$10 -> 40 | F80: =B80*'User Parameters'!$C$14 -> 0 | G80: 32.72516405 | H80: 0.07199568206 | I80: 0.8400039254 | J80: =IF(UP_RSBasis="MLR",UP_RSTarget_MLR,IF(UP_RSBasis="Medical Baseline",UP_RSTarget_Medlcal,0)) -> 0 | K80: 0 | L80: 0 | M80: 0 | N80: 0 | O80: 0 | P80: 0 | Q80: 0 | S80: 0 | T80: =(S80+C80+'User Parameters'!$C$11)/(B80-F80) -> 0.8400039254 | U80: =IF(T80<'User Parameters'!$J$5,'User Parameters'!$J$5,IF(T80>'User Parameters'!$J$6,'User Parameters'!$J$6,T80)) -> 0.8400039254 | V80: 0 | W80: 0 | X80: =(B80-C80-F80-E80-S80-V80)/'Results Dashboard'!$D$42 -> 0.07199568206 | Y80: =IF((X80+W80)>0,(X80+W80)*0.5*((1+'User Parameters'!C$48)^((12+UP_COC_WithholdLag)/12)-1),(X80+W80)*0.5*((1+'User Parameters'!$C$49)^((12+UP_COC_WithholdLag)/12)-1)) -> 0 | Z80: =-'User Parameters'!$C$12*('User Parameters'!$C$13-1) -> 0 | AA80: 0.07199568206 | AB80: 0.8876828093 | AC80: 0.0316849743 | AD80: 0.0316849743 | AE80: =IF($AA80<-'Results Dashboard'!$J$7,$AA80+'Results Dashboard'!$J$7,0) -> 0 | AF80: =IF($AA80<-'Results Dashboard'!$J$8,$AA80+'Results Dashboard'!$J$8,0) -> 0 | AG80: =IF($AA80<-'Results Dashboard'!$J$9,$AA80+'Results Dashboard'!$J$9,0) -> 0 | AH80: =IF($AA80<-'Results Dashboard'!$J$11,$AA80+'Results Dashboard'!$J$11,0) -> 0 | AI80: =IF($AA80<-'Results Dashboard'!$J$10,$AA80+'Results Dashboard'!$J$10,0) -> 0 | AK80: =IF((X80+W80)>0,(X80+W80)*0.5*'User Parameters'!C$48,(X80+W80)*0.5*'User Parameters'!$C$49) -> 0 | AL80: =-'User Parameters'!$C$12*('User Parameters'!$C$13-1) -> 0 | AM80: 0.07199568206
A81: 0.8450039254 | B81: 454.543427 | C81: 384.0909801 | D81: 0.8450039254 | E81: ='User Parameters'!$C$10 -> 40 | F81: =B81*'User Parameters'!$C$14 -> 0 | G81: 30.45244692 | H81: 0.06699568206 | I81: 0.8450039254 | J81: =IF(UP_RSBasis="MLR",UP_RSTarget_MLR,IF(UP_RSBasis="Medical Baseline",UP_RSTarget_Medlcal,0)) -> 0 | K81: 0 | L81: 0 | M81: 0 | N81: 0 | O81: 0 | P81: 0 | Q81: 0 | S81: 0 | T81: =(S81+C81+'User Parameters'!$C$11)/(B81-F81) -> 0.8450039254 | U81: =IF(T81<'User Parameters'!$J$5,'User Parameters'!$J$5,IF(T81>'User Parameters'!$J$6,'User Parameters'!$J$6,T81)) -> 0.8450039254 | V81: 0 | W81: 0 | X81: =(B81-C81-F81-E81-S81-V81)/'Results Dashboard'!$D$42 -> 0.06699568206 | Y81: =IF((X81+W81)>0,(X81+W81)*0.5*((1+'User Parameters'!C$48)^((12+UP_COC_WithholdLag)/12)-1),(X81+W81)*0.5*((1+'User Parameters'!$C$49)^((12+UP_COC_WithholdLag)/12)-1)) -> 0 | Z81: =-'User Parameters'!$C$12*('User Parameters'!$C$13-1) -> 0 | AA81: 0.06699568206 | AB81: 0.855997835 | AC81: 0.03721859822 | AD81: 0.03721859822 | AE81: =IF($AA81<-'Results Dashboard'!$J$7,$AA81+'Results Dashboard'!$J$7,0) -> 0 | AF81: =IF($AA81<-'Results Dashboard'!$J$8,$AA81+'Results Dashboard'!$J$8,0) -> 0 | AG81: =IF($AA81<-'Results Dashboard'!$J$9,$AA81+'Results Dashboard'!$J$9,0) -> 0 | AH81: =IF($AA81<-'Results Dashboard'!$J$11,$AA81+'Results Dashboard'!$J$11,0) -> 0 | AI81: =IF($AA81<-'Results Dashboard'!$J$10,$AA81+'Results Dashboard'!$J$10,0) -> 0 | AK81: =IF((X81+W81)>0,(X81+W81)*0.5*'User Parameters'!C$48,(X81+W81)*0.5*'User Parameters'!$C$49) -> 0 | AL81: =-'User Parameters'!$C$12*('User Parameters'!$C$13-1) -> 0 | AM81: 0.06699568206
A82: 0.8500039254 | B82: 454.543427 | C82: 386.3636972 | D82: 0.8500039254 | E82: ='User Parameters'!$C$10 -> 40 | F82: =B82*'User Parameters'!$C$14 -> 0 | G82: 28.17972978 | H82: 0.06199568206 | I82: 0.8500039254 | J82: =IF(UP_RSBasis="MLR",UP_RSTarget_MLR,IF(UP_RSBasis="Medical Baseline",UP_RSTarget_Medlcal,0)) -> 0 | K82: 0 | L82: 0 | M82: 0 | N82: 0 | O82: 0 | P82: 0 | Q82: 0 | S82: 0 | T82: =(S82+C82+'User Parameters'!$C$11)/(B82-F82) -> 0.8500039254 | U82: =IF(T82<'User Parameters'!$J$5,'User Parameters'!$J$5,IF(T82>'User Parameters'!$J$6,'User Parameters'!$J$6,T82)) -> 0.8500039254 | V82: 0 | W82: 0 | X82: =(B82-C82-F82-E82-S82-V82)/'Results Dashboard'!$D$42 -> 0.06199568206 | Y82: =IF((X82+W82)>0,(X82+W82)*0.5*((1+'User Parameters'!C$48)^((12+UP_COC_WithholdLag)/12)-1),(X82+W82)*0.5*((1+'User Parameters'!$C$49)^((12+UP_COC_WithholdLag)/12)-1)) -> 0 | Z82: =-'User Parameters'!$C$12*('User Parameters'!$C$13-1) -> 0 | AA82: 0.06199568206 | AB82: 0.8187792368 | AC82: 0.04272479494 | AD82: 0.04272479494 | AE82: =IF($AA82<-'Results Dashboard'!$J$7,$AA82+'Results Dashboard'!$J$7,0) -> 0 | AF82: =IF($AA82<-'Results Dashboard'!$J$8,$AA82+'Results Dashboard'!$J$8,0) -> 0 | AG82: =IF($AA82<-'Results Dashboard'!$J$9,$AA82+'Results Dashboard'!$J$9,0) -> 0 | AH82: =IF($AA82<-'Results Dashboard'!$J$11,$AA82+'Results Dashboard'!$J$11,0) -> 0 | AI82: =IF($AA82<-'Results Dashboard'!$J$10,$AA82+'Results Dashboard'!$J$10,0) -> 0 | AK82: =IF((X82+W82)>0,(X82+W82)*0.5*'User Parameters'!C$48,(X82+W82)*0.5*'User Parameters'!$C$49) -> 0 | AL82: =-'User Parameters'!$C$12*('User Parameters'!$C$13-1) -> 0 | AM82: 0.06199568206
A83: 0.8550039254 | B83: 454.543427 | C83: 388.6364143 | D83: 0.8550039254 | E83: ='User Parameters'!$C$10 -> 40 | F83: =B83*'User Parameters'!$C$14 -> 0 | G83: 25.90701265 | H83: 0.05699568206 | I83: 0.8550039254 | J83: =IF(UP_RSBasis="MLR",UP_RSTarget_MLR,IF(UP_RSBasis="Medical Baseline",UP_RSTarget_Medlcal,0)) -> 0 | K83: 0 | L83: 0 | M83: 0 | N83: 0 | O83: 0 | P83: 0 | Q83: 0 | S83: 0 | T83: =(S83+C83+'User Parameters'!$C$11)/(B83-F83) -> 0.8550039254 | U83: =IF(T83<'User Parameters'!$J$5,'User Parameters'!$J$5,IF(T83>'User Parameters'!$J$6,'User Parameters'!$J$6,T83)) -> 0.8550039254 | V83: 0 | W83: 0 | X83: =(B83-C83-F83-E83-S83-V83)/'Results Dashboard'!$D$42 -> 0.05699568206 | Y83: =IF((X83+W83)>0,(X83+W83)*0.5*((1+'User Parameters'!C$48)^((12+UP_COC_WithholdLag)/12)-1),(X83+W83)*0.5*((1+'User Parameters'!$C$49)^((12+UP_COC_WithholdLag)/12)-1)) -> 0 | Z83: =-'User Parameters'!$C$12*('User Parameters'!$C$13-1) -> 0 | AA83: 0.05699568206 | AB83: 0.7760544418 | AC83: 0.04793064686 | AD83: 0.04793064686 | AE83: =IF($AA83<-'Results Dashboard'!$J$7,$AA83+'Results Dashboard'!$J$7,0) -> 0 | AF83: =IF($AA83<-'Results Dashboard'!$J$8,$AA83+'Results Dashboard'!$J$8,0) -> 0 | AG83: =IF($AA83<-'Results Dashboard'!$J$9,$AA83+'Results Dashboard'!$J$9,0) -> 0 | AH83: =IF($AA83<-'Results Dashboard'!$J$11,$AA83+'Results Dashboard'!$J$11,0) -> 0 | AI83: =IF($AA83<-'Results Dashboard'!$J$10,$AA83+'Results Dashboard'!$J$10,0) -> 0 | AK83: =IF((X83+W83)>0,(X83+W83)*0.5*'User Parameters'!C$48,(X83+W83)*0.5*'User Parameters'!$C$49) -> 0 | AL83: =-'User Parameters'!$C$12*('User Parameters'!$C$13-1) -> 0 | AM83: 0.05699568206
A84: 0.8600039254 | B84: 454.543427 | C84: 390.9091315 | D84: 0.8600039254 | E84: ='User Parameters'!$C$10 -> 40 | F84: =B84*'User Parameters'!$C$14 -> 0 | G84: 23.63429551 | H84: 0.05199568206 | I84: 0.8600039254 | J84: =IF(UP_RSBasis="MLR",UP_RSTarget_MLR,IF(UP_RSBasis="Medical Baseline",UP_RSTarget_Medlcal,0)) -> 0 | K84: 0 | L84: 0 | M84: 0 | N84: 0 | O84: 0 | P84: 0 | Q84: 0 | S84: 0 | T84: =(S84+C84+'User Parameters'!$C$11)/(B84-F84) -> 0.8600039254 | U84: =IF(T84<'User Parameters'!$J$5,'User Parameters'!$J$5,IF(T84>'User Parameters'!$J$6,'User Parameters'!$J$6,T84)) -> 0.8600039254 | V84: 0 | W84: 0 | X84: =(B84-C84-F84-E84-S84-V84)/'Results Dashboard'!$D$42 -> 0.05199568206 | Y84: =IF((X84+W84)>0,(X84+W84)*0.5*((1+'User Parameters'!C$48)^((12+UP_COC_WithholdLag)/12)-1),(X84+W84)*0.5*((1+'User Parameters'!$C$49)^((12+UP_COC_WithholdLag)/12)-1)) -> 0 | Z84: =-'User Parameters'!$C$12*('User Parameters'!$C$13-1) -> 0 | AA84: 0.05199568206 | AB84: 0.728123795 | AC84: 0.05254845196 | AD84: 0.05254845196 | AE84: =IF($AA84<-'Results Dashboard'!$J$7,$AA84+'Results Dashboard'!$J$7,0) -> 0 | AF84: =IF($AA84<-'Results Dashboard'!$J$8,$AA84+'Results Dashboard'!$J$8,0) -> 0 | AG84: =IF($AA84<-'Results Dashboard'!$J$9,$AA84+'Results Dashboard'!$J$9,0) -> 0 | AH84: =IF($AA84<-'Results Dashboard'!$J$11,$AA84+'Results Dashboard'!$J$11,0) -> 0 | AI84: =IF($AA84<-'Results Dashboard'!$J$10,$AA84+'Results Dashboard'!$J$10,0) -> 0 | AK84: =IF((X84+W84)>0,(X84+W84)*0.5*'User Parameters'!C$48,(X84+W84)*0.5*'User Parameters'!$C$49) -> 0 | AL84: =-'User Parameters'!$C$12*('User Parameters'!$C$13-1) -> 0 | AM84: 0.05199568206
A85: 0.8650039254 | B85: 454.543427 | C85: 393.1818486 | D85: 0.8650039254 | E85: ='User Parameters'!$C$10 -> 40 | F85: =B85*'User Parameters'!$C$14 -> 0 | G85: 21.36157838 | H85: 0.04699568206 | I85: 0.8650039254 | J85: =IF(UP_RSBasis="MLR",UP_RSTarget_MLR,IF(UP_RSBasis="Medical Baseline",UP_RSTarget_Medlcal,0)) -> 0 | K85: 0 | L85: 0 | M85: 0 | N85: 0 | O85: 0 | P85: 0 | Q85: 0 | S85: 0 | T85: =(S85+C85+'User Parameters'!$C$11)/(B85-F85) -> 0.8650039254 | U85: =IF(T85<'User Parameters'!$J$5,'User Parameters'!$J$5,IF(T85>'User Parameters'!$J$6,'User Parameters'!$J$6,T85)) -> 0.8650039254 | V85: 0 | W85: 0 | X85: =(B85-C85-F85-E85-S85-V85)/'Results Dashboard'!$D$42 -> 0.04699568206 | Y85: =IF((X85+W85)>0,(X85+W85)*0.5*((1+'User Parameters'!C$48)^((12+UP_COC_WithholdLag)/12)-1),(X85+W85)*0.5*((1+'User Parameters'!$C$49)^((12+UP_COC_WithholdLag)/12)-1)) -> 0 | Z85: =-'User Parameters'!$C$12*('User Parameters'!$C$13-1) -> 0 | AA85: 0.04699568206 | AB85: 0.675575343 | AC85: 0.05630149153 | AD85: 0.05630149153 | AE85: =IF($AA85<-'Results Dashboard'!$J$7,$AA85+'Results Dashboard'!$J$7,0) -> 0 | AF85: =IF($AA85<-'Results Dashboard'!$J$8,$AA85+'Results Dashboard'!$J$8,0) -> 0 | AG85: =IF($AA85<-'Results Dashboard'!$J$9,$AA85+'Results Dashboard'!$J$9,0) -> 0 | AH85: =IF($AA85<-'Results Dashboard'!$J$11,$AA85+'Results Dashboard'!$J$11,0) -> 0 | AI85: =IF($AA85<-'Results Dashboard'!$J$10,$AA85+'Results Dashboard'!$J$10,0) -> 0 | AK85: =IF((X85+W85)>0,(X85+W85)*0.5*'User Parameters'!C$48,(X85+W85)*0.5*'User Parameters'!$C$49) -> 0 | AL85: =-'User Parameters'!$C$12*('User Parameters'!$C$13-1) -> 0 | AM85: 0.04699568206
A86: 0.8700039254 | B86: 454.543427 | C86: 395.4545657 | D86: 0.8700039254 | E86: ='User Parameters'!$C$10 -> 40 | F86: =B86*'User Parameters'!$C$14 -> 0 | G86: 19.08886124 | H86: 0.04199568206 | I86: 0.8700039254 | J86: =IF(UP_RSBasis="MLR",UP_RSTarget_MLR,IF(UP_RSBasis="Medical Baseline",UP_RSTarget_Medlcal,0)) -> 0 | K86: 0 | L86: 0 | M86: 0 | N86: 0 | O86: 0 | P86: 0 | Q86: 0 | S86: 0 | T86: =(S86+C86+'User Parameters'!$C$11)/(B86-F86) -> 0.8700039254 | U86: =IF(T86<'User Parameters'!$J$5,'User Parameters'!$J$5,IF(T86>'User Parameters'!$J$6,'User Parameters'!$J$6,T86)) -> 0.8700039254 | V86: 0 | W86: 0 | X86: =(B86-C86-F86-E86-S86-V86)/'Results Dashboard'!$D$42 -> 0.04199568206 | Y86: =IF((X86+W86)>0,(X86+W86)*0.5*((1+'User Parameters'!C$48)^((12+UP_COC_WithholdLag)/12)-1),(X86+W86)*0.5*((1+'User Parameters'!$C$49)^((12+UP_COC_WithholdLag)/12)-1)) -> 0 | Z86: =-'User Parameters'!$C$12*('User Parameters'!$C$13-1) -> 0 | AA86: 0.04199568206 | AB86: 0.6192738515 | AC86: 0.05895127662 | AD86: 0.05895127662 | AE86: =IF($AA86<-'Results Dashboard'!$J$7,$AA86+'Results Dashboard'!$J$7,0) -> 0 | AF86: =IF($AA86<-'Results Dashboard'!$J$8,$AA86+'Results Dashboard'!$J$8,0) -> 0 | AG86: =IF($AA86<-'Results Dashboard'!$J$9,$AA86+'Results Dashboard'!$J$9,0) -> 0 | AH86: =IF($AA86<-'Results Dashboard'!$J$11,$AA86+'Results Dashboard'!$J$11,0) -> 0 | AI86: =IF($AA86<-'Results Dashboard'!$J$10,$AA86+'Results Dashboard'!$J$10,0) -> 0 | AK86: =IF((X86+W86)>0,(X86+W86)*0.5*'User Parameters'!C$48,(X86+W86)*0.5*'User Parameters'!$C$49) -> 0 | AL86: =-'User Parameters'!$C$12*('User Parameters'!$C$13-1) -> 0 | AM86: 0.04199568206
A87: =A88-0.005 -> 0.8750039254 | B87: 454.543427 | C87: 397.7272829 | D87: 0.8750039254 | E87: ='User Parameters'!$C$10 -> 40 | F87: =B87*'User Parameters'!$C$14 -> 0 | G87: 16.81614411 | H87: 0.03699568206 | I87: 0.8750039254 | J87: =IF(UP_RSBasis="MLR",UP_RSTarget_MLR,IF(UP_RSBasis="Medical Baseline",UP_RSTarget_Medlcal,0)) -> 0 | K87: 0 | L87: 0 | M87: 0 | N87: 0 | O87: 0 | P87: 0 | Q87: 0 | S87: 0 | T87: =(S87+C87+'User Parameters'!$C$11)/(B87-F87) -> 0.8750039254 | U87: =IF(T87<'User Parameters'!$J$5,'User Parameters'!$J$5,IF(T87>'User Parameters'!$J$6,'User Parameters'!$J$6,T87)) -> 0.8750039254 | V87: 0 | W87: 0 | X87: =(B87-C87-F87-E87-S87-V87)/'Results Dashboard'!$D$42 -> 0.03699568206 | Y87: =IF((X87+W87)>0,(X87+W87)*0.5*((1+'User Parameters'!C$48)^((12+UP_COC_WithholdLag)/12)-1),(X87+W87)*0.5*((1+'User Parameters'!$C$49)^((12+UP_COC_WithholdLag)/12)-1)) -> 0 | Z87: =-'User Parameters'!$C$12*('User Parameters'!$C$13-1) -> 0 | AA87: 0.03699568206 | AB87: 0.5603225749 | AC87: 0.06032257485 | AD87: 0.06032257485 | AE87: =IF($AA87<-'Results Dashboard'!$J$7,$AA87+'Results Dashboard'!$J$7,0) -> 0 | AF87: =IF($AA87<-'Results Dashboard'!$J$8,$AA87+'Results Dashboard'!$J$8,0) -> 0 | AG87: =IF($AA87<-'Results Dashboard'!$J$9,$AA87+'Results Dashboard'!$J$9,0) -> 0 | AH87: =IF($AA87<-'Results Dashboard'!$J$11,$AA87+'Results Dashboard'!$J$11,0) -> 0 | AI87: =IF($AA87<-'Results Dashboard'!$J$10,$AA87+'Results Dashboard'!$J$10,0) -> 0 | AK87: =IF((X87+W87)>0,(X87+W87)*0.5*'User Parameters'!C$48,(X87+W87)*0.5*'User Parameters'!$C$49) -> 0 | AL87: =-'User Parameters'!$C$12*('User Parameters'!$C$13-1) -> 0 | AM87: 0.03699568206
A88: ='Results Dashboard'!D32/Results_Premium -> 0.8800039254 | B88: =C88/A88 -> 454.543427 | C88: ='User Parameters'!C9 -> 400 | D88: 0.8800039254 | E88: ='User Parameters'!$C$10 -> 40 | F88: =B88*'User Parameters'!$C$14 -> 0 | G88: 14.54342697 | H88: 0.03199568206 | I88: 0.8800039254 | J88: =IF(UP_RSBasis="MLR",UP_RSTarget_MLR,IF(UP_RSBasis="Medical Baseline",UP_RSTarget_Medlcal,0)) -> 0 | K88: 0 | L88: 0 | M88: 0 | N88: 0 | O88: 0 | P88: 0 | Q88: 0 | S88: 0 | T88: =(S88+C88+'User Parameters'!$C$11)/(B88-F88) -> 0.8800039254 | U88: =IF(T88<'User Parameters'!$J$5,'User Parameters'!$J$5,IF(T88>'User Parameters'!$J$6,'User Parameters'!$J$6,T88)) -> 0.8800039254 | V88: 0 | W88: 0 | X88: =(B88-C88-F88-E88-S88-V88)/'Results Dashboard'!$D$42 -> 0.03199568206 | Y88: =IF((X88+W88)>0,(X88+W88)*0.5*((1+'User Parameters'!C$48)^((12+UP_COC_WithholdLag)/12)-1),(X88+W88)*0.5*((1+'User Parameters'!$C$49)^((12+UP_COC_WithholdLag)/12)-1)) -> 0 | Z88: =-'User Parameters'!$C$12*('User Parameters'!$C$13-1) -> 0 | AA88: 0.03199568206 | AB88: 0.5 | AC88: 0 | AD88: 0 | AE88: =IF($AA88<-'Results Dashboard'!$J$7,$AA88+'Results Dashboard'!$J$7,0) -> 0 | AF88: =IF($AA88<-'Results Dashboard'!$J$8,$AA88+'Results Dashboard'!$J$8,0) -> 0 | AG88: =IF($AA88<-'Results Dashboard'!$J$9,$AA88+'Results Dashboard'!$J$9,0) -> 0 | AH88: =IF($AA88<-'Results Dashboard'!$J$11,$AA88+'Results Dashboard'!$J$11,0) -> 0 | AI88: =IF($AA88<-'Results Dashboard'!$J$10,$AA88+'Results Dashboard'!$J$10,0) -> 0 | AK88: =IF((X88+W88)>0,(X88+W88)*0.5*'User Parameters'!C$48,(X88+W88)*0.5*'User Parameters'!$C$49) -> 0 | AL88: =-'User Parameters'!$C$12*('User Parameters'!$C$13-1) -> 0 | AM88: 0.03199568206
A89: =A88+0.005 -> 0.8850039254 | B89: =$B$88 -> 454.543427 | C89: 402.2727171 | D89: 0.8850039254 | E89: ='User Parameters'!$C$10 -> 40 | F89: =B89*'User Parameters'!$C$14 -> 0 | G89: 12.27070984 | H89: 0.02699568206 | I89: 0.8850039254 | J89: =IF(UP_RSBasis="MLR",UP_RSTarget_MLR,IF(UP_RSBasis="Medical Baseline",UP_RSTarget_Medlcal,0)) -> 0 | K89: 0 | L89: 0 | M89: 0 | N89: 0 | O89: 0 | P89: 0 | Q89: 0 | S89: 0 | T89: =(S89+C89+'User Parameters'!$C$11)/(B89-F89) -> 0.8850039254 | U89: =IF(T89<'User Parameters'!$J$5,'User Parameters'!$J$5,IF(T89>'User Parameters'!$J$6,'User Parameters'!$J$6,T89)) -> 0.8850039254 | V89: 0 | W89: 0 | X89: =(B89-C89-F89-E89-S89-V89)/'Results Dashboard'!$D$42 -> 0.02699568206 | Y89: =IF((X89+W89)>0,(X89+W89)*0.5*((1+'User Parameters'!C$48)^((12+UP_COC_WithholdLag)/12)-1),(X89+W89)*0.5*((1+'User Parameters'!$C$49)^((12+UP_COC_WithholdLag)/12)-1)) -> 0 | Z89: =-'User Parameters'!$C$12*('User Parameters'!$C$13-1) -> 0 | AA89: 0.02699568206 | AB89: 0.4396774251 | AC89: =AB88-AB89 -> 0.06032257485 | AD89: 0.06032257485 | AE89: =IF($AA89<-'Results Dashboard'!$J$7,$AA89+'Results Dashboard'!$J$7,0) -> 0 | AF89: =IF($AA89<-'Results Dashboard'!$J$8,$AA89+'Results Dashboard'!$J$8,0) -> 0 | AG89: =IF($AA89<-'Results Dashboard'!$J$9,$AA89+'Results Dashboard'!$J$9,0) -> 0 | AH89: =IF($AA89<-'Results Dashboard'!$J$11,$AA89+'Results Dashboard'!$J$11,0) -> 0 | AI89: =IF($AA89<-'Results Dashboard'!$J$10,$AA89+'Results Dashboard'!$J$10,0) -> 0 | AK89: =IF((X89+W89)>0,(X89+W89)*0.5*'User Parameters'!C$48,(X89+W89)*0.5*'User Parameters'!$C$49) -> 0 | AL89: =-'User Parameters'!$C$12*('User Parameters'!$C$13-1) -> 0 | AM89: 0.02699568206
A90: =A89+0.005 -> 0.8900039254 | B90: 454.543427 | C90: 404.5454343 | D90: 0.8900039254 | E90: ='User Parameters'!$C$10 -> 40 | F90: =B90*'User Parameters'!$C$14 -> 0 | G90: 9.997992703 | H90: 0.02199568206 | I90: 0.8900039254 | J90: =IF(UP_RSBasis="MLR",UP_RSTarget_MLR,IF(UP_RSBasis="Medical Baseline",UP_RSTarget_Medlcal,0)) -> 0 | K90: 0 | L90: 0 | M90: 0 | N90: 0 | O90: 0 | P90: 0 | Q90: 0 | S90: 0 | T90: =(S90+C90+'User Parameters'!$C$11)/(B90-F90) -> 0.8900039254 | U90: =IF(T90<'User Parameters'!$J$5,'User Parameters'!$J$5,IF(T90>'User Parameters'!$J$6,'User Parameters'!$J$6,T90)) -> 0.8900039254 | V90: 0 | W90: 0 | X90: =(B90-C90-F90-E90-S90-V90)/'Results Dashboard'!$D$42 -> 0.02199568206 | Y90: =IF((X90+W90)>0,(X90+W90)*0.5*((1+'User Parameters'!C$48)^((12+UP_COC_WithholdLag)/12)-1),(X90+W90)*0.5*((1+'User Parameters'!$C$49)^((12+UP_COC_WithholdLag)/12)-1)) -> 0 | Z90: =-'User Parameters'!$C$12*('User Parameters'!$C$13-1) -> 0 | AA90: 0.02199568206 | AB90: 0.3807261485 | AC90: =AB89-AB90 -> 0.05895127662 | AD90: 0.05895127662 | AE90: =IF($AA90<-'Results Dashboard'!$J$7,$AA90+'Results Dashboard'!$J$7,0) -> 0 | AF90: =IF($AA90<-'Results Dashboard'!$J$8,$AA90+'Results Dashboard'!$J$8,0) -> 0 | AG90: =IF($AA90<-'Results Dashboard'!$J$9,$AA90+'Results Dashboard'!$J$9,0) -> 0 | AH90: =IF($AA90<-'Results Dashboard'!$J$11,$AA90+'Results Dashboard'!$J$11,0) -> 0 | AI90: =IF($AA90<-'Results Dashboard'!$J$10,$AA90+'Results Dashboard'!$J$10,0) -> 0 | AK90: =IF((X90+W90)>0,(X90+W90)*0.5*'User Parameters'!C$48,(X90+W90)*0.5*'User Parameters'!$C$49) -> 0 | AL90: =-'User Parameters'!$C$12*('User Parameters'!$C$13-1) -> 0 | AM90: 0.02199568206
A91: 0.8950039254 | B91: 454.543427 | C91: 406.8181514 | D91: 0.8950039254 | E91: ='User Parameters'!$C$10 -> 40 | F91: =B91*'User Parameters'!$C$14 -> 0 | G91: 7.725275568 | H91: 0.01699568206 | I91: 0.8950039254 | J91: =IF(UP_RSBasis="MLR",UP_RSTarget_MLR,IF(UP_RSBasis="Medical Baseline",UP_RSTarget_Medlcal,0)) -> 0 | K91: 0 | L91: 0 | M91: 0 | N91: 0 | O91: 0 | P91: 0 | Q91: 0 | S91: 0 | T91: =(S91+C91+'User Parameters'!$C$11)/(B91-F91) -> 0.8950039254 | U91: =IF(T91<'User Parameters'!$J$5,'User Parameters'!$J$5,IF(T91>'User Parameters'!$J$6,'User Parameters'!$J$6,T91)) -> 0.8950039254 | V91: 0 | W91: 0 | X91: =(B91-C91-F91-E91-S91-V91)/'Results Dashboard'!$D$42 -> 0.01699568206 | Y91: =IF((X91+W91)>0,(X91+W91)*0.5*((1+'User Parameters'!C$48)^((12+UP_COC_WithholdLag)/12)-1),(X91+W91)*0.5*((1+'User Parameters'!$C$49)^((12+UP_COC_WithholdLag)/12)-1)) -> 0 | Z91: =-'User Parameters'!$C$12*('User Parameters'!$C$13-1) -> 0 | AA91: 0.01699568206 | AB91: 0.324424657 | AC91: 0.05630149153 | AD91: 0.05630149153 | AE91: =IF($AA91<-'Results Dashboard'!$J$7,$AA91+'Results Dashboard'!$J$7,0) -> 0 | AF91: =IF($AA91<-'Results Dashboard'!$J$8,$AA91+'Results Dashboard'!$J$8,0) -> 0 | AG91: =IF($AA91<-'Results Dashboard'!$J$9,$AA91+'Results Dashboard'!$J$9,0) -> 0 | AH91: =IF($AA91<-'Results Dashboard'!$J$11,$AA91+'Results Dashboard'!$J$11,0) -> 0 | AI91: =IF($AA91<-'Results Dashboard'!$J$10,$AA91+'Results Dashboard'!$J$10,0) -> 0 | AK91: =IF((X91+W91)>0,(X91+W91)*0.5*'User Parameters'!C$48,(X91+W91)*0.5*'User Parameters'!$C$49) -> 0 | AL91: =-'User Parameters'!$C$12*('User Parameters'!$C$13-1) -> 0 | AM91: 0.01699568206
A92: 0.9000039254 | B92: 454.543427 | C92: 409.0908685 | D92: 0.9000039254 | E92: ='User Parameters'!$C$10 -> 40 | F92: =B92*'User Parameters'!$C$14 -> 0 | G92: 5.452558433 | H92: 0.01199568206 | I92: 0.9000039254 | J92: =IF(UP_RSBasis="MLR",UP_RSTarget_MLR,IF(UP_RSBasis="Medical Baseline",UP_RSTarget_Medlcal,0)) -> 0 | K92: 0 | L92: 0 | M92: 0 | N92: 0 | O92: 0 | P92: 0 | Q92: 0 | S92: 0 | T92: =(S92+C92+'User Parameters'!$C$11)/(B92-F92) -> 0.9000039254 | U92: =IF(T92<'User Parameters'!$J$5,'User Parameters'!$J$5,IF(T92>'User Parameters'!$J$6,'User Parameters'!$J$6,T92)) -> 0.9000039254 | V92: 0 | W92: 0 | X92: =(B92-C92-F92-E92-S92-V92)/'Results Dashboard'!$D$42 -> 0.01199568206 | Y92: =IF((X92+W92)>0,(X92+W92)*0.5*((1+'User Parameters'!C$48)^((12+UP_COC_WithholdLag)/12)-1),(X92+W92)*0.5*((1+'User Parameters'!$C$49)^((12+UP_COC_WithholdLag)/12)-1)) -> 0 | Z92: =-'User Parameters'!$C$12*('User Parameters'!$C$13-1) -> 0 | AA92: 0.01199568206 | AB92: 0.271876205 | AC92: 0.05254845196 | AD92: 0.05254845196 | AE92: =IF($AA92<-'Results Dashboard'!$J$7,$AA92+'Results Dashboard'!$J$7,0) -> 0 | AF92: =IF($AA92<-'Results Dashboard'!$J$8,$AA92+'Results Dashboard'!$J$8,0) -> 0 | AG92: =IF($AA92<-'Results Dashboard'!$J$9,$AA92+'Results Dashboard'!$J$9,0) -> 0 | AH92: =IF($AA92<-'Results Dashboard'!$J$11,$AA92+'Results Dashboard'!$J$11,0) -> 0 | AI92: =IF($AA92<-'Results Dashboard'!$J$10,$AA92+'Results Dashboard'!$J$10,0) -> 0 | AK92: =IF((X92+W92)>0,(X92+W92)*0.5*'User Parameters'!C$48,(X92+W92)*0.5*'User Parameters'!$C$49) -> 0 | AL92: =-'User Parameters'!$C$12*('User Parameters'!$C$13-1) -> 0 | AM92: 0.01199568206
A93: 0.9050039254 | B93: 454.543427 | C93: 411.3635857 | D93: 0.9050039254 | E93: ='User Parameters'!$C$10 -> 40 | F93: =B93*'User Parameters'!$C$14 -> 0 | G93: 3.179841299 | H93: 0.006995682062 | I93: 0.9050039254 | J93: =IF(UP_RSBasis="MLR",UP_RSTarget_MLR,IF(UP_RSBasis="Medical Baseline",UP_RSTarget_Medlcal,0)) -> 0 | K93: 0 | L93: 0 | M93: 0 | N93: 0 | O93: 0 | P93: 0 | Q93: 0 | S93: 0 | T93: =(S93+C93+'User Parameters'!$C$11)/(B93-F93) -> 0.9050039254 | U93: =IF(T93<'User Parameters'!$J$5,'User Parameters'!$J$5,IF(T93>'User Parameters'!$J$6,'User Parameters'!$J$6,T93)) -> 0.9050039254 | V93: 0 | W93: 0 | X93: =(B93-C93-F93-E93-S93-V93)/'Results Dashboard'!$D$42 -> 0.006995682062 | Y93: =IF((X93+W93)>0,(X93+W93)*0.5*((1+'User Parameters'!C$48)^((12+UP_COC_WithholdLag)/12)-1),(X93+W93)*0.5*((1+'User Parameters'!$C$49)^((12+UP_COC_WithholdLag)/12)-1)) -> 0 | Z93: =-'User Parameters'!$C$12*('User Parameters'!$C$13-1) -> 0 | AA93: 0.006995682062 | AB93: 0.2239455582 | AC93: 0.04793064686 | AD93: 0.04793064686 | AE93: =IF($AA93<-'Results Dashboard'!$J$7,$AA93+'Results Dashboard'!$J$7,0) -> 0 | AF93: =IF($AA93<-'Results Dashboard'!$J$8,$AA93+'Results Dashboard'!$J$8,0) -> 0 | AG93: =IF($AA93<-'Results Dashboard'!$J$9,$AA93+'Results Dashboard'!$J$9,0) -> 0 | AH93: =IF($AA93<-'Results Dashboard'!$J$11,$AA93+'Results Dashboard'!$J$11,0) -> 0 | AI93: =IF($AA93<-'Results Dashboard'!$J$10,$AA93+'Results Dashboard'!$J$10,0) -> 0 | AK93: =IF((X93+W93)>0,(X93+W93)*0.5*'User Parameters'!C$48,(X93+W93)*0.5*'User Parameters'!$C$49) -> 0 | AL93: =-'User Parameters'!$C$12*('User Parameters'!$C$13-1) -> 0 | AM93: 0.006995682062
A94: 0.9100039254 | B94: 454.543427 | C94: 413.6363028 | D94: 0.9100039254 | E94: ='User Parameters'!$C$10 -> 40 | F94: =B94*'User Parameters'!$C$14 -> 0 | G94: 0.9071241636 | H94: 0.001995682062 | I94: 0.9100039254 | J94: =IF(UP_RSBasis="MLR",UP_RSTarget_MLR,IF(UP_RSBasis="Medical Baseline",UP_RSTarget_Medlcal,0)) -> 0 | K94: 0 | L94: 0 | M94: 0 | N94: 0 | O94: 0 | P94: 0 | Q94: 0 | S94: 0 | T94: =(S94+C94+'User Parameters'!$C$11)/(B94-F94) -> 0.9100039254 | U94: =IF(T94<'User Parameters'!$J$5,'User Parameters'!$J$5,IF(T94>'User Parameters'!$J$6,'User Parameters'!$J$6,T94)) -> 0.9100039254 | V94: 0 | W94: 0 | X94: =(B94-C94-F94-E94-S94-V94)/'Results Dashboard'!$D$42 -> 0.001995682062 | Y94: =IF((X94+W94)>0,(X94+W94)*0.5*((1+'User Parameters'!C$48)^((12+UP_COC_WithholdLag)/12)-1),(X94+W94)*0.5*((1+'User Parameters'!$C$49)^((12+UP_COC_WithholdLag)/12)-1)) -> 0 | Z94: =-'User Parameters'!$C$12*('User Parameters'!$C$13-1) -> 0 | AA94: 0.001995682062 | AB94: 0.1812207632 | AC94: 0.04272479494 | AD94: 0.04272479494 | AE94: =IF($AA94<-'Results Dashboard'!$J$7,$AA94+'Results Dashboard'!$J$7,0) -> 0 | AF94: =IF($AA94<-'Results Dashboard'!$J$8,$AA94+'Results Dashboard'!$J$8,0) -> 0 | AG94: =IF($AA94<-'Results Dashboard'!$J$9,$AA94+'Results Dashboard'!$J$9,0) -> 0 | AH94: =IF($AA94<-'Results Dashboard'!$J$11,$AA94+'Results Dashboard'!$J$11,0) -> 0 | AI94: =IF($AA94<-'Results Dashboard'!$J$10,$AA94+'Results Dashboard'!$J$10,0) -> 0 | AK94: =IF((X94+W94)>0,(X94+W94)*0.5*'User Parameters'!C$48,(X94+W94)*0.5*'User Parameters'!$C$49) -> 0 | AL94: =-'User Parameters'!$C$12*('User Parameters'!$C$13-1) -> 0 | AM94: 0.001995682062
A95: 0.9150039254 | B95: 454.543427 | C95: 415.9090199 | D95: 0.9150039254 | E95: ='User Parameters'!$C$10 -> 40 | F95: =B95*'User Parameters'!$C$14 -> 0 | G95: -1.365592971 | H95: -0.003004317938 | I95: 0.9150039254 | J95: =IF(UP_RSBasis="MLR",UP_RSTarget_MLR,IF(UP_RSBasis="Medical Baseline",UP_RSTarget_Medlcal,0)) -> 0 | K95: 0 | L95: 0 | M95: 0 | N95: 0 | O95: 0 | P95: 0 | Q95: 0 | S95: 0 | T95: =(S95+C95+'User Parameters'!$C$11)/(B95-F95) -> 0.9150039254 | U95: =IF(T95<'User Parameters'!$J$5,'User Parameters'!$J$5,IF(T95>'User Parameters'!$J$6,'User Parameters'!$J$6,T95)) -> 0.9150039254 | V95: 0 | W95: 0 | X95: =(B95-C95-F95-E95-S95-V95)/'Results Dashboard'!$D$42 -> -0.003004317938 | Y95: =IF((X95+W95)>0,(X95+W95)*0.5*((1+'User Parameters'!C$48)^((12+UP_COC_WithholdLag)/12)-1),(X95+W95)*0.5*((1+'User Parameters'!$C$49)^((12+UP_COC_WithholdLag)/12)-1)) -> 0 | Z95: =-'User Parameters'!$C$12*('User Parameters'!$C$13-1) -> 0 | AA95: -0.003004317938 | AB95: 0.144002165 | AC95: 0.03721859822 | AD95: 0.03721859822 | AE95: =IF($AA95<-'Results Dashboard'!$J$7,$AA95+'Results Dashboard'!$J$7,0) -> 0 | AF95: =IF($AA95<-'Results Dashboard'!$J$8,$AA95+'Results Dashboard'!$J$8,0) -> 0 | AG95: =IF($AA95<-'Results Dashboard'!$J$9,$AA95+'Results Dashboard'!$J$9,0) -> 0 | AH95: =IF($AA95<-'Results Dashboard'!$J$11,$AA95+'Results Dashboard'!$J$11,0) -> 0 | AI95: =IF($AA95<-'Results Dashboard'!$J$10,$AA95+'Results Dashboard'!$J$10,0) -> 0 | AK95: =IF((X95+W95)>0,(X95+W95)*0.5*'User Parameters'!C$48,(X95+W95)*0.5*'User Parameters'!$C$49) -> 0 | AL95: =-'User Parameters'!$C$12*('User Parameters'!$C$13-1) -> 0 | AM95: -0.003004317938
A96: 0.9200039254 | B96: 454.543427 | C96: 418.1817371 | D96: 0.9200039254 | E96: ='User Parameters'!$C$10 -> 40 | F96: =B96*'User Parameters'!$C$14 -> 0 | G96: -3.638310106 | H96: -0.008004317938 | I96: 0.9200039254 | J96: =IF(UP_RSBasis="MLR",UP_RSTarget_MLR,IF(UP_RSBasis="Medical Baseline",UP_RSTarget_Medlcal,0)) -> 0 | K96: 0 | L96: 0 | M96: 0 | N96: 0 | O96: 0 | P96: 0 | Q96: 0 | S96: 0 | T96: =(S96+C96+'User Parameters'!$C$11)/(B96-F96) -> 0.9200039254 | U96: =IF(T96<'User Parameters'!$J$5,'User Parameters'!$J$5,IF(T96>'User Parameters'!$J$6,'User Parameters'!$J$6,T96)) -> 0.9200039254 | V96: 0 | W96: 0 | X96: =(B96-C96-F96-E96-S96-V96)/'Results Dashboard'!$D$42 -> -0.008004317938 | Y96: =IF((X96+W96)>0,(X96+W96)*0.5*((1+'User Parameters'!C$48)^((12+UP_COC_WithholdLag)/12)-1),(X96+W96)*0.5*((1+'User Parameters'!$C$49)^((12+UP_COC_WithholdLag)/12)-1)) -> 0 | Z96: =-'User Parameters'!$C$12*('User Parameters'!$C$13-1) -> 0 | AA96: -0.008004317938 | AB96: 0.1123171907 | AC96: 0.0316849743 | AD96: 0.0316849743 | AE96: =IF($AA96<-'Results Dashboard'!$J$7,$AA96+'Results Dashboard'!$J$7,0) -> 0 | AF96: =IF($AA96<-'Results Dashboard'!$J$8,$AA96+'Results Dashboard'!$J$8,0) -> 0 | AG96: =IF($AA96<-'Results Dashboard'!$J$9,$AA96+'Results Dashboard'!$J$9,0) -> 0 | AH96: =IF($AA96<-'Results Dashboard'!$J$11,$AA96+'Results Dashboard'!$J$11,0) -> 0 | AI96: =IF($AA96<-'Results Dashboard'!$J$10,$AA96+'Results Dashboard'!$J$10,0) -> 0 | AK96: =IF((X96+W96)>0,(X96+W96)*0.5*'User Parameters'!C$48,(X96+W96)*0.5*'User Parameters'!$C$49) -> 0 | AL96: =-'User Parameters'!$C$12*('User Parameters'!$C$13-1) -> 0 | AM96: -0.008004317938
A97: 0.9250039254 | B97: 454.543427 | C97: 420.4544542 | D97: 0.9250039254 | E97: ='User Parameters'!$C$10 -> 40 | F97: =B97*'User Parameters'!$C$14 -> 0 | G97: -5.911027241 | H97: -0.01300431794 | I97: 0.9250039254 | J97: =IF(UP_RSBasis="MLR",UP_RSTarget_MLR,IF(UP_RSBasis="Medical Baseline",UP_RSTarget_Medlcal,0)) -> 0 | K97: 0 | L97: 0 | M97: 0 | N97: 0 | O97: 0 | P97: 0 | Q97: 0 | S97: 0 | T97: =(S97+C97+'User Parameters'!$C$11)/(B97-F97) -> 0.9250039254 | U97: =IF(T97<'User Parameters'!$J$5,'User Parameters'!$J$5,IF(T97>'User Parameters'!$J$6,'User Parameters'!$J$6,T97)) -> 0.9250039254 | V97: 0 | W97: 0 | X97: =(B97-C97-F97-E97-S97-V97)/'Results Dashboard'!$D$42 -> -0.01300431794 | Y97: =IF((X97+W97)>0,(X97+W97)*0.5*((1+'User Parameters'!C$48)^((12+UP_COC_WithholdLag)/12)-1),(X97+W97)*0.5*((1+'User Parameters'!$C$49)^((12+UP_COC_WithholdLag)/12)-1)) -> 0 | Z97: =-'User Parameters'!$C$12*('User Parameters'!$C$13-1) -> 0 | AA97: -0.01300431794 | AB97: 0.0859563036 | AC97: 0.02636088711 | AD97: 0.02636088711 | AE97: =IF($AA97<-'Results Dashboard'!$J$7,$AA97+'Results Dashboard'!$J$7,0) -> 0 | AF97: =IF($AA97<-'Results Dashboard'!$J$8,$AA97+'Results Dashboard'!$J$8,0) -> 0 | AG97: =IF($AA97<-'Results Dashboard'!$J$9,$AA97+'Results Dashboard'!$J$9,0) -> 0 | AH97: =IF($AA97<-'Results Dashboard'!$J$11,$AA97+'Results Dashboard'!$J$11,0) -> 0 | AI97: =IF($AA97<-'Results Dashboard'!$J$10,$AA97+'Results Dashboard'!$J$10,0) -> 0 | AK97: =IF((X97+W97)>0,(X97+W97)*0.5*'User Parameters'!C$48,(X97+W97)*0.5*'User Parameters'!$C$49) -> 0 | AL97: =-'User Parameters'!$C$12*('User Parameters'!$C$13-1) -> 0 | AM97: -0.01300431794
A98: 0.9300039254 | B98: 454.543427 | C98: 422.7271713 | D98: 0.9300039254 | E98: ='User Parameters'!$C$10 -> 40 | F98: =B98*'User Parameters'!$C$14 -> 0 | G98: -8.183744376 | H98: -0.01800431794 | I98: 0.9300039254 | J98: =IF(UP_RSBasis="MLR",UP_RSTarget_MLR,IF(UP_RSBasis="Medical Baseline",UP_RSTarget_Medlcal,0)) -> 0 | K98: 0 | L98: 0 | M98: 0 | N98: 0 | O98: 0 | P98: 0 | Q98: 0 | S98: 0 | T98: =(S98+C98+'User Parameters'!$C$11)/(B98-F98) -> 0.9300039254 | U98: =IF(T98<'User Parameters'!$J$5,'User Parameters'!$J$5,IF(T98>'User Parameters'!$J$6,'User Parameters'!$J$6,T98)) -> 0.9300039254 | V98: 0 | W98: 0 | X98: =(B98-C98-F98-E98-S98-V98)/'Results Dashboard'!$D$42 -> -0.01800431794 | Y98: =IF((X98+W98)>0,(X98+W98)*0.5*((1+'User Parameters'!C$48)^((12+UP_COC_WithholdLag)/12)-1),(X98+W98)*0.5*((1+'User Parameters'!$C$49)^((12+UP_COC_WithholdLag)/12)-1)) -> 0 | Z98: =-'User Parameters'!$C$12*('User Parameters'!$C$13-1) -> 0 | AA98: -0.01800431794 | AB98: 0.06452345035 | AC98: 0.02143285325 | AD98: 0.02143285325 | AE98: =IF($AA98<-'Results Dashboard'!$J$7,$AA98+'Results Dashboard'!$J$7,0) -> 0 | AF98: =IF($AA98<-'Results Dashboard'!$J$8,$AA98+'Results Dashboard'!$J$8,0) -> 0 | AG98: =IF($AA98<-'Results Dashboard'!$J$9,$AA98+'Results Dashboard'!$J$9,0) -> 0 | AH98: =IF($AA98<-'Results Dashboard'!$J$11,$AA98+'Results Dashboard'!$J$11,0) -> 0 | AI98: =IF($AA98<-'Results Dashboard'!$J$10,$AA98+'Results Dashboard'!$J$10,0) -> 0 | AK98: =IF((X98+W98)>0,(X98+W98)*0.5*'User Parameters'!C$48,(X98+W98)*0.5*'User Parameters'!$C$49) -> 0 | AL98: =-'User Parameters'!$C$12*('User Parameters'!$C$13-1) -> 0 | AM98: -0.01800431794
A99: 0.9350039254 | B99: 454.543427 | C99: 424.9998885 | D99: 0.9350039254 | E99: ='User Parameters'!$C$10 -> 40 | F99: =B99*'User Parameters'!$C$14 -> 0 | G99: -10.45646151 | H99: -0.02300431794 | I99: 0.9350039254 | J99: =IF(UP_RSBasis="MLR",UP_RSTarget_MLR,IF(UP_RSBasis="Medical Baseline",UP_RSTarget_Medlcal,0)) -> 0 | K99: 0 | L99: 0 | M99: 0 | N99: 0 | O99: 0 | P99: 0 | Q99: 0 | S99: 0 | T99: =(S99+C99+'User Parameters'!$C$11)/(B99-F99) -> 0.9350039254 | U99: =IF(T99<'User Parameters'!$J$5,'User Parameters'!$J$5,IF(T99>'User Parameters'!$J$6,'User Parameters'!$J$6,T99)) -> 0.9350039254 | V99: 0 | W99: 0 | X99: =(B99-C99-F99-E99-S99-V99)/'Results Dashboard'!$D$42 -> -0.02300431794 | Y99: =IF((X99+W99)>0,(X99+W99)*0.5*((1+'User Parameters'!C$48)^((12+UP_COC_WithholdLag)/12)-1),(X99+W99)*0.5*((1+'User Parameters'!$C$49)^((12+UP_COC_WithholdLag)/12)-1)) -> 0 | Z99: =-'User Parameters'!$C$12*('User Parameters'!$C$13-1) -> 0 | AA99: -0.02300431794 | AB99: 0.0474935049 | AC99: 0.01702994546 | AD99: 0.01702994546 | AE99: =IF($AA99<-'Results Dashboard'!$J$7,$AA99+'Results Dashboard'!$J$7,0) -> 0 | AF99: =IF($AA99<-'Results Dashboard'!$J$8,$AA99+'Results Dashboard'!$J$8,0) -> 0 | AG99: =IF($AA99<-'Results Dashboard'!$J$9,$AA99+'Results Dashboard'!$J$9,0) -> 0 | AH99: =IF($AA99<-'Results Dashboard'!$J$11,$AA99+'Results Dashboard'!$J$11,0) -> 0 | AI99: =IF($AA99<-'Results Dashboard'!$J$10,$AA99+'Results Dashboard'!$J$10,0) -> 0 | AK99: =IF((X99+W99)>0,(X99+W99)*0.5*'User Parameters'!C$48,(X99+W99)*0.5*'User Parameters'!$C$49) -> 0 | AL99: =-'User Parameters'!$C$12*('User Parameters'!$C$13-1) -> 0 | AM99: -0.02300431794
A100: 0.9400039254 | B100: 454.543427 | C100: 427.2726056 | D100: 0.9400039254 | E100: ='User Parameters'!$C$10 -> 40 | F100: =B100*'User Parameters'!$C$14 -> 0 | G100: -12.72917865 | H100: -0.02800431794 | I100: 0.9400039254 | J100: =IF(UP_RSBasis="MLR",UP_RSTarget_MLR,IF(UP_RSBasis="Medical Baseline",UP_RSTarget_Medlcal,0)) -> 0 | K100: 0 | L100: 0 | M100: 0 | N100: 0 | O100: 0 | P100: 0 | Q100: 0 | S100: 0 | T100: =(S100+C100+'User Parameters'!$C$11)/(B100-F100) -> 0.9400039254 | U100: =IF(T100<'User Parameters'!$J$5,'User Parameters'!$J$5,IF(T100>'User Parameters'!$J$6,'User Parameters'!$J$6,T100)) -> 0.9400039254 | V100: 0 | W100: 0 | X100: =(B100-C100-F100-E100-S100-V100)/'Results Dashboard'!$D$42 -> -0.02800431794 | Y100: =IF((X100+W100)>0,(X100+W100)*0.5*((1+'User Parameters'!C$48)^((12+UP_COC_WithholdLag)/12)-1),(X100+W100)*0.5*((1+'User Parameters'!$C$49)^((12+UP_COC_WithholdLag)/12)-1)) -> 0 | Z100: =-'User Parameters'!$C$12*('User Parameters'!$C$13-1) -> 0 | AA100: -0.02800431794 | AB100: 0.03426959713 | AC100: 0.01322390776 | AD100: 0.01322390776 | AE100: =IF($AA100<-'Results Dashboard'!$J$7,$AA100+'Results Dashboard'!$J$7,0) -> 0 | AF100: =IF($AA100<-'Results Dashboard'!$J$8,$AA100+'Results Dashboard'!$J$8,0) -> 0 | AG100: =IF($AA100<-'Results Dashboard'!$J$9,$AA100+'Results Dashboard'!$J$9,0) -> 0 | AH100: =IF($AA100<-'Results Dashboard'!$J$11,$AA100+'Results Dashboard'!$J$11,0) -> 0 | AI100: =IF($AA100<-'Results Dashboard'!$J$10,$AA100+'Results Dashboard'!$J$10,0) -> 0 | AK100: =IF((X100+W100)>0,(X100+W100)*0.5*'User Parameters'!C$48,(X100+W100)*0.5*'User Parameters'!$C$49) -> 0 | AL100: =-'User Parameters'!$C$12*('User Parameters'!$C$13-1) -> 0 | AM100: -0.02800431794
A101: 0.9450039254 | B101: 454.543427 | C101: 429.5453228 | D101: 0.9450039254 | E101: ='User Parameters'!$C$10 -> 40 | F101: =B101*'User Parameters'!$C$14 -> 0 | G101: -15.00189578 | H101: -0.03300431794 | I101: 0.9450039254 | J101: =IF(UP_RSBasis="MLR",UP_RSTarget_MLR,IF(UP_RSBasis="Medical Baseline",UP_RSTarget_Medlcal,0)) -> 0 | K101: 0 | L101: 0 | M101: 0 | N101: 0 | O101: 0 | P101: 0 | Q101: 0 | S101: 0 | T101: =(S101+C101+'User Parameters'!$C$11)/(B101-F101) -> 0.9450039254 | U101: =IF(T101<'User Parameters'!$J$5,'User Parameters'!$J$5,IF(T101>'User Parameters'!$J$6,'User Parameters'!$J$6,T101)) -> 0.9450039254 | V101: 0 | W101: 0 | X101: =(B101-C101-F101-E101-S101-V101)/'Results Dashboard'!$D$42 -> -0.03300431794 | Y101: =IF((X101+W101)>0,(X101+W101)*0.5*((1+'User Parameters'!C$48)^((12+UP_COC_WithholdLag)/12)-1),(X101+W101)*0.5*((1+'User Parameters'!$C$49)^((12+UP_COC_WithholdLag)/12)-1)) -> 0 | Z101: =-'User Parameters'!$C$12*('User Parameters'!$C$13-1) -> 0 | AA101: -0.03300431794 | AB101: 0.02423454479 | AC101: 0.01003505234 | AD101: 0.01003505234 | AE101: =IF($AA101<-'Results Dashboard'!$J$7,$AA101+'Results Dashboard'!$J$7,0) -> 0 | AF101: =IF($AA101<-'Results Dashboard'!$J$8,$AA101+'Results Dashboard'!$J$8,0) -> 0 | AG101: =IF($AA101<-'Results Dashboard'!$J$9,$AA101+'Results Dashboard'!$J$9,0) -> 0 | AH101: =IF($AA101<-'Results Dashboard'!$J$11,$AA101+'Results Dashboard'!$J$11,0) -> 0 | AI101: =IF($AA101<-'Results Dashboard'!$J$10,$AA101+'Results Dashboard'!$J$10,0) -> 0 | AK101: =IF((X101+W101)>0,(X101+W101)*0.5*'User Parameters'!C$48,(X101+W101)*0.5*'User Parameters'!$C$49) -> 0 | AL101: =-'User Parameters'!$C$12*('User Parameters'!$C$13-1) -> 0 | AM101: -0.03300431794
A102: 0.9500039254 | B102: 454.543427 | C102: 431.8180399 | D102: 0.9500039254 | E102: ='User Parameters'!$C$10 -> 40 | F102: =B102*'User Parameters'!$C$14 -> 0 | G102: -17.27461292 | H102: -0.03800431794 | I102: 0.9500039254 | J102: =IF(UP_RSBasis="MLR",UP_RSTarget_MLR,IF(UP_RSBasis="Medical Baseline",UP_RSTarget_Medlcal,0)) -> 0 | K102: 0 | L102: 0 | M102: 0 | N102: 0 | O102: 0 | P102: 0 | Q102: 0 | S102: 0 | T102: =(S102+C102+'User Parameters'!$C$11)/(B102-F102) -> 0.9500039254 | U102: =IF(T102<'User Parameters'!$J$5,'User Parameters'!$J$5,IF(T102>'User Parameters'!$J$6,'User Parameters'!$J$6,T102)) -> 0.9500039254 | V102: 0 | W102: 0 | X102: =(B102-C102-F102-E102-S102-V102)/'Results Dashboard'!$D$42 -> -0.03800431794 | Y102: =IF((X102+W102)>0,(X102+W102)*0.5*((1+'User Parameters'!C$48)^((12+UP_COC_WithholdLag)/12)-1),(X102+W102)*0.5*((1+'User Parameters'!$C$49)^((12+UP_COC_WithholdLag)/12)-1)) -> 0 | Z102: =-'User Parameters'!$C$12*('User Parameters'!$C$13-1) -> 0 | AA102: -0.03800431794 | AB102: 0.01679249215 | AC102: 0.007442052636 | AD102: 0.007442052636 | AE102: =IF($AA102<-'Results Dashboard'!$J$7,$AA102+'Results Dashboard'!$J$7,0) -> -0.002974643625 | AF102: =IF($AA102<-'Results Dashboard'!$J$8,$AA102+'Results Dashboard'!$J$8,0) -> 0 | AG102: =IF($AA102<-'Results Dashboard'!$J$9,$AA102+'Results Dashboard'!$J$9,0) -> 0 | AH102: =IF($AA102<-'Results Dashboard'!$J$11,$AA102+'Results Dashboard'!$J$11,0) -> 0 | AI102: =IF($AA102<-'Results Dashboard'!$J$10,$AA102+'Results Dashboard'!$J$10,0) -> 0 | AK102: =IF((X102+W102)>0,(X102+W102)*0.5*'User Parameters'!C$48,(X102+W102)*0.5*'User Parameters'!$C$49) -> 0 | AL102: =-'User Parameters'!$C$12*('User Parameters'!$C$13-1) -> 0 | AM102: -0.03800431794
A103: 0.9550039254 | B103: 454.543427 | C103: 434.090757 | D103: 0.9550039254 | E103: ='User Parameters'!$C$10 -> 40 | F103: =B103*'User Parameters'!$C$14 -> 0 | G103: -19.54733005 | H103: -0.04300431794 | I103: =($C103+UP_QIPMPM)/($B103-$F103) -> 0.9550039254 | J103: =IF(UP_RSBasis="MLR",UP_RSTarget_MLR,IF(UP_RSBasis="Medical Baseline",UP_RSTarget_Medlcal,0)) -> 0 | K103: 0 | L103: 0 | M103: 0 | N103: 0 | O103: 0 | P103: 0 | Q103: 0 | S103: 0 | T103: =(S103+C103+'User Parameters'!$C$11)/(B103-F103) -> 0.9550039254 | U103: =IF(T103<'User Parameters'!$J$5,'User Parameters'!$J$5,IF(T103>'User Parameters'!$J$6,'User Parameters'!$J$6,T103)) -> 0.9550039254 | V103: 0 | W103: 0 | X103: =(B103-C103-F103-E103-S103-V103)/'Results Dashboard'!$D$42 -> -0.04300431794 | Y103: =IF((X103+W103)>0,(X103+W103)*0.5*((1+'User Parameters'!C$48)^((12+UP_COC_WithholdLag)/12)-1),(X103+W103)*0.5*((1+'User Parameters'!$C$49)^((12+UP_COC_WithholdLag)/12)-1)) -> 0 | Z103: =-'User Parameters'!$C$12*('User Parameters'!$C$13-1) -> 0 | AA103: -0.04300431794 | AB103: 0.01139888782 | AC103: 0.005393604328 | AD103: 0.005393604328 | AE103: =IF($AA103<-'Results Dashboard'!$J$7,$AA103+'Results Dashboard'!$J$7,0) -> -0.007974643625 | AF103: =IF($AA103<-'Results Dashboard'!$J$8,$AA103+'Results Dashboard'!$J$8,0) -> 0 | AG103: =IF($AA103<-'Results Dashboard'!$J$9,$AA103+'Results Dashboard'!$J$9,0) -> 0 | AH103: =IF($AA103<-'Results Dashboard'!$J$11,$AA103+'Results Dashboard'!$J$11,0) -> 0 | AI103: =IF($AA103<-'Results Dashboard'!$J$10,$AA103+'Results Dashboard'!$J$10,0) -> 0 | AK103: =IF((X103+W103)>0,(X103+W103)*0.5*'User Parameters'!C$48,(X103+W103)*0.5*'User Parameters'!$C$49) -> 0 | AL103: =-'User Parameters'!$C$12*('User Parameters'!$C$13-1) -> 0 | AM103: -0.04300431794
A104: 0.9600039254 | B104: 454.543427 | C104: 436.3634742 | D104: 0.9600039254 | E104: ='User Parameters'!$C$10 -> 40 | F104: =B104*'User Parameters'!$C$14 -> 0 | G104: -21.82004718 | H104: -0.04800431794 | I104: 0.9600039254 | J104: =IF(UP_RSBasis="MLR",UP_RSTarget_MLR,IF(UP_RSBasis="Medical Baseline",UP_RSTarget_Medlcal,0)) -> 0 | K104: =IF(UP_RSBasis="MLR",J104-I104,IF(UP_RSBasis="Medical Baseline",J104-$C104,0)) -> 0 | L104: 0 | M104: 0 | N104: 0 | O104: 0 | P104: 0 | Q104: 0 | R104: =IF(UP_RSBasis="MLR",SUMPRODUCT(L$4:Q$4,L104:Q104),"") ->  | S104: =IF(UP_RSBasis="MLR",R104*(B104-F104),SUMPRODUCT($L$4:$Q$4,$L104:$Q104)) -> 0 | T104: =(S104+C104+'User Parameters'!$C$11)/(B104-F104) -> 0.9600039254 | U104: =IF(T104<'User Parameters'!$J$5,'User Parameters'!$J$5,IF(T104>'User Parameters'!$J$6,'User Parameters'!$J$6,T104)) -> 0.9600039254 | V104: =(U104-T104)*(B104-F104) -> 0 | W104: =V104/B104 -> 0 | X104: =(B104-C104-F104-E104-S104-V104)/'Results Dashboard'!$D$42 -> -0.04800431794 | Y104: =IF((X104+W104)>0,(X104+W104)*0.5*((1+'User Parameters'!C$48)^((12+UP_COC_WithholdLag)/12)-1),(X104+W104)*0.5*((1+'User Parameters'!$C$49)^((12+UP_COC_WithholdLag)/12)-1)) -> 0 | Z104: =-'User Parameters'!$C$12*('User Parameters'!$C$13-1) -> 0 | AA104: -0.04800431794 | AB104: =_xlfn.NORM.DIST(H104,$AD$2,$AD$3,TRUE) -> 0.007578753207 | AC104: 0.003820134616 | AD104: 0.003820134616 | AE104: =IF($AA104<-'Results Dashboard'!$J$7,$AA104+'Results Dashboard'!$J$7,0) -> -0.01297464363 | AF104: =IF($AA104<-'Results Dashboard'!$J$8,$AA104+'Results Dashboard'!$J$8,0) -> 0 | AG104: =IF($AA104<-'Results Dashboard'!$J$9,$AA104+'Results Dashboard'!$J$9,0) -> 0 | AH104: =IF($AA104<-'Results Dashboard'!$J$11,$AA104+'Results Dashboard'!$J$11,0) -> 0 | AI104: =IF($AA104<-'Results Dashboard'!$J$10,$AA104+'Results Dashboard'!$J$10,0) -> 0 | AK104: =IF((X104+W104)>0,(X104+W104)*0.5*'User Parameters'!C$48,(X104+W104)*0.5*'User Parameters'!$C$49) -> 0 | AL104: =-'User Parameters'!$C$12*('User Parameters'!$C$13-1) -> 0 | AM104: -0.04800431794
A105: 0.9650039254 | B105: 454.543427 | C105: 438.6361913 | D105: 0.9650039254 | E105: ='User Parameters'!$C$10 -> 40 | F105: =B105*'User Parameters'!$C$14 -> 0 | G105: -24.09276432 | H105: -0.05300431794 | I105: 0.9650039254 | J105: =IF(UP_RSBasis="MLR",UP_RSTarget_MLR,IF(UP_RSBasis="Medical Baseline",UP_RSTarget_Medlcal,0)) -> 0 | K105: 0 | L105: 0 | M105: 0 | N105: 0 | O105: 0 | P105: 0 | Q105: 0 | S105: 0 | T105: =(S105+C105+'User Parameters'!$C$11)/(B105-F105) -> 0.9650039254 | U105: =IF(T105<'User Parameters'!$J$5,'User Parameters'!$J$5,IF(T105>'User Parameters'!$J$6,'User Parameters'!$J$6,T105)) -> 0.9650039254 | V105: 0 | W105: 0 | X105: =(B105-C105-F105-E105-S105-V105)/'Results Dashboard'!$D$42 -> -0.05300431794 | Y105: =IF((X105+W105)>0,(X105+W105)*0.5*((1+'User Parameters'!C$48)^((12+UP_COC_WithholdLag)/12)-1),(X105+W105)*0.5*((1+'User Parameters'!$C$49)^((12+UP_COC_WithholdLag)/12)-1)) -> 0 | Z105: =-'User Parameters'!$C$12*('User Parameters'!$C$13-1) -> 0 | AA105: -0.05300431794 | AB105: 0.004934570428 | AC105: 0.00264418278 | AD105: 0.00264418278 | AE105: =IF($AA105<-'Results Dashboard'!$J$7,$AA105+'Results Dashboard'!$J$7,0) -> -0.01797464363 | AF105: =IF($AA105<-'Results Dashboard'!$J$8,$AA105+'Results Dashboard'!$J$8,0) -> 0 | AG105: =IF($AA105<-'Results Dashboard'!$J$9,$AA105+'Results Dashboard'!$J$9,0) -> 0 | AH105: =IF($AA105<-'Results Dashboard'!$J$11,$AA105+'Results Dashboard'!$J$11,0) -> 0 | AI105: =IF($AA105<-'Results Dashboard'!$J$10,$AA105+'Results Dashboard'!$J$10,0) -> 0 | AK105: =IF((X105+W105)>0,(X105+W105)*0.5*'User Parameters'!C$48,(X105+W105)*0.5*'User Parameters'!$C$49) -> 0 | AL105: =-'User Parameters'!$C$12*('User Parameters'!$C$13-1) -> 0 | AM105: -0.05300431794
A106: 0.9700039254 | B106: 454.543427 | C106: 440.9089084 | D106: 0.9700039254 | E106: ='User Parameters'!$C$10 -> 40 | F106: =B106*'User Parameters'!$C$14 -> 0 | G106: -26.36548145 | H106: -0.05800431794 | I106: 0.9700039254 | J106: =IF(UP_RSBasis="MLR",UP_RSTarget_MLR,IF(UP_RSBasis="Medical Baseline",UP_RSTarget_Medlcal,0)) -> 0 | K106: 0 | L106: 0 | M106: 0 | N106: 0 | O106: 0 | P106: 0 | Q106: 0 | S106: 0 | T106: =(S106+C106+'User Parameters'!$C$11)/(B106-F106) -> 0.9700039254 | U106: =IF(T106<'User Parameters'!$J$5,'User Parameters'!$J$5,IF(T106>'User Parameters'!$J$6,'User Parameters'!$J$6,T106)) -> 0.9700039254 | V106: 0 | W106: 0 | X106: =(B106-C106-F106-E106-S106-V106)/'Results Dashboard'!$D$42 -> -0.05800431794 | Y106: =IF((X106+W106)>0,(X106+W106)*0.5*((1+'User Parameters'!C$48)^((12+UP_COC_WithholdLag)/12)-1),(X106+W106)*0.5*((1+'User Parameters'!$C$49)^((12+UP_COC_WithholdLag)/12)-1)) -> 0 | Z106: =-'User Parameters'!$C$12*('User Parameters'!$C$13-1) -> 0 | AA106: -0.05800431794 | AB106: 0.003145952894 | AC106: 0.001788617534 | AD106: 0.001788617534 | AE106: =IF($AA106<-'Results Dashboard'!$J$7,$AA106+'Results Dashboard'!$J$7,0) -> -0.02297464363 | AF106: =IF($AA106<-'Results Dashboard'!$J$8,$AA106+'Results Dashboard'!$J$8,0) -> 0 | AG106: =IF($AA106<-'Results Dashboard'!$J$9,$AA106+'Results Dashboard'!$J$9,0) -> 0 | AH106: =IF($AA106<-'Results Dashboard'!$J$11,$AA106+'Results Dashboard'!$J$11,0) -> 0 | AI106: =IF($AA106<-'Results Dashboard'!$J$10,$AA106+'Results Dashboard'!$J$10,0) -> 0 | AK106: =IF((X106+W106)>0,(X106+W106)*0.5*'User Parameters'!C$48,(X106+W106)*0.5*'User Parameters'!$C$49) -> 0 | AL106: =-'User Parameters'!$C$12*('User Parameters'!$C$13-1) -> 0 | AM106: -0.05800431794
A107: 0.9750039254 | B107: 454.543427 | C107: 443.1816256 | D107: 0.9750039254 | E107: ='User Parameters'!$C$10 -> 40 | F107: =B107*'User Parameters'!$C$14 -> 0 | G107: -28.63819859 | H107: -0.06300431794 | I107: 0.9750039254 | J107: =IF(UP_RSBasis="MLR",UP_RSTarget_MLR,IF(UP_RSBasis="Medical Baseline",UP_RSTarget_Medlcal,0)) -> 0 | K107: 0 | L107: 0 | M107: 0 | N107: 0 | O107: 0 | P107: 0 | Q107: 0 | S107: 0 | T107: =(S107+C107+'User Parameters'!$C$11)/(B107-F107) -> 0.9750039254 | U107: =IF(T107<'User Parameters'!$J$5,'User Parameters'!$J$5,IF(T107>'User Parameters'!$J$6,'User Parameters'!$J$6,T107)) -> 0.9750039254 | V107: 0 | W107: 0 | X107: =(B107-C107-F107-E107-S107-V107)/'Results Dashboard'!$D$42 -> -0.06300431794 | Y107: =IF((X107+W107)>0,(X107+W107)*0.5*((1+'User Parameters'!C$48)^((12+UP_COC_WithholdLag)/12)-1),(X107+W107)*0.5*((1+'User Parameters'!$C$49)^((12+UP_COC_WithholdLag)/12)-1)) -> 0 | Z107: =-'User Parameters'!$C$12*('User Parameters'!$C$13-1) -> 0 | AA107: -0.06300431794 | AB107: 0.001963573959 | AC107: 0.001182378935 | AD107: 0.001182378935 | AE107: =IF($AA107<-'Results Dashboard'!$J$7,$AA107+'Results Dashboard'!$J$7,0) -> -0.02797464363 | AF107: =IF($AA107<-'Results Dashboard'!$J$8,$AA107+'Results Dashboard'!$J$8,0) -> 0 | AG107: =IF($AA107<-'Results Dashboard'!$J$9,$AA107+'Results Dashboard'!$J$9,0) -> 0 | AH107: =IF($AA107<-'Results Dashboard'!$J$11,$AA107+'Results Dashboard'!$J$11,0) -> 0 | AI107: =IF($AA107<-'Results Dashboard'!$J$10,$AA107+'Results Dashboard'!$J$10,0) -> 0 | AK107: =IF((X107+W107)>0,(X107+W107)*0.5*'User Parameters'!C$48,(X107+W107)*0.5*'User Parameters'!$C$49) -> 0 | AL107: =-'User Parameters'!$C$12*('User Parameters'!$C$13-1) -> 0 | AM107: -0.06300431794
A108: 0.9800039254 | B108: 454.543427 | C108: 445.4543427 | D108: 0.9800039254 | E108: ='User Parameters'!$C$10 -> 40 | F108: =B108*'User Parameters'!$C$14 -> 0 | G108: -30.91091572 | H108: -0.06800431794 | I108: 0.9800039254 | J108: =IF(UP_RSBasis="MLR",UP_RSTarget_MLR,IF(UP_RSBasis="Medical Baseline",UP_RSTarget_Medlcal,0)) -> 0 | K108: 0 | L108: 0 | M108: 0 | N108: 0 | O108: 0 | P108: 0 | Q108: 0 | S108: 0 | T108: =(S108+C108+'User Parameters'!$C$11)/(B108-F108) -> 0.9800039254 | U108: =IF(T108<'User Parameters'!$J$5,'User Parameters'!$J$5,IF(T108>'User Parameters'!$J$6,'User Parameters'!$J$6,T108)) -> 0.9800039254 | V108: 0 | W108: 0 | X108: =(B108-C108-F108-E108-S108-V108)/'Results Dashboard'!$D$42 -> -0.06800431794 | Y108: =IF((X108+W108)>0,(X108+W108)*0.5*((1+'User Parameters'!C$48)^((12+UP_COC_WithholdLag)/12)-1),(X108+W108)*0.5*((1+'User Parameters'!$C$49)^((12+UP_COC_WithholdLag)/12)-1)) -> 0 | Z108: =-'User Parameters'!$C$12*('User Parameters'!$C$13-1) -> 0 | AA108: -0.06800431794 | AB108: 0.00119972225 | AC108: 0.0007638517088 | AD108: 0.0007638517088 | AE108: =IF($AA108<-'Results Dashboard'!$J$7,$AA108+'Results Dashboard'!$J$7,0) -> -0.03297464363 | AF108: =IF($AA108<-'Results Dashboard'!$J$8,$AA108+'Results Dashboard'!$J$8,0) -> 0 | AG108: =IF($AA108<-'Results Dashboard'!$J$9,$AA108+'Results Dashboard'!$J$9,0) -> 0 | AH108: =IF($AA108<-'Results Dashboard'!$J$11,$AA108+'Results Dashboard'!$J$11,0) -> 0 | AI108: =IF($AA108<-'Results Dashboard'!$J$10,$AA108+'Results Dashboard'!$J$10,0) -> 0 | AK108: =IF((X108+W108)>0,(X108+W108)*0.5*'User Parameters'!C$48,(X108+W108)*0.5*'User Parameters'!$C$49) -> 0 | AL108: =-'User Parameters'!$C$12*('User Parameters'!$C$13-1) -> 0 | AM108: -0.06800431794
A109: 0.9850039254 | B109: 454.543427 | C109: 447.7270598 | D109: 0.9850039254 | E109: ='User Parameters'!$C$10 -> 40 | F109: =B109*'User Parameters'!$C$14 -> 0 | G109: -33.18363286 | H109: -0.07300431794 | I109: 0.9850039254 | J109: =IF(UP_RSBasis="MLR",UP_RSTarget_MLR,IF(UP_RSBasis="Medical Baseline",UP_RSTarget_Medlcal,0)) -> 0 | K109: 0 | L109: 0 | M109: 0 | N109: 0 | O109: 0 | P109: 0 | Q109: 0 | S109: 0 | T109: =(S109+C109+'User Parameters'!$C$11)/(B109-F109) -> 0.9850039254 | U109: =IF(T109<'User Parameters'!$J$5,'User Parameters'!$J$5,IF(T109>'User Parameters'!$J$6,'User Parameters'!$J$6,T109)) -> 0.9850039254 | V109: 0 | W109: 0 | X109: =(B109-C109-F109-E109-S109-V109)/'Results Dashboard'!$D$42 -> -0.07300431794 | Y109: =IF((X109+W109)>0,(X109+W109)*0.5*((1+'User Parameters'!C$48)^((12+UP_COC_WithholdLag)/12)-1),(X109+W109)*0.5*((1+'User Parameters'!$C$49)^((12+UP_COC_WithholdLag)/12)-1)) -> 0 | Z109: =-'User Parameters'!$C$12*('User Parameters'!$C$13-1) -> 0 | AA109: -0.07300431794 | AB109: 0.0007174696511 | AC109: 0.000482252599 | AD109: 0.000482252599 | AE109: =IF($AA109<-'Results Dashboard'!$J$7,$AA109+'Results Dashboard'!$J$7,0) -> -0.03797464363 | AF109: =IF($AA109<-'Results Dashboard'!$J$8,$AA109+'Results Dashboard'!$J$8,0) -> -0.002944969312 | AG109: =IF($AA109<-'Results Dashboard'!$J$9,$AA109+'Results Dashboard'!$J$9,0) -> -0.002944969312 | AH109: =IF($AA109<-'Results Dashboard'!$J$11,$AA109+'Results Dashboard'!$J$11,0) -> 0 | AI109: =IF($AA109<-'Results Dashboard'!$J$10,$AA109+'Results Dashboard'!$J$10,0) -> 0 | AK109: =IF((X109+W109)>0,(X109+W109)*0.5*'User Parameters'!C$48,(X109+W109)*0.5*'User Parameters'!$C$49) -> 0 | AL109: =-'User Parameters'!$C$12*('User Parameters'!$C$13-1) -> 0 | AM109: -0.07300431794
A110: 0.9900039254 | B110: 454.543427 | C110: 449.999777 | D110: 0.9900039254 | E110: ='User Parameters'!$C$10 -> 40 | F110: =B110*'User Parameters'!$C$14 -> 0 | G110: -35.45634999 | H110: -0.07800431794 | I110: 0.9900039254 | J110: =IF(UP_RSBasis="MLR",UP_RSTarget_MLR,IF(UP_RSBasis="Medical Baseline",UP_RSTarget_Medlcal,0)) -> 0 | K110: 0 | L110: 0 | M110: 0 | N110: 0 | O110: 0 | P110: 0 | Q110: 0 | S110: 0 | T110: =(S110+C110+'User Parameters'!$C$11)/(B110-F110) -> 0.9900039254 | U110: =IF(T110<'User Parameters'!$J$5,'User Parameters'!$J$5,IF(T110>'User Parameters'!$J$6,'User Parameters'!$J$6,T110)) -> 0.9900039254 | V110: 0 | W110: 0 | X110: =(B110-C110-F110-E110-S110-V110)/'Results Dashboard'!$D$42 -> -0.07800431794 | Y110: =IF((X110+W110)>0,(X110+W110)*0.5*((1+'User Parameters'!C$48)^((12+UP_COC_WithholdLag)/12)-1),(X110+W110)*0.5*((1+'User Parameters'!$C$49)^((12+UP_COC_WithholdLag)/12)-1)) -> 0 | Z110: =-'User Parameters'!$C$12*('User Parameters'!$C$13-1) -> 0 | AA110: -0.07800431794 | AB110: 0.0004199242577 | AC110: 0.0002975453934 | AD110: 0.0002975453934 | AE110: =IF($AA110<-'Results Dashboard'!$J$7,$AA110+'Results Dashboard'!$J$7,0) -> -0.04297464363 | AF110: =IF($AA110<-'Results Dashboard'!$J$8,$AA110+'Results Dashboard'!$J$8,0) -> -0.007944969312 | AG110: =IF($AA110<-'Results Dashboard'!$J$9,$AA110+'Results Dashboard'!$J$9,0) -> -0.007944969312 | AH110: =IF($AA110<-'Results Dashboard'!$J$11,$AA110+'Results Dashboard'!$J$11,0) -> 0 | AI110: =IF($AA110<-'Results Dashboard'!$J$10,$AA110+'Results Dashboard'!$J$10,0) -> 0 | AK110: =IF((X110+W110)>0,(X110+W110)*0.5*'User Parameters'!C$48,(X110+W110)*0.5*'User Parameters'!$C$49) -> 0 | AL110: =-'User Parameters'!$C$12*('User Parameters'!$C$13-1) -> 0 | AM110: -0.07800431794
A111: 0.9950039254 | B111: 454.543427 | C111: 452.2724941 | D111: 0.9950039254 | E111: ='User Parameters'!$C$10 -> 40 | F111: =B111*'User Parameters'!$C$14 -> 0 | G111: -37.72906713 | H111: -0.08300431794 | I111: 0.9950039254 | J111: =IF(UP_RSBasis="MLR",UP_RSTarget_MLR,IF(UP_RSBasis="Medical Baseline",UP_RSTarget_Medlcal,0)) -> 0 | K111: 0 | L111: 0 | M111: 0 | N111: 0 | O111: 0 | P111: 0 | Q111: 0 | S111: 0 | T111: =(S111+C111+'User Parameters'!$C$11)/(B111-F111) -> 0.9950039254 | U111: =IF(T111<'User Parameters'!$J$5,'User Parameters'!$J$5,IF(T111>'User Parameters'!$J$6,'User Parameters'!$J$6,T111)) -> 0.9950039254 | V111: 0 | W111: 0 | X111: =(B111-C111-F111-E111-S111-V111)/'Results Dashboard'!$D$42 -> -0.08300431794 | Y111: =IF((X111+W111)>0,(X111+W111)*0.5*((1+'User Parameters'!C$48)^((12+UP_COC_WithholdLag)/12)-1),(X111+W111)*0.5*((1+'User Parameters'!$C$49)^((12+UP_COC_WithholdLag)/12)-1)) -> 0 | Z111: =-'User Parameters'!$C$12*('User Parameters'!$C$13-1) -> 0 | AA111: -0.08300431794 | AB111: 0.0002405149396 | AC111: 0.0001794093181 | AD111: 0.0001794093181 | AE111: =IF($AA111<-'Results Dashboard'!$J$7,$AA111+'Results Dashboard'!$J$7,0) -> -0.04797464363 | AF111: =IF($AA111<-'Results Dashboard'!$J$8,$AA111+'Results Dashboard'!$J$8,0) -> -0.01294496931 | AG111: =IF($AA111<-'Results Dashboard'!$J$9,$AA111+'Results Dashboard'!$J$9,0) -> -0.01294496931 | AH111: =IF($AA111<-'Results Dashboard'!$J$11,$AA111+'Results Dashboard'!$J$11,0) -> 0 | AI111: =IF($AA111<-'Results Dashboard'!$J$10,$AA111+'Results Dashboard'!$J$10,0) -> 0 | AK111: =IF((X111+W111)>0,(X111+W111)*0.5*'User Parameters'!C$48,(X111+W111)*0.5*'User Parameters'!$C$49) -> 0 | AL111: =-'User Parameters'!$C$12*('User Parameters'!$C$13-1) -> 0 | AM111: -0.08300431794
A112: 1.000003925 | B112: 454.543427 | C112: 454.5452112 | D112: 1.000003925 | E112: ='User Parameters'!$C$10 -> 40 | F112: =B112*'User Parameters'!$C$14 -> 0 | G112: -40.00178426 | H112: -0.08800431794 | I112: 1.000003925 | J112: =IF(UP_RSBasis="MLR",UP_RSTarget_MLR,IF(UP_RSBasis="Medical Baseline",UP_RSTarget_Medlcal,0)) -> 0 | K112: 0 | L112: 0 | M112: 0 | N112: 0 | O112: 0 | P112: 0 | Q112: 0 | S112: 0 | T112: =(S112+C112+'User Parameters'!$C$11)/(B112-F112) -> 1.000003925 | U112: =IF(T112<'User Parameters'!$J$5,'User Parameters'!$J$5,IF(T112>'User Parameters'!$J$6,'User Parameters'!$J$6,T112)) -> 1.000003925 | V112: 0 | W112: 0 | X112: =(B112-C112-F112-E112-S112-V112)/'Results Dashboard'!$D$42 -> -0.08800431794 | Y112: =IF((X112+W112)>0,(X112+W112)*0.5*((1+'User Parameters'!C$48)^((12+UP_COC_WithholdLag)/12)-1),(X112+W112)*0.5*((1+'User Parameters'!$C$49)^((12+UP_COC_WithholdLag)/12)-1)) -> 0 | Z112: =-'User Parameters'!$C$12*('User Parameters'!$C$13-1) -> 0 | AA112: -0.08800431794 | AB112: 0.0001347967179 | AC112: 0.0001057182217 | AD112: 0.0001057182217 | AE112: =IF($AA112<-'Results Dashboard'!$J$7,$AA112+'Results Dashboard'!$J$7,0) -> -0.05297464363 | AF112: =IF($AA112<-'Results Dashboard'!$J$8,$AA112+'Results Dashboard'!$J$8,0) -> -0.01794496931 | AG112: =IF($AA112<-'Results Dashboard'!$J$9,$AA112+'Results Dashboard'!$J$9,0) -> -0.01794496931 | AH112: =IF($AA112<-'Results Dashboard'!$J$11,$AA112+'Results Dashboard'!$J$11,0) -> 0 | AI112: =IF($AA112<-'Results Dashboard'!$J$10,$AA112+'Results Dashboard'!$J$10,0) -> 0 | AK112: =IF((X112+W112)>0,(X112+W112)*0.5*'User Parameters'!C$48,(X112+W112)*0.5*'User Parameters'!$C$49) -> 0 | AL112: =-'User Parameters'!$C$12*('User Parameters'!$C$13-1) -> 0 | AM112: -0.08800431794
A113: 1.005003925 | B113: 454.543427 | C113: 456.8179284 | D113: 1.005003925 | E113: ='User Parameters'!$C$10 -> 40 | F113: =B113*'User Parameters'!$C$14 -> 0 | G113: -42.2745014 | H113: -0.09300431794 | I113: 1.005003925 | J113: =IF(UP_RSBasis="MLR",UP_RSTarget_MLR,IF(UP_RSBasis="Medical Baseline",UP_RSTarget_Medlcal,0)) -> 0 | K113: 0 | L113: 0 | M113: 0 | N113: 0 | O113: 0 | P113: 0 | Q113: 0 | S113: 0 | T113: =(S113+C113+'User Parameters'!$C$11)/(B113-F113) -> 1.005003925 | U113: =IF(T113<'User Parameters'!$J$5,'User Parameters'!$J$5,IF(T113>'User Parameters'!$J$6,'User Parameters'!$J$6,T113)) -> 1.005003925 | V113: 0 | W113: 0 | X113: =(B113-C113-F113-E113-S113-V113)/'Results Dashboard'!$D$42 -> -0.09300431794 | Y113: =IF((X113+W113)>0,(X113+W113)*0.5*((1+'User Parameters'!C$48)^((12+UP_COC_WithholdLag)/12)-1),(X113+W113)*0.5*((1+'User Parameters'!$C$49)^((12+UP_COC_WithholdLag)/12)-1)) -> 0 | Z113: =-'User Parameters'!$C$12*('User Parameters'!$C$13-1) -> 0 | AA113: -0.09300431794 | AB113: 7.391768173e-05 | AC113: 6.08790362e-05 | AD113: 6.08790362e-05 | AE113: =IF($AA113<-'Results Dashboard'!$J$7,$AA113+'Results Dashboard'!$J$7,0) -> -0.05797464363 | AF113: =IF($AA113<-'Results Dashboard'!$J$8,$AA113+'Results Dashboard'!$J$8,0) -> -0.02294496931 | AG113: =IF($AA113<-'Results Dashboard'!$J$9,$AA113+'Results Dashboard'!$J$9,0) -> -0.02294496931 | AH113: =IF($AA113<-'Results Dashboard'!$J$11,$AA113+'Results Dashboard'!$J$11,0) -> 0 | AI113: =IF($AA113<-'Results Dashboard'!$J$10,$AA113+'Results Dashboard'!$J$10,0) -> 0 | AK113: =IF((X113+W113)>0,(X113+W113)*0.5*'User Parameters'!C$48,(X113+W113)*0.5*'User Parameters'!$C$49) -> 0 | AL113: =-'User Parameters'!$C$12*('User Parameters'!$C$13-1) -> 0 | AM113: -0.09300431794
A114: 1.010003925 | B114: 454.543427 | C114: 459.0906455 | D114: 1.010003925 | E114: ='User Parameters'!$C$10 -> 40 | F114: =B114*'User Parameters'!$C$14 -> 0 | G114: -44.54721853 | H114: -0.09800431794 | I114: 1.010003925 | J114: =IF(UP_RSBasis="MLR",UP_RSTarget_MLR,IF(UP_RSBasis="Medical Baseline",UP_RSTarget_Medlcal,0)) -> 0 | K114: 0 | L114: 0 | M114: 0 | N114: 0 | O114: 0 | P114: 0 | Q114: 0 | S114: 0 | T114: =(S114+C114+'User Parameters'!$C$11)/(B114-F114) -> 1.010003925 | U114: =IF(T114<'User Parameters'!$J$5,'User Parameters'!$J$5,IF(T114>'User Parameters'!$J$6,'User Parameters'!$J$6,T114)) -> 1.010003925 | V114: 0 | W114: 0 | X114: =(B114-C114-F114-E114-S114-V114)/'Results Dashboard'!$D$42 -> -0.09800431794 | Y114: =IF((X114+W114)>0,(X114+W114)*0.5*((1+'User Parameters'!C$48)^((12+UP_COC_WithholdLag)/12)-1),(X114+W114)*0.5*((1+'User Parameters'!$C$49)^((12+UP_COC_WithholdLag)/12)-1)) -> 0 | Z114: =-'User Parameters'!$C$12*('User Parameters'!$C$13-1) -> 0 | AA114: -0.09800431794 | AB114: 3.96567847e-05 | AC114: 3.426089703e-05 | AD114: 3.426089703e-05 | AE114: =IF($AA114<-'Results Dashboard'!$J$7,$AA114+'Results Dashboard'!$J$7,0) -> -0.06297464363 | AF114: =IF($AA114<-'Results Dashboard'!$J$8,$AA114+'Results Dashboard'!$J$8,0) -> -0.02794496931 | AG114: =IF($AA114<-'Results Dashboard'!$J$9,$AA114+'Results Dashboard'!$J$9,0) -> -0.02794496931 | AH114: =IF($AA114<-'Results Dashboard'!$J$11,$AA114+'Results Dashboard'!$J$11,0) -> 0 | AI114: =IF($AA114<-'Results Dashboard'!$J$10,$AA114+'Results Dashboard'!$J$10,0) -> 0 | AK114: =IF((X114+W114)>0,(X114+W114)*0.5*'User Parameters'!C$48,(X114+W114)*0.5*'User Parameters'!$C$49) -> 0 | AL114: =-'User Parameters'!$C$12*('User Parameters'!$C$13-1) -> 0 | AM114: -0.09800431794
A115: 1.015003925 | B115: 454.543427 | C115: 461.3633626 | D115: 1.015003925 | E115: ='User Parameters'!$C$10 -> 40 | F115: =B115*'User Parameters'!$C$14 -> 0 | G115: -46.81993567 | H115: -0.1030043179 | I115: 1.015003925 | J115: =IF(UP_RSBasis="MLR",UP_RSTarget_MLR,IF(UP_RSBasis="Medical Baseline",UP_RSTarget_Medlcal,0)) -> 0 | K115: 0 | L115: 0 | M115: 0 | N115: 0 | O115: 0 | P115: 0 | Q115: 0 | S115: 0 | T115: =(S115+C115+'User Parameters'!$C$11)/(B115-F115) -> 1.015003925 | U115: =IF(T115<'User Parameters'!$J$5,'User Parameters'!$J$5,IF(T115>'User Parameters'!$J$6,'User Parameters'!$J$6,T115)) -> 1.015003925 | V115: 0 | W115: 0 | X115: =(B115-C115-F115-E115-S115-V115)/'Results Dashboard'!$D$42 -> -0.1030043179 | Y115: =IF((X115+W115)>0,(X115+W115)*0.5*((1+'User Parameters'!C$48)^((12+UP_COC_WithholdLag)/12)-1),(X115+W115)*0.5*((1+'User Parameters'!$C$49)^((12+UP_COC_WithholdLag)/12)-1)) -> 0 | Z115: =-'User Parameters'!$C$12*('User Parameters'!$C$13-1) -> 0 | AA115: -0.1030043179 | AB115: 2.081410316e-05 | AC115: 1.884268154e-05 | AD115: 1.884268154e-05 | AE115: =IF($AA115<-'Results Dashboard'!$J$7,$AA115+'Results Dashboard'!$J$7,0) -> -0.06797464363 | AF115: =IF($AA115<-'Results Dashboard'!$J$8,$AA115+'Results Dashboard'!$J$8,0) -> -0.03294496931 | AG115: =IF($AA115<-'Results Dashboard'!$J$9,$AA115+'Results Dashboard'!$J$9,0) -> -0.03294496931 | AH115: =IF($AA115<-'Results Dashboard'!$J$11,$AA115+'Results Dashboard'!$J$11,0) -> 0 | AI115: =IF($AA115<-'Results Dashboard'!$J$10,$AA115+'Results Dashboard'!$J$10,0) -> 0 | AK115: =IF((X115+W115)>0,(X115+W115)*0.5*'User Parameters'!C$48,(X115+W115)*0.5*'User Parameters'!$C$49) -> 0 | AL115: =-'User Parameters'!$C$12*('User Parameters'!$C$13-1) -> 0 | AM115: -0.1030043179
A116: 1.020003925 | B116: 454.543427 | C116: 463.6360798 | D116: 1.020003925 | E116: ='User Parameters'!$C$10 -> 40 | F116: =B116*'User Parameters'!$C$14 -> 0 | G116: -49.0926528 | H116: -0.1080043179 | I116: 1.020003925 | J116: =IF(UP_RSBasis="MLR",UP_RSTarget_MLR,IF(UP_RSBasis="Medical Baseline",UP_RSTarget_Medlcal,0)) -> 0 | K116: 0 | L116: 0 | M116: 0 | N116: 0 | O116: 0 | P116: 0 | Q116: 0 | S116: 0 | T116: =(S116+C116+'User Parameters'!$C$11)/(B116-F116) -> 1.020003925 | U116: =IF(T116<'User Parameters'!$J$5,'User Parameters'!$J$5,IF(T116>'User Parameters'!$J$6,'User Parameters'!$J$6,T116)) -> 1.020003925 | V116: 0 | W116: 0 | X116: =(B116-C116-F116-E116-S116-V116)/'Results Dashboard'!$D$42 -> -0.1080043179 | Y116: =IF((X116+W116)>0,(X116+W116)*0.5*((1+'User Parameters'!C$48)^((12+UP_COC_WithholdLag)/12)-1),(X116+W116)*0.5*((1+'User Parameters'!$C$49)^((12+UP_COC_WithholdLag)/12)-1)) -> 0 | Z116: =-'User Parameters'!$C$12*('User Parameters'!$C$13-1) -> 0 | AA116: -0.1080043179 | AB116: 1.068666318e-05 | AC116: 1.012743998e-05 | AD116: 1.012743998e-05 | AE116: =IF($AA116<-'Results Dashboard'!$J$7,$AA116+'Results Dashboard'!$J$7,0) -> -0.07297464363 | AF116: =IF($AA116<-'Results Dashboard'!$J$8,$AA116+'Results Dashboard'!$J$8,0) -> -0.03794496931 | AG116: =IF($AA116<-'Results Dashboard'!$J$9,$AA116+'Results Dashboard'!$J$9,0) -> -0.03794496931 | AH116: =IF($AA116<-'Results Dashboard'!$J$11,$AA116+'Results Dashboard'!$J$11,0) -> 0 | AI116: =IF($AA116<-'Results Dashboard'!$J$10,$AA116+'Results Dashboard'!$J$10,0) -> 0 | AK116: =IF((X116+W116)>0,(X116+W116)*0.5*'User Parameters'!C$48,(X116+W116)*0.5*'User Parameters'!$C$49) -> 0 | AL116: =-'User Parameters'!$C$12*('User Parameters'!$C$13-1) -> 0 | AM116: -0.1080043179
A117: 1.025003925 | B117: 454.543427 | C117: 465.9087969 | D117: 1.025003925 | E117: ='User Parameters'!$C$10 -> 40 | F117: =B117*'User Parameters'!$C$14 -> 0 | G117: -51.36536994 | H117: -0.1130043179 | I117: 1.025003925 | J117: =IF(UP_RSBasis="MLR",UP_RSTarget_MLR,IF(UP_RSBasis="Medical Baseline",UP_RSTarget_Medlcal,0)) -> 0 | K117: 0 | L117: 0 | M117: 0 | N117: 0 | O117: 0 | P117: 0 | Q117: 0 | S117: 0 | T117: =(S117+C117+'User Parameters'!$C$11)/(B117-F117) -> 1.025003925 | U117: =IF(T117<'User Parameters'!$J$5,'User Parameters'!$J$5,IF(T117>'User Parameters'!$J$6,'User Parameters'!$J$6,T117)) -> 1.025003925 | V117: 0 | W117: 0 | X117: =(B117-C117-F117-E117-S117-V117)/'Results Dashboard'!$D$42 -> -0.1130043179 | Y117: =IF((X117+W117)>0,(X117+W117)*0.5*((1+'User Parameters'!C$48)^((12+UP_COC_WithholdLag)/12)-1),(X117+W117)*0.5*((1+'User Parameters'!$C$49)^((12+UP_COC_WithholdLag)/12)-1)) -> 0 | Z117: =-'User Parameters'!$C$12*('User Parameters'!$C$13-1) -> 0 | AA117: -0.1130043179 | AB117: 5.367177877e-06 | AC117: 5.319485301e-06 | AD117: 5.319485301e-06 | AE117: =IF($AA117<-'Results Dashboard'!$J$7,$AA117+'Results Dashboard'!$J$7,0) -> -0.07797464363 | AF117: =IF($AA117<-'Results Dashboard'!$J$8,$AA117+'Results Dashboard'!$J$8,0) -> -0.04294496931 | AG117: =IF($AA117<-'Results Dashboard'!$J$9,$AA117+'Results Dashboard'!$J$9,0) -> -0.04294496931 | AH117: =IF($AA117<-'Results Dashboard'!$J$11,$AA117+'Results Dashboard'!$J$11,0) -> 0 | AI117: =IF($AA117<-'Results Dashboard'!$J$10,$AA117+'Results Dashboard'!$J$10,0) -> 0 | AK117: =IF((X117+W117)>0,(X117+W117)*0.5*'User Parameters'!C$48,(X117+W117)*0.5*'User Parameters'!$C$49) -> 0 | AL117: =-'User Parameters'!$C$12*('User Parameters'!$C$13-1) -> 0 | AM117: -0.1130043179
A118: 1.030003925 | B118: 454.543427 | C118: 468.181514 | D118: 1.030003925 | E118: ='User Parameters'!$C$10 -> 40 | F118: =B118*'User Parameters'!$C$14 -> 0 | G118: -53.63808707 | H118: -0.1180043179 | I118: 1.030003925 | J118: =IF(UP_RSBasis="MLR",UP_RSTarget_MLR,IF(UP_RSBasis="Medical Baseline",UP_RSTarget_Medlcal,0)) -> 0 | K118: 0 | L118: 0 | M118: 0 | N118: 0 | O118: 0 | P118: 0 | Q118: 0 | S118: 0 | T118: =(S118+C118+'User Parameters'!$C$11)/(B118-F118) -> 1.030003925 | U118: =IF(T118<'User Parameters'!$J$5,'User Parameters'!$J$5,IF(T118>'User Parameters'!$J$6,'User Parameters'!$J$6,T118)) -> 1.030003925 | V118: 0 | W118: 0 | X118: =(B118-C118-F118-E118-S118-V118)/'Results Dashboard'!$D$42 -> -0.1180043179 | Y118: =IF((X118+W118)>0,(X118+W118)*0.5*((1+'User Parameters'!C$48)^((12+UP_COC_WithholdLag)/12)-1),(X118+W118)*0.5*((1+'User Parameters'!$C$49)^((12+UP_COC_WithholdLag)/12)-1)) -> 0 | Z118: =-'User Parameters'!$C$12*('User Parameters'!$C$13-1) -> 0 | AA118: -0.1180043179 | AB118: 2.63661309e-06 | AC118: 2.730564787e-06 | AD118: 2.730564787e-06 | AE118: =IF($AA118<-'Results Dashboard'!$J$7,$AA118+'Results Dashboard'!$J$7,0) -> -0.08297464363 | AF118: =IF($AA118<-'Results Dashboard'!$J$8,$AA118+'Results Dashboard'!$J$8,0) -> -0.04794496931 | AG118: =IF($AA118<-'Results Dashboard'!$J$9,$AA118+'Results Dashboard'!$J$9,0) -> -0.04794496931 | AH118: =IF($AA118<-'Results Dashboard'!$J$11,$AA118+'Results Dashboard'!$J$11,0) -> 0 | AI118: =IF($AA118<-'Results Dashboard'!$J$10,$AA118+'Results Dashboard'!$J$10,0) -> 0 | AK118: =IF((X118+W118)>0,(X118+W118)*0.5*'User Parameters'!C$48,(X118+W118)*0.5*'User Parameters'!$C$49) -> 0 | AL118: =-'User Parameters'!$C$12*('User Parameters'!$C$13-1) -> 0 | AM118: -0.1180043179
A119: 1.035003925 | B119: 454.543427 | C119: 470.4542312 | D119: 1.035003925 | E119: ='User Parameters'!$C$10 -> 40 | F119: =B119*'User Parameters'!$C$14 -> 0 | G119: -55.91080421 | H119: -0.1230043179 | I119: 1.035003925 | J119: =IF(UP_RSBasis="MLR",UP_RSTarget_MLR,IF(UP_RSBasis="Medical Baseline",UP_RSTarget_Medlcal,0)) -> 0 | K119: 0 | L119: 0 | M119: 0 | N119: 0 | O119: 0 | P119: 0 | Q119: 0 | S119: 0 | T119: =(S119+C119+'User Parameters'!$C$11)/(B119-F119) -> 1.035003925 | U119: =IF(T119<'User Parameters'!$J$5,'User Parameters'!$J$5,IF(T119>'User Parameters'!$J$6,'User Parameters'!$J$6,T119)) -> 1.035003925 | V119: 0 | W119: 0 | X119: =(B119-C119-F119-E119-S119-V119)/'Results Dashboard'!$D$42 -> -0.1230043179 | Y119: =IF((X119+W119)>0,(X119+W119)*0.5*((1+'User Parameters'!C$48)^((12+UP_COC_WithholdLag)/12)-1),(X119+W119)*0.5*((1+'User Parameters'!$C$49)^((12+UP_COC_WithholdLag)/12)-1)) -> 0 | Z119: =-'User Parameters'!$C$12*('User Parameters'!$C$13-1) -> 0 | AA119: -0.1230043179 | AB119: 1.266841147e-06 | AC119: 1.369771943e-06 | AD119: 1.369771943e-06 | AE119: =IF($AA119<-'Results Dashboard'!$J$7,$AA119+'Results Dashboard'!$J$7,0) -> -0.08797464363 | AF119: =IF($AA119<-'Results Dashboard'!$J$8,$AA119+'Results Dashboard'!$J$8,0) -> -0.05294496931 | AG119: =IF($AA119<-'Results Dashboard'!$J$9,$AA119+'Results Dashboard'!$J$9,0) -> -0.05294496931 | AH119: =IF($AA119<-'Results Dashboard'!$J$11,$AA119+'Results Dashboard'!$J$11,0) -> 0 | AI119: =IF($AA119<-'Results Dashboard'!$J$10,$AA119+'Results Dashboard'!$J$10,0) -> 0 | AK119: =IF((X119+W119)>0,(X119+W119)*0.5*'User Parameters'!C$48,(X119+W119)*0.5*'User Parameters'!$C$49) -> 0 | AL119: =-'User Parameters'!$C$12*('User Parameters'!$C$13-1) -> 0 | AM119: -0.1230043179
A120: 1.040003925 | B120: 454.543427 | C120: 472.7269483 | D120: 1.040003925 | E120: ='User Parameters'!$C$10 -> 40 | F120: =B120*'User Parameters'!$C$14 -> 0 | G120: -58.18352134 | H120: -0.1280043179 | I120: 1.040003925 | J120: =IF(UP_RSBasis="MLR",UP_RSTarget_MLR,IF(UP_RSBasis="Medical Baseline",UP_RSTarget_Medlcal,0)) -> 0 | K120: 0 | L120: 0 | M120: 0 | N120: 0 | O120: 0 | P120: 0 | Q120: 0 | S120: 0 | T120: =(S120+C120+'User Parameters'!$C$11)/(B120-F120) -> 1.040003925 | U120: =IF(T120<'User Parameters'!$J$5,'User Parameters'!$J$5,IF(T120>'User Parameters'!$J$6,'User Parameters'!$J$6,T120)) -> 1.040003925 | V120: 0 | W120: 0 | X120: =(B120-C120-F120-E120-S120-V120)/'Results Dashboard'!$D$42 -> -0.1280043179 | Y120: =IF((X120+W120)>0,(X120+W120)*0.5*((1+'User Parameters'!C$48)^((12+UP_COC_WithholdLag)/12)-1),(X120+W120)*0.5*((1+'User Parameters'!$C$49)^((12+UP_COC_WithholdLag)/12)-1)) -> 0 | Z120: =-'User Parameters'!$C$12*('User Parameters'!$C$13-1) -> 0 | AA120: -0.1280043179 | AB120: 5.953242776e-07 | AC120: 6.715168689e-07 | AD120: 6.715168689e-07 | AE120: =IF($AA120<-'Results Dashboard'!$J$7,$AA120+'Results Dashboard'!$J$7,0) -> -0.09297464363 | AF120: =IF($AA120<-'Results Dashboard'!$J$8,$AA120+'Results Dashboard'!$J$8,0) -> -0.05794496931 | AG120: =IF($AA120<-'Results Dashboard'!$J$9,$AA120+'Results Dashboard'!$J$9,0) -> -0.05794496931 | AH120: =IF($AA120<-'Results Dashboard'!$J$11,$AA120+'Results Dashboard'!$J$11,0) -> 0 | AI120: =IF($AA120<-'Results Dashboard'!$J$10,$AA120+'Results Dashboard'!$J$10,0) -> 0 | AK120: =IF((X120+W120)>0,(X120+W120)*0.5*'User Parameters'!C$48,(X120+W120)*0.5*'User Parameters'!$C$49) -> 0 | AL120: =-'User Parameters'!$C$12*('User Parameters'!$C$13-1) -> 0 | AM120: -0.1280043179
A121: 1.045003925 | B121: 454.543427 | C121: 474.9996655 | D121: 1.045003925 | E121: ='User Parameters'!$C$10 -> 40 | F121: =B121*'User Parameters'!$C$14 -> 0 | G121: -60.45623848 | H121: -0.1330043179 | I121: 1.045003925 | J121: =IF(UP_RSBasis="MLR",UP_RSTarget_MLR,IF(UP_RSBasis="Medical Baseline",UP_RSTarget_Medlcal,0)) -> 0 | K121: 0 | L121: 0 | M121: 0 | N121: 0 | O121: 0 | P121: 0 | Q121: 0 | S121: 0 | T121: =(S121+C121+'User Parameters'!$C$11)/(B121-F121) -> 1.045003925 | U121: =IF(T121<'User Parameters'!$J$5,'User Parameters'!$J$5,IF(T121>'User Parameters'!$J$6,'User Parameters'!$J$6,T121)) -> 1.045003925 | V121: 0 | W121: 0 | X121: =(B121-C121-F121-E121-S121-V121)/'Results Dashboard'!$D$42 -> -0.1330043179 | Y121: =IF((X121+W121)>0,(X121+W121)*0.5*((1+'User Parameters'!C$48)^((12+UP_COC_WithholdLag)/12)-1),(X121+W121)*0.5*((1+'User Parameters'!$C$49)^((12+UP_COC_WithholdLag)/12)-1)) -> 0 | Z121: =-'User Parameters'!$C$12*('User Parameters'!$C$13-1) -> 0 | AA121: -0.1330043179 | AB121: 2.736039987e-07 | AC121: 3.217202789e-07 | AD121: 3.217202789e-07 | AE121: =IF($AA121<-'Results Dashboard'!$J$7,$AA121+'Results Dashboard'!$J$7,0) -> -0.09797464363 | AF121: =IF($AA121<-'Results Dashboard'!$J$8,$AA121+'Results Dashboard'!$J$8,0) -> -0.06294496931 | AG121: =IF($AA121<-'Results Dashboard'!$J$9,$AA121+'Results Dashboard'!$J$9,0) -> -0.06294496931 | AH121: =IF($AA121<-'Results Dashboard'!$J$11,$AA121+'Results Dashboard'!$J$11,0) -> 0 | AI121: =IF($AA121<-'Results Dashboard'!$J$10,$AA121+'Results Dashboard'!$J$10,0) -> 0 | AK121: =IF((X121+W121)>0,(X121+W121)*0.5*'User Parameters'!C$48,(X121+W121)*0.5*'User Parameters'!$C$49) -> 0 | AL121: =-'User Parameters'!$C$12*('User Parameters'!$C$13-1) -> 0 | AM121: -0.1330043179
A122: 1.050003925 | B122: 454.543427 | C122: 477.2723826 | D122: 1.050003925 | E122: ='User Parameters'!$C$10 -> 40 | F122: =B122*'User Parameters'!$C$14 -> 0 | G122: -62.72895561 | H122: -0.1380043179 | I122: 1.050003925 | J122: =IF(UP_RSBasis="MLR",UP_RSTarget_MLR,IF(UP_RSBasis="Medical Baseline",UP_RSTarget_Medlcal,0)) -> 0 | K122: 0 | L122: 0 | M122: 0 | N122: 0 | O122: 0 | P122: 0 | Q122: 0 | S122: 0 | T122: =(S122+C122+'User Parameters'!$C$11)/(B122-F122) -> 1.050003925 | U122: =IF(T122<'User Parameters'!$J$5,'User Parameters'!$J$5,IF(T122>'User Parameters'!$J$6,'User Parameters'!$J$6,T122)) -> 1.050003925 | V122: 0 | W122: 0 | X122: =(B122-C122-F122-E122-S122-V122)/'Results Dashboard'!$D$42 -> -0.1380043179 | Y122: =IF((X122+W122)>0,(X122+W122)*0.5*((1+'User Parameters'!C$48)^((12+UP_COC_WithholdLag)/12)-1),(X122+W122)*0.5*((1+'User Parameters'!$C$49)^((12+UP_COC_WithholdLag)/12)-1)) -> 0 | Z122: =-'User Parameters'!$C$12*('User Parameters'!$C$13-1) -> 0 | AA122: -0.1380043179 | AB122: 1.22973552e-07 | AC122: 1.506304467e-07 | AD122: 1.506304467e-07 | AE122: =IF($AA122<-'Results Dashboard'!$J$7,$AA122+'Results Dashboard'!$J$7,0) -> -0.1029746436 | AF122: =IF($AA122<-'Results Dashboard'!$J$8,$AA122+'Results Dashboard'!$J$8,0) -> -0.06794496931 | AG122: =IF($AA122<-'Results Dashboard'!$J$9,$AA122+'Results Dashboard'!$J$9,0) -> -0.06794496931 | AH122: =IF($AA122<-'Results Dashboard'!$J$11,$AA122+'Results Dashboard'!$J$11,0) -> 0 | AI122: =IF($AA122<-'Results Dashboard'!$J$10,$AA122+'Results Dashboard'!$J$10,0) -> 0 | AK122: =IF((X122+W122)>0,(X122+W122)*0.5*'User Parameters'!C$48,(X122+W122)*0.5*'User Parameters'!$C$49) -> 0 | AL122: =-'User Parameters'!$C$12*('User Parameters'!$C$13-1) -> 0 | AM122: -0.1380043179
A123: 1.055003925 | B123: 454.543427 | C123: 479.5450997 | D123: 1.055003925 | E123: ='User Parameters'!$C$10 -> 40 | F123: =B123*'User Parameters'!$C$14 -> 0 | G123: -65.00167275 | H123: -0.1430043179 | I123: 1.055003925 | J123: =IF(UP_RSBasis="MLR",UP_RSTarget_MLR,IF(UP_RSBasis="Medical Baseline",UP_RSTarget_Medlcal,0)) -> 0 | K123: 0 | L123: 0 | M123: 0 | N123: 0 | O123: 0 | P123: 0 | Q123: 0 | S123: 0 | T123: =(S123+C123+'User Parameters'!$C$11)/(B123-F123) -> 1.055003925 | U123: =IF(T123<'User Parameters'!$J$5,'User Parameters'!$J$5,IF(T123>'User Parameters'!$J$6,'User Parameters'!$J$6,T123)) -> 1.055003925 | V123: 0 | W123: 0 | X123: =(B123-C123-F123-E123-S123-V123)/'Results Dashboard'!$D$42 -> -0.1430043179 | Y123: =IF((X123+W123)>0,(X123+W123)*0.5*((1+'User Parameters'!C$48)^((12+UP_COC_WithholdLag)/12)-1),(X123+W123)*0.5*((1+'User Parameters'!$C$49)^((12+UP_COC_WithholdLag)/12)-1)) -> 0 | Z123: =-'User Parameters'!$C$12*('User Parameters'!$C$13-1) -> 0 | AA123: -0.1430043179 | AB123: 5.405123367e-08 | AC123: 6.892231834e-08 | AD123: 6.892231834e-08 | AE123: =IF($AA123<-'Results Dashboard'!$J$7,$AA123+'Results Dashboard'!$J$7,0) -> -0.1079746436 | AF123: =IF($AA123<-'Results Dashboard'!$J$8,$AA123+'Results Dashboard'!$J$8,0) -> -0.07294496931 | AG123: =IF($AA123<-'Results Dashboard'!$J$9,$AA123+'Results Dashboard'!$J$9,0) -> -0.07294496931 | AH123: =IF($AA123<-'Results Dashboard'!$J$11,$AA123+'Results Dashboard'!$J$11,0) -> 0 | AI123: =IF($AA123<-'Results Dashboard'!$J$10,$AA123+'Results Dashboard'!$J$10,0) -> 0 | AK123: =IF((X123+W123)>0,(X123+W123)*0.5*'User Parameters'!C$48,(X123+W123)*0.5*'User Parameters'!$C$49) -> 0 | AL123: =-'User Parameters'!$C$12*('User Parameters'!$C$13-1) -> 0 | AM123: -0.1430043179
A124: 1.060003925 | B124: 454.543427 | C124: 481.8178169 | D124: 1.060003925 | E124: ='User Parameters'!$C$10 -> 40 | F124: =B124*'User Parameters'!$C$14 -> 0 | G124: -67.27438988 | H124: -0.1480043179 | I124: 1.060003925 | J124: =IF(UP_RSBasis="MLR",UP_RSTarget_MLR,IF(UP_RSBasis="Medical Baseline",UP_RSTarget_Medlcal,0)) -> 0 | K124: 0 | L124: 0 | M124: 0 | N124: 0 | O124: 0 | P124: 0 | Q124: 0 | S124: 0 | T124: =(S124+C124+'User Parameters'!$C$11)/(B124-F124) -> 1.060003925 | U124: =IF(T124<'User Parameters'!$J$5,'User Parameters'!$J$5,IF(T124>'User Parameters'!$J$6,'User Parameters'!$J$6,T124)) -> 1.060003925 | V124: 0 | W124: 0 | X124: =(B124-C124-F124-E124-S124-V124)/'Results Dashboard'!$D$42 -> -0.1480043179 | Y124: =IF((X124+W124)>0,(X124+W124)*0.5*((1+'User Parameters'!C$48)^((12+UP_COC_WithholdLag)/12)-1),(X124+W124)*0.5*((1+'User Parameters'!$C$49)^((12+UP_COC_WithholdLag)/12)-1)) -> 0 | Z124: =-'User Parameters'!$C$12*('User Parameters'!$C$13-1) -> 0 | AA124: -0.1480043179 | AB124: 2.323214846e-08 | AC124: 3.081908521e-08 | AD124: 3.081908521e-08 | AE124: =IF($AA124<-'Results Dashboard'!$J$7,$AA124+'Results Dashboard'!$J$7,0) -> -0.1129746436 | AF124: =IF($AA124<-'Results Dashboard'!$J$8,$AA124+'Results Dashboard'!$J$8,0) -> -0.07794496931 | AG124: =IF($AA124<-'Results Dashboard'!$J$9,$AA124+'Results Dashboard'!$J$9,0) -> -0.07794496931 | AH124: =IF($AA124<-'Results Dashboard'!$J$11,$AA124+'Results Dashboard'!$J$11,0) -> 0 | AI124: =IF($AA124<-'Results Dashboard'!$J$10,$AA124+'Results Dashboard'!$J$10,0) -> 0 | AK124: =IF((X124+W124)>0,(X124+W124)*0.5*'User Parameters'!C$48,(X124+W124)*0.5*'User Parameters'!$C$49) -> 0 | AL124: =-'User Parameters'!$C$12*('User Parameters'!$C$13-1) -> 0 | AM124: -0.1480043179
A125: 1.065003925 | B125: 454.543427 | C125: 484.090534 | D125: 1.065003925 | E125: ='User Parameters'!$C$10 -> 40 | F125: =B125*'User Parameters'!$C$14 -> 0 | G125: -69.54710702 | H125: -0.1530043179 | I125: 1.065003925 | J125: =IF(UP_RSBasis="MLR",UP_RSTarget_MLR,IF(UP_RSBasis="Medical Baseline",UP_RSTarget_Medlcal,0)) -> 0 | K125: 0 | L125: 0 | M125: 0 | N125: 0 | O125: 0 | P125: 0 | Q125: 0 | S125: 0 | T125: =(S125+C125+'User Parameters'!$C$11)/(B125-F125) -> 1.065003925 | U125: =IF(T125<'User Parameters'!$J$5,'User Parameters'!$J$5,IF(T125>'User Parameters'!$J$6,'User Parameters'!$J$6,T125)) -> 1.065003925 | V125: 0 | W125: 0 | X125: =(B125-C125-F125-E125-S125-V125)/'Results Dashboard'!$D$42 -> -0.1530043179 | Y125: =IF((X125+W125)>0,(X125+W125)*0.5*((1+'User Parameters'!C$48)^((12+UP_COC_WithholdLag)/12)-1),(X125+W125)*0.5*((1+'User Parameters'!$C$49)^((12+UP_COC_WithholdLag)/12)-1)) -> 0 | Z125: =-'User Parameters'!$C$12*('User Parameters'!$C$13-1) -> 0 | AA125: -0.1530043179 | AB125: 9.76448272e-09 | AC125: 1.346766574e-08 | AD125: 1.346766574e-08 | AE125: =IF($AA125<-'Results Dashboard'!$J$7,$AA125+'Results Dashboard'!$J$7,0) -> -0.1179746436 | AF125: =IF($AA125<-'Results Dashboard'!$J$8,$AA125+'Results Dashboard'!$J$8,0) -> -0.08294496931 | AG125: =IF($AA125<-'Results Dashboard'!$J$9,$AA125+'Results Dashboard'!$J$9,0) -> -0.08294496931 | AH125: =IF($AA125<-'Results Dashboard'!$J$11,$AA125+'Results Dashboard'!$J$11,0) -> 0 | AI125: =IF($AA125<-'Results Dashboard'!$J$10,$AA125+'Results Dashboard'!$J$10,0) -> 0 | AK125: =IF((X125+W125)>0,(X125+W125)*0.5*'User Parameters'!C$48,(X125+W125)*0.5*'User Parameters'!$C$49) -> 0 | AL125: =-'User Parameters'!$C$12*('User Parameters'!$C$13-1) -> 0 | AM125: -0.1530043179
A126: 1.070003925 | B126: 454.543427 | C126: 486.3632511 | D126: 1.070003925 | E126: ='User Parameters'!$C$10 -> 40 | F126: =B126*'User Parameters'!$C$14 -> 0 | G126: -71.81982415 | H126: -0.1580043179 | I126: 1.070003925 | J126: =IF(UP_RSBasis="MLR",UP_RSTarget_MLR,IF(UP_RSBasis="Medical Baseline",UP_RSTarget_Medlcal,0)) -> 0 | K126: 0 | L126: 0 | M126: 0 | N126: 0 | O126: 0 | P126: 0 | Q126: 0 | S126: 0 | T126: =(S126+C126+'User Parameters'!$C$11)/(B126-F126) -> 1.070003925 | U126: =IF(T126<'User Parameters'!$J$5,'User Parameters'!$J$5,IF(T126>'User Parameters'!$J$6,'User Parameters'!$J$6,T126)) -> 1.070003925 | V126: 0 | W126: 0 | X126: =(B126-C126-F126-E126-S126-V126)/'Results Dashboard'!$D$42 -> -0.1580043179 | Y126: =IF((X126+W126)>0,(X126+W126)*0.5*((1+'User Parameters'!C$48)^((12+UP_COC_WithholdLag)/12)-1),(X126+W126)*0.5*((1+'User Parameters'!$C$49)^((12+UP_COC_WithholdLag)/12)-1)) -> 0 | Z126: =-'User Parameters'!$C$12*('User Parameters'!$C$13-1) -> 0 | AA126: -0.1580043179 | AB126: 4.01302941e-09 | AC126: 5.75145331e-09 | AD126: 5.75145331e-09 | AE126: =IF($AA126<-'Results Dashboard'!$J$7,$AA126+'Results Dashboard'!$J$7,0) -> -0.1229746436 | AF126: =IF($AA126<-'Results Dashboard'!$J$8,$AA126+'Results Dashboard'!$J$8,0) -> -0.08794496931 | AG126: =IF($AA126<-'Results Dashboard'!$J$9,$AA126+'Results Dashboard'!$J$9,0) -> -0.08794496931 | AH126: =IF($AA126<-'Results Dashboard'!$J$11,$AA126+'Results Dashboard'!$J$11,0) -> -0.0003707835304 | AI126: =IF($AA126<-'Results Dashboard'!$J$10,$AA126+'Results Dashboard'!$J$10,0) -> -0.0003707835304 | AK126: =IF((X126+W126)>0,(X126+W126)*0.5*'User Parameters'!C$48,(X126+W126)*0.5*'User Parameters'!$C$49) -> 0 | AL126: =-'User Parameters'!$C$12*('User Parameters'!$C$13-1) -> 0 | AM126: -0.1580043179
A127: 1.075003925 | B127: 454.543427 | C127: 488.6359683 | D127: 1.075003925 | E127: ='User Parameters'!$C$10 -> 40 | F127: =B127*'User Parameters'!$C$14 -> 0 | G127: -74.09254129 | H127: -0.1630043179 | I127: 1.075003925 | J127: =IF(UP_RSBasis="MLR",UP_RSTarget_MLR,IF(UP_RSBasis="Medical Baseline",UP_RSTarget_Medlcal,0)) -> 0 | K127: 0 | L127: 0 | M127: 0 | N127: 0 | O127: 0 | P127: 0 | Q127: 0 | S127: 0 | T127: =(S127+C127+'User Parameters'!$C$11)/(B127-F127) -> 1.075003925 | U127: =IF(T127<'User Parameters'!$J$5,'User Parameters'!$J$5,IF(T127>'User Parameters'!$J$6,'User Parameters'!$J$6,T127)) -> 1.075003925 | V127: 0 | W127: 0 | X127: =(B127-C127-F127-E127-S127-V127)/'Results Dashboard'!$D$42 -> -0.1630043179 | Y127: =IF((X127+W127)>0,(X127+W127)*0.5*((1+'User Parameters'!C$48)^((12+UP_COC_WithholdLag)/12)-1),(X127+W127)*0.5*((1+'User Parameters'!$C$49)^((12+UP_COC_WithholdLag)/12)-1)) -> 0 | Z127: =-'User Parameters'!$C$12*('User Parameters'!$C$13-1) -> 0 | AA127: -0.1630043179 | AB127: 1.612674186e-09 | AC127: 2.400355225e-09 | AD127: 2.400355225e-09 | AE127: =IF($AA127<-'Results Dashboard'!$J$7,$AA127+'Results Dashboard'!$J$7,0) -> -0.1279746436 | AF127: =IF($AA127<-'Results Dashboard'!$J$8,$AA127+'Results Dashboard'!$J$8,0) -> -0.09294496931 | AG127: =IF($AA127<-'Results Dashboard'!$J$9,$AA127+'Results Dashboard'!$J$9,0) -> -0.09294496931 | AH127: =IF($AA127<-'Results Dashboard'!$J$11,$AA127+'Results Dashboard'!$J$11,0) -> -0.00537078353 | AI127: =IF($AA127<-'Results Dashboard'!$J$10,$AA127+'Results Dashboard'!$J$10,0) -> -0.00537078353 | AK127: =IF((X127+W127)>0,(X127+W127)*0.5*'User Parameters'!C$48,(X127+W127)*0.5*'User Parameters'!$C$49) -> 0 | AL127: =-'User Parameters'!$C$12*('User Parameters'!$C$13-1) -> 0 | AM127: -0.1630043179
A128: 1.080003925 | B128: 454.543427 | C128: 490.9086854 | D128: 1.080003925 | E128: ='User Parameters'!$C$10 -> 40 | F128: =B128*'User Parameters'!$C$14 -> 0 | G128: -76.36525842 | H128: -0.1680043179 | I128: 1.080003925 | J128: =IF(UP_RSBasis="MLR",UP_RSTarget_MLR,IF(UP_RSBasis="Medical Baseline",UP_RSTarget_Medlcal,0)) -> 0 | K128: 0 | L128: 0 | M128: 0 | N128: 0 | O128: 0 | P128: 0 | Q128: 0 | S128: 0 | T128: =(S128+C128+'User Parameters'!$C$11)/(B128-F128) -> 1.080003925 | U128: =IF(T128<'User Parameters'!$J$5,'User Parameters'!$J$5,IF(T128>'User Parameters'!$J$6,'User Parameters'!$J$6,T128)) -> 1.080003925 | V128: 0 | W128: 0 | X128: =(B128-C128-F128-E128-S128-V128)/'Results Dashboard'!$D$42 -> -0.1680043179 | Y128: =IF((X128+W128)>0,(X128+W128)*0.5*((1+'User Parameters'!C$48)^((12+UP_COC_WithholdLag)/12)-1),(X128+W128)*0.5*((1+'User Parameters'!$C$49)^((12+UP_COC_WithholdLag)/12)-1)) -> 0 | Z128: =-'User Parameters'!$C$12*('User Parameters'!$C$13-1) -> 0 | AA128: -0.1680043179 | AB128: 6.336666205e-10 | AC128: 9.790075652e-10 | AD128: 9.790075652e-10 | AE128: =IF($AA128<-'Results Dashboard'!$J$7,$AA128+'Results Dashboard'!$J$7,0) -> -0.1329746436 | AF128: =IF($AA128<-'Results Dashboard'!$J$8,$AA128+'Results Dashboard'!$J$8,0) -> -0.09794496931 | AG128: =IF($AA128<-'Results Dashboard'!$J$9,$AA128+'Results Dashboard'!$J$9,0) -> -0.09794496931 | AH128: =IF($AA128<-'Results Dashboard'!$J$11,$AA128+'Results Dashboard'!$J$11,0) -> -0.01037078353 | AI128: =IF($AA128<-'Results Dashboard'!$J$10,$AA128+'Results Dashboard'!$J$10,0) -> -0.01037078353 | AK128: =IF((X128+W128)>0,(X128+W128)*0.5*'User Parameters'!C$48,(X128+W128)*0.5*'User Parameters'!$C$49) -> 0 | AL128: =-'User Parameters'!$C$12*('User Parameters'!$C$13-1) -> 0 | AM128: -0.1680043179
A129: =A128+0.005 -> 1.085003925 | B129: 454.543427 | C129: 493.1814025 | D129: 1.085003925 | E129: ='User Parameters'!$C$10 -> 40 | F129: =B129*'User Parameters'!$C$14 -> 0 | G129: -78.63797556 | H129: -0.1730043179 | I129: 1.085003925 | J129: =IF(UP_RSBasis="MLR",UP_RSTarget_MLR,IF(UP_RSBasis="Medical Baseline",UP_RSTarget_Medlcal,0)) -> 0 | K129: 0 | L129: 0 | M129: 0 | N129: 0 | O129: 0 | P129: 0 | Q129: 0 | S129: 0 | T129: =(S129+C129+'User Parameters'!$C$11)/(B129-F129) -> 1.085003925 | U129: =IF(T129<'User Parameters'!$J$5,'User Parameters'!$J$5,IF(T129>'User Parameters'!$J$6,'User Parameters'!$J$6,T129)) -> 1.085003925 | V129: 0 | W129: 0 | X129: =(B129-C129-F129-E129-S129-V129)/'Results Dashboard'!$D$42 -> -0.1730043179 | Y129: =IF((X129+W129)>0,(X129+W129)*0.5*((1+'User Parameters'!C$48)^((12+UP_COC_WithholdLag)/12)-1),(X129+W129)*0.5*((1+'User Parameters'!$C$49)^((12+UP_COC_WithholdLag)/12)-1)) -> 0 | Z129: =-'User Parameters'!$C$12*('User Parameters'!$C$13-1) -> 0 | AA129: -0.1730043179 | AB129: 2.434469537e-10 | AC129: 3.902196668e-10 | AD129: 3.902196668e-10 | AE129: =IF($AA129<-'Results Dashboard'!$J$7,$AA129+'Results Dashboard'!$J$7,0) -> -0.1379746436 | AF129: =IF($AA129<-'Results Dashboard'!$J$8,$AA129+'Results Dashboard'!$J$8,0) -> -0.1029449693 | AG129: =IF($AA129<-'Results Dashboard'!$J$9,$AA129+'Results Dashboard'!$J$9,0) -> -0.1029449693 | AH129: =IF($AA129<-'Results Dashboard'!$J$11,$AA129+'Results Dashboard'!$J$11,0) -> -0.01537078353 | AI129: =IF($AA129<-'Results Dashboard'!$J$10,$AA129+'Results Dashboard'!$J$10,0) -> -0.01537078353 | AK129: =IF((X129+W129)>0,(X129+W129)*0.5*'User Parameters'!C$48,(X129+W129)*0.5*'User Parameters'!$C$49) -> 0 | AL129: =-'User Parameters'!$C$12*('User Parameters'!$C$13-1) -> 0 | AM129: -0.1730043179
A130: 1.090003925 | B130: 454.543427 | C130: 495.4541197 | D130: 1.090003925 | E130: ='User Parameters'!$C$10 -> 40 | F130: =B130*'User Parameters'!$C$14 -> 0 | G130: -80.91069269 | H130: -0.1780043179 | I130: 1.090003925 | J130: =IF(UP_RSBasis="MLR",UP_RSTarget_MLR,IF(UP_RSBasis="Medical Baseline",UP_RSTarget_Medlcal,0)) -> 0 | K130: 0 | L130: 0 | M130: 0 | N130: 0 | O130: 0 | P130: 0 | Q130: 0 | S130: 0 | T130: =(S130+C130+'User Parameters'!$C$11)/(B130-F130) -> 1.090003925 | U130: =IF(T130<'User Parameters'!$J$5,'User Parameters'!$J$5,IF(T130>'User Parameters'!$J$6,'User Parameters'!$J$6,T130)) -> 1.090003925 | V130: 0 | W130: 0 | X130: =(B130-C130-F130-E130-S130-V130)/'Results Dashboard'!$D$42 -> -0.1780043179 | Y130: =IF((X130+W130)>0,(X130+W130)*0.5*((1+'User Parameters'!C$48)^((12+UP_COC_WithholdLag)/12)-1),(X130+W130)*0.5*((1+'User Parameters'!$C$49)^((12+UP_COC_WithholdLag)/12)-1)) -> 0 | Z130: =-'User Parameters'!$C$12*('User Parameters'!$C$13-1) -> 0 | AA130: -0.1780043179 | AB130: 9.144653063e-11 | AC130: 1.520004231e-10 | AD130: 1.520004231e-10 | AE130: =IF($AA130<-'Results Dashboard'!$J$7,$AA130+'Results Dashboard'!$J$7,0) -> -0.1429746436 | AF130: =IF($AA130<-'Results Dashboard'!$J$8,$AA130+'Results Dashboard'!$J$8,0) -> -0.1079449693 | AG130: =IF($AA130<-'Results Dashboard'!$J$9,$AA130+'Results Dashboard'!$J$9,0) -> -0.1079449693 | AH130: =IF($AA130<-'Results Dashboard'!$J$11,$AA130+'Results Dashboard'!$J$11,0) -> -0.02037078353 | AI130: =IF($AA130<-'Results Dashboard'!$J$10,$AA130+'Results Dashboard'!$J$10,0) -> -0.02037078353 | AK130: =IF((X130+W130)>0,(X130+W130)*0.5*'User Parameters'!C$48,(X130+W130)*0.5*'User Parameters'!$C$49) -> 0 | AL130: =-'User Parameters'!$C$12*('User Parameters'!$C$13-1) -> 0 | AM130: -0.1780043179
A131: 1.095003925 | B131: 454.543427 | C131: 497.7268368 | D131: 1.095003925 | E131: ='User Parameters'!$C$10 -> 40 | F131: =B131*'User Parameters'!$C$14 -> 0 | G131: -83.18340983 | H131: -0.1830043179 | I131: 1.095003925 | J131: =IF(UP_RSBasis="MLR",UP_RSTarget_MLR,IF(UP_RSBasis="Medical Baseline",UP_RSTarget_Medlcal,0)) -> 0 | K131: 0 | L131: 0 | M131: 0 | N131: 0 | O131: 0 | P131: 0 | Q131: 0 | S131: 0 | T131: =(S131+C131+'User Parameters'!$C$11)/(B131-F131) -> 1.095003925 | U131: =IF(T131<'User Parameters'!$J$5,'User Parameters'!$J$5,IF(T131>'User Parameters'!$J$6,'User Parameters'!$J$6,T131)) -> 1.095003925 | V131: 0 | W131: 0 | X131: =(B131-C131-F131-E131-S131-V131)/'Results Dashboard'!$D$42 -> -0.1830043179 | Y131: =IF((X131+W131)>0,(X131+W131)*0.5*((1+'User Parameters'!C$48)^((12+UP_COC_WithholdLag)/12)-1),(X131+W131)*0.5*((1+'User Parameters'!$C$49)^((12+UP_COC_WithholdLag)/12)-1)) -> 0 | Z131: =-'User Parameters'!$C$12*('User Parameters'!$C$13-1) -> 0 | AA131: -0.1830043179 | AB131: 3.358459765e-11 | AC131: 5.786193298e-11 | AD131: 5.786193298e-11 | AE131: =IF($AA131<-'Results Dashboard'!$J$7,$AA131+'Results Dashboard'!$J$7,0) -> -0.1479746436 | AF131: =IF($AA131<-'Results Dashboard'!$J$8,$AA131+'Results Dashboard'!$J$8,0) -> -0.1129449693 | AG131: =IF($AA131<-'Results Dashboard'!$J$9,$AA131+'Results Dashboard'!$J$9,0) -> -0.1129449693 | AH131: =IF($AA131<-'Results Dashboard'!$J$11,$AA131+'Results Dashboard'!$J$11,0) -> -0.02537078353 | AI131: =IF($AA131<-'Results Dashboard'!$J$10,$AA131+'Results Dashboard'!$J$10,0) -> -0.02537078353 | AK131: =IF((X131+W131)>0,(X131+W131)*0.5*'User Parameters'!C$48,(X131+W131)*0.5*'User Parameters'!$C$49) -> 0 | AL131: =-'User Parameters'!$C$12*('User Parameters'!$C$13-1) -> 0 | AM131: -0.1830043179
A132: 1.100003925 | B132: 454.543427 | C132: 499.9995539 | D132: 1.100003925 | E132: ='User Parameters'!$C$10 -> 40 | F132: =B132*'User Parameters'!$C$14 -> 0 | G132: -85.45612696 | H132: -0.1880043179 | I132: 1.100003925 | J132: =IF(UP_RSBasis="MLR",UP_RSTarget_MLR,IF(UP_RSBasis="Medical Baseline",UP_RSTarget_Medlcal,0)) -> 0 | K132: 0 | L132: 0 | M132: 0 | N132: 0 | O132: 0 | P132: 0 | Q132: 0 | S132: 0 | T132: =(S132+C132+'User Parameters'!$C$11)/(B132-F132) -> 1.100003925 | U132: =IF(T132<'User Parameters'!$J$5,'User Parameters'!$J$5,IF(T132>'User Parameters'!$J$6,'User Parameters'!$J$6,T132)) -> 1.100003925 | V132: 0 | W132: 0 | X132: =(B132-C132-F132-E132-S132-V132)/'Results Dashboard'!$D$42 -> -0.1880043179 | Y132: =IF((X132+W132)>0,(X132+W132)*0.5*((1+'User Parameters'!C$48)^((12+UP_COC_WithholdLag)/12)-1),(X132+W132)*0.5*((1+'User Parameters'!$C$49)^((12+UP_COC_WithholdLag)/12)-1)) -> 0 | Z132: =-'User Parameters'!$C$12*('User Parameters'!$C$13-1) -> 0 | AA132: -0.1880043179 | AB132: 1.205908331e-11 | AC132: 2.152551434e-11 | AD132: 2.152551434e-11 | AE132: =IF($AA132<-'Results Dashboard'!$J$7,$AA132+'Results Dashboard'!$J$7,0) -> -0.1529746436 | AF132: =IF($AA132<-'Results Dashboard'!$J$8,$AA132+'Results Dashboard'!$J$8,0) -> -0.1179449693 | AG132: =IF($AA132<-'Results Dashboard'!$J$9,$AA132+'Results Dashboard'!$J$9,0) -> -0.1179449693 | AH132: =IF($AA132<-'Results Dashboard'!$J$11,$AA132+'Results Dashboard'!$J$11,0) -> -0.03037078353 | AI132: =IF($AA132<-'Results Dashboard'!$J$10,$AA132+'Results Dashboard'!$J$10,0) -> -0.03037078353 | AK132: =IF((X132+W132)>0,(X132+W132)*0.5*'User Parameters'!C$48,(X132+W132)*0.5*'User Parameters'!$C$49) -> 0 | AL132: =-'User Parameters'!$C$12*('User Parameters'!$C$13-1) -> 0 | AM132: -0.1880043179
A133: 1.105003925 | B133: 454.543427 | C133: 502.2722711 | D133: 1.105003925 | E133: ='User Parameters'!$C$10 -> 40 | F133: =B133*'User Parameters'!$C$14 -> 0 | G133: -87.7288441 | H133: -0.1930043179 | I133: 1.105003925 | J133: =IF(UP_RSBasis="MLR",UP_RSTarget_MLR,IF(UP_RSBasis="Medical Baseline",UP_RSTarget_Medlcal,0)) -> 0 | K133: 0 | L133: 0 | M133: 0 | N133: 0 | O133: 0 | P133: 0 | Q133: 0 | S133: 0 | T133: =(S133+C133+'User Parameters'!$C$11)/(B133-F133) -> 1.105003925 | U133: =IF(T133<'User Parameters'!$J$5,'User Parameters'!$J$5,IF(T133>'User Parameters'!$J$6,'User Parameters'!$J$6,T133)) -> 1.105003925 | V133: 0 | W133: 0 | X133: =(B133-C133-F133-E133-S133-V133)/'Results Dashboard'!$D$42 -> -0.1930043179 | Y133: =IF((X133+W133)>0,(X133+W133)*0.5*((1+'User Parameters'!C$48)^((12+UP_COC_WithholdLag)/12)-1),(X133+W133)*0.5*((1+'User Parameters'!$C$49)^((12+UP_COC_WithholdLag)/12)-1)) -> 0 | Z133: =-'User Parameters'!$C$12*('User Parameters'!$C$13-1) -> 0 | AA133: -0.1930043179 | AB133: 4.233322764e-12 | AC133: 7.825760545e-12 | AD133: 7.825760545e-12 | AE133: =IF($AA133<-'Results Dashboard'!$J$7,$AA133+'Results Dashboard'!$J$7,0) -> -0.1579746436 | AF133: =IF($AA133<-'Results Dashboard'!$J$8,$AA133+'Results Dashboard'!$J$8,0) -> -0.1229449693 | AG133: =IF($AA133<-'Results Dashboard'!$J$9,$AA133+'Results Dashboard'!$J$9,0) -> -0.1229449693 | AH133: =IF($AA133<-'Results Dashboard'!$J$11,$AA133+'Results Dashboard'!$J$11,0) -> -0.03537078353 | AI133: =IF($AA133<-'Results Dashboard'!$J$10,$AA133+'Results Dashboard'!$J$10,0) -> -0.03537078353 | AK133: =IF((X133+W133)>0,(X133+W133)*0.5*'User Parameters'!C$48,(X133+W133)*0.5*'User Parameters'!$C$49) -> 0 | AL133: =-'User Parameters'!$C$12*('User Parameters'!$C$13-1) -> 0 | AM133: -0.1930043179
A134: 1.110003925 | B134: 454.543427 | C134: 504.5449882 | D134: 1.110003925 | E134: ='User Parameters'!$C$10 -> 40 | F134: =B134*'User Parameters'!$C$14 -> 0 | G134: -90.00156123 | H134: -0.1980043179 | I134: 1.110003925 | J134: =IF(UP_RSBasis="MLR",UP_RSTarget_MLR,IF(UP_RSBasis="Medical Baseline",UP_RSTarget_Medlcal,0)) -> 0 | K134: 0 | L134: 0 | M134: 0 | N134: 0 | O134: 0 | P134: 0 | Q134: 0 | S134: 0 | T134: =(S134+C134+'User Parameters'!$C$11)/(B134-F134) -> 1.110003925 | U134: =IF(T134<'User Parameters'!$J$5,'User Parameters'!$J$5,IF(T134>'User Parameters'!$J$6,'User Parameters'!$J$6,T134)) -> 1.110003925 | V134: 0 | W134: 0 | X134: =(B134-C134-F134-E134-S134-V134)/'Results Dashboard'!$D$42 -> -0.1980043179 | Y134: =IF((X134+W134)>0,(X134+W134)*0.5*((1+'User Parameters'!C$48)^((12+UP_COC_WithholdLag)/12)-1),(X134+W134)*0.5*((1+'User Parameters'!$C$49)^((12+UP_COC_WithholdLag)/12)-1)) -> 0 | Z134: =-'User Parameters'!$C$12*('User Parameters'!$C$13-1) -> 0 | AA134: -0.1980043179 | AB134: 1.45289287e-12 | AC134: 2.780429894e-12 | AD134: 2.780429894e-12 | AE134: =IF($AA134<-'Results Dashboard'!$J$7,$AA134+'Results Dashboard'!$J$7,0) -> -0.1629746436 | AF134: =IF($AA134<-'Results Dashboard'!$J$8,$AA134+'Results Dashboard'!$J$8,0) -> -0.1279449693 | AG134: =IF($AA134<-'Results Dashboard'!$J$9,$AA134+'Results Dashboard'!$J$9,0) -> -0.1279449693 | AH134: =IF($AA134<-'Results Dashboard'!$J$11,$AA134+'Results Dashboard'!$J$11,0) -> -0.04037078353 | AI134: =IF($AA134<-'Results Dashboard'!$J$10,$AA134+'Results Dashboard'!$J$10,0) -> -0.04037078353 | AK134: =IF((X134+W134)>0,(X134+W134)*0.5*'User Parameters'!C$48,(X134+W134)*0.5*'User Parameters'!$C$49) -> 0 | AL134: =-'User Parameters'!$C$12*('User Parameters'!$C$13-1) -> 0 | AM134: -0.1980043179
A135: 1.115003925 | B135: 454.543427 | C135: 506.8177053 | D135: 1.115003925 | E135: ='User Parameters'!$C$10 -> 40 | F135: =B135*'User Parameters'!$C$14 -> 0 | G135: -92.27427837 | H135: -0.2030043179 | I135: 1.115003925 | J135: =IF(UP_RSBasis="MLR",UP_RSTarget_MLR,IF(UP_RSBasis="Medical Baseline",UP_RSTarget_Medlcal,0)) -> 0 | K135: 0 | L135: 0 | M135: 0 | N135: 0 | O135: 0 | P135: 0 | Q135: 0 | S135: 0 | T135: =(S135+C135+'User Parameters'!$C$11)/(B135-F135) -> 1.115003925 | U135: =IF(T135<'User Parameters'!$J$5,'User Parameters'!$J$5,IF(T135>'User Parameters'!$J$6,'User Parameters'!$J$6,T135)) -> 1.115003925 | V135: 0 | W135: 0 | X135: =(B135-C135-F135-E135-S135-V135)/'Results Dashboard'!$D$42 -> -0.2030043179 | Y135: =IF((X135+W135)>0,(X135+W135)*0.5*((1+'User Parameters'!C$48)^((12+UP_COC_WithholdLag)/12)-1),(X135+W135)*0.5*((1+'User Parameters'!$C$49)^((12+UP_COC_WithholdLag)/12)-1)) -> 0 | Z135: =-'User Parameters'!$C$12*('User Parameters'!$C$13-1) -> 0 | AA135: -0.2030043179 | AB135: 4.874875719e-13 | AC135: 9.654052982e-13 | AD135: 9.654052982e-13 | AE135: =IF($AA135<-'Results Dashboard'!$J$7,$AA135+'Results Dashboard'!$J$7,0) -> -0.1679746436 | AF135: =IF($AA135<-'Results Dashboard'!$J$8,$AA135+'Results Dashboard'!$J$8,0) -> -0.1329449693 | AG135: =IF($AA135<-'Results Dashboard'!$J$9,$AA135+'Results Dashboard'!$J$9,0) -> -0.1329449693 | AH135: =IF($AA135<-'Results Dashboard'!$J$11,$AA135+'Results Dashboard'!$J$11,0) -> -0.04537078353 | AI135: =IF($AA135<-'Results Dashboard'!$J$10,$AA135+'Results Dashboard'!$J$10,0) -> -0.04537078353 | AK135: =IF((X135+W135)>0,(X135+W135)*0.5*'User Parameters'!C$48,(X135+W135)*0.5*'User Parameters'!$C$49) -> 0 | AL135: =-'User Parameters'!$C$12*('User Parameters'!$C$13-1) -> 0 | AM135: -0.2030043179
A136: 1.120003925 | B136: 454.543427 | C136: 509.0904225 | D136: 1.120003925 | E136: ='User Parameters'!$C$10 -> 40 | F136: =B136*'User Parameters'!$C$14 -> 0 | G136: -94.5469955 | H136: -0.2080043179 | I136: 1.120003925 | J136: =IF(UP_RSBasis="MLR",UP_RSTarget_MLR,IF(UP_RSBasis="Medical Baseline",UP_RSTarget_Medlcal,0)) -> 0 | K136: =IF(UP_RSBasis="MLR",J136-I136,IF(UP_RSBasis="Medical Baseline",J136-$C136,0)) -> 0 | L136: 0 | M136: 0 | N136: 0 | O136: 0 | P136: 0 | Q136: 0 | R136: =IF(UP_RSBasis="MLR",SUMPRODUCT(L$4:Q$4,L136:Q136),"") ->  | S136: =IF(UP_RSBasis="MLR",R136*(B136-F136),SUMPRODUCT($L$4:$Q$4,$L136:$Q136)) -> 0 | T136: =(S136+C136+'User Parameters'!$C$11)/(B136-F136) -> 1.120003925 | U136: =IF(T136<'User Parameters'!$J$5,'User Parameters'!$J$5,IF(T136>'User Parameters'!$J$6,'User Parameters'!$J$6,T136)) -> 1.120003925 | V136: =(U136-T136)*(B136-F136) -> 0 | W136: =V136/B136 -> 0 | X136: =(B136-C136-F136-E136-S136-V136)/'Results Dashboard'!$D$42 -> -0.2080043179 | Y136: =IF((X136+W136)>0,(X136+W136)*0.5*((1+'User Parameters'!C$48)^((12+UP_COC_WithholdLag)/12)-1),(X136+W136)*0.5*((1+'User Parameters'!$C$49)^((12+UP_COC_WithholdLag)/12)-1)) -> 0 | Z136: =-'User Parameters'!$C$12*('User Parameters'!$C$13-1) -> 0 | AA136: -0.2080043179 | AB136: =_xlfn.NORM.DIST(H136,$AD$2,$AD$3,TRUE) -> 1.599058221e-13 | AC136: 3.275817497e-13 | AD136: 3.275817497e-13 | AE136: =IF($AA136<-'Results Dashboard'!$J$7,$AA136+'Results Dashboard'!$J$7,0) -> -0.1729746436 | AF136: =IF($AA136<-'Results Dashboard'!$J$8,$AA136+'Results Dashboard'!$J$8,0) -> -0.1379449693 | AG136: =IF($AA136<-'Results Dashboard'!$J$9,$AA136+'Results Dashboard'!$J$9,0) -> -0.1379449693 | AH136: =IF($AA136<-'Results Dashboard'!$J$11,$AA136+'Results Dashboard'!$J$11,0) -> -0.05037078353 | AI136: =IF($AA136<-'Results Dashboard'!$J$10,$AA136+'Results Dashboard'!$J$10,0) -> -0.05037078353 | AK136: =IF((X136+W136)>0,(X136+W136)*0.5*'User Parameters'!C$48,(X136+W136)*0.5*'User Parameters'!$C$49) -> 0 | AL136: =-'User Parameters'!$C$12*('User Parameters'!$C$13-1) -> 0 | AM136: -0.2080043179
A137: 1.125003925 | B137: 454.543427 | C137: =B137*A137 -> 511.3631396 | D137: =(C137)/(B137) -> 1.125003925 | E137: ='User Parameters'!$C$10 -> 40 | F137: =B137*'User Parameters'!$C$14 -> 0 | G137: =B137-E137-C137-F137 -> -96.81971264 | H137: =G137/B137 -> -0.2130043179 | I137: 1.125003925 | J137: =IF(UP_RSBasis="MLR",UP_RSTarget_MLR,IF(UP_RSBasis="Medical Baseline",UP_RSTarget_Medlcal,0)) -> 0 | K137: 0 | L137: =IF($K137>0,MIN(J137*L$3-J137*L$2,$K137-M137-N137),0) -> 0 | M137: =IF($K137>0,MIN(J137*M$3-J137*M$2,$K137-N137),0) -> 0 | N137: =IF($K137>0,MIN(J137*N$3-J137*N$2,$K137),0) -> 0 | O137: =IF($K137<0,MAX(J137*O$2-J137*O$3,$K137),0) -> 0 | P137: =IF($K137<0,MAX(J137*P$2-J137*P$3,$K137-O137),0) -> 0 | Q137: =IF($K137<0,MAX(J137*Q$2-J137*Q$3,$K137-P137-O137),0) -> 0 | S137: 0 | T137: =(S137+C137+'User Parameters'!$C$11)/(B137-F137) -> 1.125003925 | U137: =IF(T137<'User Parameters'!$J$5,'User Parameters'!$J$5,IF(T137>'User Parameters'!$J$6,'User Parameters'!$J$6,T137)) -> 1.125003925 | V137: 0 | W137: 0 | X137: =(B137-C137-F137-E137-S137-V137)/'Results Dashboard'!$D$42 -> -0.2130043179 | Y137: =IF((X137+W137)>0,(X137+W137)*0.5*((1+'User Parameters'!C$48)^((12+UP_COC_WithholdLag)/12)-1),(X137+W137)*0.5*((1+'User Parameters'!$C$49)^((12+UP_COC_WithholdLag)/12)-1)) -> 0 | Z137: =-'User Parameters'!$C$12*('User Parameters'!$C$13-1) -> 0 | AA137: =Y137+X137-Z137 -> -0.2130043179 | AB137: 5.127777635e-14 | AC137: 1.086280458e-13 | AD137: 1.086280458e-13 | AE137: =IF($AA137<-'Results Dashboard'!$J$7,$AA137+'Results Dashboard'!$J$7,0) -> -0.1779746436 | AF137: =IF($AA137<-'Results Dashboard'!$J$8,$AA137+'Results Dashboard'!$J$8,0) -> -0.1429449693 | AG137: =IF($AA137<-'Results Dashboard'!$J$9,$AA137+'Results Dashboard'!$J$9,0) -> -0.1429449693 | AH137: =IF($AA137<-'Results Dashboard'!$J$11,$AA137+'Results Dashboard'!$J$11,0) -> -0.05537078353 | AI137: =IF($AA137<-'Results Dashboard'!$J$10,$AA137+'Results Dashboard'!$J$10,0) -> -0.05537078353 | AK137: =IF((X137+W137)>0,(X137+W137)*0.5*'User Parameters'!C$48,(X137+W137)*0.5*'User Parameters'!$C$49) -> 0 | AL137: =-'User Parameters'!$C$12*('User Parameters'!$C$13-1) -> 0 | AM137: =-AK137+X137-AL137 -> -0.2130043179
A138: 1.130003925 | B138: 454.543427 | C138: 513.6358567 | D138: 1.130003925 | E138: ='User Parameters'!$C$10 -> 40 | F138: =B138*'User Parameters'!$C$14 -> 0 | G138: -99.09242977 | H138: -0.2180043179 | I138: 1.130003925 | J138: =IF(UP_RSBasis="MLR",UP_RSTarget_MLR,IF(UP_RSBasis="Medical Baseline",UP_RSTarget_Medlcal,0)) -> 0 | K138: 0 | L138: 0 | M138: 0 | N138: 0 | O138: 0 | P138: 0 | Q138: 0 | S138: 0 | T138: =(S138+C138+'User Parameters'!$C$11)/(B138-F138) -> 1.130003925 | U138: =IF(T138<'User Parameters'!$J$5,'User Parameters'!$J$5,IF(T138>'User Parameters'!$J$6,'User Parameters'!$J$6,T138)) -> 1.130003925 | V138: 0 | W138: 0 | X138: =(B138-C138-F138-E138-S138-V138)/'Results Dashboard'!$D$42 -> -0.2180043179 | Y138: =IF((X138+W138)>0,(X138+W138)*0.5*((1+'User Parameters'!C$48)^((12+UP_COC_WithholdLag)/12)-1),(X138+W138)*0.5*((1+'User Parameters'!$C$49)^((12+UP_COC_WithholdLag)/12)-1)) -> 0 | Z138: =-'User Parameters'!$C$12*('User Parameters'!$C$13-1) -> 0 | AA138: -0.2180043179 | AB138: 1.607503873e-14 | AC138: 3.520273762e-14 | AD138: =AC138 -> 3.520273762e-14 | AE138: =IF($AA138<-'Results Dashboard'!$J$7,$AA138+'Results Dashboard'!$J$7,0) -> -0.1829746436 | AF138: =IF($AA138<-'Results Dashboard'!$J$8,$AA138+'Results Dashboard'!$J$8,0) -> -0.1479449693 | AG138: =IF($AA138<-'Results Dashboard'!$J$9,$AA138+'Results Dashboard'!$J$9,0) -> -0.1479449693 | AH138: =IF($AA138<-'Results Dashboard'!$J$11,$AA138+'Results Dashboard'!$J$11,0) -> -0.06037078353 | AI138: =IF($AA138<-'Results Dashboard'!$J$10,$AA138+'Results Dashboard'!$J$10,0) -> -0.06037078353 | AK138: =IF((X138+W138)>0,(X138+W138)*0.5*'User Parameters'!C$48,(X138+W138)*0.5*'User Parameters'!$C$49) -> 0 | AL138: =-'User Parameters'!$C$12*('User Parameters'!$C$13-1) -> 0 | AM138: -0.2180043179
A139: 1.135003925 | B139: 454.543427 | C139: 515.9085739 | D139: 1.135003925 | E139: ='User Parameters'!$C$10 -> 40 | F139: =B139*'User Parameters'!$C$14 -> 0 | G139: -101.3651469 | H139: -0.2230043179 | I139: 1.135003925 | J139: =IF(UP_RSBasis="MLR",UP_RSTarget_MLR,IF(UP_RSBasis="Medical Baseline",UP_RSTarget_Medlcal,0)) -> 0 | K139: 0 | L139: 0 | M139: 0 | N139: 0 | O139: 0 | P139: 0 | Q139: 0 | S139: 0 | T139: =(S139+C139+'User Parameters'!$C$11)/(B139-F139) -> 1.135003925 | U139: =IF(T139<'User Parameters'!$J$5,'User Parameters'!$J$5,IF(T139>'User Parameters'!$J$6,'User Parameters'!$J$6,T139)) -> 1.135003925 | V139: 0 | W139: 0 | X139: =(B139-C139-F139-E139-S139-V139)/'Results Dashboard'!$D$42 -> -0.2230043179 | Y139: =IF((X139+W139)>0,(X139+W139)*0.5*((1+'User Parameters'!C$48)^((12+UP_COC_WithholdLag)/12)-1),(X139+W139)*0.5*((1+'User Parameters'!$C$49)^((12+UP_COC_WithholdLag)/12)-1)) -> 0 | Z139: =-'User Parameters'!$C$12*('User Parameters'!$C$13-1) -> 0 | AA139: -0.2230043179 | AB139: 4.926368503e-15 | AC139: 1.114867022e-14 | AD139: 1.114867022e-14 | AE139: =IF($AA139<-'Results Dashboard'!$J$7,$AA139+'Results Dashboard'!$J$7,0) -> -0.1879746436 | AF139: =IF($AA139<-'Results Dashboard'!$J$8,$AA139+'Results Dashboard'!$J$8,0) -> -0.1529449693 | AG139: =IF($AA139<-'Results Dashboard'!$J$9,$AA139+'Results Dashboard'!$J$9,0) -> -0.1529449693 | AH139: =IF($AA139<-'Results Dashboard'!$J$11,$AA139+'Results Dashboard'!$J$11,0) -> -0.06537078353 | AI139: =IF($AA139<-'Results Dashboard'!$J$10,$AA139+'Results Dashboard'!$J$10,0) -> -0.06537078353 | AK139: =IF((X139+W139)>0,(X139+W139)*0.5*'User Parameters'!C$48,(X139+W139)*0.5*'User Parameters'!$C$49) -> 0 | AL139: =-'User Parameters'!$C$12*('User Parameters'!$C$13-1) -> 0 | AM139: -0.2230043179
